Workbook

Sheet Instructions
C1: Philmont 2025 Itineraries - 12 Day Treks
B4: Questions or suggestions regarding this spreadsheet may be e-mailed to the author Sid Covington at sid_c@swbell.net
B6: ="Updated "&getlastsavedate()&" - Revision " & getSpreadsheetProperty("Revision") -> Updated 12/28/2024 6:53PM - Revision 2025_1-0
B7: Revision History: | F7: Note: Use Ctrl-F1 to show/hide the Excel ribbon
C8: 2025_1-0 | D8: Original 2025 Update

Sheet Preferences
A1: Set Crew preferences below
A3: Philmont is divided into four areas. Is it important to you | E3: Altitude Factors:
A4: which area you go to? | B4: y | C4: =IF(UPPER(B4)="Y","",IF(UPPER(B4)="N","","ERROR-Must be Y or N")) ->  | E4: Altitude factors may be included or excluded from the calculations. There are three different factors in the calculation that relate to altitude.
A5: If it is important, rank your preference in 1, 2, 3, 4 order with
A6: 1 being the most preferred, 4 being least.
A7: South Country | B7: 3 | C7: =IF(B7<1,"ERROR-Must be in 1-4 range",IF(B7>4,"ERROR-Must be in 1-4 range","")) ->  | E7: Factor: | F7: Include?
A8: Central Country | B8: 4 | C8: =IF(B8<1,"ERROR-Must be in 1-4 range",IF(B8>4,"ERROR-Must be in 1-4 range","")) ->  | E8: Highest camp elevation: | F8: n | G8: =IF(UPPER(F8)="Y","",IF(UPPER(F8)="N","","ERROR-enter a 'y' or 'n'")) -> 
A9: North Country | B9: 1 | C9: =IF(B9<1,"ERROR-Must be in 1-4 range",IF(B9>4,"ERROR-Must be in 1-4 range","")) ->  | E9: Trek camp elevation change: | F9: n | G9: =IF(UPPER(F9)="Y","",IF(UPPER(F9)="N","","ERROR-enter a 'y' or 'n'")) -> 
A10: Valle Vidal | B10: 2 | C10: =IF(B10<1,"ERROR-Must be in 1-4 range",IF(B10>4,"ERROR-Must be in 1-4 range","")) ->  | E10: Average daily change: | F10: y | G10: =IF(UPPER(F10)="Y","",IF(UPPER(F10)="N","","ERROR-enter a 'y' or 'n'")) -> 
A11: =IF(LOWER(areaImportant)="y",(IF(validAreaRanking(),"","ERROR—rank preferences 1 to 4")),"") -> 
A13: Rate the capability of your crew on a scale of 1 to 10 with | E13: How much more important are programs than the other factors such as distance, country, altitude, Tooth of Time, etc. in your selection of an itinerary? Enter y if programs are more important, n if should be treated as lower priority than other factors.
A14: 1 indicating a young crew with little backpacking experience
A15: and 10 indicating an older crew with a lot of experience.
A17: Capability | B17: 6
A18: =IF(B17>0,IF(B17<11,"","ERROR-must be less than 10"),"ERROR-must be greater than 0") ->  | E18: Programs more important? | F18: y
A20: Many itineraries return to Base Camp via bus but some hike in (not necessarily over the Tooth of Time).
E21: Include Itineraries with an Itinerary Rating of:
A22: Is it important to hike into Base Camp? | G22: Include?
B23: n | E23: Challenging | F23: C | G23: y
E24: Rugged | F24: R | G24: y
A25: Most itineraries depart Base Camp to the trailhead by bus. There are some that hike out of Base Camp to the first camp. | E25: Strenuous | F25: S | G25: y
E26: Super Strenuous | F26: SS | G26: y
A27: Is it important to hike out of Base Camp?
B28: n
A30: A key part of a Philmont Trek is climbing peaks. Is it important to you to climb the following peaks?
A32: Baldy Peak | B32: y
A33: Mount Phillips | B33: y
A34: Tooth of Time | B34: y
A35: Inspiration Point | B35: y
A36: Trail Peak | B36: n
A37: Others (Mountaineering) | B37: n

Sheet Scores
A1: Program: | B1: Crewmember 1 | C1: Crewmember 2 | D1: Crewmember 3 | E1: Crewmember 4 | F1: Crewmember 5 | G1: Crewmember 6 | H1: Crewmember 7 | I1: Crewmember 8 | J1: Crewmember 9 | K1: Crewmember 10 | L1: Crewmember 11 | M1: Crewmember 12
A2: =INDEX(program_table,ROW()-1) -> Climbing: Bouldering Gym | B2: 15 | C2: 15 | D2: 15 | E2: 15 | F2: 15 | G2: 15 | H2: 15 | I2: 15 | J2: 15 | K2: 15 | L2: 2 | M2: 0
A3: =INDEX(program_table,ROW()-1) -> Climbing: Climbing Wall/Tower | B3: 20 | C3: 20 | D3: 20 | E3: 20 | F3: 20 | G3: 20 | H3: 20 | I3: 19 | J3: 18 | K3: 17 | L3: 16 | M3: 15
A4: =INDEX(program_table,ROW()-1) -> Climbing: Crate Stacking | B4: 2 | C4: 13 | D4: 10 | E4: 2 | F4: 0 | G4: 7 | H4: 13 | I4: 10 | J4: 2 | K4: 0 | L4: 7 | M4: 10
A5: =INDEX(program_table,ROW()-1) -> Climbing: Rock Climbing | B5: 18 | C5: 18 | D5: 18 | E5: 18 | F5: 18 | G5: 18 | H5: 18 | I5: 18 | J5: 18 | K5: 18 | L5: 5 | M5: 3
A6: =INDEX(program_table,ROW()-1) -> COPE: High Challenge Course | B6: 2 | C6: 0 | D6: 15 | E6: 0 | F6: 18 | G6: 20 | H6: 0 | I6: 15 | J6: 0 | K6: 18 | L6: 20 | M6: 0
A7: =INDEX(program_table,ROW()-1) -> COPE: Initiative Games | B7: 2 | C7: 20 | D7: 0 | E7: 14 | F7: 6 | G7: 10 | H7: 20 | I7: 0 | J7: 14 | K7: 6 | L7: 10 | M7: 9
A8: =INDEX(program_table,ROW()-1) -> COPE: Low Challenge Course | B8: 2 | C8: 20 | D8: 0 | E8: 14 | F8: 6 | G8: 10 | H8: 20 | I8: 0 | J8: 14 | K8: 6 | L8: 10 | M8: 9
A9: =INDEX(program_table,ROW()-1) -> Ecology: Demonstration Forest | B9: 2 | C9: 5 | D9: 15 | E9: 0 | F9: 20 | G9: 7 | H9: 5 | I9: 15 | J9: 0 | K9: 0 | L9: 7 | M9: 8
A10: =INDEX(program_table,ROW()-1) -> Ecology: Self-Guided Fishing | B10: 2 | C10: 19 | D10: 0 | E10: 0 | F10: 9 | G10: 9 | H10: 19 | I10: 0 | J10: 0 | K10: 9 | L10: 9 | M10: 11
A11: =INDEX(program_table,ROW()-1) -> Evening: Abreu Family Dinner | B11: 2 | C11: 10 | D11: 5 | E11: 0 | F11: 0 | G11: 7 | H11: 10 | I11: 5 | J11: 0 | L11: 7 | M11: 15
A12: =INDEX(program_table,ROW()-1) -> Evening: Advisor Coffee | B12: 2 | C12: 20 | D12: 5 | E12: 0 | F12: 0 | G12: 5 | H12: 20 | I12: 5 | J12: 0 | L12: 5 | M12: 11
A13: =INDEX(program_table,ROW()-1) -> Evening: Campfire Show | B13: 2 | C13: 11 | E13: 13 | G13: 4 | H13: 10 | J13: 15 | K13: 0 | M13: 18
A14: =INDEX(program_table,ROW()-1) -> Evening: Chuckwagon Dinner | B14: 2 | C14: 10 | D14: 0 | E14: 13 | F14: 0 | G14: 4 | H14: 10 | I14: 0 | J14: 13 | K14: 0 | L14: 4 | M14: 18
A15: =INDEX(program_table,ROW()-1) -> Historical: Adobe Brick-Making | B15: 2 | C15: 13 | D15: 10 | E15: 2 | G15: 7 | H15: 13 | I15: 10 | J15: 2 | K15: 0 | L15: 7 | M15: 10
A16: =INDEX(program_table,ROW()-1) -> Historical: Blacksmithing | B16: 2 | C16: 12 | D16: 5 | E16: 3 | G16: 10 | H16: 12 | I16: 5 | J16: 3 | K16: 0 | L16: 10 | M16: 20
A17: =INDEX(program_table,ROW()-1) -> Historical: Cabin Restoration | B17: 2 | C17: 8 | D17: 0 | E17: 16 | F17: 5 | G17: 8 | H17: 0 | I17: 8 | J17: 16 | K17: 8 | L17: 3 | M17: 10
A18: =INDEX(program_table,ROW()-1) -> Historical: Cabin/House Tour | B18: 2 | C18: 1 | D18: 1 | E18: 17 | F18: 6 | G18: 4 | H18: 1 | I18: 1 | J18: 17 | K18: 6 | L18: 4 | M18: 11
A19: =INDEX(program_table,ROW()-1) -> Historical: Crafting | B19: 2 | C19: 10 | D19: 6 | E19: 15 | F19: 10 | G19: 5 | H19: 10 | I19: 0 | K19: 1 | L19: 20 | M19: 18
A20: =INDEX(program_table,ROW()-1) -> Historical: Crosscut & Tie Making | B20: 2 | C20: 3 | D20: 5 | E20: 0 | F20: 0 | G20: 5 | H20: 20 | I20: 5 | J20: 0 | K20: 0 | L20: 7 | M20: 15
A21: =INDEX(program_table,ROW()-1) -> Historical: Flint Knapping | B21: 2 | C21: 2 | D21: 15 | E21: 18 | F21: 0 | G21: 10 | H21: 2 | I21: 15 | J21: 18 | K21: 0 | L21: 10 | M21: 12
A22: =INDEX(program_table,ROW()-1) -> Historical: Fur Trapper Rendezvous | B22: 2 | C22: 19 | D22: 0 | E22: 6 | F22: 0 | G22: 12 | H22: 19 | I22: 0 | J22: 6 | K22: 0 | L22: 12 | M22: 0
A23: =INDEX(program_table,ROW()-1) -> Historical: Gold Panning | B23: 15 | C23: 2 | D23: 0 | E23: 12 | F23: 0 | G23: 12 | H23: 2 | I23: 10 | J23: 8 | K23: 0 | L23: 20 | M23: 5
A24: =INDEX(program_table,ROW()-1) -> Historical: Mine Tour | B24: 2 | C24: 6 | D24: 5 | E24: 8 | F24: 9 | G24: 10 | H24: 7 | I24: 7 | J24: 3 | K24: 2 | L24: 1 | M24: 9
A25: =INDEX(program_table,ROW()-1) -> Historical: Petroglyph Tour | B25: 2 | D25: 15 | F25: 18 | G25: 20 | H25: 0 | I25: 15 | J25: 0 | K25: 18 | L25: 20
A26: =INDEX(program_table,ROW()-1) -> Historical: Pump Car Rides | B26: 2 | C26: 16 | D26: 10 | E26: 15 | F26: 0 | G26: 20 | H26: 16 | I26: 10 | J26: 15 | K26: 0 | L26: 20 | M26: 10
A27: =INDEX(program_table,ROW()-1) -> Historical: Railroad Construction | B27: 2 | D27: 10 | E27: 5 | F27: 10 | H27: 10 | I27: 20 | J27: 5 | K27: 15 | L27: 2 | M27: 18
A28: =INDEX(program_table,ROW()-1) -> Historical: Spar Pole Climbing | B28: 2 | C28: 0 | D28: 15 | F28: 17 | G28: 12 | H28: 0 | I28: 15 | J28: 0 | K28: 17 | L28: 12 | M28: 10
A29: =INDEX(program_table,ROW()-1) -> Landmarks: Baldy Mountain | B29: 15 | C29: 0 | D29: 15 | F29: 19 | G29: 12 | H29: 0 | I29: 15 | J29: 0 | K29: 19 | L29: 12 | M29: 10
A30: =INDEX(program_table,ROW()-1) -> Landmarks: Inspiration Point | B30: 15 | C30: 0 | D30: 15 | F30: 12 | G30: 12 | H30: 0 | I30: 15 | K30: 12 | L30: 12 | M30: 10
A31: =INDEX(program_table,ROW()-1) -> Landmarks: Mount Phillips | B31: 15 | C31: 0 | D31: 15 | F31: 11 | G31: 12 | H31: 10 | I31: 15 | J31: 15 | K31: 11 | L31: 12 | M31: 10
A32: =INDEX(program_table,ROW()-1) -> Landmarks: Mountaineering | B32: 18 | C32: 17 | D32: 6 | F32: 12 | G32: 13 | H32: 5 | I32: 16 | J32: 3 | K32: 13 | L32: 14 | M32: 18
A33: =INDEX(program_table,ROW()-1) -> Landmarks: Tooth of Time | B33: 10 | C33: 0 | D33: 5 | F33: 16 | G33: 9 | H33: 0 | I33: 5 | J33: 0 | K33: 16 | M33: 0
A34: =INDEX(program_table,ROW()-1) -> Landmarks: Trail Peak | B34: 19 | C34: 20 | E34: 14 | F34: 7 | G34: 10 | H34: 20 | J34: 14 | K34: 7 | L34: 2 | M34: 8
A35: =INDEX(program_table,ROW()-1) -> Livestock: Animal Husbandry | B35: 19 | C35: 20 | D35: 0 | E35: 14 | F35: 7 | G35: 10 | H35: 20 | I35: 18 | J35: 14 | K35: 7 | L35: 10 | M35: 8
A36: =INDEX(program_table,ROW()-1) -> Livestock: Burro Packing | B36: 18 | C36: 5 | D36: 10 | E36: 5 | F36: 19 | G36: 20 | I36: 10 | J36: 15 | K36: 5 | L36: 14 | M36: 19
A37: =INDEX(program_table,ROW()-1) -> Livestock: Chicken Tending | B37: 20 | C37: 5 | D37: 16 | E37: 20 | F37: 20 | G37: 1 | H37: 15 | I37: 15 | K37: 18 | L37: 20 | M37: 20
A38: =INDEX(program_table,ROW()-1) -> Livestock: Horse Rides | B38: 14 | C38: 15 | D38: 10 | E38: 17 | F38: 20 | G38: 4 | H38: 20 | I38: 15 | J38: 17 | L38: 5 | M38: 20
A39: =INDEX(program_table,ROW()-1) -> Low Impact Camping | B39: 19 | C39: 20 | E39: 14 | F39: 7 | G39: 10 | H39: 20 | J39: 14 | K39: 7 | L39: 10 | M39: 8
A40: =INDEX(program_table,ROW()-1) -> Range Sports: 3D Archery | B40: 8 | C40: 2 | D40: 10 | E40: 20 | F40: 0 | G40: 12 | H40: 2 | I40: 10 | J40: 15 | K40: 0 | L40: 12 | M40: 10
A41: =INDEX(program_table,ROW()-1) -> Range Sports: Aerial Archery | B41: 10 | C41: 5 | D41: 5 | E41: 7 | F41: 4 | G41: 12 | H41: 5 | I41: 5 | J41: 7 | K41: 4 | L41: 12 | M41: 15
A42: =INDEX(program_table,ROW()-1) -> Range Sports: Atlatl Throwing | B42: 18 | C42: 17 | D42: 6 | F42: 12 | G42: 13 | H42: 5 | I42: 16 | J42: 3 | K42: 13 | L42: 14 | M42: 18
A43: =INDEX(program_table,ROW()-1) -> Range Sports: Cartridge Reloading | B43: 15 | C43: 10 | D43: 20 | E43: 15 | F43: 12 | G43: 20 | H43: 10 | I43: 6 | J43: 10 | K43: 5 | M43: 15
A44: =INDEX(program_table,ROW()-1) -> Range Sports: Cowboy Action Shooting | B44: 10 | C44: 0 | D44: 5 | F44: 16 | G44: 9 | H44: 0 | I44: 5 | J44: 0 | K44: 16 | M44: 0
A45: =INDEX(program_table,ROW()-1) -> Range Sports: Field Archery | B45: 19 | C45: 20 | E45: 14 | F45: 7 | G45: 10 | H45: 20 | J45: 14 | K45: 7 | L45: 2 | M45: 8
A46: =INDEX(program_table,ROW()-1) -> Range Sports: Muzzleloader Shooting | B46: 19 | C46: 20 | D46: 0 | E46: 14 | F46: 7 | G46: 10 | H46: 20 | I46: 18 | J46: 14 | K46: 7 | L46: 10 | M46: 8
A47: =INDEX(program_table,ROW()-1) -> Range Sports: Rifle Shooting | B47: 18 | C47: 5 | D47: 10 | E47: 5 | F47: 19 | G47: 20 | I47: 10 | J47: 15 | K47: 5 | L47: 14 | M47: 19
A48: =INDEX(program_table,ROW()-1) -> Range Sports: Shotgun Shooting | B48: 20 | C48: 5 | D48: 16 | E48: 20 | F48: 20 | G48: 1 | H48: 15 | I48: 15 | K48: 18 | L48: 20 | M48: 20
A49: =INDEX(program_table,ROW()-1) -> Range Sports: Shotshell Reloading | B49: 14 | C49: 15 | D49: 10 | E49: 17 | F49: 20 | G49: 4 | H49: 20 | I49: 15 | J49: 17 | L49: 5 | M49: 20
A50: =INDEX(program_table,ROW()-1) -> Range Sports: Tomahawk Throwing | B50: 15 | C50: 10 | D50: 20 | E50: 15 | F50: 12 | G50: 20 | H50: 10 | I50: 6 | J50: 10 | K50: 5 | M50: 15
A51: =INDEX(program_table,ROW()-1) -> STEM: Archeology | B51: 15 | C51: 10 | D51: 20 | E51: 15 | F51: 12 | G51: 20 | H51: 10 | I51: 6 | J51: 10 | K51: 5 | M51: 15
A52: =INDEX(program_table,ROW()-1) -> STEM: Astronomy | B52: 10 | C52: 0 | D52: 5 | F52: 16 | G52: 9 | H52: 0 | I52: 5 | J52: 0 | K52: 16 | M52: 0
A53: =INDEX(program_table,ROW()-1) -> STEM: Geology | B53: 11 | C53: 18 | D53: 20 | E53: 15 | G53: 10 | H53: 20 | J53: 15 | K53: 18 | L53: 10 | M53: 20
A54: =INDEX(program_table,ROW()-1) -> Western Lore: Branding | B54: 11 | C54: 18 | E54: 0 | G54: 10 | H54: 20 | J54: 0 | L54: 10 | M54: 20
A55: =INDEX(program_table,ROW()-1) -> Western Lore: Cantina | B55: 20 | C55: 14 | D55: 16 | E55: 20 | F55: 20 | H55: 15 | I55: 15 | J55: 12 | K55: 18 | L55: 20 | M55: 20
A56: =INDEX(program_table,ROW()-1) -> Western Lore: Roping | B56: 11 | C56: 5 | G56: 10 | H56: 20 | K56: 0 | L56: 10 | M56: 20
A57: =INDEX(program_table,ROW()-1) -> Wheeled: Mountain Biking | B57: 15 | C57: 10 | E57: 10 | F57: 8 | G57: 5 | H57: 8 | J57: 14 | K57: 8 | L57: 5 | M57: 10

Sheet Results
A1: Philmont Trek Itinerary Selection
E2: Choice | I2: # X's | J2: Pgm Index | K2: Top Itinerary/Program Cross Reference
A3: Itinerary | B3: Classification | C3: Distance | D3: =IF(meanMedian="Mean","Average",meanMedian) & " Score" -> Total Score | G3: Program (by Popularity) | H3: Value | K3: 12-23 | L3: 12-24 | M3: 12-21 | N3: 12-19 | O3: 12-14 | P3: 12-17
A4: 12-23 | B4: Super Strenuous | C4: 76 | D4: 17079.8 | E4: #1 | G4: Climbing: Climbing Wall/Tower | H4: 225 | I4: =COUNTIF(K4:P4,"X") -> 3 | J4: 2 | K4: =IF($G4=0,"",IF(INDEX(itineraryPrograms,numericItinerary(K$3),$J4)="y","X","")) -> X | L4: =IF($G4=0,"",IF(INDEX(itineraryPrograms,numericItinerary(L$3),$J4)="y","X","")) ->  | M4: =IF($G4=0,"",IF(INDEX(itineraryPrograms,numericItinerary(M$3),$J4)="y","X","")) -> X | N4: =IF($G4=0,"",IF(INDEX(itineraryPrograms,numericItinerary(N$3),$J4)="y","X","")) ->  | O4: =IF($G4=0,"",IF(INDEX(itineraryPrograms,numericItinerary(O$3),$J4)="y","X","")) ->  | P4: =IF($G4=0,"",IF(INDEX(itineraryPrograms,numericItinerary(P$3),$J4)="y","X","")) -> X
A5: 12-24 | B5: Super Strenuous | C5: 77 | D5: 16854.3 | E5: #2 | G5: Western Lore: Cantina | H5: 190 | I5: 2 | J5: 54 | K5: =IF($G5=0,"",IF(INDEX(itineraryPrograms,numericItinerary(K$3),$J5)="y","X","")) ->  | L5: =IF($G5=0,"",IF(INDEX(itineraryPrograms,numericItinerary(L$3),$J5)="y","X","")) -> X | M5: =IF($G5=0,"",IF(INDEX(itineraryPrograms,numericItinerary(M$3),$J5)="y","X","")) -> X | N5: =IF($G5=0,"",IF(INDEX(itineraryPrograms,numericItinerary(N$3),$J5)="y","X","")) ->  | O5: =IF($G5=0,"",IF(INDEX(itineraryPrograms,numericItinerary(O$3),$J5)="y","X","")) ->  | P5: =IF($G5=0,"",IF(INDEX(itineraryPrograms,numericItinerary(P$3),$J5)="y","X","")) -> 
A6: 12-21 | B6: Super Strenuous | C6: 70 | D6: 16361.3 | E6: #3 | G6: Climbing: Rock Climbing | H6: 188 | I6: 5 | J6: 4 | K6: =IF($G6=0,"",IF(INDEX(itineraryPrograms,numericItinerary(K$3),$J6)="y","X","")) -> X | L6: =IF($G6=0,"",IF(INDEX(itineraryPrograms,numericItinerary(L$3),$J6)="y","X","")) -> X | M6: =IF($G6=0,"",IF(INDEX(itineraryPrograms,numericItinerary(M$3),$J6)="y","X","")) -> X | N6: =IF($G6=0,"",IF(INDEX(itineraryPrograms,numericItinerary(N$3),$J6)="y","X","")) ->  | O6: =IF($G6=0,"",IF(INDEX(itineraryPrograms,numericItinerary(O$3),$J6)="y","X","")) -> X | P6: =IF($G6=0,"",IF(INDEX(itineraryPrograms,numericItinerary(P$3),$J6)="y","X","")) -> X
A7: 12-19 | B7: Strenuous | C7: 69 | D7: 15945.8 | E7: #4 | G7: Range Sports: Cartridge Reloading | H7: 170 | I7: 2 | J7: 42 | K7: =IF($G7=0,"",IF(INDEX(itineraryPrograms,numericItinerary(K$3),$J7)="y","X","")) ->  | L7: =IF($G7=0,"",IF(INDEX(itineraryPrograms,numericItinerary(L$3),$J7)="y","X","")) -> X | M7: =IF($G7=0,"",IF(INDEX(itineraryPrograms,numericItinerary(M$3),$J7)="y","X","")) ->  | N7: =IF($G7=0,"",IF(INDEX(itineraryPrograms,numericItinerary(N$3),$J7)="y","X","")) -> X | O7: =IF($G7=0,"",IF(INDEX(itineraryPrograms,numericItinerary(O$3),$J7)="y","X","")) ->  | P7: =IF($G7=0,"",IF(INDEX(itineraryPrograms,numericItinerary(P$3),$J7)="y","X","")) -> 
A8: 12-14 | B8: Strenuous | C8: 78 | D8: 15900.3 | E8: #5 | G8: Livestock: Chicken Tending | H8: 170 | I8: 4 | J8: 36 | K8: =IF($G8=0,"",IF(INDEX(itineraryPrograms,numericItinerary(K$3),$J8)="y","X","")) ->  | L8: =IF($G8=0,"",IF(INDEX(itineraryPrograms,numericItinerary(L$3),$J8)="y","X","")) ->  | M8: =IF($G8=0,"",IF(INDEX(itineraryPrograms,numericItinerary(M$3),$J8)="y","X","")) -> X | N8: =IF($G8=0,"",IF(INDEX(itineraryPrograms,numericItinerary(N$3),$J8)="y","X","")) -> X | O8: =IF($G8=0,"",IF(INDEX(itineraryPrograms,numericItinerary(O$3),$J8)="y","X","")) -> X | P8: =IF($G8=0,"",IF(INDEX(itineraryPrograms,numericItinerary(P$3),$J8)="y","X","")) -> X
A9: 12-17 | B9: Strenuous | C9: 61 | D9: 15861.1 | E9: #6 | G9: Range Sports: Cowboy Action Shooting | H9: 157 | I9: 0 | J9: 43 | K9: =IF($G9=0,"",IF(INDEX(itineraryPrograms,numericItinerary(K$3),$J9)="y","X","")) ->  | L9: =IF($G9=0,"",IF(INDEX(itineraryPrograms,numericItinerary(L$3),$J9)="y","X","")) ->  | M9: =IF($G9=0,"",IF(INDEX(itineraryPrograms,numericItinerary(M$3),$J9)="y","X","")) ->  | N9: =IF($G9=0,"",IF(INDEX(itineraryPrograms,numericItinerary(N$3),$J9)="y","X","")) ->  | O9: =IF($G9=0,"",IF(INDEX(itineraryPrograms,numericItinerary(O$3),$J9)="y","X","")) ->  | P9: =IF($G9=0,"",IF(INDEX(itineraryPrograms,numericItinerary(P$3),$J9)="y","X","")) -> 
A10: 12-20 | B10: Super Strenuous | C10: 76 | D10: 15650 | G10: STEM: Geology | H10: 157 | I10: 3 | J10: 52 | K10: =IF($G10=0,"",IF(INDEX(itineraryPrograms,numericItinerary(K$3),$J10)="y","X","")) ->  | L10: =IF($G10=0,"",IF(INDEX(itineraryPrograms,numericItinerary(L$3),$J10)="y","X","")) -> X | M10: =IF($G10=0,"",IF(INDEX(itineraryPrograms,numericItinerary(M$3),$J10)="y","X","")) -> X | N10: =IF($G10=0,"",IF(INDEX(itineraryPrograms,numericItinerary(N$3),$J10)="y","X","")) ->  | O10: =IF($G10=0,"",IF(INDEX(itineraryPrograms,numericItinerary(O$3),$J10)="y","X","")) ->  | P10: =IF($G10=0,"",IF(INDEX(itineraryPrograms,numericItinerary(P$3),$J10)="y","X","")) -> X
A11: 12-22 | B11: Super Strenuous | C11: 68 | D11: 15604.5 | G11: Livestock: Horse Rides | H11: 157 | I11: 2 | J11: 37 | K11: =IF($G11=0,"",IF(INDEX(itineraryPrograms,numericItinerary(K$3),$J11)="y","X","")) -> X | L11: =IF($G11=0,"",IF(INDEX(itineraryPrograms,numericItinerary(L$3),$J11)="y","X","")) ->  | M11: =IF($G11=0,"",IF(INDEX(itineraryPrograms,numericItinerary(M$3),$J11)="y","X","")) ->  | N11: =IF($G11=0,"",IF(INDEX(itineraryPrograms,numericItinerary(N$3),$J11)="y","X","")) ->  | O11: =IF($G11=0,"",IF(INDEX(itineraryPrograms,numericItinerary(O$3),$J11)="y","X","")) -> X | P11: =IF($G11=0,"",IF(INDEX(itineraryPrograms,numericItinerary(P$3),$J11)="y","X","")) -> 
A12: 12-16 | B12: Strenuous | C12: 65 | D12: 15386.1 | G12: Climbing: Bouldering Gym | H12: 152 | I12: 6 | J12: 1 | K12: =IF($G12=0,"",IF(INDEX(itineraryPrograms,numericItinerary(K$3),$J12)="y","X","")) -> X | L12: =IF($G12=0,"",IF(INDEX(itineraryPrograms,numericItinerary(L$3),$J12)="y","X","")) -> X | M12: =IF($G12=0,"",IF(INDEX(itineraryPrograms,numericItinerary(M$3),$J12)="y","X","")) -> X | N12: =IF($G12=0,"",IF(INDEX(itineraryPrograms,numericItinerary(N$3),$J12)="y","X","")) -> X | O12: =IF($G12=0,"",IF(INDEX(itineraryPrograms,numericItinerary(O$3),$J12)="y","X","")) -> X | P12: =IF($G12=0,"",IF(INDEX(itineraryPrograms,numericItinerary(P$3),$J12)="y","X","")) -> X
A13: 12-15 | B13: Strenuous | C13: 63 | D13: 15383.1 | G13: Livestock: Animal Husbandry | H13: 147 | I13: 4 | J13: 34 | K13: =IF($G13=0,"",IF(INDEX(itineraryPrograms,numericItinerary(K$3),$J13)="y","X","")) ->  | L13: =IF($G13=0,"",IF(INDEX(itineraryPrograms,numericItinerary(L$3),$J13)="y","X","")) ->  | M13: =IF($G13=0,"",IF(INDEX(itineraryPrograms,numericItinerary(M$3),$J13)="y","X","")) -> X | N13: =IF($G13=0,"",IF(INDEX(itineraryPrograms,numericItinerary(N$3),$J13)="y","X","")) -> X | O13: =IF($G13=0,"",IF(INDEX(itineraryPrograms,numericItinerary(O$3),$J13)="y","X","")) -> X | P13: =IF($G13=0,"",IF(INDEX(itineraryPrograms,numericItinerary(P$3),$J13)="y","X","")) -> X
A14: 12-9 | B14: Rugged | C14: 61 | D14: 15206.9 | G14: Range Sports: Aerial Archery | H14: 147 | J14: 40
A15: 12-12 | B15: Rugged | C15: 61 | D15: 14965.9 | G15: Livestock: Burro Packing | H15: 140 | J15: 35
A16: 12-7 | B16: Rugged | C16: 69 | D16: 14690.2 | G16: Range Sports: Atlatl Throwing | H16: 140 | I16: 0 | J16: 41 | K16: =IF($G16=0,"",IF(INDEX(itineraryPrograms,numericItinerary(K$3),$J16)="y","X","")) ->  | L16: =IF($G16=0,"",IF(INDEX(itineraryPrograms,numericItinerary(L$3),$J16)="y","X","")) ->  | M16: =IF($G16=0,"",IF(INDEX(itineraryPrograms,numericItinerary(M$3),$J16)="y","X","")) ->  | N16: =IF($G16=0,"",IF(INDEX(itineraryPrograms,numericItinerary(N$3),$J16)="y","X","")) ->  | O16: =IF($G16=0,"",IF(INDEX(itineraryPrograms,numericItinerary(O$3),$J16)="y","X","")) ->  | P16: =IF($G16=0,"",IF(INDEX(itineraryPrograms,numericItinerary(P$3),$J16)="y","X","")) -> 
A17: 12-10 | B17: Rugged | C17: 53 | D17: 14348.7 | E17: =meanMedian & " Score Selected" -> Total Score Selected | G17: STEM: Archeology | H17: 138 | I17: 0 | J17: 50 | K17: =IF($G17=0,"",IF(INDEX(itineraryPrograms,numericItinerary(K$3),$J17)="y","X","")) ->  | L17: =IF($G17=0,"",IF(INDEX(itineraryPrograms,numericItinerary(L$3),$J17)="y","X","")) ->  | M17: =IF($G17=0,"",IF(INDEX(itineraryPrograms,numericItinerary(M$3),$J17)="y","X","")) ->  | N17: =IF($G17=0,"",IF(INDEX(itineraryPrograms,numericItinerary(N$3),$J17)="y","X","")) ->  | O17: =IF($G17=0,"",IF(INDEX(itineraryPrograms,numericItinerary(O$3),$J17)="y","X","")) ->  | P17: =IF($G17=0,"",IF(INDEX(itineraryPrograms,numericItinerary(P$3),$J17)="y","X","")) -> 
A18: 12-18 | B18: Strenuous | C18: 64 | D18: 14218.8 | G18: Range Sports: Shotshell Reloading | H18: 138 | I18: 1 | J18: 48 | K18: =IF($G18=0,"",IF(INDEX(itineraryPrograms,numericItinerary(K$3),$J18)="y","X","")) ->  | L18: =IF($G18=0,"",IF(INDEX(itineraryPrograms,numericItinerary(L$3),$J18)="y","X","")) ->  | M18: =IF($G18=0,"",IF(INDEX(itineraryPrograms,numericItinerary(M$3),$J18)="y","X","")) ->  | N18: =IF($G18=0,"",IF(INDEX(itineraryPrograms,numericItinerary(N$3),$J18)="y","X","")) ->  | O18: =IF($G18=0,"",IF(INDEX(itineraryPrograms,numericItinerary(O$3),$J18)="y","X","")) -> X | P18: =IF($G18=0,"",IF(INDEX(itineraryPrograms,numericItinerary(P$3),$J18)="y","X","")) -> 
A19: 12-3 | B19: Rugged | C19: 71 | D19: 14094.7 | G19: Range Sports: Tomahawk Throwing | H19: 138 | I19: 5 | J19: 49 | K19: =IF($G19=0,"",IF(INDEX(itineraryPrograms,numericItinerary(K$3),$J19)="y","X","")) -> X | L19: =IF($G19=0,"",IF(INDEX(itineraryPrograms,numericItinerary(L$3),$J19)="y","X","")) -> X | M19: =IF($G19=0,"",IF(INDEX(itineraryPrograms,numericItinerary(M$3),$J19)="y","X","")) -> X | N19: =IF($G19=0,"",IF(INDEX(itineraryPrograms,numericItinerary(N$3),$J19)="y","X","")) -> X | O19: =IF($G19=0,"",IF(INDEX(itineraryPrograms,numericItinerary(O$3),$J19)="y","X","")) ->  | P19: =IF($G19=0,"",IF(INDEX(itineraryPrograms,numericItinerary(P$3),$J19)="y","X","")) -> X
A20: 12-13 | B20: Rugged | C20: 59 | D20: 13910.9 | G20: Range Sports: Shotgun Shooting | H20: 135 | I20: 1 | J20: 47 | K20: =IF($G20=0,"",IF(INDEX(itineraryPrograms,numericItinerary(K$3),$J20)="y","X","")) ->  | L20: =IF($G20=0,"",IF(INDEX(itineraryPrograms,numericItinerary(L$3),$J20)="y","X","")) ->  | M20: =IF($G20=0,"",IF(INDEX(itineraryPrograms,numericItinerary(M$3),$J20)="y","X","")) ->  | N20: =IF($G20=0,"",IF(INDEX(itineraryPrograms,numericItinerary(N$3),$J20)="y","X","")) ->  | O20: =IF($G20=0,"",IF(INDEX(itineraryPrograms,numericItinerary(O$3),$J20)="y","X","")) -> X | P20: =IF($G20=0,"",IF(INDEX(itineraryPrograms,numericItinerary(P$3),$J20)="y","X","")) -> 
A21: 12-11 | B21: Rugged | C21: 64 | D21: 13800.9 | G21: Landmarks: Mountaineering | H21: 135 | I21: 5 | J21: 31 | K21: =IF($G21=0,"",IF(INDEX(itineraryPrograms,numericItinerary(K$3),$J21)="y","X","")) -> X | L21: =IF($G21=0,"",IF(INDEX(itineraryPrograms,numericItinerary(L$3),$J21)="y","X","")) -> X | M21: =IF($G21=0,"",IF(INDEX(itineraryPrograms,numericItinerary(M$3),$J21)="y","X","")) -> X | N21: =IF($G21=0,"",IF(INDEX(itineraryPrograms,numericItinerary(N$3),$J21)="y","X","")) -> X | O21: =IF($G21=0,"",IF(INDEX(itineraryPrograms,numericItinerary(O$3),$J21)="y","X","")) ->  | P21: =IF($G21=0,"",IF(INDEX(itineraryPrograms,numericItinerary(P$3),$J21)="y","X","")) -> X
A22: 12-4 | B22: Challenging | C22: 58 | D22: 13324.5 | G22: Historical: Pump Car Rides | H22: 134 | I22: 0 | J22: 25 | K22: =IF($G22=0,"",IF(INDEX(itineraryPrograms,numericItinerary(K$3),$J22)="y","X","")) ->  | L22: =IF($G22=0,"",IF(INDEX(itineraryPrograms,numericItinerary(L$3),$J22)="y","X","")) ->  | M22: =IF($G22=0,"",IF(INDEX(itineraryPrograms,numericItinerary(M$3),$J22)="y","X","")) ->  | N22: =IF($G22=0,"",IF(INDEX(itineraryPrograms,numericItinerary(N$3),$J22)="y","X","")) ->  | O22: =IF($G22=0,"",IF(INDEX(itineraryPrograms,numericItinerary(O$3),$J22)="y","X","")) ->  | P22: =IF($G22=0,"",IF(INDEX(itineraryPrograms,numericItinerary(P$3),$J22)="y","X","")) -> 
A23: 12-8 | B23: Rugged | C23: 55 | D23: 13309.2 | G23: Low Impact Camping | H23: 129 | I23: 2 | J23: 38 | K23: =IF($G23=0,"",IF(INDEX(itineraryPrograms,numericItinerary(K$3),$J23)="y","X","")) ->  | L23: =IF($G23=0,"",IF(INDEX(itineraryPrograms,numericItinerary(L$3),$J23)="y","X","")) ->  | M23: =IF($G23=0,"",IF(INDEX(itineraryPrograms,numericItinerary(M$3),$J23)="y","X","")) ->  | N23: =IF($G23=0,"",IF(INDEX(itineraryPrograms,numericItinerary(N$3),$J23)="y","X","")) ->  | O23: =IF($G23=0,"",IF(INDEX(itineraryPrograms,numericItinerary(O$3),$J23)="y","X","")) -> X | P23: =IF($G23=0,"",IF(INDEX(itineraryPrograms,numericItinerary(P$3),$J23)="y","X","")) -> X
A24: 12-6 | B24: Rugged | C24: 53 | D24: 13109.2 | G24: Range Sports: Field Archery | H24: 129 | I24: 2 | J24: 44 | K24: =IF($G24=0,"",IF(INDEX(itineraryPrograms,numericItinerary(K$3),$J24)="y","X","")) -> X | L24: =IF($G24=0,"",IF(INDEX(itineraryPrograms,numericItinerary(L$3),$J24)="y","X","")) ->  | M24: =IF($G24=0,"",IF(INDEX(itineraryPrograms,numericItinerary(M$3),$J24)="y","X","")) ->  | N24: =IF($G24=0,"",IF(INDEX(itineraryPrograms,numericItinerary(N$3),$J24)="y","X","")) ->  | O24: =IF($G24=0,"",IF(INDEX(itineraryPrograms,numericItinerary(O$3),$J24)="y","X","")) ->  | P24: =IF($G24=0,"",IF(INDEX(itineraryPrograms,numericItinerary(P$3),$J24)="y","X","")) -> X
A25: 12-2 | B25: Challenging | C25: 58 | D25: 12887 | G25: Landmarks: Mount Phillips | H25: 126 | I25: 3 | J25: 30 | K25: =IF($G25=0,"",IF(INDEX(itineraryPrograms,numericItinerary(K$3),$J25)="y","X","")) ->  | L25: =IF($G25=0,"",IF(INDEX(itineraryPrograms,numericItinerary(L$3),$J25)="y","X","")) ->  | M25: =IF($G25=0,"",IF(INDEX(itineraryPrograms,numericItinerary(M$3),$J25)="y","X","")) -> X | N25: =IF($G25=0,"",IF(INDEX(itineraryPrograms,numericItinerary(N$3),$J25)="y","X","")) -> X | O25: =IF($G25=0,"",IF(INDEX(itineraryPrograms,numericItinerary(O$3),$J25)="y","X","")) ->  | P25: =IF($G25=0,"",IF(INDEX(itineraryPrograms,numericItinerary(P$3),$J25)="y","X","")) -> X
A26: 12-5 | B26: Challenging | C26: 54 | D26: 12493 | G26: Landmarks: Trail Peak | H26: 121 | I26: 1 | J26: 33 | K26: =IF($G26=0,"",IF(INDEX(itineraryPrograms,numericItinerary(K$3),$J26)="y","X","")) ->  | L26: =IF($G26=0,"",IF(INDEX(itineraryPrograms,numericItinerary(L$3),$J26)="y","X","")) ->  | M26: =IF($G26=0,"",IF(INDEX(itineraryPrograms,numericItinerary(M$3),$J26)="y","X","")) ->  | N26: =IF($G26=0,"",IF(INDEX(itineraryPrograms,numericItinerary(N$3),$J26)="y","X","")) ->  | O26: =IF($G26=0,"",IF(INDEX(itineraryPrograms,numericItinerary(O$3),$J26)="y","X","")) ->  | P26: =IF($G26=0,"",IF(INDEX(itineraryPrograms,numericItinerary(P$3),$J26)="y","X","")) -> X
A27: 12-1 | B27: Challenging | C27: 46 | D27: 11826.5 | G27: Landmarks: Baldy Mountain | H27: 117 | I27: 2 | J27: 28 | K27: =IF($G27=0,"",IF(INDEX(itineraryPrograms,numericItinerary(K$3),$J27)="y","X","")) -> X | L27: =IF($G27=0,"",IF(INDEX(itineraryPrograms,numericItinerary(L$3),$J27)="y","X","")) -> X | M27: =IF($G27=0,"",IF(INDEX(itineraryPrograms,numericItinerary(M$3),$J27)="y","X","")) ->  | N27: =IF($G27=0,"",IF(INDEX(itineraryPrograms,numericItinerary(N$3),$J27)="y","X","")) ->  | O27: =IF($G27=0,"",IF(INDEX(itineraryPrograms,numericItinerary(O$3),$J27)="y","X","")) ->  | P27: =IF($G27=0,"",IF(INDEX(itineraryPrograms,numericItinerary(P$3),$J27)="y","X","")) -> 
A28: PREFERENCES: | G28: COPE: Initiative Games | H28: 111 | I28: 4 | J28: 6 | K28: =IF($G28=0,"",IF(INDEX(itineraryPrograms,numericItinerary(K$3),$J28)="y","X","")) -> X | L28: =IF($G28=0,"",IF(INDEX(itineraryPrograms,numericItinerary(L$3),$J28)="y","X","")) -> X | M28: =IF($G28=0,"",IF(INDEX(itineraryPrograms,numericItinerary(M$3),$J28)="y","X","")) ->  | N28: =IF($G28=0,"",IF(INDEX(itineraryPrograms,numericItinerary(N$3),$J28)="y","X","")) -> X | O28: =IF($G28=0,"",IF(INDEX(itineraryPrograms,numericItinerary(O$3),$J28)="y","X","")) -> X | P28: =IF($G28=0,"",IF(INDEX(itineraryPrograms,numericItinerary(P$3),$J28)="y","X","")) -> 
A29: Area Important? | B29: =UPPER(areaImportant) -> Y | G29: COPE: Low Challenge Course | H29: 111 | I29: 4 | J29: 7 | K29: =IF($G29=0,"",IF(INDEX(itineraryPrograms,numericItinerary(K$3),$J29)="y","X","")) -> X | L29: =IF($G29=0,"",IF(INDEX(itineraryPrograms,numericItinerary(L$3),$J29)="y","X","")) -> X | M29: =IF($G29=0,"",IF(INDEX(itineraryPrograms,numericItinerary(M$3),$J29)="y","X","")) ->  | N29: =IF($G29=0,"",IF(INDEX(itineraryPrograms,numericItinerary(N$3),$J29)="y","X","")) -> X | O29: =IF($G29=0,"",IF(INDEX(itineraryPrograms,numericItinerary(O$3),$J29)="y","X","")) -> X | P29: =IF($G29=0,"",IF(INDEX(itineraryPrograms,numericItinerary(P$3),$J29)="y","X","")) -> 
A30: South: | B30: =IF(UPPER(areaImportant)="Y",Preferences!B7,"") -> 3 | G30: Historical: Petroglyph Tour | H30: 108 | I30: 0 | J30: 24 | K30: =IF($G30=0,"",IF(INDEX(itineraryPrograms,numericItinerary(K$3),$J30)="y","X","")) ->  | L30: =IF($G30=0,"",IF(INDEX(itineraryPrograms,numericItinerary(L$3),$J30)="y","X","")) ->  | M30: =IF($G30=0,"",IF(INDEX(itineraryPrograms,numericItinerary(M$3),$J30)="y","X","")) ->  | N30: =IF($G30=0,"",IF(INDEX(itineraryPrograms,numericItinerary(N$3),$J30)="y","X","")) ->  | O30: =IF($G30=0,"",IF(INDEX(itineraryPrograms,numericItinerary(O$3),$J30)="y","X","")) ->  | P30: =IF($G30=0,"",IF(INDEX(itineraryPrograms,numericItinerary(P$3),$J30)="y","X","")) -> 
A31: Central: | B31: =IF(UPPER(areaImportant)="Y",Preferences!B8,"") -> 4 | G31: COPE: High Challenge Course | H31: 108 | J31: 5
A32: North: | B32: =IF(UPPER(areaImportant)="Y",Preferences!B9,"") -> 1 | G32: Historical: Flint Knapping | H32: 104 | J32: 20
A33: Valle Vidal: | B33: =IF(UPPER(areaImportant)="Y",Preferences!B10,"") -> 2 | G33: Landmarks: Inspiration Point | H33: 103 | J33: 29
A34: Capability: | B34: =skillLevel -> 6 | G34: Range Sports: 3D Archery | H34: 101 | J34: 39
A35: Hike Out? | B35: =UPPER(hikeOut) -> N | G35: Range Sports: Muzzleloader Shooting | H35: 101 | J35: 45
A36: Hike In/Tooth? | B36: =UPPER(hikeIn) -> N | G36: Historical: Spar Pole Climbing | H36: 100 | J36: 27
A37: Max Altitude? | B37: =UPPER(altitudeMax) -> N | G37: Historical: Crafting | H37: 97 | J37: 18
A38: Total elevation? | B38: =UPPER(altitudeChange) -> N | G38: Historical: Railroad Construction | H38: 97 | J38: 26
A39: Daily change? | B39: =UPPER(altitudeDaily) -> Y | G39: Wheeled: Mountain Biking | H39: 93 | I39: 1 | J39: 56 | K39: =IF($G39=0,"",IF(INDEX(itineraryPrograms,numericItinerary(K$3),$J39)="y","X","")) ->  | L39: =IF($G39=0,"",IF(INDEX(itineraryPrograms,numericItinerary(L$3),$J39)="y","X","")) ->  | M39: =IF($G39=0,"",IF(INDEX(itineraryPrograms,numericItinerary(M$3),$J39)="y","X","")) ->  | N39: =IF($G39=0,"",IF(INDEX(itineraryPrograms,numericItinerary(N$3),$J39)="y","X","")) ->  | O39: =IF($G39=0,"",IF(INDEX(itineraryPrograms,numericItinerary(O$3),$J39)="y","X","")) -> X | P39: =IF($G39=0,"",IF(INDEX(itineraryPrograms,numericItinerary(P$3),$J39)="y","X","")) -> 
A40: Programs? | B40: =UPPER(programsImportant) -> Y | G40: Range Sports: Rifle Shooting | H40: 91 | I40: 2 | J40: 46 | K40: =IF($G40=0,"",IF(INDEX(itineraryPrograms,numericItinerary(K$3),$J40)="y","X","")) ->  | L40: =IF($G40=0,"",IF(INDEX(itineraryPrograms,numericItinerary(L$3),$J40)="y","X","")) -> X | M40: =IF($G40=0,"",IF(INDEX(itineraryPrograms,numericItinerary(M$3),$J40)="y","X","")) ->  | N40: =IF($G40=0,"",IF(INDEX(itineraryPrograms,numericItinerary(N$3),$J40)="y","X","")) -> X | O40: =IF($G40=0,"",IF(INDEX(itineraryPrograms,numericItinerary(O$3),$J40)="y","X","")) ->  | P40: =IF($G40=0,"",IF(INDEX(itineraryPrograms,numericItinerary(P$3),$J40)="y","X","")) -> 
G41: Western Lore: Branding | H41: 89 | I41: 6 | J41: 53 | K41: =IF($G41=0,"",IF(INDEX(itineraryPrograms,numericItinerary(K$3),$J41)="y","X","")) -> X | L41: =IF($G41=0,"",IF(INDEX(itineraryPrograms,numericItinerary(L$3),$J41)="y","X","")) -> X | M41: =IF($G41=0,"",IF(INDEX(itineraryPrograms,numericItinerary(M$3),$J41)="y","X","")) -> X | N41: =IF($G41=0,"",IF(INDEX(itineraryPrograms,numericItinerary(N$3),$J41)="y","X","")) -> X | O41: =IF($G41=0,"",IF(INDEX(itineraryPrograms,numericItinerary(O$3),$J41)="y","X","")) -> X | P41: =IF($G41=0,"",IF(INDEX(itineraryPrograms,numericItinerary(P$3),$J41)="y","X","")) -> X
G42: Ecology: Self-Guided Fishing | H42: 87 | I42: 3 | J42: 9 | K42: =IF($G42=0,"",IF(INDEX(itineraryPrograms,numericItinerary(K$3),$J42)="y","X","")) ->  | L42: =IF($G42=0,"",IF(INDEX(itineraryPrograms,numericItinerary(L$3),$J42)="y","X","")) ->  | M42: =IF($G42=0,"",IF(INDEX(itineraryPrograms,numericItinerary(M$3),$J42)="y","X","")) -> X | N42: =IF($G42=0,"",IF(INDEX(itineraryPrograms,numericItinerary(N$3),$J42)="y","X","")) ->  | O42: =IF($G42=0,"",IF(INDEX(itineraryPrograms,numericItinerary(O$3),$J42)="y","X","")) -> X | P42: =IF($G42=0,"",IF(INDEX(itineraryPrograms,numericItinerary(P$3),$J42)="y","X","")) -> X
D43: =MIN(rankedScore) -> 11826.5 | G43: Historical: Gold Panning | H43: 86 | I43: 3 | J43: 22 | K43: =IF($G43=0,"",IF(INDEX(itineraryPrograms,numericItinerary(K$3),$J43)="y","X","")) ->  | L43: =IF($G43=0,"",IF(INDEX(itineraryPrograms,numericItinerary(L$3),$J43)="y","X","")) -> X | M43: =IF($G43=0,"",IF(INDEX(itineraryPrograms,numericItinerary(M$3),$J43)="y","X","")) -> X | N43: =IF($G43=0,"",IF(INDEX(itineraryPrograms,numericItinerary(N$3),$J43)="y","X","")) ->  | O43: =IF($G43=0,"",IF(INDEX(itineraryPrograms,numericItinerary(O$3),$J43)="y","X","")) ->  | P43: =IF($G43=0,"",IF(INDEX(itineraryPrograms,numericItinerary(P$3),$J43)="y","X","")) -> X
D44: =MAX(rankedScore) -> 17079.8 | G44: Historical: Cabin Restoration | H44: 84 | J44: 16 | K44: =IF($G44=0,"",IF(INDEX(itineraryPrograms,numericItinerary(K$3),$J44)="y","X","")) ->  | L44: =IF($G44=0,"",IF(INDEX(itineraryPrograms,numericItinerary(L$3),$J44)="y","X","")) ->  | M44: =IF($G44=0,"",IF(INDEX(itineraryPrograms,numericItinerary(M$3),$J44)="y","X","")) -> X | N44: =IF($G44=0,"",IF(INDEX(itineraryPrograms,numericItinerary(N$3),$J44)="y","X","")) ->  | O44: =IF($G44=0,"",IF(INDEX(itineraryPrograms,numericItinerary(O$3),$J44)="y","X","")) ->  | P44: =IF($G44=0,"",IF(INDEX(itineraryPrograms,numericItinerary(P$3),$J44)="y","X","")) -> 
G45: Ecology: Demonstration Forest | H45: 84 | J45: 8 | K45: =IF($G45=0,"",IF(INDEX(itineraryPrograms,numericItinerary(K$3),$J45)="y","X","")) ->  | L45: =IF($G45=0,"",IF(INDEX(itineraryPrograms,numericItinerary(L$3),$J45)="y","X","")) -> X | M45: =IF($G45=0,"",IF(INDEX(itineraryPrograms,numericItinerary(M$3),$J45)="y","X","")) -> X | N45: =IF($G45=0,"",IF(INDEX(itineraryPrograms,numericItinerary(N$3),$J45)="y","X","")) ->  | O45: =IF($G45=0,"",IF(INDEX(itineraryPrograms,numericItinerary(O$3),$J45)="y","X","")) -> X | P45: =IF($G45=0,"",IF(INDEX(itineraryPrograms,numericItinerary(P$3),$J45)="y","X","")) -> 
G46: Historical: Blacksmithing | H46: 82 | J46: 15 | K46: =IF($G46=0,"",IF(INDEX(itineraryPrograms,numericItinerary(K$3),$J46)="y","X","")) ->  | L46: =IF($G46=0,"",IF(INDEX(itineraryPrograms,numericItinerary(L$3),$J46)="y","X","")) -> X | M46: =IF($G46=0,"",IF(INDEX(itineraryPrograms,numericItinerary(M$3),$J46)="y","X","")) -> X | N46: =IF($G46=0,"",IF(INDEX(itineraryPrograms,numericItinerary(N$3),$J46)="y","X","")) ->  | O46: =IF($G46=0,"",IF(INDEX(itineraryPrograms,numericItinerary(O$3),$J46)="y","X","")) ->  | P46: =IF($G46=0,"",IF(INDEX(itineraryPrograms,numericItinerary(P$3),$J46)="y","X","")) -> X
G47: Historical: Adobe Brick-Making | H47: 76 | J47: 14 | K47: =IF($G47=0,"",IF(INDEX(itineraryPrograms,numericItinerary(K$3),$J47)="y","X","")) ->  | L47: =IF($G47=0,"",IF(INDEX(itineraryPrograms,numericItinerary(L$3),$J47)="y","X","")) ->  | M47: =IF($G47=0,"",IF(INDEX(itineraryPrograms,numericItinerary(M$3),$J47)="y","X","")) -> X | N47: =IF($G47=0,"",IF(INDEX(itineraryPrograms,numericItinerary(N$3),$J47)="y","X","")) ->  | O47: =IF($G47=0,"",IF(INDEX(itineraryPrograms,numericItinerary(O$3),$J47)="y","X","")) ->  | P47: =IF($G47=0,"",IF(INDEX(itineraryPrograms,numericItinerary(P$3),$J47)="y","X","")) -> 
G48: Historical: Fur Trapper Rendezvous | H48: 76 | J48: 21 | K48: =IF($G48=0,"",IF(INDEX(itineraryPrograms,numericItinerary(K$3),$J48)="y","X","")) -> X | L48: =IF($G48=0,"",IF(INDEX(itineraryPrograms,numericItinerary(L$3),$J48)="y","X","")) -> X | M48: =IF($G48=0,"",IF(INDEX(itineraryPrograms,numericItinerary(M$3),$J48)="y","X","")) ->  | N48: =IF($G48=0,"",IF(INDEX(itineraryPrograms,numericItinerary(N$3),$J48)="y","X","")) ->  | O48: =IF($G48=0,"",IF(INDEX(itineraryPrograms,numericItinerary(O$3),$J48)="y","X","")) ->  | P48: =IF($G48=0,"",IF(INDEX(itineraryPrograms,numericItinerary(P$3),$J48)="y","X","")) -> 
G49: Western Lore: Roping | H49: 76 | J49: 55 | K49: =IF($G49=0,"",IF(INDEX(itineraryPrograms,numericItinerary(K$3),$J49)="y","X","")) -> X | L49: =IF($G49=0,"",IF(INDEX(itineraryPrograms,numericItinerary(L$3),$J49)="y","X","")) -> X | M49: =IF($G49=0,"",IF(INDEX(itineraryPrograms,numericItinerary(M$3),$J49)="y","X","")) -> X | N49: =IF($G49=0,"",IF(INDEX(itineraryPrograms,numericItinerary(N$3),$J49)="y","X","")) -> X | O49: =IF($G49=0,"",IF(INDEX(itineraryPrograms,numericItinerary(O$3),$J49)="y","X","")) ->  | P49: =IF($G49=0,"",IF(INDEX(itineraryPrograms,numericItinerary(P$3),$J49)="y","X","")) -> X
G50: Climbing: Crate Stacking | H50: 76 | J50: 3
G51: Evening: Chuckwagon Dinner | H51: 74 | J51: 13
G52: Evening: Campfire Show | H52: 73 | J52: 12 | K52: =IF($G52=0,"",IF(INDEX(itineraryPrograms,numericItinerary(K$3),$J52)="y","X","")) -> X | L52: =IF($G52=0,"",IF(INDEX(itineraryPrograms,numericItinerary(L$3),$J52)="y","X","")) -> X | M52: =IF($G52=0,"",IF(INDEX(itineraryPrograms,numericItinerary(M$3),$J52)="y","X","")) -> X | N52: =IF($G52=0,"",IF(INDEX(itineraryPrograms,numericItinerary(N$3),$J52)="y","X","")) -> X | O52: =IF($G52=0,"",IF(INDEX(itineraryPrograms,numericItinerary(O$3),$J52)="y","X","")) -> X | P52: =IF($G52=0,"",IF(INDEX(itineraryPrograms,numericItinerary(P$3),$J52)="y","X","")) -> X
G53: Evening: Advisor Coffee | H53: 73 | J53: 11 | K53: =IF($G53=0,"",IF(INDEX(itineraryPrograms,numericItinerary(K$3),$J53)="y","X","")) -> X | L53: =IF($G53=0,"",IF(INDEX(itineraryPrograms,numericItinerary(L$3),$J53)="y","X","")) -> X | M53: =IF($G53=0,"",IF(INDEX(itineraryPrograms,numericItinerary(M$3),$J53)="y","X","")) -> X | N53: =IF($G53=0,"",IF(INDEX(itineraryPrograms,numericItinerary(N$3),$J53)="y","X","")) -> X | O53: =IF($G53=0,"",IF(INDEX(itineraryPrograms,numericItinerary(O$3),$J53)="y","X","")) -> X | P53: =IF($G53=0,"",IF(INDEX(itineraryPrograms,numericItinerary(P$3),$J53)="y","X","")) -> X
G54: Historical: Cabin/House Tour | H54: 71 | J54: 17 | K54: =IF($G54=0,"",IF(INDEX(itineraryPrograms,numericItinerary(K$3),$J54)="y","X","")) ->  | L54: =IF($G54=0,"",IF(INDEX(itineraryPrograms,numericItinerary(L$3),$J54)="y","X","")) ->  | M54: =IF($G54=0,"",IF(INDEX(itineraryPrograms,numericItinerary(M$3),$J54)="y","X","")) -> X | N54: =IF($G54=0,"",IF(INDEX(itineraryPrograms,numericItinerary(N$3),$J54)="y","X","")) -> X | O54: =IF($G54=0,"",IF(INDEX(itineraryPrograms,numericItinerary(O$3),$J54)="y","X","")) -> X | P54: =IF($G54=0,"",IF(INDEX(itineraryPrograms,numericItinerary(P$3),$J54)="y","X","")) -> X
G55: Historical: Mine Tour | H55: 69 | J55: 23 | K55: =IF($G55=0,"",IF(INDEX(itineraryPrograms,numericItinerary(K$3),$J55)="y","X","")) ->  | L55: =IF($G55=0,"",IF(INDEX(itineraryPrograms,numericItinerary(L$3),$J55)="y","X","")) -> X | M55: =IF($G55=0,"",IF(INDEX(itineraryPrograms,numericItinerary(M$3),$J55)="y","X","")) -> X | N55: =IF($G55=0,"",IF(INDEX(itineraryPrograms,numericItinerary(N$3),$J55)="y","X","")) ->  | O55: =IF($G55=0,"",IF(INDEX(itineraryPrograms,numericItinerary(O$3),$J55)="y","X","")) ->  | P55: =IF($G55=0,"",IF(INDEX(itineraryPrograms,numericItinerary(P$3),$J55)="y","X","")) -> X
G56: Historical: Crosscut & Tie Making | H56: 62 | J56: 19 | K56: =IF($G56=0,"",IF(INDEX(itineraryPrograms,numericItinerary(K$3),$J56)="y","X","")) -> X | L56: =IF($G56=0,"",IF(INDEX(itineraryPrograms,numericItinerary(L$3),$J56)="y","X","")) -> X | M56: =IF($G56=0,"",IF(INDEX(itineraryPrograms,numericItinerary(M$3),$J56)="y","X","")) -> X | N56: =IF($G56=0,"",IF(INDEX(itineraryPrograms,numericItinerary(N$3),$J56)="y","X","")) ->  | O56: =IF($G56=0,"",IF(INDEX(itineraryPrograms,numericItinerary(O$3),$J56)="y","X","")) -> X | P56: =IF($G56=0,"",IF(INDEX(itineraryPrograms,numericItinerary(P$3),$J56)="y","X","")) -> X
G57: STEM: Astronomy | H57: 61 | J57: 51 | K57: =IF($G57=0,"",IF(INDEX(itineraryPrograms,numericItinerary(K$3),$J57)="y","X","")) ->  | L57: =IF($G57=0,"",IF(INDEX(itineraryPrograms,numericItinerary(L$3),$J57)="y","X","")) ->  | M57: =IF($G57=0,"",IF(INDEX(itineraryPrograms,numericItinerary(M$3),$J57)="y","X","")) ->  | N57: =IF($G57=0,"",IF(INDEX(itineraryPrograms,numericItinerary(N$3),$J57)="y","X","")) ->  | O57: =IF($G57=0,"",IF(INDEX(itineraryPrograms,numericItinerary(O$3),$J57)="y","X","")) -> X | P57: =IF($G57=0,"",IF(INDEX(itineraryPrograms,numericItinerary(P$3),$J57)="y","X","")) -> 
G58: Evening: Abreu Family Dinner | H58: 61 | I58: =COUNTIF(K58:P58,"X") -> 1 | J58: 10 | K58: =IF($G58=0,"",IF(INDEX(itineraryPrograms,numericItinerary(K$3),$J58)="y","X","")) ->  | L58: =IF($G58=0,"",IF(INDEX(itineraryPrograms,numericItinerary(L$3),$J58)="y","X","")) ->  | M58: =IF($G58=0,"",IF(INDEX(itineraryPrograms,numericItinerary(M$3),$J58)="y","X","")) -> X | N58: =IF($G58=0,"",IF(INDEX(itineraryPrograms,numericItinerary(N$3),$J58)="y","X","")) ->  | O58: =IF($G58=0,"",IF(INDEX(itineraryPrograms,numericItinerary(O$3),$J58)="y","X","")) ->  | P58: =IF($G58=0,"",IF(INDEX(itineraryPrograms,numericItinerary(P$3),$J58)="y","X","")) -> 
G59: Landmarks: Tooth of Time | H59: 61 | I59: =COUNTIF(K59:P59,"X") -> 5 | J59: 32 | K59: =IF($G59=0,"",IF(INDEX(itineraryPrograms,numericItinerary(K$3),$J59)="y","X","")) -> X | L59: =IF($G59=0,"",IF(INDEX(itineraryPrograms,numericItinerary(L$3),$J59)="y","X","")) -> X | M59: =IF($G59=0,"",IF(INDEX(itineraryPrograms,numericItinerary(M$3),$J59)="y","X","")) -> X | N59: =IF($G59=0,"",IF(INDEX(itineraryPrograms,numericItinerary(N$3),$J59)="y","X","")) -> X | O59: =IF($G59=0,"",IF(INDEX(itineraryPrograms,numericItinerary(O$3),$J59)="y","X","")) ->  | P59: =IF($G59=0,"",IF(INDEX(itineraryPrograms,numericItinerary(P$3),$J59)="y","X","")) -> X
H60: 93 | J60: 49 | K60: =COUNTIF(K3:K58,"X") -> 16 | L60: 21 | M60: 24 | N60: 15 | O60: 19 | P60: 22
H61: 0 | J61: 50 | K61: =K3 -> 12-23 | L61: 12-24 | M61: 12-21 | N61: 12-19 | O61: 12-14 | P61: 12-17
H62: =MIN(H4:H59) -> 61 | I62: Min
H63: =MAX(H4:H59) -> 225 | I63: Max

Sheet Itinerary Details
A1: Itinerary Information
A2: Itinerary Number: | C2: 12-1
A3: Expedition Number: | C3: 608-A
A5: Classification: | C5: =VLOOKUP(INDEX(classification,numericItinerary(itineraryNumber)),difficultyTable,2) -> Challenging | E5: Staffed Camps: | G5: =getNcamps("Staff",itineraryNumber) -> 5 | J5: Area(s): | K5: =getCountry(numericItinerary(itineraryNumber)) -> South | N5: Starting: | O5: =AA28 -> Zastrow Trailhead
A6: Distance: | C6: =INDEX(distance,numericItinerary(itineraryNumber)) -> 46 | E6: Trail Camps: | G6: =getNcamps("Trail",itineraryNumber) -> 5 | J6: Map(s): | K6: =getMaps(numericItinerary(itineraryNumber)) -> South | N6: Ending: | O6: =AB28 -> Hike In
A7: Initial/Max Days Food: | C7: =getFoodDays(itineraryNumber) -> 3/3 | E7: Layovers: | G7: =getNcamps("Layover",itineraryNumber) -> 1
A8: Return via Tooth: | C8: =IF(INDEX(viaTooth,numericItinerary(itineraryNumber))="y","Yes","No") -> Yes | E8: Dry Camps | G8: =getNcamps("Dry",itineraryNumber) -> 1 | J8: Peaks: | K8: =getPeakS(numericItinerary(itineraryNumber)) -> Baldy Mountain
A9: Min/Max Altitude: | C9: =getAltitude("Min",itineraryNumber) & "/" & getAltitude("Max",itineraryNumber) -> 7,217/9,409 | E9: Showers | G9: =COUNTIF(nShowers,"y") -> 1
A10: Total Altitude Change: | C10: =getAltitude("Chg",itineraryNumber) -> 2,192 | D10: Elevation information shown here is based on beginning/ending campsite altitudes, not any peaks or side hikes.
A11: Daily Altitude Change: | C11: =getAltitude("Avg",itineraryNumber) -> 548
A12: Description: | B12: =INDEX(descriptions,numericItinerary(itineraryNumber)) -> Introduce yourself to much of Philmont's South Country in this twelve day program-focused expedition. You'll have plenty of opportunity to take advantage of a mix of high adventure and living history programs while taking in beautiful views of rivers, meadows, mesas, and peaks. Starting at the Zastrow Trailhead you'll head up in elevation and make your way to Stonewall pass with views into the plains. From there you'll continue into the mountains reaching the beautiful Beaubien Meadow and traverse the canyons to Philmont's Southwest region. Follow the Rayado river back east and head and over Urraca Mesa to enjoy scenic views of the Tooth of Time from the Lover's Leap region. If the crew is up to it, you'll have the opportunity to hike to the very top of this iconic rock formation before heading back to base camp!
A13: Programs: | B13: =getPrograms(numericItinerary(itineraryNumber)) -> Climbing: Climbing Wall/Tower, COPE: High Challenge Course, COPE: Initiative Games, COPE: Low Challenge Course, Ecology: Self-Guided Fishing, Evening: Abreu Family Dinner, Evening: Advisor Coffee, Evening: Campfire Show, Historical: Adobe Brick-Making, Historical: Cabin/House Tour, Historical: Crafting, Historical: Crosscut & Tie Making, Historical: Flint Knapping, Historical: Spar Pole Climbing, Landmarks: Inspiration Point, Landmarks: Tooth of Time, Livestock: Animal Husbandry, Livestock: Chicken Tending, Range Sports: 3D Archery, Range Sports: Aerial Archery, Western Lore: Branding, Western Lore: Cantina, Western Lore: Roping
K14: UTM Coordinates
B15: Date: | D15: Day | E15: Campsite | K15: Elevation | L15: Easting | M15: Northing | O15: Food Pickup | P15: Cross US-64 | X15: Elevation | Y15: Change | Z15: Date | AA15: Day | AB15: CAMP | AC15: Type | AD15: Dry | AE15: Showers | AF15: Commissary | AG15: Trading Post | AH15: Map
B16: =AA16 & " (" & TEXT(Z16,"m/d/yyyy") & ")" -> Sunday (6/8/2025) | D16: 1 | E16: Camping HQ | K16: =TEXT(INDEX(campLocation,MATCH(AB16,camps,0),5),"##,##0") -> 6,696 | L16: =INDEX(campInfo,MATCH(AB16,camps),3) -> 503848 | M16: =INDEX(campInfo,MATCH(AB16,camps),4) -> 4034364 | P16: =getUS64crossingdirection(itineraryNumber,D16) ->  | X16: =INT(K16) -> 6696 | Y16: 0 | Z16: =expeditionStartDate(itinExpeditionNo) -> 2025-06-08 | AA16: =INDEX({"Sunday","Monday","Tuesday","Wednesday","Thursday","Friday","Saturday"},WEEKDAY(Z16)) -> Sunday | AB16: Camping HQ | AD16: =INDEX(campInfo,MATCH($AB16,camps),10) ->  | AE16: =INDEX(campInfo,MATCH($AB16,camps),11) ->  | AF16: =INDEX(campInfo,MATCH($AB16,camps),6) ->  | AG16: =INDEX(campInfo,MATCH($AB16,camps),7) ->  | AH16: =VLOOKUP($AB16,campInfo,12) -> South
B17: =AA17 & " (" & TEXT(Z17,"m/d/yyyy") & ")" -> Monday (6/9/2025) | D17: =D16+1 -> 2 | E17: =getCampWithInfo(AB17,AC17,AD17,AE17,AF17,AG17) -> Toothache Springs | K17: 7,870 | L17: 500750 | M17: 4028216 | O17: =INDEX(foodPickups,numericItinerary(itineraryNumber),D17-1) -> Camping HQ | P17: =getUS64crossingdirection(itineraryNumber,D17) ->  | X17: 7870 | Y17: =X17-X16 -> 1174 | Z17: =Z16+1 -> 2025-06-09 | AA17: =INDEX({"Sunday","Monday","Tuesday","Wednesday","Thursday","Friday","Saturday"},WEEKDAY(Z17)) -> Monday | AB17: Toothache Springs | AC17: =IF(VLOOKUP($AB17,campInfo,8)="Y","Staff","Trail") -> Trail | AD17: =VLOOKUP($AB17,campInfo,10) ->  | AE17: =VLOOKUP($AB17,campInfo,11) ->  | AF17: =VLOOKUP($AB17,campInfo,6) ->  | AG17: =VLOOKUP($AB17,campInfo,7) ->  | AH17: South
B18: =AA18 & " (" & TEXT(Z18,"m/d/yyyy") & ")" -> Tuesday (6/10/2025) | D18: =D17+1 -> 3 | E18: =getCampWithInfo(AB18,AC18,AD18,AE18,AF18,AG18) -> CRATER LAKE | K18: =TEXT(INDEX(campLocation,MATCH(AB18,camps,0),5),"##,##0") -> 8,398 | L18: 495609 | M18: 4028935 | O18: =INDEX(foodPickups,numericItinerary(itineraryNumber),D18-1) -> 0 | P18: =getUS64crossingdirection(itineraryNumber,D18) ->  | X18: =INT(K18) -> 8398 | Y18: =X18-X17 -> 528 | Z18: =Z17+1 -> 2025-06-10 | AA18: =INDEX({"Sunday","Monday","Tuesday","Wednesday","Thursday","Friday","Saturday"},WEEKDAY(Z18)) -> Tuesday | AB18: Crater Lake | AC18: Staff | AH18: South
B19: =AA19 & " (" & TEXT(Z19,"m/d/yyyy") & ")" -> Wednesday (6/11/2025) | D19: 4 | E19: =getCampWithInfo(AB19,AC19,AD19,AE19,AF19,AG19) -> Lower Bonito | K19: =TEXT(INDEX(campLocation,MATCH(AB19,camps,0),5),"##,##0") -> 8,962 | L19: 493583 | M19: 4027520 | O19: =INDEX(foodPickups,numericItinerary(itineraryNumber),D19-1) -> 0 | P19: =getUS64crossingdirection(itineraryNumber,D19) ->  | X19: =INT(K19) -> 8962 | Y19: 564 | Z19: 2025-06-11 | AA19: =INDEX({"Sunday","Monday","Tuesday","Wednesday","Thursday","Friday","Saturday"},WEEKDAY(Z19)) -> Wednesday | AB19: Lower Bonito | AC19: Trail | AH19: South
B20: =AA20 & " (" & TEXT(Z20,"m/d/yyyy") & ")" -> Thursday (6/12/2025) | D20: 5 | E20: =getCampWithInfo(AB20,AC20,AD20,AE20,AF20,AG20) -> Buck Creek | K20: =TEXT(INDEX(campLocation,MATCH(AB20,camps,0),5),"##,##0") -> 9,131 | L20: 488296 | M20: 4029577 | O20: =INDEX(foodPickups,numericItinerary(itineraryNumber),D20-1) -> Phillips Junction | P20: =getUS64crossingdirection(itineraryNumber,D20) ->  | X20: =INT(K20) -> 9131 | Y20: 169 | Z20: 2025-06-12 | AA20: =INDEX({"Sunday","Monday","Tuesday","Wednesday","Thursday","Friday","Saturday"},WEEKDAY(Z20)) -> Thursday | AB20: Buck Creek | AC20: Trail | AH20: South
B21: =AA21 & " (" & TEXT(Z21,"m/d/yyyy") & ")" -> Friday (6/13/2025) | D21: 6 | E21: =getCampWithInfo(AB21,AC21,AD21,AE21,AF21,AG21) -> APACHE SPRINGS (Commissary) | K21: =TEXT(INDEX(campLocation,MATCH(AB21,camps,0),5),"##,##0") -> 9,409 | L21: 487072 | M21: 4026937 | O21: =INDEX(foodPickups,numericItinerary(itineraryNumber),D21-1) -> 0 | P21: =getUS64crossingdirection(itineraryNumber,D21) ->  | X21: =INT(K21) -> 9409 | Y21: 278 | Z21: 2025-06-13 | AA21: =INDEX({"Sunday","Monday","Tuesday","Wednesday","Thursday","Friday","Saturday"},WEEKDAY(Z21)) -> Friday | AB21: Apache Springs | AC21: Staff | AF21: Y | AH21: South
B22: =AA22 & " (" & TEXT(Z22,"m/d/yyyy") & ")" -> Saturday (6/14/2025) | D22: 7 | E22: =getCampWithInfo(AB22,AC22,AD22,AE22,AF22,AG22) -> APACHE SPRINGS (Commissary) | K22: =TEXT(INDEX(campLocation,MATCH(AB22,camps,0),5),"##,##0") -> 9,409 | L22: 487072 | M22: 4026937 | O22: =INDEX(foodPickups,numericItinerary(itineraryNumber),D22-1) -> Apache Springs | P22: =getUS64crossingdirection(itineraryNumber,D22) ->  | X22: =INT(K22) -> 9409 | Y22: 0 | Z22: 2025-06-14 | AA22: =INDEX({"Sunday","Monday","Tuesday","Wednesday","Thursday","Friday","Saturday"},WEEKDAY(Z22)) -> Saturday | AB22: Apache Springs | AC22: Staff | AF22: Y | AH22: South
B23: Sunday (6/15/2025) | D23: 8 | E23: =getCampWithInfo(AB23,AC23,AD23,AE23,AF23,AG23) -> Fish Camp | K23: 8,564 | L23: 490787 | M23: 4026964 | O23: =INDEX(foodPickups,numericItinerary(itineraryNumber),D23-1) -> 0 | P23: =getUS64crossingdirection(itineraryNumber,D23) ->  | X23: 8564 | Y23: -845 | Z23: 2025-06-15 | AA23: =INDEX({"Sunday","Monday","Tuesday","Wednesday","Thursday","Friday","Saturday"},WEEKDAY(Z23)) -> Sunday | AB23: Fish Camp | AC23: Trail | AH23: South
B24: Monday (6/16/2025) | D24: 9 | E24: =getCampWithInfo(AB24,AC24,AD24,AE24,AF24,AG24) -> ABREU (Showers) | K24: 7,217 | L24: 498586 | M24: 4025999 | O24: =INDEX(foodPickups,numericItinerary(itineraryNumber),D24-1) -> 0 | P24: =getUS64crossingdirection(itineraryNumber,D24) ->  | X24: 7217 | Y24: -1347 | Z24: 2025-06-16 | AA24: =INDEX({"Sunday","Monday","Tuesday","Wednesday","Thursday","Friday","Saturday"},WEEKDAY(Z24)) -> Monday | AB24: Abreu | AC24: Staff | AE24: Y | AH24: South
B25: Tuesday (6/17/2025) | D25: 10 | E25: =getCampWithInfo(AB25,AC25,AD25,AE25,AF25,AG25) -> URRACA | K25: 7,968 | L25: 500851 | M25: 4029314 | O25: =INDEX(foodPickups,numericItinerary(itineraryNumber),D25-1) -> 0 | P25: =getUS64crossingdirection(itineraryNumber,D25) ->  | X25: 7968 | Y25: 751 | Z25: 2025-06-17 | AA25: =INDEX({"Sunday","Monday","Tuesday","Wednesday","Thursday","Friday","Saturday"},WEEKDAY(Z25)) -> Tuesday | AB25: Urraca | AC25: Staff | AH25: South
B26: Wednesday (6/18/2025) | D26: 11 | E26: =getCampWithInfo(AB26,AC26,AD26,AE26,AF26,AG26) -> Stockade Ridge (Dry) | K26: 7,519 | L26: 499296 | M26: 4032487 | O26: =INDEX(foodPickups,numericItinerary(itineraryNumber),D26-1) -> 0 | P26: =getUS64crossingdirection(itineraryNumber,D26) ->  | X26: 7519 | Y26: -449 | Z26: 2025-06-18 | AA26: =INDEX({"Sunday","Monday","Tuesday","Wednesday","Thursday","Friday","Saturday"},WEEKDAY(Z26)) -> Wednesday | AB26: Stockade Ridge | AC26: Trail | AD26: Y | AH26: South
B27: Thursday (6/19/2025) | D27: 12 | E27: Camping HQ | K27: 6,696 | L27: 503848 | M27: 4034364 | P27: =getUS64crossingdirection(itineraryNumber,D27) ->  | X27: 6696 | Y27: -823 | Z27: 2025-06-19 | AA27: =INDEX({"Sunday","Monday","Tuesday","Wednesday","Thursday","Friday","Saturday"},WEEKDAY(Z27)) -> Thursday | AB27: Camping HQ | AD27: =INDEX(campInfo,MATCH($AB27,camps),10) ->  | AE27: =INDEX(campInfo,MATCH($AB27,camps),11) ->  | AF27: =INDEX(campInfo,MATCH($AB27,camps),6) ->  | AG27: =INDEX(campInfo,MATCH($AB27,camps),7) ->  | AH27: South
L28: NAD 3/Zone 13 * Estimated coordinates | AA28: =getstartendinfo("S",itineraryNumber) -> Zastrow Trailhead | AB28: Hike In
AB29: BASE

Sheet Itinerary Xref Chart
A1: ITINERARY NUMBERS: | B1: # times in Itineraries | C1: =INDEX(itineraryNumbers,COLUMN()-2) -> 12-1 | D1: =INDEX(itineraryNumbers,COLUMN()-2) -> 12-2 | E1: =INDEX(itineraryNumbers,COLUMN()-2) -> 12-3 | F1: =INDEX(itineraryNumbers,COLUMN()-2) -> 12-4 | G1: =INDEX(itineraryNumbers,COLUMN()-2) -> 12-5 | H1: =INDEX(itineraryNumbers,COLUMN()-2) -> 12-6 | I1: =INDEX(itineraryNumbers,COLUMN()-2) -> 12-7 | J1: =INDEX(itineraryNumbers,COLUMN()-2) -> 12-8 | K1: =INDEX(itineraryNumbers,COLUMN()-2) -> 12-9 | L1: =INDEX(itineraryNumbers,COLUMN()-2) -> 12-10 | M1: =INDEX(itineraryNumbers,COLUMN()-2) -> 12-11 | N1: =INDEX(itineraryNumbers,COLUMN()-2) -> 12-12 | O1: =INDEX(itineraryNumbers,COLUMN()-2) -> 12-13 | P1: =INDEX(itineraryNumbers,COLUMN()-2) -> 12-14 | Q1: =INDEX(itineraryNumbers,COLUMN()-2) -> 12-15 | R1: =INDEX(itineraryNumbers,COLUMN()-2) -> 12-16 | S1: =INDEX(itineraryNumbers,COLUMN()-2) -> 12-17 | T1: =INDEX(itineraryNumbers,COLUMN()-2) -> 12-18 | U1: =INDEX(itineraryNumbers,COLUMN()-2) -> 12-19 | V1: =INDEX(itineraryNumbers,COLUMN()-2) -> 12-20 | W1: =INDEX(itineraryNumbers,COLUMN()-2) -> 12-21 | X1: =INDEX(itineraryNumbers,COLUMN()-2) -> 12-22 | Y1: =INDEX(itineraryNumbers,COLUMN()-2) -> 12-23 | Z1: =INDEX(itineraryNumbers,COLUMN()-2) -> 12-24 | AB1: Check
A2: Hiking Difficulty | C2: =INDEX(classification,numericItinerary(C1)) -> C | D2: =INDEX(classification,numericItinerary(D1)) -> C | E2: =INDEX(classification,numericItinerary(E1)) -> R | F2: =INDEX(classification,numericItinerary(F1)) -> C | G2: =INDEX(classification,numericItinerary(G1)) -> C | H2: =INDEX(classification,numericItinerary(H1)) -> R | I2: =INDEX(classification,numericItinerary(I1)) -> R | J2: =INDEX(classification,numericItinerary(J1)) -> R | K2: =INDEX(classification,numericItinerary(K1)) -> R | L2: =INDEX(classification,numericItinerary(L1)) -> R | M2: =INDEX(classification,numericItinerary(M1)) -> R | N2: =INDEX(classification,numericItinerary(N1)) -> R | O2: =INDEX(classification,numericItinerary(O1)) -> R | P2: =INDEX(classification,numericItinerary(P1)) -> S | Q2: =INDEX(classification,numericItinerary(Q1)) -> S | R2: =INDEX(classification,numericItinerary(R1)) -> S | S2: =INDEX(classification,numericItinerary(S1)) -> S | T2: =INDEX(classification,numericItinerary(T1)) -> S | U2: =INDEX(classification,numericItinerary(U1)) -> S | V2: =INDEX(classification,numericItinerary(V1)) -> SS | W2: =INDEX(classification,numericItinerary(W1)) -> SS | X2: =INDEX(classification,numericItinerary(X1)) -> SS | Y2: =INDEX(classification,numericItinerary(Y1)) -> SS | Z2: =INDEX(classification,numericItinerary(Z1)) -> SS
A3: Distance (Approximately) | C3: =INDEX(distance,numericItinerary(C1)) -> 46 | D3: =INDEX(distance,numericItinerary(D1)) -> 58 | E3: =INDEX(distance,numericItinerary(E1)) -> 71 | F3: =INDEX(distance,numericItinerary(F1)) -> 58 | G3: =INDEX(distance,numericItinerary(G1)) -> 54 | H3: =INDEX(distance,numericItinerary(H1)) -> 53 | I3: =INDEX(distance,numericItinerary(I1)) -> 69 | J3: =INDEX(distance,numericItinerary(J1)) -> 55 | K3: =INDEX(distance,numericItinerary(K1)) -> 61 | L3: =INDEX(distance,numericItinerary(L1)) -> 53 | M3: =INDEX(distance,numericItinerary(M1)) -> 64 | N3: =INDEX(distance,numericItinerary(N1)) -> 61 | O3: =INDEX(distance,numericItinerary(O1)) -> 59 | P3: =INDEX(distance,numericItinerary(P1)) -> 78 | Q3: =INDEX(distance,numericItinerary(Q1)) -> 63 | R3: =INDEX(distance,numericItinerary(R1)) -> 65 | S3: =INDEX(distance,numericItinerary(S1)) -> 61 | T3: =INDEX(distance,numericItinerary(T1)) -> 64 | U3: =INDEX(distance,numericItinerary(U1)) -> 69 | V3: =INDEX(distance,numericItinerary(V1)) -> 76 | W3: =INDEX(distance,numericItinerary(W1)) -> 70 | X3: =INDEX(distance,numericItinerary(X1)) -> 68 | Y3: =INDEX(distance,numericItinerary(Y1)) -> 76 | Z3: =INDEX(distance,numericItinerary(Z1)) -> 77 | AB3: =SUM(C3:Z3) -> 1529
A4: Trail Camps | C4: =countcamps(itineraryTrail,numericItinerary(C$1)) -> 5 | D4: =countcamps(itineraryTrail,numericItinerary(D$1)) -> 7 | E4: =countcamps(itineraryTrail,numericItinerary(E$1)) -> 5 | F4: =countcamps(itineraryTrail,numericItinerary(F$1)) -> 5 | G4: =countcamps(itineraryTrail,numericItinerary(G$1)) -> 6 | H4: =countcamps(itineraryTrail,numericItinerary(H$1)) -> 5 | I4: =countcamps(itineraryTrail,numericItinerary(I$1)) -> 6 | J4: =countcamps(itineraryTrail,numericItinerary(J$1)) -> 7 | K4: =countcamps(itineraryTrail,numericItinerary(K$1)) -> 4 | L4: =countcamps(itineraryTrail,numericItinerary(L$1)) -> 6 | M4: =countcamps(itineraryTrail,numericItinerary(M$1)) -> 4 | N4: =countcamps(itineraryTrail,numericItinerary(N$1)) -> 6 | O4: =countcamps(itineraryTrail,numericItinerary(O$1)) -> 5 | P4: =countcamps(itineraryTrail,numericItinerary(P$1)) -> 4 | Q4: =countcamps(itineraryTrail,numericItinerary(Q$1)) -> 4 | R4: =countcamps(itineraryTrail,numericItinerary(R$1)) -> 6 | S4: =countcamps(itineraryTrail,numericItinerary(S$1)) -> 4 | T4: =countcamps(itineraryTrail,numericItinerary(T$1)) -> 5 | U4: =countcamps(itineraryTrail,numericItinerary(U$1)) -> 6 | V4: =countcamps(itineraryTrail,numericItinerary(V$1)) -> 5 | W4: =countcamps(itineraryTrail,numericItinerary(W$1)) -> 3 | X4: =countcamps(itineraryTrail,numericItinerary(X$1)) -> 4 | Y4: =countcamps(itineraryTrail,numericItinerary(Y$1)) -> 5 | Z4: =countcamps(itineraryTrail,numericItinerary(Z$1)) -> 6 | AB4: =SUM(C4:Z4) -> 123
A5: Dry Camps | C5: =countcamps(itineraryStaff,numericItinerary(C$1)) -> 5 | D5: =countcamps(itineraryStaff,numericItinerary(D$1)) -> 3 | E5: =countcamps(itineraryStaff,numericItinerary(E$1)) -> 5 | F5: =countcamps(itineraryStaff,numericItinerary(F$1)) -> 5 | G5: =countcamps(itineraryStaff,numericItinerary(G$1)) -> 4 | H5: =countcamps(itineraryStaff,numericItinerary(H$1)) -> 5 | I5: =countcamps(itineraryStaff,numericItinerary(I$1)) -> 4 | J5: =countcamps(itineraryStaff,numericItinerary(J$1)) -> 3 | K5: =countcamps(itineraryStaff,numericItinerary(K$1)) -> 6 | L5: =countcamps(itineraryStaff,numericItinerary(L$1)) -> 4 | M5: =countcamps(itineraryStaff,numericItinerary(M$1)) -> 6 | N5: =countcamps(itineraryStaff,numericItinerary(N$1)) -> 4 | O5: =countcamps(itineraryStaff,numericItinerary(O$1)) -> 5 | P5: =countcamps(itineraryStaff,numericItinerary(P$1)) -> 6 | Q5: =countcamps(itineraryStaff,numericItinerary(Q$1)) -> 6 | R5: =countcamps(itineraryStaff,numericItinerary(R$1)) -> 4 | S5: =countcamps(itineraryStaff,numericItinerary(S$1)) -> 6 | T5: =countcamps(itineraryStaff,numericItinerary(T$1)) -> 5 | U5: =countcamps(itineraryStaff,numericItinerary(U$1)) -> 4 | V5: =countcamps(itineraryStaff,numericItinerary(V$1)) -> 5 | W5: =countcamps(itineraryStaff,numericItinerary(W$1)) -> 7 | X5: =countcamps(itineraryStaff,numericItinerary(X$1)) -> 6 | Y5: =countcamps(itineraryStaff,numericItinerary(Y$1)) -> 5 | Z5: =countcamps(itineraryStaff,numericItinerary(Z$1)) -> 4 | AB5: =SUM(C5:Z5) -> 117
A6: =INDEX(program_table,ROW()-5) -> Climbing: Bouldering Gym | B6: =COUNTIF(C6:Z6,"X") -> 13 | C6: =getProgramXref($A6,numericItinerary(C$1)) ->  | D6: =getProgramXref($A6,numericItinerary(D$1)) ->  | E6: =getProgramXref($A6,numericItinerary(E$1)) ->  | F6: =getProgramXref($A6,numericItinerary(F$1)) ->  | G6: =getProgramXref($A6,numericItinerary(G$1)) ->  | H6: =getProgramXref($A6,numericItinerary(H$1)) -> x | I6: =getProgramXref($A6,numericItinerary(I$1)) ->  | J6: =getProgramXref($A6,numericItinerary(J$1)) ->  | K6: =getProgramXref($A6,numericItinerary(K$1)) -> x | L6: =getProgramXref($A6,numericItinerary(L$1)) ->  | M6: =getProgramXref($A6,numericItinerary(M$1)) -> x | N6: =getProgramXref($A6,numericItinerary(N$1)) -> x | O6: =getProgramXref($A6,numericItinerary(O$1)) -> x | P6: =getProgramXref($A6,numericItinerary(P$1)) -> x | Q6: =getProgramXref($A6,numericItinerary(Q$1)) -> x | R6: =getProgramXref($A6,numericItinerary(R$1)) -> x | S6: =getProgramXref($A6,numericItinerary(S$1)) -> x | T6: =getProgramXref($A6,numericItinerary(T$1)) ->  | U6: =getProgramXref($A6,numericItinerary(U$1)) -> x | V6: =getProgramXref($A6,numericItinerary(V$1)) ->  | W6: =getProgramXref($A6,numericItinerary(W$1)) -> x | X6: =getProgramXref($A6,numericItinerary(X$1)) ->  | Y6: =getProgramXref($A6,numericItinerary(Y$1)) -> x | Z6: =getProgramXref($A6,numericItinerary(Z$1)) -> x | AB6: =COUNTIF(C6:Z6,"X") -> 13
A7: =INDEX(program_table,ROW()-5) -> Climbing: Climbing Wall/Tower | B7: 9 | C7: =getProgramXref($A7,numericItinerary(C$1)) -> x | D7: =getProgramXref($A7,numericItinerary(D$1)) ->  | E7: =getProgramXref($A7,numericItinerary(E$1)) ->  | F7: =getProgramXref($A7,numericItinerary(F$1)) ->  | G7: =getProgramXref($A7,numericItinerary(G$1)) ->  | H7: =getProgramXref($A7,numericItinerary(H$1)) -> x | I7: =getProgramXref($A7,numericItinerary(I$1)) ->  | J7: =getProgramXref($A7,numericItinerary(J$1)) ->  | K7: =getProgramXref($A7,numericItinerary(K$1)) ->  | L7: =getProgramXref($A7,numericItinerary(L$1)) ->  | M7: =getProgramXref($A7,numericItinerary(M$1)) ->  | N7: =getProgramXref($A7,numericItinerary(N$1)) -> x | O7: =getProgramXref($A7,numericItinerary(O$1)) -> x | P7: =getProgramXref($A7,numericItinerary(P$1)) ->  | Q7: =getProgramXref($A7,numericItinerary(Q$1)) -> x | R7: =getProgramXref($A7,numericItinerary(R$1)) -> x | S7: =getProgramXref($A7,numericItinerary(S$1)) -> x | T7: =getProgramXref($A7,numericItinerary(T$1)) ->  | U7: =getProgramXref($A7,numericItinerary(U$1)) ->  | V7: =getProgramXref($A7,numericItinerary(V$1)) ->  | W7: =getProgramXref($A7,numericItinerary(W$1)) -> x | X7: =getProgramXref($A7,numericItinerary(X$1)) ->  | Y7: =getProgramXref($A7,numericItinerary(Y$1)) -> x | Z7: =getProgramXref($A7,numericItinerary(Z$1)) ->  | AB7: 9
A8: =INDEX(program_table,ROW()-5) -> Climbing: Crate Stacking | B8: 8 | C8: =getProgramXref($A8,numericItinerary(C$1)) ->  | D8: =getProgramXref($A8,numericItinerary(D$1)) ->  | E8: =getProgramXref($A8,numericItinerary(E$1)) ->  | F8: =getProgramXref($A8,numericItinerary(F$1)) ->  | G8: =getProgramXref($A8,numericItinerary(G$1)) ->  | H8: =getProgramXref($A8,numericItinerary(H$1)) -> x | I8: =getProgramXref($A8,numericItinerary(I$1)) ->  | J8: =getProgramXref($A8,numericItinerary(J$1)) ->  | K8: =getProgramXref($A8,numericItinerary(K$1)) ->  | L8: =getProgramXref($A8,numericItinerary(L$1)) ->  | M8: =getProgramXref($A8,numericItinerary(M$1)) ->  | N8: =getProgramXref($A8,numericItinerary(N$1)) -> x | O8: =getProgramXref($A8,numericItinerary(O$1)) -> x | P8: =getProgramXref($A8,numericItinerary(P$1)) ->  | Q8: =getProgramXref($A8,numericItinerary(Q$1)) -> x | R8: =getProgramXref($A8,numericItinerary(R$1)) -> x | S8: =getProgramXref($A8,numericItinerary(S$1)) -> x | T8: =getProgramXref($A8,numericItinerary(T$1)) ->  | U8: =getProgramXref($A8,numericItinerary(U$1)) ->  | V8: =getProgramXref($A8,numericItinerary(V$1)) ->  | W8: =getProgramXref($A8,numericItinerary(W$1)) -> x | X8: =getProgramXref($A8,numericItinerary(X$1)) ->  | Y8: =getProgramXref($A8,numericItinerary(Y$1)) -> x | Z8: =getProgramXref($A8,numericItinerary(Z$1)) ->  | AB8: 8
A9: =INDEX(program_table,ROW()-5) -> Climbing: Rock Climbing | B9: 13 | C9: =getProgramXref($A9,numericItinerary(C$1)) ->  | D9: =getProgramXref($A9,numericItinerary(D$1)) -> x | E9: =getProgramXref($A9,numericItinerary(E$1)) ->  | F9: =getProgramXref($A9,numericItinerary(F$1)) ->  | G9: =getProgramXref($A9,numericItinerary(G$1)) ->  | H9: =getProgramXref($A9,numericItinerary(H$1)) -> x | I9: =getProgramXref($A9,numericItinerary(I$1)) ->  | J9: =getProgramXref($A9,numericItinerary(J$1)) ->  | K9: =getProgramXref($A9,numericItinerary(K$1)) -> x | L9: =getProgramXref($A9,numericItinerary(L$1)) ->  | M9: =getProgramXref($A9,numericItinerary(M$1)) ->  | N9: =getProgramXref($A9,numericItinerary(N$1)) -> x | O9: =getProgramXref($A9,numericItinerary(O$1)) -> x | P9: =getProgramXref($A9,numericItinerary(P$1)) -> x | Q9: =getProgramXref($A9,numericItinerary(Q$1)) -> x | R9: =getProgramXref($A9,numericItinerary(R$1)) -> x | S9: =getProgramXref($A9,numericItinerary(S$1)) -> x | T9: =getProgramXref($A9,numericItinerary(T$1)) ->  | U9: =getProgramXref($A9,numericItinerary(U$1)) ->  | V9: =getProgramXref($A9,numericItinerary(V$1)) ->  | W9: =getProgramXref($A9,numericItinerary(W$1)) -> x | X9: =getProgramXref($A9,numericItinerary(X$1)) -> x | Y9: =getProgramXref($A9,numericItinerary(Y$1)) -> x | Z9: =getProgramXref($A9,numericItinerary(Z$1)) -> x | AB9: 13
A10: =INDEX(program_table,ROW()-5) -> COPE: High Challenge Course | B10: 3 | C10: =getProgramXref($A10,numericItinerary(C$1)) -> x | D10: =getProgramXref($A10,numericItinerary(D$1)) ->  | E10: =getProgramXref($A10,numericItinerary(E$1)) ->  | F10: =getProgramXref($A10,numericItinerary(F$1)) ->  | G10: =getProgramXref($A10,numericItinerary(G$1)) ->  | H10: =getProgramXref($A10,numericItinerary(H$1)) -> x | I10: =getProgramXref($A10,numericItinerary(I$1)) ->  | J10: =getProgramXref($A10,numericItinerary(J$1)) ->  | K10: =getProgramXref($A10,numericItinerary(K$1)) ->  | L10: =getProgramXref($A10,numericItinerary(L$1)) ->  | M10: =getProgramXref($A10,numericItinerary(M$1)) ->  | N10: =getProgramXref($A10,numericItinerary(N$1)) ->  | O10: =getProgramXref($A10,numericItinerary(O$1)) ->  | P10: =getProgramXref($A10,numericItinerary(P$1)) ->  | Q10: =getProgramXref($A10,numericItinerary(Q$1)) ->  | R10: =getProgramXref($A10,numericItinerary(R$1)) ->  | S10: =getProgramXref($A10,numericItinerary(S$1)) ->  | T10: =getProgramXref($A10,numericItinerary(T$1)) ->  | U10: =getProgramXref($A10,numericItinerary(U$1)) ->  | V10: =getProgramXref($A10,numericItinerary(V$1)) ->  | W10: =getProgramXref($A10,numericItinerary(W$1)) -> x | X10: =getProgramXref($A10,numericItinerary(X$1)) ->  | Y10: =getProgramXref($A10,numericItinerary(Y$1)) ->  | Z10: =getProgramXref($A10,numericItinerary(Z$1)) ->  | AB10: 3
A11: =INDEX(program_table,ROW()-5) -> COPE: Initiative Games | B11: 16 | C11: =getProgramXref($A11,numericItinerary(C$1)) -> x | D11: =getProgramXref($A11,numericItinerary(D$1)) -> x | E11: =getProgramXref($A11,numericItinerary(E$1)) -> x | F11: =getProgramXref($A11,numericItinerary(F$1)) -> x | G11: =getProgramXref($A11,numericItinerary(G$1)) ->  | H11: =getProgramXref($A11,numericItinerary(H$1)) ->  | I11: =getProgramXref($A11,numericItinerary(I$1)) -> x | J11: =getProgramXref($A11,numericItinerary(J$1)) -> x | K11: =getProgramXref($A11,numericItinerary(K$1)) -> x | L11: =getProgramXref($A11,numericItinerary(L$1)) -> x | M11: =getProgramXref($A11,numericItinerary(M$1)) ->  | N11: =getProgramXref($A11,numericItinerary(N$1)) ->  | O11: =getProgramXref($A11,numericItinerary(O$1)) -> x | P11: =getProgramXref($A11,numericItinerary(P$1)) -> x | Q11: =getProgramXref($A11,numericItinerary(Q$1)) ->  | R11: =getProgramXref($A11,numericItinerary(R$1)) ->  | S11: =getProgramXref($A11,numericItinerary(S$1)) ->  | T11: =getProgramXref($A11,numericItinerary(T$1)) -> x | U11: =getProgramXref($A11,numericItinerary(U$1)) -> x | V11: =getProgramXref($A11,numericItinerary(V$1)) -> x | W11: =getProgramXref($A11,numericItinerary(W$1)) ->  | X11: =getProgramXref($A11,numericItinerary(X$1)) -> x | Y11: =getProgramXref($A11,numericItinerary(Y$1)) -> x | Z11: =getProgramXref($A11,numericItinerary(Z$1)) -> x | AB11: 16
A12: =INDEX(program_table,ROW()-5) -> COPE: Low Challenge Course | B12: 16 | C12: =getProgramXref($A12,numericItinerary(C$1)) -> x | D12: =getProgramXref($A12,numericItinerary(D$1)) -> x | E12: =getProgramXref($A12,numericItinerary(E$1)) -> x | F12: =getProgramXref($A12,numericItinerary(F$1)) -> x | G12: =getProgramXref($A12,numericItinerary(G$1)) ->  | H12: =getProgramXref($A12,numericItinerary(H$1)) ->  | I12: =getProgramXref($A12,numericItinerary(I$1)) -> x | J12: =getProgramXref($A12,numericItinerary(J$1)) -> x | K12: =getProgramXref($A12,numericItinerary(K$1)) -> x | L12: =getProgramXref($A12,numericItinerary(L$1)) -> x | M12: =getProgramXref($A12,numericItinerary(M$1)) ->  | N12: =getProgramXref($A12,numericItinerary(N$1)) ->  | O12: =getProgramXref($A12,numericItinerary(O$1)) -> x | P12: =getProgramXref($A12,numericItinerary(P$1)) -> x | Q12: =getProgramXref($A12,numericItinerary(Q$1)) ->  | R12: =getProgramXref($A12,numericItinerary(R$1)) ->  | S12: =getProgramXref($A12,numericItinerary(S$1)) ->  | T12: =getProgramXref($A12,numericItinerary(T$1)) -> x | U12: =getProgramXref($A12,numericItinerary(U$1)) -> x | V12: =getProgramXref($A12,numericItinerary(V$1)) -> x | W12: =getProgramXref($A12,numericItinerary(W$1)) ->  | X12: =getProgramXref($A12,numericItinerary(X$1)) -> x | Y12: =getProgramXref($A12,numericItinerary(Y$1)) -> x | Z12: =getProgramXref($A12,numericItinerary(Z$1)) -> x | AB12: 16
A13: =INDEX(program_table,ROW()-5) -> Ecology: Demonstration Forest | B13: 7 | C13: =getProgramXref($A13,numericItinerary(C$1)) ->  | D13: =getProgramXref($A13,numericItinerary(D$1)) ->  | E13: =getProgramXref($A13,numericItinerary(E$1)) ->  | F13: =getProgramXref($A13,numericItinerary(F$1)) ->  | G13: =getProgramXref($A13,numericItinerary(G$1)) ->  | H13: =getProgramXref($A13,numericItinerary(H$1)) -> x | I13: =getProgramXref($A13,numericItinerary(I$1)) ->  | J13: =getProgramXref($A13,numericItinerary(J$1)) ->  | K13: =getProgramXref($A13,numericItinerary(K$1)) -> x | L13: =getProgramXref($A13,numericItinerary(L$1)) ->  | M13: =getProgramXref($A13,numericItinerary(M$1)) -> x | N13: =getProgramXref($A13,numericItinerary(N$1)) ->  | O13: =getProgramXref($A13,numericItinerary(O$1)) -> x | P13: =getProgramXref($A13,numericItinerary(P$1)) -> x | Q13: =getProgramXref($A13,numericItinerary(Q$1)) ->  | R13: =getProgramXref($A13,numericItinerary(R$1)) ->  | S13: =getProgramXref($A13,numericItinerary(S$1)) ->  | T13: =getProgramXref($A13,numericItinerary(T$1)) ->  | U13: =getProgramXref($A13,numericItinerary(U$1)) ->  | V13: =getProgramXref($A13,numericItinerary(V$1)) ->  | W13: =getProgramXref($A13,numericItinerary(W$1)) -> x | X13: =getProgramXref($A13,numericItinerary(X$1)) ->  | Y13: =getProgramXref($A13,numericItinerary(Y$1)) ->  | Z13: =getProgramXref($A13,numericItinerary(Z$1)) -> x | AB13: 7
A14: =INDEX(program_table,ROW()-5) -> Ecology: Self-Guided Fishing | B14: 9 | C14: =getProgramXref($A14,numericItinerary(C$1)) -> x | D14: =getProgramXref($A14,numericItinerary(D$1)) ->  | E14: =getProgramXref($A14,numericItinerary(E$1)) ->  | F14: =getProgramXref($A14,numericItinerary(F$1)) ->  | G14: =getProgramXref($A14,numericItinerary(G$1)) -> x | H14: =getProgramXref($A14,numericItinerary(H$1)) ->  | I14: =getProgramXref($A14,numericItinerary(I$1)) ->  | J14: =getProgramXref($A14,numericItinerary(J$1)) ->  | K14: =getProgramXref($A14,numericItinerary(K$1)) -> x | L14: =getProgramXref($A14,numericItinerary(L$1)) ->  | M14: =getProgramXref($A14,numericItinerary(M$1)) -> x | N14: =getProgramXref($A14,numericItinerary(N$1)) -> x | O14: =getProgramXref($A14,numericItinerary(O$1)) ->  | P14: =getProgramXref($A14,numericItinerary(P$1)) -> x | Q14: =getProgramXref($A14,numericItinerary(Q$1)) ->  | R14: =getProgramXref($A14,numericItinerary(R$1)) -> x | S14: =getProgramXref($A14,numericItinerary(S$1)) -> x | T14: =getProgramXref($A14,numericItinerary(T$1)) ->  | U14: =getProgramXref($A14,numericItinerary(U$1)) ->  | V14: =getProgramXref($A14,numericItinerary(V$1)) ->  | W14: =getProgramXref($A14,numericItinerary(W$1)) -> x | X14: =getProgramXref($A14,numericItinerary(X$1)) ->  | Y14: =getProgramXref($A14,numericItinerary(Y$1)) ->  | Z14: =getProgramXref($A14,numericItinerary(Z$1)) ->  | AB14: 9
A15: =INDEX(program_table,ROW()-5) -> Evening: Abreu Family Dinner | B15: 2 | C15: =getProgramXref($A15,numericItinerary(C$1)) -> x | D15: =getProgramXref($A15,numericItinerary(D$1)) ->  | E15: =getProgramXref($A15,numericItinerary(E$1)) ->  | F15: =getProgramXref($A15,numericItinerary(F$1)) ->  | G15: =getProgramXref($A15,numericItinerary(G$1)) ->  | H15: =getProgramXref($A15,numericItinerary(H$1)) ->  | I15: =getProgramXref($A15,numericItinerary(I$1)) ->  | J15: =getProgramXref($A15,numericItinerary(J$1)) ->  | K15: =getProgramXref($A15,numericItinerary(K$1)) ->  | L15: =getProgramXref($A15,numericItinerary(L$1)) ->  | M15: =getProgramXref($A15,numericItinerary(M$1)) ->  | N15: =getProgramXref($A15,numericItinerary(N$1)) ->  | O15: =getProgramXref($A15,numericItinerary(O$1)) ->  | P15: =getProgramXref($A15,numericItinerary(P$1)) ->  | Q15: =getProgramXref($A15,numericItinerary(Q$1)) ->  | R15: =getProgramXref($A15,numericItinerary(R$1)) ->  | S15: =getProgramXref($A15,numericItinerary(S$1)) ->  | T15: =getProgramXref($A15,numericItinerary(T$1)) ->  | U15: =getProgramXref($A15,numericItinerary(U$1)) ->  | V15: =getProgramXref($A15,numericItinerary(V$1)) ->  | W15: =getProgramXref($A15,numericItinerary(W$1)) -> x | X15: =getProgramXref($A15,numericItinerary(X$1)) ->  | Y15: =getProgramXref($A15,numericItinerary(Y$1)) ->  | Z15: =getProgramXref($A15,numericItinerary(Z$1)) ->  | AB15: 2
A16: =INDEX(program_table,ROW()-5) -> Evening: Advisor Coffee | B16: 24 | C16: =getProgramXref($A16,numericItinerary(C$1)) -> x | D16: =getProgramXref($A16,numericItinerary(D$1)) -> x | E16: =getProgramXref($A16,numericItinerary(E$1)) -> x | F16: =getProgramXref($A16,numericItinerary(F$1)) -> x | G16: =getProgramXref($A16,numericItinerary(G$1)) -> x | H16: =getProgramXref($A16,numericItinerary(H$1)) -> x | I16: =getProgramXref($A16,numericItinerary(I$1)) -> x | J16: =getProgramXref($A16,numericItinerary(J$1)) -> x | K16: =getProgramXref($A16,numericItinerary(K$1)) -> x | L16: =getProgramXref($A16,numericItinerary(L$1)) -> x | M16: =getProgramXref($A16,numericItinerary(M$1)) -> x | N16: =getProgramXref($A16,numericItinerary(N$1)) -> x | O16: =getProgramXref($A16,numericItinerary(O$1)) -> x | P16: =getProgramXref($A16,numericItinerary(P$1)) -> x | Q16: =getProgramXref($A16,numericItinerary(Q$1)) -> x | R16: =getProgramXref($A16,numericItinerary(R$1)) -> x | S16: =getProgramXref($A16,numericItinerary(S$1)) -> x | T16: =getProgramXref($A16,numericItinerary(T$1)) -> x | U16: =getProgramXref($A16,numericItinerary(U$1)) -> x | V16: =getProgramXref($A16,numericItinerary(V$1)) -> x | W16: =getProgramXref($A16,numericItinerary(W$1)) -> x | X16: =getProgramXref($A16,numericItinerary(X$1)) -> x | Y16: =getProgramXref($A16,numericItinerary(Y$1)) -> x | Z16: =getProgramXref($A16,numericItinerary(Z$1)) -> x | AB16: 24
A17: =INDEX(program_table,ROW()-5) -> Evening: Campfire Show | B17: 22 | C17: =getProgramXref($A17,numericItinerary(C$1)) -> x | D17: =getProgramXref($A17,numericItinerary(D$1)) -> x | E17: =getProgramXref($A17,numericItinerary(E$1)) -> x | F17: =getProgramXref($A17,numericItinerary(F$1)) -> x | G17: =getProgramXref($A17,numericItinerary(G$1)) ->  | H17: =getProgramXref($A17,numericItinerary(H$1)) ->  | I17: =getProgramXref($A17,numericItinerary(I$1)) -> x | J17: =getProgramXref($A17,numericItinerary(J$1)) -> x | K17: =getProgramXref($A17,numericItinerary(K$1)) -> x | L17: =getProgramXref($A17,numericItinerary(L$1)) -> x | M17: =getProgramXref($A17,numericItinerary(M$1)) -> x | N17: =getProgramXref($A17,numericItinerary(N$1)) -> x | O17: =getProgramXref($A17,numericItinerary(O$1)) -> x | P17: =getProgramXref($A17,numericItinerary(P$1)) -> x | Q17: =getProgramXref($A17,numericItinerary(Q$1)) -> x | R17: =getProgramXref($A17,numericItinerary(R$1)) -> x | S17: =getProgramXref($A17,numericItinerary(S$1)) -> x | T17: =getProgramXref($A17,numericItinerary(T$1)) -> x | U17: =getProgramXref($A17,numericItinerary(U$1)) -> x | V17: =getProgramXref($A17,numericItinerary(V$1)) -> x | W17: =getProgramXref($A17,numericItinerary(W$1)) -> x | X17: =getProgramXref($A17,numericItinerary(X$1)) -> x | Y17: =getProgramXref($A17,numericItinerary(Y$1)) -> x | Z17: =getProgramXref($A17,numericItinerary(Z$1)) -> x | AB17: 22
A18: =INDEX(program_table,ROW()-5) -> Evening: Chuckwagon Dinner | B18: 13 | C18: =getProgramXref($A18,numericItinerary(C$1)) ->  | D18: =getProgramXref($A18,numericItinerary(D$1)) ->  | E18: =getProgramXref($A18,numericItinerary(E$1)) ->  | F18: =getProgramXref($A18,numericItinerary(F$1)) -> x | G18: =getProgramXref($A18,numericItinerary(G$1)) ->  | H18: =getProgramXref($A18,numericItinerary(H$1)) ->  | I18: =getProgramXref($A18,numericItinerary(I$1)) ->  | J18: =getProgramXref($A18,numericItinerary(J$1)) ->  | K18: =getProgramXref($A18,numericItinerary(K$1)) -> x | L18: =getProgramXref($A18,numericItinerary(L$1)) -> x | M18: =getProgramXref($A18,numericItinerary(M$1)) -> x | N18: =getProgramXref($A18,numericItinerary(N$1)) -> x | O18: =getProgramXref($A18,numericItinerary(O$1)) -> x | P18: =getProgramXref($A18,numericItinerary(P$1)) ->  | Q18: =getProgramXref($A18,numericItinerary(Q$1)) -> x | R18: =getProgramXref($A18,numericItinerary(R$1)) -> x | S18: =getProgramXref($A18,numericItinerary(S$1)) ->  | T18: =getProgramXref($A18,numericItinerary(T$1)) -> x | U18: =getProgramXref($A18,numericItinerary(U$1)) -> x | V18: =getProgramXref($A18,numericItinerary(V$1)) -> x | W18: =getProgramXref($A18,numericItinerary(W$1)) ->  | X18: =getProgramXref($A18,numericItinerary(X$1)) -> x | Y18: =getProgramXref($A18,numericItinerary(Y$1)) -> x | Z18: =getProgramXref($A18,numericItinerary(Z$1)) ->  | AB18: 13
A19: =INDEX(program_table,ROW()-5) -> Historical: Adobe Brick-Making | B19: 6 | C19: =getProgramXref($A19,numericItinerary(C$1)) -> x | D19: =getProgramXref($A19,numericItinerary(D$1)) ->  | E19: =getProgramXref($A19,numericItinerary(E$1)) ->  | F19: =getProgramXref($A19,numericItinerary(F$1)) ->  | G19: =getProgramXref($A19,numericItinerary(G$1)) -> x | H19: =getProgramXref($A19,numericItinerary(H$1)) ->  | I19: =getProgramXref($A19,numericItinerary(I$1)) ->  | J19: =getProgramXref($A19,numericItinerary(J$1)) ->  | K19: =getProgramXref($A19,numericItinerary(K$1)) ->  | L19: =getProgramXref($A19,numericItinerary(L$1)) ->  | M19: =getProgramXref($A19,numericItinerary(M$1)) -> x | N19: =getProgramXref($A19,numericItinerary(N$1)) -> x | O19: =getProgramXref($A19,numericItinerary(O$1)) ->  | P19: =getProgramXref($A19,numericItinerary(P$1)) ->  | Q19: =getProgramXref($A19,numericItinerary(Q$1)) ->  | R19: =getProgramXref($A19,numericItinerary(R$1)) -> x | S19: =getProgramXref($A19,numericItinerary(S$1)) ->  | T19: =getProgramXref($A19,numericItinerary(T$1)) ->  | U19: =getProgramXref($A19,numericItinerary(U$1)) ->  | V19: =getProgramXref($A19,numericItinerary(V$1)) ->  | W19: =getProgramXref($A19,numericItinerary(W$1)) -> x | X19: =getProgramXref($A19,numericItinerary(X$1)) ->  | Y19: =getProgramXref($A19,numericItinerary(Y$1)) ->  | Z19: =getProgramXref($A19,numericItinerary(Z$1)) ->  | AB19: 6
A20: =INDEX(program_table,ROW()-5) -> Historical: Blacksmithing | B20: 14 | C20: =getProgramXref($A20,numericItinerary(C$1)) ->  | D20: =getProgramXref($A20,numericItinerary(D$1)) -> x | E20: =getProgramXref($A20,numericItinerary(E$1)) -> x | F20: =getProgramXref($A20,numericItinerary(F$1)) -> x | G20: =getProgramXref($A20,numericItinerary(G$1)) ->  | H20: =getProgramXref($A20,numericItinerary(H$1)) ->  | I20: =getProgramXref($A20,numericItinerary(I$1)) -> x | J20: =getProgramXref($A20,numericItinerary(J$1)) -> x | K20: =getProgramXref($A20,numericItinerary(K$1)) ->  | L20: =getProgramXref($A20,numericItinerary(L$1)) -> x | M20: =getProgramXref($A20,numericItinerary(M$1)) ->  | N20: =getProgramXref($A20,numericItinerary(N$1)) ->  | O20: =getProgramXref($A20,numericItinerary(O$1)) -> x | P20: =getProgramXref($A20,numericItinerary(P$1)) ->  | Q20: =getProgramXref($A20,numericItinerary(Q$1)) -> x | R20: =getProgramXref($A20,numericItinerary(R$1)) -> x | S20: =getProgramXref($A20,numericItinerary(S$1)) -> x | T20: =getProgramXref($A20,numericItinerary(T$1)) -> x | U20: =getProgramXref($A20,numericItinerary(U$1)) ->  | V20: =getProgramXref($A20,numericItinerary(V$1)) ->  | W20: =getProgramXref($A20,numericItinerary(W$1)) -> x | X20: =getProgramXref($A20,numericItinerary(X$1)) -> x | Y20: =getProgramXref($A20,numericItinerary(Y$1)) ->  | Z20: =getProgramXref($A20,numericItinerary(Z$1)) -> x | AB20: 14
A21: =INDEX(program_table,ROW()-5) -> Historical: Cabin Restoration | B21: 4 | C21: =getProgramXref($A21,numericItinerary(C$1)) ->  | D21: =getProgramXref($A21,numericItinerary(D$1)) ->  | E21: =getProgramXref($A21,numericItinerary(E$1)) ->  | F21: =getProgramXref($A21,numericItinerary(F$1)) ->  | G21: =getProgramXref($A21,numericItinerary(G$1)) -> x | H21: =getProgramXref($A21,numericItinerary(H$1)) ->  | I21: =getProgramXref($A21,numericItinerary(I$1)) ->  | J21: =getProgramXref($A21,numericItinerary(J$1)) ->  | K21: =getProgramXref($A21,numericItinerary(K$1)) ->  | L21: =getProgramXref($A21,numericItinerary(L$1)) ->  | M21: =getProgramXref($A21,numericItinerary(M$1)) -> x | N21: =getProgramXref($A21,numericItinerary(N$1)) -> x | O21: =getProgramXref($A21,numericItinerary(O$1)) ->  | P21: =getProgramXref($A21,numericItinerary(P$1)) ->  | Q21: =getProgramXref($A21,numericItinerary(Q$1)) ->  | R21: =getProgramXref($A21,numericItinerary(R$1)) ->  | S21: =getProgramXref($A21,numericItinerary(S$1)) ->  | T21: =getProgramXref($A21,numericItinerary(T$1)) ->  | U21: =getProgramXref($A21,numericItinerary(U$1)) ->  | V21: =getProgramXref($A21,numericItinerary(V$1)) ->  | W21: =getProgramXref($A21,numericItinerary(W$1)) -> x | X21: =getProgramXref($A21,numericItinerary(X$1)) ->  | Y21: =getProgramXref($A21,numericItinerary(Y$1)) ->  | Z21: =getProgramXref($A21,numericItinerary(Z$1)) ->  | AB21: 4
A22: =INDEX(program_table,ROW()-5) -> Historical: Cabin/House Tour | B22: 13 | C22: =getProgramXref($A22,numericItinerary(C$1)) -> x | D22: =getProgramXref($A22,numericItinerary(D$1)) ->  | E22: =getProgramXref($A22,numericItinerary(E$1)) -> x | F22: =getProgramXref($A22,numericItinerary(F$1)) ->  | G22: =getProgramXref($A22,numericItinerary(G$1)) -> x | H22: =getProgramXref($A22,numericItinerary(H$1)) ->  | I22: =getProgramXref($A22,numericItinerary(I$1)) -> x | J22: =getProgramXref($A22,numericItinerary(J$1)) ->  | K22: =getProgramXref($A22,numericItinerary(K$1)) ->  | L22: =getProgramXref($A22,numericItinerary(L$1)) -> x | M22: =getProgramXref($A22,numericItinerary(M$1)) -> x | N22: =getProgramXref($A22,numericItinerary(N$1)) -> x | O22: =getProgramXref($A22,numericItinerary(O$1)) ->  | P22: =getProgramXref($A22,numericItinerary(P$1)) -> x | Q22: =getProgramXref($A22,numericItinerary(Q$1)) -> x | R22: =getProgramXref($A22,numericItinerary(R$1)) -> x | S22: =getProgramXref($A22,numericItinerary(S$1)) -> x | T22: =getProgramXref($A22,numericItinerary(T$1)) ->  | U22: =getProgramXref($A22,numericItinerary(U$1)) -> x | V22: =getProgramXref($A22,numericItinerary(V$1)) ->  | W22: =getProgramXref($A22,numericItinerary(W$1)) -> x | X22: =getProgramXref($A22,numericItinerary(X$1)) ->  | Y22: =getProgramXref($A22,numericItinerary(Y$1)) ->  | Z22: =getProgramXref($A22,numericItinerary(Z$1)) ->  | AB22: 13
A23: =INDEX(program_table,ROW()-5) -> Historical: Crafting | B23: 6 | C23: =getProgramXref($A23,numericItinerary(C$1)) -> x | D23: =getProgramXref($A23,numericItinerary(D$1)) ->  | E23: =getProgramXref($A23,numericItinerary(E$1)) ->  | F23: =getProgramXref($A23,numericItinerary(F$1)) ->  | G23: =getProgramXref($A23,numericItinerary(G$1)) -> x | H23: =getProgramXref($A23,numericItinerary(H$1)) ->  | I23: =getProgramXref($A23,numericItinerary(I$1)) ->  | J23: =getProgramXref($A23,numericItinerary(J$1)) ->  | K23: =getProgramXref($A23,numericItinerary(K$1)) ->  | L23: =getProgramXref($A23,numericItinerary(L$1)) ->  | M23: =getProgramXref($A23,numericItinerary(M$1)) -> x | N23: =getProgramXref($A23,numericItinerary(N$1)) -> x | O23: =getProgramXref($A23,numericItinerary(O$1)) ->  | P23: =getProgramXref($A23,numericItinerary(P$1)) ->  | Q23: =getProgramXref($A23,numericItinerary(Q$1)) ->  | R23: =getProgramXref($A23,numericItinerary(R$1)) -> x | S23: =getProgramXref($A23,numericItinerary(S$1)) ->  | T23: =getProgramXref($A23,numericItinerary(T$1)) ->  | U23: =getProgramXref($A23,numericItinerary(U$1)) ->  | V23: =getProgramXref($A23,numericItinerary(V$1)) ->  | W23: =getProgramXref($A23,numericItinerary(W$1)) -> x | X23: =getProgramXref($A23,numericItinerary(X$1)) ->  | Y23: =getProgramXref($A23,numericItinerary(Y$1)) ->  | Z23: =getProgramXref($A23,numericItinerary(Z$1)) ->  | AB23: 6
A24: =INDEX(program_table,ROW()-5) -> Historical: Crosscut & Tie Making | B24: 17 | C24: =getProgramXref($A24,numericItinerary(C$1)) -> x | D24: =getProgramXref($A24,numericItinerary(D$1)) -> x | E24: =getProgramXref($A24,numericItinerary(E$1)) ->  | F24: =getProgramXref($A24,numericItinerary(F$1)) -> x | G24: =getProgramXref($A24,numericItinerary(G$1)) -> x | H24: =getProgramXref($A24,numericItinerary(H$1)) ->  | I24: =getProgramXref($A24,numericItinerary(I$1)) ->  | J24: =getProgramXref($A24,numericItinerary(J$1)) -> x | K24: =getProgramXref($A24,numericItinerary(K$1)) -> x | L24: =getProgramXref($A24,numericItinerary(L$1)) -> x | M24: =getProgramXref($A24,numericItinerary(M$1)) -> x | N24: =getProgramXref($A24,numericItinerary(N$1)) -> x | O24: =getProgramXref($A24,numericItinerary(O$1)) ->  | P24: =getProgramXref($A24,numericItinerary(P$1)) -> x | Q24: =getProgramXref($A24,numericItinerary(Q$1)) -> x | R24: =getProgramXref($A24,numericItinerary(R$1)) ->  | S24: =getProgramXref($A24,numericItinerary(S$1)) -> x | T24: =getProgramXref($A24,numericItinerary(T$1)) -> x | U24: =getProgramXref($A24,numericItinerary(U$1)) ->  | V24: =getProgramXref($A24,numericItinerary(V$1)) ->  | W24: =getProgramXref($A24,numericItinerary(W$1)) -> x | X24: =getProgramXref($A24,numericItinerary(X$1)) -> x | Y24: =getProgramXref($A24,numericItinerary(Y$1)) -> x | Z24: =getProgramXref($A24,numericItinerary(Z$1)) -> x | AB24: 17
A25: =INDEX(program_table,ROW()-5) -> Historical: Flint Knapping | B25: 5 | C25: =getProgramXref($A25,numericItinerary(C$1)) -> x | D25: =getProgramXref($A25,numericItinerary(D$1)) ->  | E25: =getProgramXref($A25,numericItinerary(E$1)) ->  | F25: =getProgramXref($A25,numericItinerary(F$1)) ->  | G25: =getProgramXref($A25,numericItinerary(G$1)) -> x | H25: =getProgramXref($A25,numericItinerary(H$1)) ->  | I25: =getProgramXref($A25,numericItinerary(I$1)) ->  | J25: =getProgramXref($A25,numericItinerary(J$1)) ->  | K25: =getProgramXref($A25,numericItinerary(K$1)) ->  | L25: =getProgramXref($A25,numericItinerary(L$1)) ->  | M25: =getProgramXref($A25,numericItinerary(M$1)) ->  | N25: =getProgramXref($A25,numericItinerary(N$1)) ->  | O25: =getProgramXref($A25,numericItinerary(O$1)) ->  | P25: =getProgramXref($A25,numericItinerary(P$1)) ->  | Q25: =getProgramXref($A25,numericItinerary(Q$1)) ->  | R25: =getProgramXref($A25,numericItinerary(R$1)) -> x | S25: =getProgramXref($A25,numericItinerary(S$1)) -> x | T25: =getProgramXref($A25,numericItinerary(T$1)) ->  | U25: =getProgramXref($A25,numericItinerary(U$1)) -> x | V25: =getProgramXref($A25,numericItinerary(V$1)) ->  | W25: =getProgramXref($A25,numericItinerary(W$1)) ->  | X25: =getProgramXref($A25,numericItinerary(X$1)) ->  | Y25: =getProgramXref($A25,numericItinerary(Y$1)) ->  | Z25: =getProgramXref($A25,numericItinerary(Z$1)) ->  | AB25: 5
A26: =INDEX(program_table,ROW()-5) -> Historical: Fur Trapper Rendezvous | B26: 10 | C26: =getProgramXref($A26,numericItinerary(C$1)) ->  | D26: =getProgramXref($A26,numericItinerary(D$1)) -> x | E26: =getProgramXref($A26,numericItinerary(E$1)) ->  | F26: =getProgramXref($A26,numericItinerary(F$1)) -> x | G26: =getProgramXref($A26,numericItinerary(G$1)) ->  | H26: =getProgramXref($A26,numericItinerary(H$1)) -> x | I26: =getProgramXref($A26,numericItinerary(I$1)) -> x | J26: =getProgramXref($A26,numericItinerary(J$1)) ->  | K26: =getProgramXref($A26,numericItinerary(K$1)) -> x | L26: =getProgramXref($A26,numericItinerary(L$1)) -> x | M26: =getProgramXref($A26,numericItinerary(M$1)) ->  | N26: =getProgramXref($A26,numericItinerary(N$1)) ->  | O26: =getProgramXref($A26,numericItinerary(O$1)) ->  | P26: =getProgramXref($A26,numericItinerary(P$1)) ->  | Q26: =getProgramXref($A26,numericItinerary(Q$1)) ->  | R26: =getProgramXref($A26,numericItinerary(R$1)) ->  | S26: =getProgramXref($A26,numericItinerary(S$1)) ->  | T26: =getProgramXref($A26,numericItinerary(T$1)) ->  | U26: =getProgramXref($A26,numericItinerary(U$1)) ->  | V26: =getProgramXref($A26,numericItinerary(V$1)) -> x | W26: =getProgramXref($A26,numericItinerary(W$1)) ->  | X26: =getProgramXref($A26,numericItinerary(X$1)) -> x | Y26: =getProgramXref($A26,numericItinerary(Y$1)) -> x | Z26: =getProgramXref($A26,numericItinerary(Z$1)) -> x | AB26: 10
A27: =INDEX(program_table,ROW()-5) -> Historical: Gold Panning | B27: 14 | C27: =getProgramXref($A27,numericItinerary(C$1)) ->  | D27: =getProgramXref($A27,numericItinerary(D$1)) -> x | E27: =getProgramXref($A27,numericItinerary(E$1)) ->  | F27: =getProgramXref($A27,numericItinerary(F$1)) -> x | G27: =getProgramXref($A27,numericItinerary(G$1)) ->  | H27: =getProgramXref($A27,numericItinerary(H$1)) -> x | I27: =getProgramXref($A27,numericItinerary(I$1)) -> x | J27: =getProgramXref($A27,numericItinerary(J$1)) -> x | K27: =getProgramXref($A27,numericItinerary(K$1)) ->  | L27: =getProgramXref($A27,numericItinerary(L$1)) -> x | M27: =getProgramXref($A27,numericItinerary(M$1)) ->  | N27: =getProgramXref($A27,numericItinerary(N$1)) ->  | O27: =getProgramXref($A27,numericItinerary(O$1)) -> x | P27: =getProgramXref($A27,numericItinerary(P$1)) ->  | Q27: =getProgramXref($A27,numericItinerary(Q$1)) -> x | R27: =getProgramXref($A27,numericItinerary(R$1)) ->  | S27: =getProgramXref($A27,numericItinerary(S$1)) -> x | T27: =getProgramXref($A27,numericItinerary(T$1)) -> x | U27: =getProgramXref($A27,numericItinerary(U$1)) ->  | V27: =getProgramXref($A27,numericItinerary(V$1)) -> x | W27: =getProgramXref($A27,numericItinerary(W$1)) -> x | X27: =getProgramXref($A27,numericItinerary(X$1)) -> x | Y27: =getProgramXref($A27,numericItinerary(Y$1)) ->  | Z27: =getProgramXref($A27,numericItinerary(Z$1)) -> x | AB27: 14
A28: =INDEX(program_table,ROW()-5) -> Historical: Mine Tour | B28: 5 | C28: =getProgramXref($A28,numericItinerary(C$1)) ->  | D28: =getProgramXref($A28,numericItinerary(D$1)) ->  | E28: =getProgramXref($A28,numericItinerary(E$1)) ->  | F28: =getProgramXref($A28,numericItinerary(F$1)) ->  | G28: =getProgramXref($A28,numericItinerary(G$1)) ->  | H28: =getProgramXref($A28,numericItinerary(H$1)) ->  | I28: =getProgramXref($A28,numericItinerary(I$1)) ->  | J28: =getProgramXref($A28,numericItinerary(J$1)) ->  | K28: =getProgramXref($A28,numericItinerary(K$1)) ->  | L28: =getProgramXref($A28,numericItinerary(L$1)) ->  | M28: =getProgramXref($A28,numericItinerary(M$1)) ->  | N28: =getProgramXref($A28,numericItinerary(N$1)) ->  | O28: =getProgramXref($A28,numericItinerary(O$1)) -> x | P28: =getProgramXref($A28,numericItinerary(P$1)) ->  | Q28: =getProgramXref($A28,numericItinerary(Q$1)) -> x | R28: =getProgramXref($A28,numericItinerary(R$1)) ->  | S28: =getProgramXref($A28,numericItinerary(S$1)) -> x | T28: =getProgramXref($A28,numericItinerary(T$1)) ->  | U28: =getProgramXref($A28,numericItinerary(U$1)) ->  | V28: =getProgramXref($A28,numericItinerary(V$1)) ->  | W28: =getProgramXref($A28,numericItinerary(W$1)) -> x | X28: =getProgramXref($A28,numericItinerary(X$1)) ->  | Y28: =getProgramXref($A28,numericItinerary(Y$1)) ->  | Z28: =getProgramXref($A28,numericItinerary(Z$1)) -> x | AB28: 5
A29: =INDEX(program_table,ROW()-5) -> Historical: Petroglyph Tour | B29: 2 | C29: =getProgramXref($A29,numericItinerary(C$1)) ->  | D29: =getProgramXref($A29,numericItinerary(D$1)) ->  | E29: =getProgramXref($A29,numericItinerary(E$1)) -> x | F29: =getProgramXref($A29,numericItinerary(F$1)) ->  | G29: =getProgramXref($A29,numericItinerary(G$1)) ->  | H29: =getProgramXref($A29,numericItinerary(H$1)) ->  | I29: =getProgramXref($A29,numericItinerary(I$1)) ->  | J29: =getProgramXref($A29,numericItinerary(J$1)) -> x | K29: =getProgramXref($A29,numericItinerary(K$1)) ->  | L29: =getProgramXref($A29,numericItinerary(L$1)) ->  | M29: =getProgramXref($A29,numericItinerary(M$1)) ->  | N29: =getProgramXref($A29,numericItinerary(N$1)) ->  | O29: =getProgramXref($A29,numericItinerary(O$1)) ->  | P29: =getProgramXref($A29,numericItinerary(P$1)) ->  | Q29: =getProgramXref($A29,numericItinerary(Q$1)) ->  | R29: =getProgramXref($A29,numericItinerary(R$1)) ->  | S29: =getProgramXref($A29,numericItinerary(S$1)) ->  | T29: =getProgramXref($A29,numericItinerary(T$1)) ->  | U29: =getProgramXref($A29,numericItinerary(U$1)) ->  | V29: =getProgramXref($A29,numericItinerary(V$1)) ->  | W29: =getProgramXref($A29,numericItinerary(W$1)) ->  | X29: =getProgramXref($A29,numericItinerary(X$1)) ->  | Y29: =getProgramXref($A29,numericItinerary(Y$1)) ->  | Z29: =getProgramXref($A29,numericItinerary(Z$1)) ->  | AB29: 2
A30: =INDEX(program_table,ROW()-5) -> Historical: Pump Car Rides | B30: 3 | C30: =getProgramXref($A30,numericItinerary(C$1)) ->  | D30: =getProgramXref($A30,numericItinerary(D$1)) ->  | E30: =getProgramXref($A30,numericItinerary(E$1)) ->  | F30: =getProgramXref($A30,numericItinerary(F$1)) -> x | G30: =getProgramXref($A30,numericItinerary(G$1)) ->  | H30: =getProgramXref($A30,numericItinerary(H$1)) ->  | I30: =getProgramXref($A30,numericItinerary(I$1)) ->  | J30: =getProgramXref($A30,numericItinerary(J$1)) -> x | K30: =getProgramXref($A30,numericItinerary(K$1)) ->  | L30: =getProgramXref($A30,numericItinerary(L$1)) -> x | M30: =getProgramXref($A30,numericItinerary(M$1)) ->  | N30: =getProgramXref($A30,numericItinerary(N$1)) ->  | O30: =getProgramXref($A30,numericItinerary(O$1)) ->  | P30: =getProgramXref($A30,numericItinerary(P$1)) ->  | Q30: =getProgramXref($A30,numericItinerary(Q$1)) ->  | R30: =getProgramXref($A30,numericItinerary(R$1)) ->  | S30: =getProgramXref($A30,numericItinerary(S$1)) ->  | T30: =getProgramXref($A30,numericItinerary(T$1)) ->  | U30: =getProgramXref($A30,numericItinerary(U$1)) ->  | V30: =getProgramXref($A30,numericItinerary(V$1)) ->  | W30: =getProgramXref($A30,numericItinerary(W$1)) ->  | X30: =getProgramXref($A30,numericItinerary(X$1)) ->  | Y30: =getProgramXref($A30,numericItinerary(Y$1)) ->  | Z30: =getProgramXref($A30,numericItinerary(Z$1)) ->  | AB30: 3
A31: =INDEX(program_table,ROW()-5) -> Historical: Railroad Construction | B31: 4 | C31: =getProgramXref($A31,numericItinerary(C$1)) ->  | D31: =getProgramXref($A31,numericItinerary(D$1)) ->  | E31: =getProgramXref($A31,numericItinerary(E$1)) -> x | F31: =getProgramXref($A31,numericItinerary(F$1)) -> x | G31: =getProgramXref($A31,numericItinerary(G$1)) ->  | H31: =getProgramXref($A31,numericItinerary(H$1)) ->  | I31: =getProgramXref($A31,numericItinerary(I$1)) ->  | J31: =getProgramXref($A31,numericItinerary(J$1)) -> x | K31: =getProgramXref($A31,numericItinerary(K$1)) ->  | L31: =getProgramXref($A31,numericItinerary(L$1)) -> x | M31: =getProgramXref($A31,numericItinerary(M$1)) ->  | N31: =getProgramXref($A31,numericItinerary(N$1)) ->  | O31: =getProgramXref($A31,numericItinerary(O$1)) ->  | P31: =getProgramXref($A31,numericItinerary(P$1)) ->  | Q31: =getProgramXref($A31,numericItinerary(Q$1)) ->  | R31: =getProgramXref($A31,numericItinerary(R$1)) ->  | S31: =getProgramXref($A31,numericItinerary(S$1)) ->  | T31: =getProgramXref($A31,numericItinerary(T$1)) ->  | U31: =getProgramXref($A31,numericItinerary(U$1)) ->  | V31: =getProgramXref($A31,numericItinerary(V$1)) ->  | W31: =getProgramXref($A31,numericItinerary(W$1)) ->  | X31: =getProgramXref($A31,numericItinerary(X$1)) ->  | Y31: =getProgramXref($A31,numericItinerary(Y$1)) ->  | Z31: =getProgramXref($A31,numericItinerary(Z$1)) ->  | AB31: 4
A32: =INDEX(program_table,ROW()-5) -> Historical: Spar Pole Climbing | B32: 9 | C32: =getProgramXref($A32,numericItinerary(C$1)) -> x | D32: =getProgramXref($A32,numericItinerary(D$1)) -> x | E32: =getProgramXref($A32,numericItinerary(E$1)) ->  | F32: =getProgramXref($A32,numericItinerary(F$1)) ->  | G32: =getProgramXref($A32,numericItinerary(G$1)) ->  | H32: =getProgramXref($A32,numericItinerary(H$1)) ->  | I32: =getProgramXref($A32,numericItinerary(I$1)) ->  | J32: =getProgramXref($A32,numericItinerary(J$1)) -> x | K32: =getProgramXref($A32,numericItinerary(K$1)) ->  | L32: =getProgramXref($A32,numericItinerary(L$1)) ->  | M32: =getProgramXref($A32,numericItinerary(M$1)) -> x | N32: =getProgramXref($A32,numericItinerary(N$1)) ->  | O32: =getProgramXref($A32,numericItinerary(O$1)) ->  | P32: =getProgramXref($A32,numericItinerary(P$1)) ->  | Q32: =getProgramXref($A32,numericItinerary(Q$1)) ->  | R32: =getProgramXref($A32,numericItinerary(R$1)) ->  | S32: =getProgramXref($A32,numericItinerary(S$1)) -> x | T32: =getProgramXref($A32,numericItinerary(T$1)) -> x | U32: =getProgramXref($A32,numericItinerary(U$1)) ->  | V32: =getProgramXref($A32,numericItinerary(V$1)) ->  | W32: =getProgramXref($A32,numericItinerary(W$1)) ->  | X32: =getProgramXref($A32,numericItinerary(X$1)) -> x | Y32: =getProgramXref($A32,numericItinerary(Y$1)) -> x | Z32: =getProgramXref($A32,numericItinerary(Z$1)) -> x | AB32: 9
A33: =INDEX(program_table,ROW()-5) -> Landmarks: Baldy Mountain | B33: 11 | C33: =getProgramXref($A33,numericItinerary(C$1)) ->  | D33: =getProgramXref($A33,numericItinerary(D$1)) -> x | E33: =getProgramXref($A33,numericItinerary(E$1)) ->  | F33: =getProgramXref($A33,numericItinerary(F$1)) -> x | G33: =getProgramXref($A33,numericItinerary(G$1)) ->  | H33: =getProgramXref($A33,numericItinerary(H$1)) -> x | I33: =getProgramXref($A33,numericItinerary(I$1)) -> x | J33: =getProgramXref($A33,numericItinerary(J$1)) -> x | K33: =getProgramXref($A33,numericItinerary(K$1)) ->  | L33: =getProgramXref($A33,numericItinerary(L$1)) -> x | M33: =getProgramXref($A33,numericItinerary(M$1)) ->  | N33: =getProgramXref($A33,numericItinerary(N$1)) ->  | O33: =getProgramXref($A33,numericItinerary(O$1)) ->  | P33: =getProgramXref($A33,numericItinerary(P$1)) ->  | Q33: =getProgramXref($A33,numericItinerary(Q$1)) ->  | R33: =getProgramXref($A33,numericItinerary(R$1)) ->  | S33: =getProgramXref($A33,numericItinerary(S$1)) ->  | T33: =getProgramXref($A33,numericItinerary(T$1)) -> x | U33: =getProgramXref($A33,numericItinerary(U$1)) ->  | V33: =getProgramXref($A33,numericItinerary(V$1)) -> x | W33: =getProgramXref($A33,numericItinerary(W$1)) ->  | X33: =getProgramXref($A33,numericItinerary(X$1)) -> x | Y33: =getProgramXref($A33,numericItinerary(Y$1)) -> x | Z33: =getProgramXref($A33,numericItinerary(Z$1)) -> x | AB33: 11
A34: =INDEX(program_table,ROW()-5) -> Landmarks: Inspiration Point | B34: 2 | C34: =getProgramXref($A34,numericItinerary(C$1)) -> x | D34: =getProgramXref($A34,numericItinerary(D$1)) ->  | E34: =getProgramXref($A34,numericItinerary(E$1)) ->  | F34: =getProgramXref($A34,numericItinerary(F$1)) ->  | G34: =getProgramXref($A34,numericItinerary(G$1)) ->  | H34: =getProgramXref($A34,numericItinerary(H$1)) ->  | I34: =getProgramXref($A34,numericItinerary(I$1)) ->  | J34: =getProgramXref($A34,numericItinerary(J$1)) ->  | K34: =getProgramXref($A34,numericItinerary(K$1)) ->  | L34: =getProgramXref($A34,numericItinerary(L$1)) ->  | M34: =getProgramXref($A34,numericItinerary(M$1)) ->  | N34: =getProgramXref($A34,numericItinerary(N$1)) ->  | O34: =getProgramXref($A34,numericItinerary(O$1)) ->  | P34: =getProgramXref($A34,numericItinerary(P$1)) ->  | Q34: =getProgramXref($A34,numericItinerary(Q$1)) ->  | R34: =getProgramXref($A34,numericItinerary(R$1)) ->  | S34: =getProgramXref($A34,numericItinerary(S$1)) ->  | T34: =getProgramXref($A34,numericItinerary(T$1)) ->  | U34: =getProgramXref($A34,numericItinerary(U$1)) -> x | V34: =getProgramXref($A34,numericItinerary(V$1)) ->  | W34: =getProgramXref($A34,numericItinerary(W$1)) ->  | X34: =getProgramXref($A34,numericItinerary(X$1)) ->  | Y34: =getProgramXref($A34,numericItinerary(Y$1)) ->  | Z34: =getProgramXref($A34,numericItinerary(Z$1)) ->  | AB34: 2
A35: =INDEX(program_table,ROW()-5) -> Landmarks: Mount Phillips | B35: 8 | C35: =getProgramXref($A35,numericItinerary(C$1)) ->  | D35: =getProgramXref($A35,numericItinerary(D$1)) ->  | E35: =getProgramXref($A35,numericItinerary(E$1)) ->  | F35: =getProgramXref($A35,numericItinerary(F$1)) ->  | G35: =getProgramXref($A35,numericItinerary(G$1)) -> x | H35: =getProgramXref($A35,numericItinerary(H$1)) ->  | I35: =getProgramXref($A35,numericItinerary(I$1)) ->  | J35: =getProgramXref($A35,numericItinerary(J$1)) ->  | K35: =getProgramXref($A35,numericItinerary(K$1)) ->  | L35: =getProgramXref($A35,numericItinerary(L$1)) ->  | M35: =getProgramXref($A35,numericItinerary(M$1)) ->  | N35: =getProgramXref($A35,numericItinerary(N$1)) -> x | O35: =getProgramXref($A35,numericItinerary(O$1)) -> x | P35: =getProgramXref($A35,numericItinerary(P$1)) ->  | Q35: =getProgramXref($A35,numericItinerary(Q$1)) -> x | R35: =getProgramXref($A35,numericItinerary(R$1)) -> x | S35: =getProgramXref($A35,numericItinerary(S$1)) -> x | T35: =getProgramXref($A35,numericItinerary(T$1)) ->  | U35: =getProgramXref($A35,numericItinerary(U$1)) -> x | V35: =getProgramXref($A35,numericItinerary(V$1)) ->  | W35: =getProgramXref($A35,numericItinerary(W$1)) -> x | X35: =getProgramXref($A35,numericItinerary(X$1)) ->  | Y35: =getProgramXref($A35,numericItinerary(Y$1)) ->  | Z35: =getProgramXref($A35,numericItinerary(Z$1)) ->  | AB35: 8
A36: =INDEX(program_table,ROW()-5) -> Landmarks: Mountaineering | B36: 15 | C36: =getProgramXref($A36,numericItinerary(C$1)) ->  | D36: =getProgramXref($A36,numericItinerary(D$1)) ->  | E36: =getProgramXref($A36,numericItinerary(E$1)) ->  | F36: =getProgramXref($A36,numericItinerary(F$1)) ->  | G36: =getProgramXref($A36,numericItinerary(G$1)) -> x | H36: =getProgramXref($A36,numericItinerary(H$1)) ->  | I36: =getProgramXref($A36,numericItinerary(I$1)) ->  | J36: =getProgramXref($A36,numericItinerary(J$1)) -> x | K36: =getProgramXref($A36,numericItinerary(K$1)) -> x | L36: =getProgramXref($A36,numericItinerary(L$1)) -> x | M36: =getProgramXref($A36,numericItinerary(M$1)) -> x | N36: =getProgramXref($A36,numericItinerary(N$1)) -> x | O36: =getProgramXref($A36,numericItinerary(O$1)) -> x | P36: =getProgramXref($A36,numericItinerary(P$1)) ->  | Q36: =getProgramXref($A36,numericItinerary(Q$1)) -> x | R36: =getProgramXref($A36,numericItinerary(R$1)) -> x | S36: =getProgramXref($A36,numericItinerary(S$1)) -> x | T36: =getProgramXref($A36,numericItinerary(T$1)) -> x | U36: =getProgramXref($A36,numericItinerary(U$1)) -> x | V36: =getProgramXref($A36,numericItinerary(V$1)) ->  | W36: =getProgramXref($A36,numericItinerary(W$1)) -> x | X36: =getProgramXref($A36,numericItinerary(X$1)) ->  | Y36: =getProgramXref($A36,numericItinerary(Y$1)) -> x | Z36: =getProgramXref($A36,numericItinerary(Z$1)) -> x | AB36: 15
A37: =INDEX(program_table,ROW()-5) -> Landmarks: Tooth of Time | B37: 12 | C37: =getProgramXref($A37,numericItinerary(C$1)) -> x | D37: =getProgramXref($A37,numericItinerary(D$1)) ->  | E37: =getProgramXref($A37,numericItinerary(E$1)) ->  | F37: =getProgramXref($A37,numericItinerary(F$1)) ->  | G37: =getProgramXref($A37,numericItinerary(G$1)) ->  | H37: =getProgramXref($A37,numericItinerary(H$1)) ->  | I37: =getProgramXref($A37,numericItinerary(I$1)) ->  | J37: =getProgramXref($A37,numericItinerary(J$1)) ->  | K37: =getProgramXref($A37,numericItinerary(K$1)) -> x | L37: =getProgramXref($A37,numericItinerary(L$1)) ->  | M37: =getProgramXref($A37,numericItinerary(M$1)) -> x | N37: =getProgramXref($A37,numericItinerary(N$1)) -> x | O37: =getProgramXref($A37,numericItinerary(O$1)) -> x | P37: =getProgramXref($A37,numericItinerary(P$1)) ->  | Q37: =getProgramXref($A37,numericItinerary(Q$1)) -> x | R37: =getProgramXref($A37,numericItinerary(R$1)) -> x | S37: =getProgramXref($A37,numericItinerary(S$1)) -> x | T37: =getProgramXref($A37,numericItinerary(T$1)) ->  | U37: =getProgramXref($A37,numericItinerary(U$1)) -> x | V37: =getProgramXref($A37,numericItinerary(V$1)) ->  | W37: =getProgramXref($A37,numericItinerary(W$1)) -> x | X37: =getProgramXref($A37,numericItinerary(X$1)) ->  | Y37: =getProgramXref($A37,numericItinerary(Y$1)) -> x | Z37: =getProgramXref($A37,numericItinerary(Z$1)) -> x | AB37: 12
A38: =INDEX(program_table,ROW()-5) -> Landmarks: Trail Peak | B38: =COUNTIF(C38:Z38,"X") -> 3 | C38: =getProgramXref($A38,numericItinerary(C$1)) ->  | D38: =getProgramXref($A38,numericItinerary(D$1)) ->  | E38: =getProgramXref($A38,numericItinerary(E$1)) ->  | F38: =getProgramXref($A38,numericItinerary(F$1)) ->  | G38: =getProgramXref($A38,numericItinerary(G$1)) ->  | H38: =getProgramXref($A38,numericItinerary(H$1)) ->  | I38: =getProgramXref($A38,numericItinerary(I$1)) ->  | J38: =getProgramXref($A38,numericItinerary(J$1)) ->  | K38: =getProgramXref($A38,numericItinerary(K$1)) ->  | L38: =getProgramXref($A38,numericItinerary(L$1)) ->  | M38: =getProgramXref($A38,numericItinerary(M$1)) ->  | N38: =getProgramXref($A38,numericItinerary(N$1)) -> x | O38: =getProgramXref($A38,numericItinerary(O$1)) ->  | P38: =getProgramXref($A38,numericItinerary(P$1)) ->  | Q38: =getProgramXref($A38,numericItinerary(Q$1)) -> x | R38: =getProgramXref($A38,numericItinerary(R$1)) ->  | S38: =getProgramXref($A38,numericItinerary(S$1)) -> x | T38: =getProgramXref($A38,numericItinerary(T$1)) ->  | U38: =getProgramXref($A38,numericItinerary(U$1)) ->  | V38: =getProgramXref($A38,numericItinerary(V$1)) ->  | W38: =getProgramXref($A38,numericItinerary(W$1)) ->  | X38: =getProgramXref($A38,numericItinerary(X$1)) ->  | Y38: =getProgramXref($A38,numericItinerary(Y$1)) ->  | Z38: =getProgramXref($A38,numericItinerary(Z$1)) ->  | AB38: =COUNTIF(C38:Z38,"X") -> 3
A39: =INDEX(program_table,ROW()-5) -> Livestock: Animal Husbandry | B39: 14 | C39: =getProgramXref($A39,numericItinerary(C$1)) -> x | D39: =getProgramXref($A39,numericItinerary(D$1)) ->  | E39: =getProgramXref($A39,numericItinerary(E$1)) -> x | F39: =getProgramXref($A39,numericItinerary(F$1)) ->  | G39: =getProgramXref($A39,numericItinerary(G$1)) -> x | H39: =getProgramXref($A39,numericItinerary(H$1)) ->  | I39: =getProgramXref($A39,numericItinerary(I$1)) -> x | J39: =getProgramXref($A39,numericItinerary(J$1)) ->  | K39: =getProgramXref($A39,numericItinerary(K$1)) ->  | L39: =getProgramXref($A39,numericItinerary(L$1)) -> x | M39: =getProgramXref($A39,numericItinerary(M$1)) -> x | N39: =getProgramXref($A39,numericItinerary(N$1)) -> x | O39: =getProgramXref($A39,numericItinerary(O$1)) -> x | P39: =getProgramXref($A39,numericItinerary(P$1)) -> x | Q39: =getProgramXref($A39,numericItinerary(Q$1)) -> x | R39: =getProgramXref($A39,numericItinerary(R$1)) -> x | S39: =getProgramXref($A39,numericItinerary(S$1)) -> x | T39: =getProgramXref($A39,numericItinerary(T$1)) ->  | U39: =getProgramXref($A39,numericItinerary(U$1)) -> x | V39: =getProgramXref($A39,numericItinerary(V$1)) ->  | W39: =getProgramXref($A39,numericItinerary(W$1)) -> x | X39: =getProgramXref($A39,numericItinerary(X$1)) ->  | Y39: =getProgramXref($A39,numericItinerary(Y$1)) ->  | Z39: =getProgramXref($A39,numericItinerary(Z$1)) ->  | AB39: 14
A40: =INDEX(program_table,ROW()-5) -> Livestock: Burro Packing | B40: 4 | C40: =getProgramXref($A40,numericItinerary(C$1)) ->  | D40: =getProgramXref($A40,numericItinerary(D$1)) ->  | E40: =getProgramXref($A40,numericItinerary(E$1)) ->  | F40: =getProgramXref($A40,numericItinerary(F$1)) -> x | G40: =getProgramXref($A40,numericItinerary(G$1)) ->  | H40: =getProgramXref($A40,numericItinerary(H$1)) ->  | I40: =getProgramXref($A40,numericItinerary(I$1)) ->  | J40: =getProgramXref($A40,numericItinerary(J$1)) ->  | K40: =getProgramXref($A40,numericItinerary(K$1)) -> x | L40: =getProgramXref($A40,numericItinerary(L$1)) -> x | M40: =getProgramXref($A40,numericItinerary(M$1)) ->  | N40: =getProgramXref($A40,numericItinerary(N$1)) ->  | O40: =getProgramXref($A40,numericItinerary(O$1)) ->  | P40: =getProgramXref($A40,numericItinerary(P$1)) ->  | Q40: =getProgramXref($A40,numericItinerary(Q$1)) ->  | R40: =getProgramXref($A40,numericItinerary(R$1)) ->  | S40: =getProgramXref($A40,numericItinerary(S$1)) ->  | T40: =getProgramXref($A40,numericItinerary(T$1)) ->  | U40: =getProgramXref($A40,numericItinerary(U$1)) ->  | V40: =getProgramXref($A40,numericItinerary(V$1)) -> x | W40: =getProgramXref($A40,numericItinerary(W$1)) ->  | X40: =getProgramXref($A40,numericItinerary(X$1)) ->  | Y40: =getProgramXref($A40,numericItinerary(Y$1)) ->  | Z40: =getProgramXref($A40,numericItinerary(Z$1)) ->  | AB40: 4
A41: =INDEX(program_table,ROW()-5) -> Livestock: Chicken Tending | B41: 13 | C41: =getProgramXref($A41,numericItinerary(C$1)) -> x | D41: =getProgramXref($A41,numericItinerary(D$1)) ->  | E41: =getProgramXref($A41,numericItinerary(E$1)) -> x | F41: =getProgramXref($A41,numericItinerary(F$1)) ->  | G41: =getProgramXref($A41,numericItinerary(G$1)) -> x | H41: =getProgramXref($A41,numericItinerary(H$1)) ->  | I41: =getProgramXref($A41,numericItinerary(I$1)) -> x | J41: =getProgramXref($A41,numericItinerary(J$1)) ->  | K41: =getProgramXref($A41,numericItinerary(K$1)) ->  | L41: =getProgramXref($A41,numericItinerary(L$1)) -> x | M41: =getProgramXref($A41,numericItinerary(M$1)) -> x | N41: =getProgramXref($A41,numericItinerary(N$1)) -> x | O41: =getProgramXref($A41,numericItinerary(O$1)) ->  | P41: =getProgramXref($A41,numericItinerary(P$1)) -> x | Q41: =getProgramXref($A41,numericItinerary(Q$1)) -> x | R41: =getProgramXref($A41,numericItinerary(R$1)) -> x | S41: =getProgramXref($A41,numericItinerary(S$1)) -> x | T41: =getProgramXref($A41,numericItinerary(T$1)) ->  | U41: =getProgramXref($A41,numericItinerary(U$1)) -> x | V41: =getProgramXref($A41,numericItinerary(V$1)) ->  | W41: =getProgramXref($A41,numericItinerary(W$1)) -> x | X41: =getProgramXref($A41,numericItinerary(X$1)) ->  | Y41: =getProgramXref($A41,numericItinerary(Y$1)) ->  | Z41: =getProgramXref($A41,numericItinerary(Z$1)) ->  | AB41: 13
A42: =INDEX(program_table,ROW()-5) -> Livestock: Horse Rides | B42: 7 | C42: =getProgramXref($A42,numericItinerary(C$1)) ->  | D42: =getProgramXref($A42,numericItinerary(D$1)) ->  | E42: =getProgramXref($A42,numericItinerary(E$1)) ->  | F42: =getProgramXref($A42,numericItinerary(F$1)) -> x | G42: =getProgramXref($A42,numericItinerary(G$1)) ->  | H42: =getProgramXref($A42,numericItinerary(H$1)) ->  | I42: =getProgramXref($A42,numericItinerary(I$1)) ->  | J42: =getProgramXref($A42,numericItinerary(J$1)) ->  | K42: =getProgramXref($A42,numericItinerary(K$1)) -> x | L42: =getProgramXref($A42,numericItinerary(L$1)) -> x | M42: =getProgramXref($A42,numericItinerary(M$1)) -> x | N42: =getProgramXref($A42,numericItinerary(N$1)) -> x | O42: =getProgramXref($A42,numericItinerary(O$1)) ->  | P42: =getProgramXref($A42,numericItinerary(P$1)) -> x | Q42: =getProgramXref($A42,numericItinerary(Q$1)) ->  | R42: =getProgramXref($A42,numericItinerary(R$1)) ->  | S42: =getProgramXref($A42,numericItinerary(S$1)) ->  | T42: =getProgramXref($A42,numericItinerary(T$1)) ->  | U42: =getProgramXref($A42,numericItinerary(U$1)) ->  | V42: =getProgramXref($A42,numericItinerary(V$1)) ->  | W42: =getProgramXref($A42,numericItinerary(W$1)) ->  | X42: =getProgramXref($A42,numericItinerary(X$1)) ->  | Y42: =getProgramXref($A42,numericItinerary(Y$1)) -> x | Z42: =getProgramXref($A42,numericItinerary(Z$1)) ->  | AB42: 7
A43: =INDEX(program_table,ROW()-5) -> Low Impact Camping | B43: 6 | C43: =getProgramXref($A43,numericItinerary(C$1)) ->  | D43: =getProgramXref($A43,numericItinerary(D$1)) ->  | E43: =getProgramXref($A43,numericItinerary(E$1)) -> x | F43: =getProgramXref($A43,numericItinerary(F$1)) ->  | G43: =getProgramXref($A43,numericItinerary(G$1)) -> x | H43: =getProgramXref($A43,numericItinerary(H$1)) ->  | I43: =getProgramXref($A43,numericItinerary(I$1)) -> x | J43: =getProgramXref($A43,numericItinerary(J$1)) ->  | K43: =getProgramXref($A43,numericItinerary(K$1)) ->  | L43: =getProgramXref($A43,numericItinerary(L$1)) ->  | M43: =getProgramXref($A43,numericItinerary(M$1)) ->  | N43: =getProgramXref($A43,numericItinerary(N$1)) ->  | O43: =getProgramXref($A43,numericItinerary(O$1)) ->  | P43: =getProgramXref($A43,numericItinerary(P$1)) -> x | Q43: =getProgramXref($A43,numericItinerary(Q$1)) ->  | R43: =getProgramXref($A43,numericItinerary(R$1)) ->  | S43: =getProgramXref($A43,numericItinerary(S$1)) -> x | T43: =getProgramXref($A43,numericItinerary(T$1)) ->  | U43: =getProgramXref($A43,numericItinerary(U$1)) ->  | V43: =getProgramXref($A43,numericItinerary(V$1)) -> x | W43: =getProgramXref($A43,numericItinerary(W$1)) ->  | X43: =getProgramXref($A43,numericItinerary(X$1)) ->  | Y43: =getProgramXref($A43,numericItinerary(Y$1)) ->  | Z43: =getProgramXref($A43,numericItinerary(Z$1)) ->  | AB43: 6
A44: =INDEX(program_table,ROW()-5) -> Range Sports: 3D Archery | B44: 13 | C44: =getProgramXref($A44,numericItinerary(C$1)) -> x | D44: =getProgramXref($A44,numericItinerary(D$1)) -> x | E44: =getProgramXref($A44,numericItinerary(E$1)) ->  | F44: =getProgramXref($A44,numericItinerary(F$1)) ->  | G44: =getProgramXref($A44,numericItinerary(G$1)) -> x | H44: =getProgramXref($A44,numericItinerary(H$1)) -> x | I44: =getProgramXref($A44,numericItinerary(I$1)) ->  | J44: =getProgramXref($A44,numericItinerary(J$1)) -> x | K44: =getProgramXref($A44,numericItinerary(K$1)) -> x | L44: =getProgramXref($A44,numericItinerary(L$1)) -> x | M44: =getProgramXref($A44,numericItinerary(M$1)) ->  | N44: =getProgramXref($A44,numericItinerary(N$1)) ->  | O44: =getProgramXref($A44,numericItinerary(O$1)) ->  | P44: =getProgramXref($A44,numericItinerary(P$1)) ->  | Q44: =getProgramXref($A44,numericItinerary(Q$1)) ->  | R44: =getProgramXref($A44,numericItinerary(R$1)) -> x | S44: =getProgramXref($A44,numericItinerary(S$1)) -> x | T44: =getProgramXref($A44,numericItinerary(T$1)) -> x | U44: =getProgramXref($A44,numericItinerary(U$1)) -> x | V44: =getProgramXref($A44,numericItinerary(V$1)) ->  | W44: =getProgramXref($A44,numericItinerary(W$1)) ->  | X44: =getProgramXref($A44,numericItinerary(X$1)) -> x | Y44: =getProgramXref($A44,numericItinerary(Y$1)) -> x | Z44: =getProgramXref($A44,numericItinerary(Z$1)) ->  | AB44: 13
A45: =INDEX(program_table,ROW()-5) -> Range Sports: Aerial Archery | B45: 13 | C45: =getProgramXref($A45,numericItinerary(C$1)) -> x | D45: =getProgramXref($A45,numericItinerary(D$1)) -> x | E45: =getProgramXref($A45,numericItinerary(E$1)) ->  | F45: =getProgramXref($A45,numericItinerary(F$1)) ->  | G45: =getProgramXref($A45,numericItinerary(G$1)) -> x | H45: =getProgramXref($A45,numericItinerary(H$1)) -> x | I45: =getProgramXref($A45,numericItinerary(I$1)) ->  | J45: =getProgramXref($A45,numericItinerary(J$1)) -> x | K45: =getProgramXref($A45,numericItinerary(K$1)) -> x | L45: =getProgramXref($A45,numericItinerary(L$1)) -> x | M45: =getProgramXref($A45,numericItinerary(M$1)) ->  | N45: =getProgramXref($A45,numericItinerary(N$1)) ->  | O45: =getProgramXref($A45,numericItinerary(O$1)) ->  | P45: =getProgramXref($A45,numericItinerary(P$1)) ->  | Q45: =getProgramXref($A45,numericItinerary(Q$1)) ->  | R45: =getProgramXref($A45,numericItinerary(R$1)) -> x | S45: =getProgramXref($A45,numericItinerary(S$1)) -> x | T45: =getProgramXref($A45,numericItinerary(T$1)) -> x | U45: =getProgramXref($A45,numericItinerary(U$1)) -> x | V45: =getProgramXref($A45,numericItinerary(V$1)) ->  | W45: =getProgramXref($A45,numericItinerary(W$1)) ->  | X45: =getProgramXref($A45,numericItinerary(X$1)) -> x | Y45: =getProgramXref($A45,numericItinerary(Y$1)) -> x | Z45: =getProgramXref($A45,numericItinerary(Z$1)) ->  | AB45: 13
A46: =INDEX(program_table,ROW()-5) -> Range Sports: Atlatl Throwing | B46: 1 | C46: =getProgramXref($A46,numericItinerary(C$1)) ->  | D46: =getProgramXref($A46,numericItinerary(D$1)) ->  | E46: =getProgramXref($A46,numericItinerary(E$1)) ->  | F46: =getProgramXref($A46,numericItinerary(F$1)) ->  | G46: =getProgramXref($A46,numericItinerary(G$1)) ->  | H46: =getProgramXref($A46,numericItinerary(H$1)) ->  | I46: =getProgramXref($A46,numericItinerary(I$1)) ->  | J46: =getProgramXref($A46,numericItinerary(J$1)) -> x | K46: =getProgramXref($A46,numericItinerary(K$1)) ->  | L46: =getProgramXref($A46,numericItinerary(L$1)) ->  | M46: =getProgramXref($A46,numericItinerary(M$1)) ->  | N46: =getProgramXref($A46,numericItinerary(N$1)) ->  | O46: =getProgramXref($A46,numericItinerary(O$1)) ->  | P46: =getProgramXref($A46,numericItinerary(P$1)) ->  | Q46: =getProgramXref($A46,numericItinerary(Q$1)) ->  | R46: =getProgramXref($A46,numericItinerary(R$1)) ->  | S46: =getProgramXref($A46,numericItinerary(S$1)) ->  | T46: =getProgramXref($A46,numericItinerary(T$1)) ->  | U46: =getProgramXref($A46,numericItinerary(U$1)) ->  | V46: =getProgramXref($A46,numericItinerary(V$1)) ->  | W46: =getProgramXref($A46,numericItinerary(W$1)) ->  | X46: =getProgramXref($A46,numericItinerary(X$1)) ->  | Y46: =getProgramXref($A46,numericItinerary(Y$1)) ->  | Z46: =getProgramXref($A46,numericItinerary(Z$1)) ->  | AB46: 1
A47: =INDEX(program_table,ROW()-5) -> Range Sports: Cartridge Reloading | B47: 3 | C47: =getProgramXref($A47,numericItinerary(C$1)) ->  | D47: =getProgramXref($A47,numericItinerary(D$1)) ->  | E47: =getProgramXref($A47,numericItinerary(E$1)) ->  | F47: =getProgramXref($A47,numericItinerary(F$1)) ->  | G47: =getProgramXref($A47,numericItinerary(G$1)) ->  | H47: =getProgramXref($A47,numericItinerary(H$1)) ->  | I47: =getProgramXref($A47,numericItinerary(I$1)) ->  | J47: =getProgramXref($A47,numericItinerary(J$1)) ->  | K47: =getProgramXref($A47,numericItinerary(K$1)) ->  | L47: =getProgramXref($A47,numericItinerary(L$1)) ->  | M47: =getProgramXref($A47,numericItinerary(M$1)) ->  | N47: =getProgramXref($A47,numericItinerary(N$1)) ->  | O47: =getProgramXref($A47,numericItinerary(O$1)) ->  | P47: =getProgramXref($A47,numericItinerary(P$1)) ->  | Q47: =getProgramXref($A47,numericItinerary(Q$1)) -> x | R47: =getProgramXref($A47,numericItinerary(R$1)) ->  | S47: =getProgramXref($A47,numericItinerary(S$1)) ->  | T47: =getProgramXref($A47,numericItinerary(T$1)) ->  | U47: =getProgramXref($A47,numericItinerary(U$1)) -> x | V47: =getProgramXref($A47,numericItinerary(V$1)) ->  | W47: =getProgramXref($A47,numericItinerary(W$1)) ->  | X47: =getProgramXref($A47,numericItinerary(X$1)) ->  | Y47: =getProgramXref($A47,numericItinerary(Y$1)) ->  | Z47: =getProgramXref($A47,numericItinerary(Z$1)) -> x | AB47: 3
A48: =INDEX(program_table,ROW()-5) -> Range Sports: Cowboy Action Shooting | B48: 6 | C48: =getProgramXref($A48,numericItinerary(C$1)) ->  | D48: =getProgramXref($A48,numericItinerary(D$1)) ->  | E48: =getProgramXref($A48,numericItinerary(E$1)) ->  | F48: =getProgramXref($A48,numericItinerary(F$1)) -> x | G48: =getProgramXref($A48,numericItinerary(G$1)) ->  | H48: =getProgramXref($A48,numericItinerary(H$1)) ->  | I48: =getProgramXref($A48,numericItinerary(I$1)) ->  | J48: =getProgramXref($A48,numericItinerary(J$1)) ->  | K48: =getProgramXref($A48,numericItinerary(K$1)) -> x | L48: =getProgramXref($A48,numericItinerary(L$1)) -> x | M48: =getProgramXref($A48,numericItinerary(M$1)) ->  | N48: =getProgramXref($A48,numericItinerary(N$1)) ->  | O48: =getProgramXref($A48,numericItinerary(O$1)) ->  | P48: =getProgramXref($A48,numericItinerary(P$1)) ->  | Q48: =getProgramXref($A48,numericItinerary(Q$1)) ->  | R48: =getProgramXref($A48,numericItinerary(R$1)) ->  | S48: =getProgramXref($A48,numericItinerary(S$1)) ->  | T48: =getProgramXref($A48,numericItinerary(T$1)) -> x | U48: =getProgramXref($A48,numericItinerary(U$1)) ->  | V48: =getProgramXref($A48,numericItinerary(V$1)) -> x | W48: =getProgramXref($A48,numericItinerary(W$1)) ->  | X48: =getProgramXref($A48,numericItinerary(X$1)) -> x | Y48: =getProgramXref($A48,numericItinerary(Y$1)) ->  | Z48: =getProgramXref($A48,numericItinerary(Z$1)) ->  | AB48: 6
A49: =INDEX(program_table,ROW()-5) -> Range Sports: Field Archery | B49: 9 | C49: =getProgramXref($A49,numericItinerary(C$1)) ->  | D49: =getProgramXref($A49,numericItinerary(D$1)) -> x | E49: =getProgramXref($A49,numericItinerary(E$1)) ->  | F49: =getProgramXref($A49,numericItinerary(F$1)) ->  | G49: =getProgramXref($A49,numericItinerary(G$1)) ->  | H49: =getProgramXref($A49,numericItinerary(H$1)) -> x | I49: =getProgramXref($A49,numericItinerary(I$1)) ->  | J49: =getProgramXref($A49,numericItinerary(J$1)) -> x | K49: =getProgramXref($A49,numericItinerary(K$1)) -> x | L49: =getProgramXref($A49,numericItinerary(L$1)) -> x | M49: =getProgramXref($A49,numericItinerary(M$1)) ->  | N49: =getProgramXref($A49,numericItinerary(N$1)) ->  | O49: =getProgramXref($A49,numericItinerary(O$1)) ->  | P49: =getProgramXref($A49,numericItinerary(P$1)) ->  | Q49: =getProgramXref($A49,numericItinerary(Q$1)) ->  | R49: =getProgramXref($A49,numericItinerary(R$1)) ->  | S49: =getProgramXref($A49,numericItinerary(S$1)) -> x | T49: =getProgramXref($A49,numericItinerary(T$1)) -> x | U49: =getProgramXref($A49,numericItinerary(U$1)) ->  | V49: =getProgramXref($A49,numericItinerary(V$1)) ->  | W49: =getProgramXref($A49,numericItinerary(W$1)) ->  | X49: =getProgramXref($A49,numericItinerary(X$1)) -> x | Y49: =getProgramXref($A49,numericItinerary(Y$1)) -> x | Z49: =getProgramXref($A49,numericItinerary(Z$1)) ->  | AB49: 9
A50: =INDEX(program_table,ROW()-5) -> Range Sports: Muzzleloader Shooting | B50: 10 | C50: =getProgramXref($A50,numericItinerary(C$1)) ->  | D50: =getProgramXref($A50,numericItinerary(D$1)) ->  | E50: =getProgramXref($A50,numericItinerary(E$1)) ->  | F50: =getProgramXref($A50,numericItinerary(F$1)) -> x | G50: =getProgramXref($A50,numericItinerary(G$1)) -> x | H50: =getProgramXref($A50,numericItinerary(H$1)) -> x | I50: =getProgramXref($A50,numericItinerary(I$1)) -> x | J50: =getProgramXref($A50,numericItinerary(J$1)) ->  | K50: =getProgramXref($A50,numericItinerary(K$1)) -> x | L50: =getProgramXref($A50,numericItinerary(L$1)) -> x | M50: =getProgramXref($A50,numericItinerary(M$1)) ->  | N50: =getProgramXref($A50,numericItinerary(N$1)) ->  | O50: =getProgramXref($A50,numericItinerary(O$1)) -> x | P50: =getProgramXref($A50,numericItinerary(P$1)) ->  | Q50: =getProgramXref($A50,numericItinerary(Q$1)) ->  | R50: =getProgramXref($A50,numericItinerary(R$1)) ->  | S50: =getProgramXref($A50,numericItinerary(S$1)) ->  | T50: =getProgramXref($A50,numericItinerary(T$1)) ->  | U50: =getProgramXref($A50,numericItinerary(U$1)) ->  | V50: =getProgramXref($A50,numericItinerary(V$1)) -> x | W50: =getProgramXref($A50,numericItinerary(W$1)) -> x | X50: =getProgramXref($A50,numericItinerary(X$1)) -> x | Y50: =getProgramXref($A50,numericItinerary(Y$1)) ->  | Z50: =getProgramXref($A50,numericItinerary(Z$1)) ->  | AB50: 10
A51: =INDEX(program_table,ROW()-5) -> Range Sports: Rifle Shooting | B51: 3 | C51: =getProgramXref($A51,numericItinerary(C$1)) ->  | D51: =getProgramXref($A51,numericItinerary(D$1)) ->  | E51: =getProgramXref($A51,numericItinerary(E$1)) ->  | F51: =getProgramXref($A51,numericItinerary(F$1)) ->  | G51: =getProgramXref($A51,numericItinerary(G$1)) ->  | H51: =getProgramXref($A51,numericItinerary(H$1)) ->  | I51: =getProgramXref($A51,numericItinerary(I$1)) ->  | J51: =getProgramXref($A51,numericItinerary(J$1)) ->  | K51: =getProgramXref($A51,numericItinerary(K$1)) ->  | L51: =getProgramXref($A51,numericItinerary(L$1)) ->  | M51: =getProgramXref($A51,numericItinerary(M$1)) ->  | N51: =getProgramXref($A51,numericItinerary(N$1)) ->  | O51: =getProgramXref($A51,numericItinerary(O$1)) ->  | P51: =getProgramXref($A51,numericItinerary(P$1)) ->  | Q51: =getProgramXref($A51,numericItinerary(Q$1)) -> x | R51: =getProgramXref($A51,numericItinerary(R$1)) ->  | S51: =getProgramXref($A51,numericItinerary(S$1)) ->  | T51: =getProgramXref($A51,numericItinerary(T$1)) ->  | U51: =getProgramXref($A51,numericItinerary(U$1)) -> x | V51: =getProgramXref($A51,numericItinerary(V$1)) ->  | W51: =getProgramXref($A51,numericItinerary(W$1)) ->  | X51: =getProgramXref($A51,numericItinerary(X$1)) ->  | Y51: =getProgramXref($A51,numericItinerary(Y$1)) ->  | Z51: =getProgramXref($A51,numericItinerary(Z$1)) -> x | AB51: 3
A52: =INDEX(program_table,ROW()-5) -> Range Sports: Shotgun Shooting | B52: 2 | C52: =getProgramXref($A52,numericItinerary(C$1)) ->  | D52: =getProgramXref($A52,numericItinerary(D$1)) ->  | E52: =getProgramXref($A52,numericItinerary(E$1)) ->  | F52: =getProgramXref($A52,numericItinerary(F$1)) ->  | G52: =getProgramXref($A52,numericItinerary(G$1)) ->  | H52: =getProgramXref($A52,numericItinerary(H$1)) ->  | I52: =getProgramXref($A52,numericItinerary(I$1)) ->  | J52: =getProgramXref($A52,numericItinerary(J$1)) ->  | K52: =getProgramXref($A52,numericItinerary(K$1)) ->  | L52: =getProgramXref($A52,numericItinerary(L$1)) ->  | M52: =getProgramXref($A52,numericItinerary(M$1)) ->  | N52: =getProgramXref($A52,numericItinerary(N$1)) ->  | O52: =getProgramXref($A52,numericItinerary(O$1)) ->  | P52: =getProgramXref($A52,numericItinerary(P$1)) -> x | Q52: =getProgramXref($A52,numericItinerary(Q$1)) ->  | R52: =getProgramXref($A52,numericItinerary(R$1)) ->  | S52: =getProgramXref($A52,numericItinerary(S$1)) ->  | T52: =getProgramXref($A52,numericItinerary(T$1)) ->  | U52: =getProgramXref($A52,numericItinerary(U$1)) ->  | V52: =getProgramXref($A52,numericItinerary(V$1)) ->  | W52: =getProgramXref($A52,numericItinerary(W$1)) ->  | X52: =getProgramXref($A52,numericItinerary(X$1)) -> x | Y52: =getProgramXref($A52,numericItinerary(Y$1)) ->  | Z52: =getProgramXref($A52,numericItinerary(Z$1)) ->  | AB52: 2
A53: =INDEX(program_table,ROW()-5) -> Range Sports: Shotshell Reloading | B53: 2 | C53: =getProgramXref($A53,numericItinerary(C$1)) ->  | D53: =getProgramXref($A53,numericItinerary(D$1)) ->  | E53: =getProgramXref($A53,numericItinerary(E$1)) ->  | F53: =getProgramXref($A53,numericItinerary(F$1)) ->  | G53: =getProgramXref($A53,numericItinerary(G$1)) ->  | H53: =getProgramXref($A53,numericItinerary(H$1)) ->  | I53: =getProgramXref($A53,numericItinerary(I$1)) ->  | J53: =getProgramXref($A53,numericItinerary(J$1)) ->  | K53: =getProgramXref($A53,numericItinerary(K$1)) ->  | L53: =getProgramXref($A53,numericItinerary(L$1)) ->  | M53: =getProgramXref($A53,numericItinerary(M$1)) ->  | N53: =getProgramXref($A53,numericItinerary(N$1)) ->  | O53: =getProgramXref($A53,numericItinerary(O$1)) ->  | P53: =getProgramXref($A53,numericItinerary(P$1)) -> x | Q53: =getProgramXref($A53,numericItinerary(Q$1)) ->  | R53: =getProgramXref($A53,numericItinerary(R$1)) ->  | S53: =getProgramXref($A53,numericItinerary(S$1)) ->  | T53: =getProgramXref($A53,numericItinerary(T$1)) ->  | U53: =getProgramXref($A53,numericItinerary(U$1)) ->  | V53: =getProgramXref($A53,numericItinerary(V$1)) ->  | W53: =getProgramXref($A53,numericItinerary(W$1)) ->  | X53: =getProgramXref($A53,numericItinerary(X$1)) -> x | Y53: =getProgramXref($A53,numericItinerary(Y$1)) ->  | Z53: =getProgramXref($A53,numericItinerary(Z$1)) ->  | AB53: 2
A54: =INDEX(program_table,ROW()-5) -> Range Sports: Tomahawk Throwing | B54: 17 | C54: =getProgramXref($A54,numericItinerary(C$1)) ->  | D54: =getProgramXref($A54,numericItinerary(D$1)) -> x | E54: =getProgramXref($A54,numericItinerary(E$1)) ->  | F54: =getProgramXref($A54,numericItinerary(F$1)) -> x | G54: =getProgramXref($A54,numericItinerary(G$1)) -> x | H54: =getProgramXref($A54,numericItinerary(H$1)) -> x | I54: =getProgramXref($A54,numericItinerary(I$1)) -> x | J54: =getProgramXref($A54,numericItinerary(J$1)) ->  | K54: =getProgramXref($A54,numericItinerary(K$1)) -> x | L54: =getProgramXref($A54,numericItinerary(L$1)) -> x | M54: =getProgramXref($A54,numericItinerary(M$1)) ->  | N54: =getProgramXref($A54,numericItinerary(N$1)) -> x | O54: =getProgramXref($A54,numericItinerary(O$1)) ->  | P54: =getProgramXref($A54,numericItinerary(P$1)) ->  | Q54: =getProgramXref($A54,numericItinerary(Q$1)) -> x | R54: =getProgramXref($A54,numericItinerary(R$1)) -> x | S54: =getProgramXref($A54,numericItinerary(S$1)) -> x | T54: =getProgramXref($A54,numericItinerary(T$1)) ->  | U54: =getProgramXref($A54,numericItinerary(U$1)) -> x | V54: =getProgramXref($A54,numericItinerary(V$1)) -> x | W54: =getProgramXref($A54,numericItinerary(W$1)) -> x | X54: =getProgramXref($A54,numericItinerary(X$1)) -> x | Y54: =getProgramXref($A54,numericItinerary(Y$1)) -> x | Z54: =getProgramXref($A54,numericItinerary(Z$1)) -> x | AB54: 17
A55: =INDEX(program_table,ROW()-5) -> STEM: Archeology | B55: 2 | C55: =getProgramXref($A55,numericItinerary(C$1)) ->  | D55: =getProgramXref($A55,numericItinerary(D$1)) ->  | E55: =getProgramXref($A55,numericItinerary(E$1)) -> x | F55: =getProgramXref($A55,numericItinerary(F$1)) ->  | G55: =getProgramXref($A55,numericItinerary(G$1)) ->  | H55: =getProgramXref($A55,numericItinerary(H$1)) ->  | I55: =getProgramXref($A55,numericItinerary(I$1)) ->  | J55: =getProgramXref($A55,numericItinerary(J$1)) -> x | K55: =getProgramXref($A55,numericItinerary(K$1)) ->  | L55: =getProgramXref($A55,numericItinerary(L$1)) ->  | M55: =getProgramXref($A55,numericItinerary(M$1)) ->  | N55: =getProgramXref($A55,numericItinerary(N$1)) ->  | O55: =getProgramXref($A55,numericItinerary(O$1)) ->  | P55: =getProgramXref($A55,numericItinerary(P$1)) ->  | Q55: =getProgramXref($A55,numericItinerary(Q$1)) ->  | R55: =getProgramXref($A55,numericItinerary(R$1)) ->  | S55: =getProgramXref($A55,numericItinerary(S$1)) ->  | T55: =getProgramXref($A55,numericItinerary(T$1)) ->  | U55: =getProgramXref($A55,numericItinerary(U$1)) ->  | V55: =getProgramXref($A55,numericItinerary(V$1)) ->  | W55: =getProgramXref($A55,numericItinerary(W$1)) ->  | X55: =getProgramXref($A55,numericItinerary(X$1)) ->  | Y55: =getProgramXref($A55,numericItinerary(Y$1)) ->  | Z55: =getProgramXref($A55,numericItinerary(Z$1)) -> 
A56: =INDEX(program_table,ROW()-5) -> STEM: Astronomy | B56: 4 | C56: =getProgramXref($A56,numericItinerary(C$1)) ->  | D56: =getProgramXref($A56,numericItinerary(D$1)) ->  | E56: =getProgramXref($A56,numericItinerary(E$1)) -> x | F56: =getProgramXref($A56,numericItinerary(F$1)) ->  | G56: =getProgramXref($A56,numericItinerary(G$1)) ->  | H56: =getProgramXref($A56,numericItinerary(H$1)) ->  | I56: =getProgramXref($A56,numericItinerary(I$1)) -> x | J56: =getProgramXref($A56,numericItinerary(J$1)) ->  | K56: =getProgramXref($A56,numericItinerary(K$1)) ->  | L56: =getProgramXref($A56,numericItinerary(L$1)) ->  | M56: =getProgramXref($A56,numericItinerary(M$1)) ->  | N56: =getProgramXref($A56,numericItinerary(N$1)) ->  | O56: =getProgramXref($A56,numericItinerary(O$1)) ->  | P56: =getProgramXref($A56,numericItinerary(P$1)) -> x | Q56: =getProgramXref($A56,numericItinerary(Q$1)) ->  | R56: =getProgramXref($A56,numericItinerary(R$1)) ->  | S56: =getProgramXref($A56,numericItinerary(S$1)) ->  | T56: =getProgramXref($A56,numericItinerary(T$1)) ->  | U56: =getProgramXref($A56,numericItinerary(U$1)) ->  | V56: =getProgramXref($A56,numericItinerary(V$1)) -> x | W56: =getProgramXref($A56,numericItinerary(W$1)) ->  | X56: =getProgramXref($A56,numericItinerary(X$1)) ->  | Y56: =getProgramXref($A56,numericItinerary(Y$1)) ->  | Z56: =getProgramXref($A56,numericItinerary(Z$1)) ->  | AB56: =COUNTIF(C56:Z56,"X") -> 4
A57: =INDEX(program_table,ROW()-5) -> STEM: Geology | B57: 13 | C57: =getProgramXref($A57,numericItinerary(C$1)) ->  | D57: =getProgramXref($A57,numericItinerary(D$1)) -> x | E57: =getProgramXref($A57,numericItinerary(E$1)) ->  | F57: =getProgramXref($A57,numericItinerary(F$1)) -> x | G57: =getProgramXref($A57,numericItinerary(G$1)) ->  | H57: =getProgramXref($A57,numericItinerary(H$1)) -> x | I57: =getProgramXref($A57,numericItinerary(I$1)) -> x | J57: =getProgramXref($A57,numericItinerary(J$1)) -> x | K57: =getProgramXref($A57,numericItinerary(K$1)) ->  | L57: =getProgramXref($A57,numericItinerary(L$1)) -> x | M57: =getProgramXref($A57,numericItinerary(M$1)) ->  | N57: =getProgramXref($A57,numericItinerary(N$1)) ->  | O57: =getProgramXref($A57,numericItinerary(O$1)) ->  | P57: =getProgramXref($A57,numericItinerary(P$1)) ->  | Q57: =getProgramXref($A57,numericItinerary(Q$1)) -> x | R57: =getProgramXref($A57,numericItinerary(R$1)) ->  | S57: =getProgramXref($A57,numericItinerary(S$1)) -> x | T57: =getProgramXref($A57,numericItinerary(T$1)) -> x | U57: =getProgramXref($A57,numericItinerary(U$1)) ->  | V57: =getProgramXref($A57,numericItinerary(V$1)) -> x | W57: =getProgramXref($A57,numericItinerary(W$1)) -> x | X57: =getProgramXref($A57,numericItinerary(X$1)) -> x | Y57: =getProgramXref($A57,numericItinerary(Y$1)) ->  | Z57: =getProgramXref($A57,numericItinerary(Z$1)) -> x | AB57: 13
A58: =INDEX(program_table,ROW()-5) -> Western Lore: Branding | B58: 0 | C58: =getProgramXref($A58,numericItinerary(C$1)) ->  | D58: =getProgramXref($A58,numericItinerary(D$1)) ->  | E58: =getProgramXref($A58,numericItinerary(E$1)) ->  | F58: =getProgramXref($A58,numericItinerary(F$1)) ->  | G58: =getProgramXref($A58,numericItinerary(G$1)) ->  | H58: =getProgramXref($A58,numericItinerary(H$1)) ->  | I58: =getProgramXref($A58,numericItinerary(I$1)) ->  | J58: =getProgramXref($A58,numericItinerary(J$1)) ->  | K58: =getProgramXref($A58,numericItinerary(K$1)) ->  | L58: =getProgramXref($A58,numericItinerary(L$1)) ->  | M58: =getProgramXref($A58,numericItinerary(M$1)) ->  | N58: =getProgramXref($A58,numericItinerary(N$1)) ->  | O58: =getProgramXref($A58,numericItinerary(O$1)) ->  | P58: =getProgramXref($A58,numericItinerary(P$1)) ->  | Q58: =getProgramXref($A58,numericItinerary(Q$1)) ->  | R58: =getProgramXref($A58,numericItinerary(R$1)) ->  | S58: =getProgramXref($A58,numericItinerary(S$1)) ->  | T58: =getProgramXref($A58,numericItinerary(T$1)) ->  | U58: =getProgramXref($A58,numericItinerary(U$1)) ->  | V58: =getProgramXref($A58,numericItinerary(V$1)) ->  | W58: =getProgramXref($A58,numericItinerary(W$1)) ->  | X58: =getProgramXref($A58,numericItinerary(X$1)) ->  | Y58: =getProgramXref($A58,numericItinerary(Y$1)) ->  | Z58: =getProgramXref($A58,numericItinerary(Z$1)) ->  | AB58: 0
A59: =INDEX(program_table,ROW()-5) -> Western Lore: Cantina | B59: 15 | C59: =getProgramXref($A59,numericItinerary(C$1)) -> x | D59: =getProgramXref($A59,numericItinerary(D$1)) -> x | E59: =getProgramXref($A59,numericItinerary(E$1)) ->  | F59: =getProgramXref($A59,numericItinerary(F$1)) -> x | G59: =getProgramXref($A59,numericItinerary(G$1)) -> x | H59: =getProgramXref($A59,numericItinerary(H$1)) ->  | I59: =getProgramXref($A59,numericItinerary(I$1)) ->  | J59: =getProgramXref($A59,numericItinerary(J$1)) -> x | K59: =getProgramXref($A59,numericItinerary(K$1)) -> x | L59: =getProgramXref($A59,numericItinerary(L$1)) -> x | M59: =getProgramXref($A59,numericItinerary(M$1)) -> x | N59: =getProgramXref($A59,numericItinerary(N$1)) -> x | O59: =getProgramXref($A59,numericItinerary(O$1)) ->  | P59: =getProgramXref($A59,numericItinerary(P$1)) ->  | Q59: =getProgramXref($A59,numericItinerary(Q$1)) ->  | R59: =getProgramXref($A59,numericItinerary(R$1)) -> x | S59: =getProgramXref($A59,numericItinerary(S$1)) ->  | T59: =getProgramXref($A59,numericItinerary(T$1)) -> x | U59: =getProgramXref($A59,numericItinerary(U$1)) ->  | V59: =getProgramXref($A59,numericItinerary(V$1)) -> x | W59: =getProgramXref($A59,numericItinerary(W$1)) -> x | X59: =getProgramXref($A59,numericItinerary(X$1)) -> x | Y59: =getProgramXref($A59,numericItinerary(Y$1)) ->  | Z59: =getProgramXref($A59,numericItinerary(Z$1)) -> x | AB59: 15
A60: =INDEX(program_table,ROW()-5) -> Western Lore: Roping | B60: 19 | C60: =getProgramXref($A60,numericItinerary(C$1)) -> x | D60: =getProgramXref($A60,numericItinerary(D$1)) -> x | E60: =getProgramXref($A60,numericItinerary(E$1)) ->  | F60: =getProgramXref($A60,numericItinerary(F$1)) -> x | G60: =getProgramXref($A60,numericItinerary(G$1)) -> x | H60: =getProgramXref($A60,numericItinerary(H$1)) -> x | I60: =getProgramXref($A60,numericItinerary(I$1)) ->  | J60: =getProgramXref($A60,numericItinerary(J$1)) -> x | K60: =getProgramXref($A60,numericItinerary(K$1)) -> x | L60: =getProgramXref($A60,numericItinerary(L$1)) ->  | M60: =getProgramXref($A60,numericItinerary(M$1)) -> x | N60: =getProgramXref($A60,numericItinerary(N$1)) -> x | O60: =getProgramXref($A60,numericItinerary(O$1)) ->  | P60: =getProgramXref($A60,numericItinerary(P$1)) ->  | Q60: =getProgramXref($A60,numericItinerary(Q$1)) -> x | R60: =getProgramXref($A60,numericItinerary(R$1)) -> x | S60: =getProgramXref($A60,numericItinerary(S$1)) -> x | T60: =getProgramXref($A60,numericItinerary(T$1)) -> x | U60: =getProgramXref($A60,numericItinerary(U$1)) -> x | V60: =getProgramXref($A60,numericItinerary(V$1)) -> x | W60: =getProgramXref($A60,numericItinerary(W$1)) -> x | X60: =getProgramXref($A60,numericItinerary(X$1)) -> x | Y60: =getProgramXref($A60,numericItinerary(Y$1)) -> x | Z60: =getProgramXref($A60,numericItinerary(Z$1)) -> x | AB60: 19
A61: =INDEX(program_table,ROW()-5) -> Wheeled: Mountain Biking | B61: 4 | C61: =getProgramXref($A61,numericItinerary(C$1)) ->  | D61: =getProgramXref($A61,numericItinerary(D$1)) ->  | E61: =getProgramXref($A61,numericItinerary(E$1)) -> x | F61: =getProgramXref($A61,numericItinerary(F$1)) ->  | G61: =getProgramXref($A61,numericItinerary(G$1)) ->  | H61: =getProgramXref($A61,numericItinerary(H$1)) ->  | I61: =getProgramXref($A61,numericItinerary(I$1)) -> x | J61: =getProgramXref($A61,numericItinerary(J$1)) ->  | K61: =getProgramXref($A61,numericItinerary(K$1)) ->  | L61: =getProgramXref($A61,numericItinerary(L$1)) ->  | M61: =getProgramXref($A61,numericItinerary(M$1)) ->  | N61: =getProgramXref($A61,numericItinerary(N$1)) ->  | O61: =getProgramXref($A61,numericItinerary(O$1)) ->  | P61: =getProgramXref($A61,numericItinerary(P$1)) -> x | Q61: =getProgramXref($A61,numericItinerary(Q$1)) ->  | R61: =getProgramXref($A61,numericItinerary(R$1)) ->  | S61: =getProgramXref($A61,numericItinerary(S$1)) ->  | T61: =getProgramXref($A61,numericItinerary(T$1)) ->  | U61: =getProgramXref($A61,numericItinerary(U$1)) ->  | V61: =getProgramXref($A61,numericItinerary(V$1)) -> x | W61: =getProgramXref($A61,numericItinerary(W$1)) ->  | X61: =getProgramXref($A61,numericItinerary(X$1)) ->  | Y61: =getProgramXref($A61,numericItinerary(Y$1)) ->  | Z61: =getProgramXref($A61,numericItinerary(Z$1)) ->  | AB61: 4
A62: # programs in itinerary: | C62: =COUNTIF(C6:C61,"X") -> 22 | D62: 18 | E62: 14 | F62: 20 | G62: 19 | H62: 17 | I62: 17 | J62: 21 | K62: 23 | L62: 26 | M62: 19 | N62: 23 | O62: 18 | P62: 18 | Q62: 23 | R62: 23 | S62: 27 | T62: =COUNTIF(T6:T61,"X") -> 18 | U62: 20 | V62: 18 | W62: 28 | X62: 23 | Y62: 21 | Z62: 22 | AB62: =COUNTIF(#REF!,"X") -> 
AB63: =COUNTIF(#REF!,"X") -> 
AB64: =COUNTIF(#REF!,"X") -> 
AB65: =COUNTIF(#REF!,"X") -> 

Sheet Tables
A1: Row | B1: Category | C1: Code | D1: Value | F1: Total | G1: Score Selected | K1: n | L1: Index
B2: programFactor | C2: Multiply X Activity score for value to use | D2: 1.5 | E2: This is applied to each score in the calculation. Use to make activities more/less important. | L2: These are the results of the "Scores" worksheet — from the scores entered from the Preference Survey worksheets. | M2: Total | N2: Average | O2: Median | P2: Mode
A3: =ROW()-2 -> 1 | B3: Program | C3: =INDEX(program_table,A3,1) -> Climbing: Bouldering Gym | D3: =SUM(Scores!B2:M2) -> 152 | K3: 1 | M3: =SUM(Scores!$B2:M2)*programFactor -> 228 | N3: =IF(COUNT(Scores!$B2:M2)>0,AVERAGE(Scores!$B2:M2)*programFactor,0) -> 19 | O3: =IF(COUNT(Scores!$B2:M2)>0,MEDIAN(Scores!$B2:M2)*programFactor,0) -> 22.5 | P3: =IF(getmode(Scores!$B2:M2)="","",getmode(Scores!$B2:M2)*programFactor) -> 22.5
A4: =ROW()-2 -> 2 | B4: Program | C4: =INDEX(program_table,A4,1) -> Climbing: Climbing Wall/Tower | D4: =SUM(Scores!B3:M3) -> 225 | K4: 2 | M4: =SUM(Scores!$B3:M3)*programFactor -> 337.5 | N4: =IF(COUNT(Scores!$B3:M3)>0,AVERAGE(Scores!$B3:M3)*programFactor,0) -> 28.125 | O4: =IF(COUNT(Scores!$B3:M3)>0,MEDIAN(Scores!$B3:M3)*programFactor,0) -> 30 | P4: =IF(getmode(Scores!$B3:M3)="","",getmode(Scores!$B3:M3)*programFactor) -> 30
A5: 3 | B5: Program | C5: =INDEX(program_table,A5,1) -> Climbing: Crate Stacking | D5: =SUM(Scores!B4:M4) -> 76 | K5: 3 | M5: =SUM(Scores!$B4:M4)*programFactor -> 114 | N5: =IF(COUNT(Scores!$B4:M4)>0,AVERAGE(Scores!$B4:M4)*programFactor,0) -> 9.5 | O5: =IF(COUNT(Scores!$B4:M4)>0,MEDIAN(Scores!$B4:M4)*programFactor,0) -> 10.5 | P5: =IF(getmode(Scores!$B4:M4)="","",getmode(Scores!$B4:M4)*programFactor) -> 3
A6: 4 | B6: Program | C6: =INDEX(program_table,A6,1) -> Climbing: Rock Climbing | D6: =SUM(Scores!B5:M5) -> 188 | K6: 4 | M6: =SUM(Scores!$B5:M5)*programFactor -> 282 | N6: =IF(COUNT(Scores!$B5:M5)>0,AVERAGE(Scores!$B5:M5)*programFactor,0) -> 23.5 | O6: =IF(COUNT(Scores!$B5:M5)>0,MEDIAN(Scores!$B5:M5)*programFactor,0) -> 27 | P6: =IF(getmode(Scores!$B5:M5)="","",getmode(Scores!$B5:M5)*programFactor) -> 27
A7: 5 | B7: Program | C7: =INDEX(program_table,A7,1) -> COPE: High Challenge Course | D7: =SUM(Scores!B6:M6) -> 108 | K7: 5 | M7: =SUM(Scores!$B6:M6)*programFactor -> 162 | N7: =IF(COUNT(Scores!$B6:M6)>0,AVERAGE(Scores!$B6:M6)*programFactor,0) -> 13.5 | O7: =IF(COUNT(Scores!$B6:M6)>0,MEDIAN(Scores!$B6:M6)*programFactor,0) -> 12.75 | P7: =IF(getmode(Scores!$B6:M6)="","",getmode(Scores!$B6:M6)*programFactor) -> 0
A8: 6 | B8: Program | C8: =INDEX(program_table,A8,1) -> COPE: Initiative Games | D8: =SUM(Scores!B7:M7) -> 111 | K8: 6 | M8: =SUM(Scores!$B7:M7)*programFactor -> 166.5 | N8: =IF(COUNT(Scores!$B7:M7)>0,AVERAGE(Scores!$B7:M7)*programFactor,0) -> 13.875 | O8: =IF(COUNT(Scores!$B7:M7)>0,MEDIAN(Scores!$B7:M7)*programFactor,0) -> 14.25 | P8: =IF(getmode(Scores!$B7:M7)="","",getmode(Scores!$B7:M7)*programFactor) -> 0
A9: 7 | B9: Program | C9: =INDEX(program_table,A9,1) -> COPE: Low Challenge Course | D9: =SUM(Scores!B8:M8) -> 111 | K9: 7 | M9: =SUM(Scores!$B8:M8)*programFactor -> 166.5 | N9: =IF(COUNT(Scores!$B8:M8)>0,AVERAGE(Scores!$B8:M8)*programFactor,0) -> 13.875 | O9: =IF(COUNT(Scores!$B8:M8)>0,MEDIAN(Scores!$B8:M8)*programFactor,0) -> 14.25 | P9: =IF(getmode(Scores!$B8:M8)="","",getmode(Scores!$B8:M8)*programFactor) -> 0
A10: 8 | B10: Program | C10: =INDEX(program_table,A10,1) -> Ecology: Demonstration Forest | D10: =SUM(Scores!B9:M9) -> 84 | K10: 8 | M10: =SUM(Scores!$B9:M9)*programFactor -> 126 | N10: =IF(COUNT(Scores!$B9:M9)>0,AVERAGE(Scores!$B9:M9)*programFactor,0) -> 10.5 | O10: =IF(COUNT(Scores!$B9:M9)>0,MEDIAN(Scores!$B9:M9)*programFactor,0) -> 9 | P10: =IF(getmode(Scores!$B9:M9)="","",getmode(Scores!$B9:M9)*programFactor) -> 0
A11: 9 | B11: Program | C11: =INDEX(program_table,A11,1) -> Ecology: Self-Guided Fishing | D11: =SUM(Scores!B10:M10) -> 87 | K11: 9 | M11: =SUM(Scores!$B10:M10)*programFactor -> 130.5 | N11: =IF(COUNT(Scores!$B10:M10)>0,AVERAGE(Scores!$B10:M10)*programFactor,0) -> 10.875 | O11: =IF(COUNT(Scores!$B10:M10)>0,MEDIAN(Scores!$B10:M10)*programFactor,0) -> 13.5 | P11: =IF(getmode(Scores!$B10:M10)="","",getmode(Scores!$B10:M10)*programFactor) -> 0
A12: 10 | B12: Program | C12: =INDEX(program_table,A12,1) -> Evening: Abreu Family Dinner | D12: =SUM(Scores!B11:M11) -> 61 | K12: 10 | M12: =SUM(Scores!$B11:M11)*programFactor -> 91.5 | N12: =IF(COUNT(Scores!$B11:M11)>0,AVERAGE(Scores!$B11:M11)*programFactor,0) -> 8.318181818 | O12: =IF(COUNT(Scores!$B11:M11)>0,MEDIAN(Scores!$B11:M11)*programFactor,0) -> 7.5 | P12: =IF(getmode(Scores!$B11:M11)="","",getmode(Scores!$B11:M11)*programFactor) -> 0
A13: 11 | B13: Program | C13: =INDEX(program_table,A13,1) -> Evening: Advisor Coffee | D13: =SUM(Scores!B12:M12) -> 73 | K13: 11 | M13: =SUM(Scores!$B12:M12)*programFactor -> 109.5 | N13: =IF(COUNT(Scores!$B12:M12)>0,AVERAGE(Scores!$B12:M12)*programFactor,0) -> 9.954545455 | O13: =IF(COUNT(Scores!$B12:M12)>0,MEDIAN(Scores!$B12:M12)*programFactor,0) -> 7.5 | P13: =IF(getmode(Scores!$B12:M12)="","",getmode(Scores!$B12:M12)*programFactor) -> 7.5
A14: 12 | B14: Program | C14: =INDEX(program_table,A14,1) -> Evening: Campfire Show | D14: =SUM(Scores!B13:M13) -> 73 | K14: 12 | M14: =SUM(Scores!$B13:M13)*programFactor -> 109.5 | N14: =IF(COUNT(Scores!$B13:M13)>0,AVERAGE(Scores!$B13:M13)*programFactor,0) -> 13.6875 | O14: =IF(COUNT(Scores!$B13:M13)>0,MEDIAN(Scores!$B13:M13)*programFactor,0) -> 15.75 | P14: =IF(getmode(Scores!$B13:M13)="","",getmode(Scores!$B13:M13)*programFactor) -> 0
A15: 13 | B15: Program | C15: =INDEX(program_table,A15,1) -> Evening: Chuckwagon Dinner | D15: =SUM(Scores!B14:M14) -> 74 | K15: 13 | M15: =SUM(Scores!$B14:M14)*programFactor -> 111 | N15: =IF(COUNT(Scores!$B14:M14)>0,AVERAGE(Scores!$B14:M14)*programFactor,0) -> 9.25 | O15: =IF(COUNT(Scores!$B14:M14)>0,MEDIAN(Scores!$B14:M14)*programFactor,0) -> 6 | P15: =IF(getmode(Scores!$B14:M14)="","",getmode(Scores!$B14:M14)*programFactor) -> 0
A16: 14 | B16: Program | C16: =INDEX(program_table,A16,1) -> Historical: Adobe Brick-Making | D16: =SUM(Scores!B15:M15) -> 76 | K16: 14 | M16: =SUM(Scores!$B15:M15)*programFactor -> 114 | N16: =IF(COUNT(Scores!$B15:M15)>0,AVERAGE(Scores!$B15:M15)*programFactor,0) -> 10.36363636 | O16: =IF(COUNT(Scores!$B15:M15)>0,MEDIAN(Scores!$B15:M15)*programFactor,0) -> 10.5 | P16: =IF(getmode(Scores!$B15:M15)="","",getmode(Scores!$B15:M15)*programFactor) -> 3
A17: 15 | B17: Program | C17: =INDEX(program_table,A17,1) -> Historical: Blacksmithing | D17: =SUM(Scores!B16:M16) -> 82 | K17: 15 | M17: =SUM(Scores!$B16:M16)*programFactor -> 123 | N17: =IF(COUNT(Scores!$B16:M16)>0,AVERAGE(Scores!$B16:M16)*programFactor,0) -> 11.18181818 | O17: =IF(COUNT(Scores!$B16:M16)>0,MEDIAN(Scores!$B16:M16)*programFactor,0) -> 7.5 | P17: =IF(getmode(Scores!$B16:M16)="","",getmode(Scores!$B16:M16)*programFactor) -> 4.5
A18: 16 | B18: Program | C18: =INDEX(program_table,A18,1) -> Historical: Cabin Restoration | D18: =SUM(Scores!B17:M17) -> 84 | K18: 16 | M18: =SUM(Scores!$B17:M17)*programFactor -> 126 | N18: =IF(COUNT(Scores!$B17:M17)>0,AVERAGE(Scores!$B17:M17)*programFactor,0) -> 10.5 | O18: =IF(COUNT(Scores!$B17:M17)>0,MEDIAN(Scores!$B17:M17)*programFactor,0) -> 12 | P18: =IF(getmode(Scores!$B17:M17)="","",getmode(Scores!$B17:M17)*programFactor) -> 12
A19: 17 | B19: Program | C19: =INDEX(program_table,A19,1) -> Historical: Cabin/House Tour | D19: =SUM(Scores!B18:M18) -> 71 | K19: 17 | M19: =SUM(Scores!$B18:M18)*programFactor -> 106.5 | N19: =IF(COUNT(Scores!$B18:M18)>0,AVERAGE(Scores!$B18:M18)*programFactor,0) -> 8.875 | O19: =IF(COUNT(Scores!$B18:M18)>0,MEDIAN(Scores!$B18:M18)*programFactor,0) -> 6 | P19: =IF(getmode(Scores!$B18:M18)="","",getmode(Scores!$B18:M18)*programFactor) -> 1.5
A20: 18 | B20: Program | C20: =INDEX(program_table,A20,1) -> Historical: Crafting | D20: =SUM(Scores!B19:M19) -> 97 | K20: 18 | M20: =SUM(Scores!$B19:M19)*programFactor -> 145.5 | N20: =IF(COUNT(Scores!$B19:M19)>0,AVERAGE(Scores!$B19:M19)*programFactor,0) -> 13.22727273 | O20: =IF(COUNT(Scores!$B19:M19)>0,MEDIAN(Scores!$B19:M19)*programFactor,0) -> 15 | P20: =IF(getmode(Scores!$B19:M19)="","",getmode(Scores!$B19:M19)*programFactor) -> 15
A21: 19 | B21: Program | C21: =INDEX(program_table,A21,1) -> Historical: Crosscut & Tie Making | D21: =SUM(Scores!B20:M20) -> 62 | K21: 19 | M21: =SUM(Scores!$B20:M20)*programFactor -> 93 | N21: =IF(COUNT(Scores!$B20:M20)>0,AVERAGE(Scores!$B20:M20)*programFactor,0) -> 7.75 | O21: =IF(COUNT(Scores!$B20:M20)>0,MEDIAN(Scores!$B20:M20)*programFactor,0) -> 6 | P21: =IF(getmode(Scores!$B20:M20)="","",getmode(Scores!$B20:M20)*programFactor) -> 0
A22: 20 | B22: Program | C22: =INDEX(program_table,A22,1) -> Historical: Flint Knapping | D22: =SUM(Scores!B21:M21) -> 104 | K22: 20 | M22: =SUM(Scores!$B21:M21)*programFactor -> 156 | N22: =IF(COUNT(Scores!$B21:M21)>0,AVERAGE(Scores!$B21:M21)*programFactor,0) -> 13 | O22: =IF(COUNT(Scores!$B21:M21)>0,MEDIAN(Scores!$B21:M21)*programFactor,0) -> 15 | P22: =IF(getmode(Scores!$B21:M21)="","",getmode(Scores!$B21:M21)*programFactor) -> 3
A23: 21 | B23: Program | C23: =INDEX(program_table,A23,1) -> Historical: Fur Trapper Rendezvous | D23: =SUM(Scores!B22:M22) -> 76 | K23: 21 | M23: =SUM(Scores!$B22:M22)*programFactor -> 114 | N23: =IF(COUNT(Scores!$B22:M22)>0,AVERAGE(Scores!$B22:M22)*programFactor,0) -> 9.5 | O23: =IF(COUNT(Scores!$B22:M22)>0,MEDIAN(Scores!$B22:M22)*programFactor,0) -> 6 | P23: =IF(getmode(Scores!$B22:M22)="","",getmode(Scores!$B22:M22)*programFactor) -> 0
A24: 22 | B24: Program | C24: =INDEX(program_table,A24,1) -> Historical: Gold Panning | D24: =SUM(Scores!B23:M23) -> 86 | K24: 22 | M24: =SUM(Scores!$B23:M23)*programFactor -> 129 | N24: =IF(COUNT(Scores!$B23:M23)>0,AVERAGE(Scores!$B23:M23)*programFactor,0) -> 10.75 | O24: =IF(COUNT(Scores!$B23:M23)>0,MEDIAN(Scores!$B23:M23)*programFactor,0) -> 9.75 | P24: =IF(getmode(Scores!$B23:M23)="","",getmode(Scores!$B23:M23)*programFactor) -> 0
A25: 23 | B25: Program | C25: =INDEX(program_table,A25,1) -> Historical: Mine Tour | D25: =SUM(Scores!B24:M24) -> 69 | K25: 23 | M25: =SUM(Scores!$B24:M24)*programFactor -> 103.5 | N25: =IF(COUNT(Scores!$B24:M24)>0,AVERAGE(Scores!$B24:M24)*programFactor,0) -> 8.625 | O25: =IF(COUNT(Scores!$B24:M24)>0,MEDIAN(Scores!$B24:M24)*programFactor,0) -> 9.75 | P25: =IF(getmode(Scores!$B24:M24)="","",getmode(Scores!$B24:M24)*programFactor) -> 3
A26: 24 | B26: Program | C26: =INDEX(program_table,A26,1) -> Historical: Petroglyph Tour | D26: =SUM(Scores!B25:M25) -> 108 | K26: 24 | M26: =SUM(Scores!$B25:M25)*programFactor -> 162 | N26: =IF(COUNT(Scores!$B25:M25)>0,AVERAGE(Scores!$B25:M25)*programFactor,0) -> 18 | O26: =IF(COUNT(Scores!$B25:M25)>0,MEDIAN(Scores!$B25:M25)*programFactor,0) -> 22.5 | P26: =IF(getmode(Scores!$B25:M25)="","",getmode(Scores!$B25:M25)*programFactor) -> 0
A27: 25 | B27: Program | C27: =INDEX(program_table,A27,1) -> Historical: Pump Car Rides | D27: =SUM(Scores!B26:M26) -> 134 | K27: 25 | M27: =SUM(Scores!$B26:M26)*programFactor -> 201 | N27: =IF(COUNT(Scores!$B26:M26)>0,AVERAGE(Scores!$B26:M26)*programFactor,0) -> 16.75 | O27: =IF(COUNT(Scores!$B26:M26)>0,MEDIAN(Scores!$B26:M26)*programFactor,0) -> 18.75 | P27: =IF(getmode(Scores!$B26:M26)="","",getmode(Scores!$B26:M26)*programFactor) -> 15
A28: 26 | B28: Program | C28: =INDEX(program_table,A28,1) -> Historical: Railroad Construction | D28: =SUM(Scores!B27:M27) -> 97 | K28: 26 | M28: =SUM(Scores!$B27:M27)*programFactor -> 145.5 | N28: =IF(COUNT(Scores!$B27:M27)>0,AVERAGE(Scores!$B27:M27)*programFactor,0) -> 14.55 | O28: =IF(COUNT(Scores!$B27:M27)>0,MEDIAN(Scores!$B27:M27)*programFactor,0) -> 15 | P28: =IF(getmode(Scores!$B27:M27)="","",getmode(Scores!$B27:M27)*programFactor) -> 15
A29: 27 | B29: Program | C29: =INDEX(program_table,A29,1) -> Historical: Spar Pole Climbing | D29: =SUM(Scores!B28:M28) -> 100 | K29: 26 | M29: =SUM(Scores!$B28:M28)*programFactor -> 150 | N29: =IF(COUNT(Scores!$B28:M28)>0,AVERAGE(Scores!$B28:M28)*programFactor,0) -> 13.63636364 | O29: =IF(COUNT(Scores!$B28:M28)>0,MEDIAN(Scores!$B28:M28)*programFactor,0) -> 18 | P29: =IF(getmode(Scores!$B28:M28)="","",getmode(Scores!$B28:M28)*programFactor) -> 0
A30: 28 | B30: Program | C30: =INDEX(program_table,A30,1) -> Landmarks: Baldy Mountain | D30: =SUM(Scores!B29:M29) -> 117 | K30: 27 | M30: =SUM(Scores!$B29:M29)*programFactor -> 175.5 | N30: =IF(COUNT(Scores!$B29:M29)>0,AVERAGE(Scores!$B29:M29)*programFactor,0) -> 15.95454545 | O30: =IF(COUNT(Scores!$B29:M29)>0,MEDIAN(Scores!$B29:M29)*programFactor,0) -> 18 | P30: =IF(getmode(Scores!$B29:M29)="","",getmode(Scores!$B29:M29)*programFactor) -> 0
A31: 29 | B31: Program | C31: =INDEX(program_table,A31,1) -> Landmarks: Inspiration Point | D31: =SUM(Scores!B30:M30) -> 103 | K31: 28 | M31: =SUM(Scores!$B30:M30)*programFactor -> 154.5 | N31: =IF(COUNT(Scores!$B30:M30)>0,AVERAGE(Scores!$B30:M30)*programFactor,0) -> 15.45 | O31: =IF(COUNT(Scores!$B30:M30)>0,MEDIAN(Scores!$B30:M30)*programFactor,0) -> 18 | P31: =IF(getmode(Scores!$B30:M30)="","",getmode(Scores!$B30:M30)*programFactor) -> 18
A32: 30 | B32: Program | C32: =INDEX(program_table,A32,1) -> Landmarks: Mount Phillips | D32: =SUM(Scores!B31:M31) -> 126 | M32: =SUM(Scores!$B31:M31)*programFactor -> 189 | N32: =IF(COUNT(Scores!$B31:M31)>0,AVERAGE(Scores!$B31:M31)*programFactor,0) -> 17.18181818 | O32: =IF(COUNT(Scores!$B31:M31)>0,MEDIAN(Scores!$B31:M31)*programFactor,0) -> 18 | P32: =IF(getmode(Scores!$B31:M31)="","",getmode(Scores!$B31:M31)*programFactor) -> 22.5
A33: 31 | B33: Program | C33: =INDEX(program_table,A33,1) -> Landmarks: Mountaineering | D33: =SUM(Scores!B32:M32) -> 135 | M33: =SUM(Scores!$B32:M32)*programFactor -> 202.5 | N33: =IF(COUNT(Scores!$B32:M32)>0,AVERAGE(Scores!$B32:M32)*programFactor,0) -> 18.40909091 | O33: =IF(COUNT(Scores!$B32:M32)>0,MEDIAN(Scores!$B32:M32)*programFactor,0) -> 19.5 | P33: =IF(getmode(Scores!$B32:M32)="","",getmode(Scores!$B32:M32)*programFactor) -> 19.5
A34: 32 | B34: Program | C34: =INDEX(program_table,A34,1) -> Landmarks: Tooth of Time | D34: =SUM(Scores!B33:M33) -> 61 | M34: =SUM(Scores!$B33:M33)*programFactor -> 91.5 | N34: =IF(COUNT(Scores!$B33:M33)>0,AVERAGE(Scores!$B33:M33)*programFactor,0) -> 9.15 | O34: =IF(COUNT(Scores!$B33:M33)>0,MEDIAN(Scores!$B33:M33)*programFactor,0) -> 7.5 | P34: =IF(getmode(Scores!$B33:M33)="","",getmode(Scores!$B33:M33)*programFactor) -> 0
A35: 33 | B35: Program | C35: =INDEX(program_table,A35,1) -> Landmarks: Trail Peak | D35: =SUM(Scores!B34:M34) -> 121 | M35: =SUM(Scores!$B34:M34)*programFactor -> 181.5 | N35: =IF(COUNT(Scores!$B34:M34)>0,AVERAGE(Scores!$B34:M34)*programFactor,0) -> 18.15 | O35: =IF(COUNT(Scores!$B34:M34)>0,MEDIAN(Scores!$B34:M34)*programFactor,0) -> 18 | P35: =IF(getmode(Scores!$B34:M34)="","",getmode(Scores!$B34:M34)*programFactor) -> 10.5
A36: 34 | B36: Program | C36: =INDEX(program_table,A36,1) -> Livestock: Animal Husbandry | D36: =SUM(Scores!B35:M35) -> 147 | M36: =SUM(Scores!$B35:M35)*programFactor -> 220.5 | N36: =IF(COUNT(Scores!$B35:M35)>0,AVERAGE(Scores!$B35:M35)*programFactor,0) -> 18.375 | O36: =IF(COUNT(Scores!$B35:M35)>0,MEDIAN(Scores!$B35:M35)*programFactor,0) -> 18 | P36: =IF(getmode(Scores!$B35:M35)="","",getmode(Scores!$B35:M35)*programFactor) -> 10.5
A37: 35 | B37: Program | C37: =INDEX(program_table,A37,1) -> Livestock: Burro Packing | D37: =SUM(Scores!B36:M36) -> 140 | M37: =SUM(Scores!$B36:M36)*programFactor -> 210 | N37: =IF(COUNT(Scores!$B36:M36)>0,AVERAGE(Scores!$B36:M36)*programFactor,0) -> 19.09090909 | O37: =IF(COUNT(Scores!$B36:M36)>0,MEDIAN(Scores!$B36:M36)*programFactor,0) -> 21 | P37: =IF(getmode(Scores!$B36:M36)="","",getmode(Scores!$B36:M36)*programFactor) -> 7.5
A38: 36 | B38: Program | C38: =INDEX(program_table,A38,1) -> Livestock: Chicken Tending | D38: =SUM(Scores!B37:M37) -> 170 | M38: =SUM(Scores!$B37:M37)*programFactor -> 255 | N38: =IF(COUNT(Scores!$B37:M37)>0,AVERAGE(Scores!$B37:M37)*programFactor,0) -> 23.18181818 | O38: =IF(COUNT(Scores!$B37:M37)>0,MEDIAN(Scores!$B37:M37)*programFactor,0) -> 27 | P38: =IF(getmode(Scores!$B37:M37)="","",getmode(Scores!$B37:M37)*programFactor) -> 30
A39: 37 | B39: Program | C39: =INDEX(program_table,A39,1) -> Livestock: Horse Rides | D39: =SUM(Scores!B38:M38) -> 157 | M39: =SUM(Scores!$B38:M38)*programFactor -> 235.5 | N39: =IF(COUNT(Scores!$B38:M38)>0,AVERAGE(Scores!$B38:M38)*programFactor,0) -> 21.40909091 | O39: =IF(COUNT(Scores!$B38:M38)>0,MEDIAN(Scores!$B38:M38)*programFactor,0) -> 22.5 | P39: =IF(getmode(Scores!$B38:M38)="","",getmode(Scores!$B38:M38)*programFactor) -> 30
A40: 38 | B40: Program | C40: =INDEX(program_table,A40,1) -> Low Impact Camping | D40: =SUM(Scores!B39:M39) -> 129 | M40: =SUM(Scores!$B39:M39)*programFactor -> 193.5 | N40: =IF(COUNT(Scores!$B39:M39)>0,AVERAGE(Scores!$B39:M39)*programFactor,0) -> 19.35 | O40: =IF(COUNT(Scores!$B39:M39)>0,MEDIAN(Scores!$B39:M39)*programFactor,0) -> 18 | P40: =IF(getmode(Scores!$B39:M39)="","",getmode(Scores!$B39:M39)*programFactor) -> 10.5
A41: 39 | B41: Program | C41: =INDEX(program_table,A41,1) -> Range Sports: 3D Archery | D41: =SUM(Scores!B40:M40) -> 101 | M41: =SUM(Scores!$B34:M34)*programFactor -> 181.5 | N41: =IF(COUNT(Scores!$B34:M34)>0,AVERAGE(Scores!$B34:M34)*programFactor,0) -> 18.15 | O41: =IF(COUNT(Scores!$B34:M34)>0,MEDIAN(Scores!$B34:M34)*programFactor,0) -> 18 | P41: =IF(getmode(Scores!$B34:M34)="","",getmode(Scores!$B34:M34)*programFactor) -> 10.5
A42: 40 | B42: Program | C42: =INDEX(program_table,A42,1) -> Range Sports: Aerial Archery | D42: =SUM(Scores!B35:M35) -> 147 | M42: =SUM(Scores!$B35:M35)*programFactor -> 220.5 | N42: =IF(COUNT(Scores!$B35:M35)>0,AVERAGE(Scores!$B35:M35)*programFactor,0) -> 18.375 | O42: =IF(COUNT(Scores!$B35:M35)>0,MEDIAN(Scores!$B35:M35)*programFactor,0) -> 18 | P42: =IF(getmode(Scores!$B35:M35)="","",getmode(Scores!$B35:M35)*programFactor) -> 10.5
A43: 41 | B43: Program | C43: =INDEX(program_table,A43,1) -> Range Sports: Atlatl Throwing | D43: =SUM(Scores!B36:M36) -> 140 | M43: =SUM(Scores!$B36:M36)*programFactor -> 210 | N43: =IF(COUNT(Scores!$B36:M36)>0,AVERAGE(Scores!$B36:M36)*programFactor,0) -> 19.09090909 | O43: =IF(COUNT(Scores!$B36:M36)>0,MEDIAN(Scores!$B36:M36)*programFactor,0) -> 21 | P43: =IF(getmode(Scores!$B36:M36)="","",getmode(Scores!$B36:M36)*programFactor) -> 7.5
A44: 42 | B44: Program | C44: =INDEX(program_table,A44,1) -> Range Sports: Cartridge Reloading | D44: =SUM(Scores!B37:M37) -> 170 | M44: =SUM(Scores!$B37:M37)*programFactor -> 255 | N44: =IF(COUNT(Scores!$B37:M37)>0,AVERAGE(Scores!$B37:M37)*programFactor,0) -> 23.18181818 | O44: =IF(COUNT(Scores!$B37:M37)>0,MEDIAN(Scores!$B37:M37)*programFactor,0) -> 27 | P44: =IF(getmode(Scores!$B37:M37)="","",getmode(Scores!$B37:M37)*programFactor) -> 30
A45: 43 | B45: Program | C45: =INDEX(program_table,A45,1) -> Range Sports: Cowboy Action Shooting | D45: =SUM(Scores!B38:M38) -> 157 | M45: =SUM(Scores!$B38:M38)*programFactor -> 235.5 | N45: =IF(COUNT(Scores!$B38:M38)>0,AVERAGE(Scores!$B38:M38)*programFactor,0) -> 21.40909091 | O45: =IF(COUNT(Scores!$B38:M38)>0,MEDIAN(Scores!$B38:M38)*programFactor,0) -> 22.5 | P45: =IF(getmode(Scores!$B38:M38)="","",getmode(Scores!$B38:M38)*programFactor) -> 30
A46: 44 | B46: Program | C46: =INDEX(program_table,A46,1) -> Range Sports: Field Archery | D46: =SUM(Scores!B39:M39) -> 129 | M46: =SUM(Scores!$B39:M39)*programFactor -> 193.5 | N46: =IF(COUNT(Scores!$B39:M39)>0,AVERAGE(Scores!$B39:M39)*programFactor,0) -> 19.35 | O46: =IF(COUNT(Scores!$B39:M39)>0,MEDIAN(Scores!$B39:M39)*programFactor,0) -> 18 | P46: =IF(getmode(Scores!$B39:M39)="","",getmode(Scores!$B39:M39)*programFactor) -> 10.5
A47: 45 | B47: Program | C47: =INDEX(program_table,A47,1) -> Range Sports: Muzzleloader Shooting | D47: =SUM(Scores!B40:M40) -> 101 | M47: =SUM(Scores!$B40:M40)*programFactor -> 151.5 | N47: =IF(COUNT(Scores!$B40:M40)>0,AVERAGE(Scores!$B40:M40)*programFactor,0) -> 12.625 | O47: =IF(COUNT(Scores!$B40:M40)>0,MEDIAN(Scores!$B40:M40)*programFactor,0) -> 15 | P47: =IF(getmode(Scores!$B40:M40)="","",getmode(Scores!$B40:M40)*programFactor) -> 15
A48: 46 | B48: Program | C48: =INDEX(program_table,A48,1) -> Range Sports: Rifle Shooting | D48: =SUM(Scores!B41:M41) -> 91 | M48: =SUM(Scores!$B41:M41)*programFactor -> 136.5 | N48: =IF(COUNT(Scores!$B41:M41)>0,AVERAGE(Scores!$B41:M41)*programFactor,0) -> 11.375 | O48: =IF(COUNT(Scores!$B41:M41)>0,MEDIAN(Scores!$B41:M41)*programFactor,0) -> 9 | P48: =IF(getmode(Scores!$B41:M41)="","",getmode(Scores!$B41:M41)*programFactor) -> 7.5
A49: 47 | B49: Program | C49: =INDEX(program_table,A49,1) -> Range Sports: Shotgun Shooting | D49: =SUM(Scores!B42:M42) -> 135 | M49: =SUM(Scores!$B42:M42)*programFactor -> 202.5 | N49: =IF(COUNT(Scores!$B42:M42)>0,AVERAGE(Scores!$B42:M42)*programFactor,0) -> 18.40909091 | O49: =IF(COUNT(Scores!$B42:M42)>0,MEDIAN(Scores!$B42:M42)*programFactor,0) -> 19.5 | P49: =IF(getmode(Scores!$B42:M42)="","",getmode(Scores!$B42:M42)*programFactor) -> 19.5
A50: 48 | B50: Program | C50: =INDEX(program_table,A50,1) -> Range Sports: Shotshell Reloading | D50: =SUM(Scores!B43:M43) -> 138 | M50: =SUM(Scores!$B43:M43)*programFactor -> 207 | N50: =IF(COUNT(Scores!$B43:M43)>0,AVERAGE(Scores!$B43:M43)*programFactor,0) -> 18.81818182 | O50: =IF(COUNT(Scores!$B43:M43)>0,MEDIAN(Scores!$B43:M43)*programFactor,0) -> 18 | P50: =IF(getmode(Scores!$B43:M43)="","",getmode(Scores!$B43:M43)*programFactor) -> 15
A51: 49 | B51: Program | C51: =INDEX(program_table,A51,1) -> Range Sports: Tomahawk Throwing | D51: =SUM(Scores!B50:M50) -> 138 | M51: =SUM(Scores!$B50:M50)*programFactor -> 207 | N51: =IF(COUNT(Scores!$B50:M50)>0,AVERAGE(Scores!$B50:M50)*programFactor,0) -> 18.81818182 | O51: =IF(COUNT(Scores!$B50:M50)>0,MEDIAN(Scores!$B50:M50)*programFactor,0) -> 18 | P51: =IF(getmode(Scores!$B50:M50)="","",getmode(Scores!$B50:M50)*programFactor) -> 15
A52: 50 | B52: Program | C52: =INDEX(program_table,A52,1) -> STEM: Archeology | D52: =SUM(Scores!B51:M51) -> 138 | M52: =SUM(Scores!$B51:M51)*programFactor -> 207 | N52: =IF(COUNT(Scores!$B51:M51)>0,AVERAGE(Scores!$B51:M51)*programFactor,0) -> 18.81818182 | O52: =IF(COUNT(Scores!$B51:M51)>0,MEDIAN(Scores!$B51:M51)*programFactor,0) -> 18 | P52: =IF(getmode(Scores!$B51:M51)="","",getmode(Scores!$B51:M51)*programFactor) -> 15
A53: 51 | B53: Program | C53: =INDEX(program_table,A53,1) -> STEM: Astronomy | D53: =SUM(Scores!B52:M52) -> 61 | M53: =SUM(Scores!$B52:M52)*programFactor -> 91.5 | N53: =IF(COUNT(Scores!$B52:M52)>0,AVERAGE(Scores!$B52:M52)*programFactor,0) -> 9.15 | O53: =IF(COUNT(Scores!$B52:M52)>0,MEDIAN(Scores!$B52:M52)*programFactor,0) -> 7.5 | P53: =IF(getmode(Scores!$B52:M52)="","",getmode(Scores!$B52:M52)*programFactor) -> 0
A54: 52 | B54: Program | C54: =INDEX(program_table,A54,1) -> STEM: Geology | D54: =SUM(Scores!B53:M53) -> 157 | K54: 31 | M54: =SUM(Scores!$B53:M53)*programFactor -> 235.5 | N54: =IF(COUNT(Scores!$B53:M53)>0,AVERAGE(Scores!$B53:M53)*programFactor,0) -> 23.55 | O54: =IF(COUNT(Scores!$B53:M53)>0,MEDIAN(Scores!$B53:M53)*programFactor,0) -> 24.75 | P54: =IF(getmode(Scores!$B53:M53)="","",getmode(Scores!$B53:M53)*programFactor) -> 30
A55: 53 | B55: Program | C55: =INDEX(program_table,A55,1) -> Western Lore: Branding | D55: =SUM(Scores!B54:M54) -> 89 | M55: =SUM(Scores!$B54:M54)*programFactor -> 133.5 | N55: =IF(COUNT(Scores!$B54:M54)>0,AVERAGE(Scores!$B54:M54)*programFactor,0) -> 16.6875 | O55: =IF(COUNT(Scores!$B54:M54)>0,MEDIAN(Scores!$B54:M54)*programFactor,0) -> 15.75 | P55: =IF(getmode(Scores!$B54:M54)="","",getmode(Scores!$B54:M54)*programFactor) -> 0
A56: 54 | B56: Program | C56: =INDEX(program_table,A56,1) -> Western Lore: Cantina | D56: =SUM(Scores!B55:M55) -> 190 | K56: 31 | M56: =SUM(Scores!$B55:M55)*programFactor -> 285 | N56: =IF(COUNT(Scores!$B55:M55)>0,AVERAGE(Scores!$B55:M55)*programFactor,0) -> 25.90909091 | O56: =IF(COUNT(Scores!$B55:M55)>0,MEDIAN(Scores!$B55:M55)*programFactor,0) -> 27 | P56: =IF(getmode(Scores!$B55:M55)="","",getmode(Scores!$B55:M55)*programFactor) -> 30
A57: 55 | B57: Program | C57: =INDEX(program_table,A57,1) -> Western Lore: Roping | D57: =SUM(Scores!B56:M56) -> 76 | K57: 31 | M57: =SUM(Scores!$B56:M56)*programFactor -> 114 | N57: =IF(COUNT(Scores!$B56:M56)>0,AVERAGE(Scores!$B56:M56)*programFactor,0) -> 16.28571429 | O57: =IF(COUNT(Scores!$B56:M56)>0,MEDIAN(Scores!$B56:M56)*programFactor,0) -> 15 | P57: =IF(getmode(Scores!$B56:M56)="","",getmode(Scores!$B56:M56)*programFactor) -> 15
A58: 56 | B58: Program | C58: =INDEX(program_table,A58,1) -> Wheeled: Mountain Biking | D58: =SUM(Scores!B57:M57) -> 93 | K58: 31 | M58: =SUM(Scores!$B57:M57)*programFactor -> 139.5 | N58: =IF(COUNT(Scores!$B57:M57)>0,AVERAGE(Scores!$B57:M57)*programFactor,0) -> 13.95 | O58: =IF(COUNT(Scores!$B57:M57)>0,MEDIAN(Scores!$B57:M57)*programFactor,0) -> 13.5 | P58: =IF(getmode(Scores!$B57:M57)="","",getmode(Scores!$B57:M57)*programFactor) -> 12
A59: =A58+1 -> 57 | B59: Peaks | C59: Baldy Mountain | D59: 2
A60: 58 | B60: Peaks | C60: Mount Phillips | D60: 1.5
A61: 59 | B61: Peaks | C61: Tooth of Time | D61: 1.5
A62: 60 | B62: Peaks | C62: Inspiration Point | D62: 1
A63: 61 | B63: Peaks | C63: Trail Peak | D63: 1.5
A64: 62 | B64: Peaks | C64: Mountaineering | D64: 1.2
A65: 63 | B65: Area | C65: Rank 1 | D65: =IF(UPPER(areaImportant)="Y",INDEX(areaDefaults,Preferences!B7),0) -> 200 | I65: 1 | J65: 1000
A66: 64 | B66: Area | C66: Rank 2 | D66: =IF(UPPER(areaImportant)="Y",INDEX(areaDefaults,Preferences!B8),0) -> 150 | I66: 2 | J66: 600 | K66: =IF(areaImportant="y","Preferences setting is that area is important", "Preferences setting is that area is not important") -> Preferences setting is that area is important
A67: 65 | B67: Area | C67: Rank 3 | D67: =IF(UPPER(areaImportant)="Y",INDEX(areaDefaults,Preferences!B9),0) -> 1000 | I67: 3 | J67: 200 | K67: =IF(areaImportant="y","These are the default values — MAKE CHANGES HERE", "") -> These are the default values — MAKE CHANGES HERE
A68: 66 | B68: Area | C68: Rank 4 | D68: =IF(UPPER(areaImportant)="Y",INDEX(areaDefaults,Preferences!B10),0) -> 600 | I68: 4 | J68: 150
A69: 67 | B69: Days Food | C69: 1 | D69: 100
A70: 68 | B70: Days Food | C70: 2 | D70: 90
A71: 69 | B71: Days Food | C71: 3 | D71: 80
A72: 70 | B72: Days Food | C72: 4 | D72: 70
A73: 71 | B73: Days Food | C73: 5 | D73: 60
A74: 72 | B74: Days Food | C74: 6 | D74: 50
A75: 73 | B75: Food from HQ | C75: 1 | D75: 20
A76: 74 | B76: Food from HQ | C76: 2 | D76: 30
A77: 75 | B77: Food from HQ | C77: 3 | D77: 40
A78: 76 | B78: Food from HQ | C78: 4 | D78: 50
A79: 77 | B79: Food from HQ | C79: 5 | D79: 60
A80: 78 | B80: Food from HQ | C80: 6 | D80: 70
A81: 79 | B81: Food from HQ | C81: 7 | D81: 80
A82: 80 | B82: Food from HQ | C82: 8 | D82: 90
A83: 81 | B83: Food from HQ | C83: 9 | D83: 100
A84: 82 | B84: Trail Camps | C84: 0 | D84: 250
A85: 83 | B85: Trail Camps | C85: 1 | D85: 200
A86: 84 | B86: Trail Camps | C86: 2 | D86: 175
A87: =A86+1 -> 85 | B87: Trail Camps | C87: 3 | D87: 150
A88: =A87+1 -> 86 | B88: Trail Camps | C88: 4 | D88: 125
A89: =A88+1 -> 87 | B89: Trail Camps | C89: 5 | D89: 100
A90: =A89+1 -> 88 | B90: Trail Camps | C90: 6 | D90: 75
A91: =A90+1 -> 89 | B91: Trail Camps | C91: 7 | D91: 50
A92: 90 | B92: Trail Camps | C92: 8 | D92: 25
A93: 91 | B93: Dry Camps | C93: 0 | D93: 300
A94: 92 | B94: Dry Camps | C94: 1 | D94: 250
A95: 93 | B95: Dry Camps | C95: 2 | D95: 225
A96: 94 | B96: Dry Camps | C96: 3 | D96: 200
A97: 95 | B97: Dry Camps | C97: 4 | D97: 150
A98: 96 | B98: Dry Camps | C98: 5 | D98: 100
A99: 97 | B99: Dry Camps | C99: 6 | D99: 50
A100: 98 | B100: Dry Camps | C100: 7 | D100: 20
A101: 99 | B101: Total Camps | C101: 3 | D101: 60
A102: 100 | B102: Total Camps | C102: 4 | D102: 70
A103: 101 | B103: Total Camps | C103: 5 | D103: 80
A104: 102 | B104: Total Camps | C104: 6 | D104: 90
A105: 103 | B105: Total Camps | C105: 7 | D105: 100
A106: 104 | B106: Total Camps | C106: 8 | D106: 75
A107: 105 | B107: Total Camps | C107: 9 | D107: 60
A108: 106 | B108: Total Camps | C108: 10 | D108: 50
A109: 107 | B109: Difficulty | C109: C | D109: 2500 | K109: Match skill level with itinerary difficulty
A110: 108 | B110: Difficulty | C110: R | D110: 2666.666667 | K110: Skill | L110: C | M110: R | N110: S | O110: SS
A111: 109 | B111: Difficulty | C111: S | D111: 2833.333333 | I111: maxSkill: | J111: 4000 | K111: 1 | L111: =maxSkill+maxDifficult -> 5000 | M111: =L111-((L111-O111)/3) -> 3500 | N111: =M111-((L111-O111)/3) -> 2000 | O111: =difficultDelta -> 500
A112: 110 | B112: Difficulty | C112: SS | D112: 3000 | I112: maxDifficult: | J112: 1000 | K112: 2 | L112: =L111-((L$111-L$120)/9) -> 4500 | M112: =L112-((L112-O112)/3) -> 3333.333333 | N112: =M112-((L112-O112)/3) -> 2166.666667 | O112: =L119 -> 1000
A113: 111 | B113: Max Altitude | C113: 0 | D113: 20 | I113: minDifficult: | J113: 500 | K113: 3 | L113: =L112-((L$111-L$120)/9) -> 4000 | M113: 3166.666667 | N113: 2333.333333 | O113: =L118 -> 1500
A114: 112 | B114: Max Altitude | C114: 9000 | D114: 30 | K114: 4 | L114: 3500 | M114: 3000 | N114: 2500 | O114: =L117 -> 2000
A115: 113 | B115: Max Altitude | C115: 9100 | D115: 40 | K115: 5 | L115: 3000 | M115: 2833.333333 | N115: 2666.666667 | O115: =L116 -> 2500
A116: 114 | B116: Max Altitude | C116: 9200 | D116: 50 | K116: 6 | L116: 2500 | M116: 2666.666667 | N116: 2833.333333 | O116: =L115 -> 3000
A117: 115 | B117: Max Altitude | C117: 9800 | D117: 60 | I117: ="Your Crew is Level " & skillLevel -> Your Crew is Level 6 | K117: 7 | L117: 2000 | M117: 2500 | N117: 3000 | O117: =L114 -> 3500
A118: 116 | B118: Max Altitude | C118: 10000 | D118: 70 | I118: (from Preferences) | K118: 8 | L118: 1500 | M118: 2333.333333 | N118: 3166.666667 | O118: =L113 -> 4000
A119: 117 | B119: Max Altitude | C119: 10500 | D119: 80 | K119: 9 | L119: 1000 | M119: 2166.666667 | N119: 3333.333333 | O119: =L112 -> 4500
A120: 118 | B120: Max Altitude | C120: 10600 | D120: 90 | K120: 10 | L120: =difficultDelta -> 500 | M120: 2000 | N120: 3500 | O120: =L111 -> 5000
A121: 119 | B121: Max Altitude | C121: 10800 | D121: 100 | L121: Challenging | M121: Rugged | N121: Strenuous | O121: Super Strenuous
A122: 120 | B122: Max Altitude | C122: 11000 | D122: 110
A123: 121 | B123: Max Altitude | C123: 11800 | D123: 120
A124: 122 | B124: Max Altitude | C124: 12441 | D124: 130
A125: 123 | B125: Total Gain | C125: 0 | D125: 40
A126: 124 | B126: Total Gain | C126: 1500 | D126: 50
A127: 125 | B127: Total Gain | C127: 2000 | D127: 60
A128: 126 | B128: Total Gain | C128: 2500 | D128: 70
A129: 127 | B129: Total Gain | C129: 3000 | D129: 80
A130: 128 | B130: Total Gain | C130: 3500 | D130: 90
A131: 129 | B131: Total Gain | C131: 4000 | D131: 100
A132: 130 | B132: Total Gain | C132: 4500 | D132: 90
A133: 131 | B133: Total Gain | C133: 5000 | D133: 80
A134: 132 | B134: Total Gain | C134: 5500 | D134: 70
A135: 133 | B135: Total Gain | C135: 6000 | D135: 60
A136: 134 | B136: Total Gain | C136: 6500 | D136: 50
A137: 135 | B137: Daily Change | C137: 300 | D137: 100
A138: 136 | B138: Daily Change | C138: 600 | D138: 300
A139: 137 | B139: Daily Change | C139: 900 | D139: 200
A140: 138 | B140: Daily Change | C140: 1200 | D140: 100
A141: 139 | B141: Hike Out | C141: n | D141: 0
A142: 140 | B142: Hike Out | C142: y | D142: 500
A143: 141 | B143: Hike In | C143: n | D143: 0
A144: 142 | B144: Hike In | C144: y | D144: 500
A145: 143 | B145: Distance | C145: Miles | D145: 100
A146: These are used for code lookup puposes only. | B146: Difficulty | C146: C | D146: Challenging
B147: Difficulty | C147: R | D147: Rugged
B148: Difficulty | C148: S | D148: Strenuous
B149: Difficulty | C149: SS | D149: Super Strenuous
B150: campType | C150: D | D150: Dry
B151: campType | C151: S | D151: Staffed
B152: campType | C152: T | D152: Trail
B153: campType | C153: X | D153: No Camping

Sheet Detail Informaton
A1: This sheet provides more detailed information about this spreadsheet and may be useful for anyone wishing to modify it.
A2: This spreadsheet makes extensive use of "Protected" and "Hidden" cells and "Hidden" worksheets. To "unprotect" or "unhide" any of these, put the cursor on a worksheet tab and right click it. Click "Unprotect Sheet..." and select the worksheet to display. There are no passwords locking any of the "hidden" or "protected" areas.
A3: There are buttons that may be pressed to select the scoring to be used in the calculation. These are "Total" for the total score, "Average" to select the average (or Mean) score, "Median" to select the most common score, or "Mode" (most frequently used score). These control the actual score values used in calculation Try all and see what the difference in the results is.
A5: There are a number of "tabs" or "worksheets". The use of these is as follows:
A6: Visible:
A7: Instructions | B7: General use instructions for the user that does not want to make any changes to the spreadsheet.
A8: Preferences | B8: A set of "preferences" that may be used to adjust the calculations based on information specific to the crew.
A9: Scores | B9: The "scores" for each crewmember from the program survey form. These are on the basis of 0 to 20.
A10: Results | B10: The calculated "result" from fitting the "scores" to the itinerary information.
A11: Itinerary Chart | B11: Graph of sorted itineraries — shows relative differences between selections
A12: Program Chart | B12: This is a graph showing what programs the crewmembers wish to participate in.
A13: Itinerary Details | B13: This provides a snapshot of individual itineraries. Enter the itinerary the snapship is desired for.
A14: Itinerary Xref Chart | B14: This is the same chart that's in the in the TREKS book
A15: Tables | B15: This is the set of "factors" for each of the various metrics. These may be modified by the user.
A16: Detail Information | B16: This worksheet.
A17: Hidden: (Note that there are no passwords on these, the user may "unhide" them by right-clicking in the tab area)
A18: Itinerary Camps | B18: Much information updated annually by hand from the TREKS Book. Information relating to itineraries is calculated from these entries.
A19: ItineraryPrograms | B19: Programs available at camps. This can be created automatically but must be checked & updated manually. Can verify with the Itinerary Xref Chart. This takes a lot of detailed work!
A20: Descriptions | B20: This is the textual description of each itinerary. This is manually copied from the TREKS Book each year.
A21: Calculator | B21: This brings the preferences, scores, factors from "Tables", and itinerary information together to calculate detailed preference values for each itinerary. The sum of these is the "Result" for each itinerary.
A22: Itineraries | B22: This is information relative to the current year's itineraries. All is derived from tables in other worksheets.
A23: Programs | B23: Table of Philmont's available programs. These are specific to 12-Day (all), 9-Day (subset) and 7-Day (subset) treks.
A24: Camp Programs | B24: This is a table of programs available at each staffed camp. Verified manually, used to develop basic info for ItineraryPrograms worksheet. Does not often change from year to year.
A25: Camp Elevations | B25: This is information relative to Philmont's camps. It is used in the calculations and in the Itinerary Details printout. Is a good source of camp names & UTM Coordinates/elevations.
A27: Information in the Visible tabs is generally either documented in the worksheet or is self-evident. Information about the worksheets that may be useful is below.
A28: Scores | B28: Clicking the "Clear Scores" button erases all scores for all 12 participants. User should enter the participant names in row 1.
A29: Results | B29: The left side shows the itineraries that best "fit" the crew's desires. On the right is a table showing the programs the crew desired in preference order. It indicates which programs are included in each of the top 6 itineraries.
A30: Itinerary Details | B30: Enter the itinerary number and expedition number to get information about the itinerary including daily information.
A31: Tables | B31: If some of the areas are more important to your crew, you can change the factors used in the calculations here. The factors are highlighted where arbitrary values were set based on the author's preferences, they may be modified to meet your crew. Only make changes in the unlocked cells in the Value column or the Green boxes for Area or Skill/Difficulty. You may navigate between these with the TAB key.
A32: Itineraries | B32: This sheet has information about the current year's itineraries. Key information is manually updated from the TREKS books (daily campsites, first food pickup day number, method of return to base, itineraries that cross US-64, peaks hiked, etc.) Row 1 has the columns that must be updated annually highlighted in red.
A33: itineraryXrefChart | B33: This conforms to the Cross Reference chart in the TREKS book showing itineraries that have programs. It is based on information in the Itinerary Programs worksheet.
A34: Calculator | B34: This calculates a preference value for each of the metrics. There is nothing to modify here — the value calculated will be based on values from other worksheets and any modification desired to any metric should be made in those underlying sheets, not in this one.
A35: Camp Elevations | B35: This worksheet is a list of all the camps with details about the camp. Note that some of the camps are not used and the information may not be complete for them. It doesn't matter because only the camps included in the current year's itineraries is ever referenced. All are shown here for completeness. It is a good source of camp names & UTM Coordinates/elevations.
A36: Descriptions | B36: These descriptions are copied from the TREKS Book and are displayed on the Itinerary Details display.
A37: Camp Programs | B37: This is a table of staffed camps with flags for the programs offered at each. It is used to provide much of the program inclusion information in the Itineries worksheet.

Sheet itineraryCamps (hidden)
A1: (Enter Red columns manually) Itinerary | B1: 1 | C1: =B1+1 -> 2 | D1: 3 | E1: 4 | F1: 5 | G1: =F1+1 -> 6 | H1: =G1+1 -> 7 | I1: =H1+1 -> 8 | J1: =I1+1 -> 9 | K1: 10 | L1: 11 | M1: 12 | N1: 13 | O1: 14 | P1: 15 | Q1: 16 | R1: =Q1+1 -> 17 | S1: 18 | T1: 19 | U1: 20 | V1: 21 | W1: 22 | X1: 23 | Y1: 24 | Z1: 25 | AA1: 26 | AB1: 27 | AC1: 28 | AD1: 29 | AE1: =AD1+1 -> 30 | AF1: =AE1+1 -> 31 | AG1: =AF1+1 -> 32 | AH1: =AG1+1 -> 33 | AI1: =AH1+1 -> 34 | AJ1: =AI1+1 -> 35 | AK1: =AJ1+1 -> 36 | AL1: =AK1+1 -> 37 | AM1: =AL1+1 -> 38 | AN1: =AM1+1 -> 39 | AO1: =AN1+1 -> 40 | AP1: =AO1+1 -> 41 | AQ1: =AP1+1 -> 42 | AR1: =AQ1+1 -> 43 | AS1: =AR1+1 -> 44 | AT1: =AS1+1 -> 45 | AU1: =AT1+1 -> 46 | AV1: =AU1+1 -> 47 | AW1: =AV1+1 -> 48 | AX1: =AW1+1 -> 49 | AY1: =AX1+1 -> 50 | AZ1: =AY1+1 -> 51 | BA1: =AZ1+1 -> 52 | BB1: =BA1+1 -> 53 | BC1: =BB1+1 -> 54 | BD1: =BC1+1 -> 55 | BE1: =BD1+1 -> 56 | BF1: =BE1+1 -> 57 | BG1: =BF1+1 -> 58 | BH1: =BG1+1 -> 59 | BI1: =BH1+1 -> 60 | BJ1: =BI1+1 -> 61 | BK1: =BJ1+1 -> 62 | BL1: =BK1+1 -> 63 | BM1: =BL1+1 -> 64 | BN1: =BM1+1 -> 65 | BO1: =BN1+1 -> 66 | BP1: =BO1+1 -> 67 | BQ1: =BP1+1 -> 68 | BR1: =BQ1+1 -> 69 | BS1: =BR1+1 -> 70 | BT1: =BS1+1 -> 71 | BU1: =BT1+1 -> 72 | BV1: =BU1+1 -> 73 | BW1: =BV1+1 -> 74 | BX1: =BW1+1 -> 75 | BY1: =BX1+1 -> 76 | BZ1: =BY1+1 -> 77 | CA1: =BZ1+1 -> 78 | CB1: =CA1+1 -> 79 | CC1: =CB1+1 -> 80 | CD1: =CC1+1 -> 81 | CE1: =CD1+1 -> 82 | CF1: =CE1+1 -> 83 | CG1: =CF1+1 -> 84 | CH1: =CG1+1 -> 85 | CI1: =CH1+1 -> 86 | CJ1: =CI1+1 -> 87 | CK1: =CJ1+1 -> 88 | CL1: =CK1+1 -> 89 | CM1: =CL1+1 -> 90 | CN1: =CM1+1 -> 91 | CO1: =CN1+1 -> 92 | CP1: =CO1+1 -> 93 | CQ1: =CP1+1 -> 94 | CR1: =CQ1+1 -> 95 | CS1: =CR1+1 -> 96 | CT1: =CS1+1 -> 97 | CU1: =CT1+1 -> 98 | CV1: =CU1+1 -> 99 | CW1: =CV1+1 -> 100 | CX1: =CW1+1 -> 101 | CY1: =CX1+1 -> 102 | CZ1: =CY1+1 -> 103 | DA1: =CZ1+1 -> 104 | DB1: =DA1+1 -> 105 | DC1: =DB1+1 -> 106 | DD1: =DC1+1 -> 107 | DE1: =DD1+1 -> 108 | DF1: =DE1+1 -> 109 | DG1: =DF1+1 -> 110 | DH1: =DG1+1 -> 111 | DI1: =DH1+1 -> 112 | DJ1: =DI1+1 -> 113 | DK1: =DJ1+1 -> 114 | DL1: =DK1+1 -> 115
B2: Itinerary Information | E2: Backcountry Camps by Itinerary Day | O2: Food Pickup's | Y2: Start/End | AB2: Cross US-64 | AE2: Peaks (Enter Manually) | AK2: Camp Elevation | AU2: Daily Elevation Change | BD2: Staffed Camp | BN2: Trail Camp | BX2: Dry Camp | CH2: Layovers | CR2: Country | DB2: Map | DL2: Food Pickup Info
B3: Itinerary Label | C3: Difficulty | D3: Distance | E3: Day 2 | F3: Day 3 | G3: Day 4 | H3: Day 5 | I3: Day 6 | J3: Day 7 | K3: Day 8 | L3: Day 9 | M3: Day 10 | N3: Day 11 | O3: 2 | P3: =O3+1 -> 3 | Q3: =P3+1 -> 4 | R3: 5 | S3: 6 | T3: 7 | U3: 8 | V3: 9 | W3: 10 | X3: 11 | Y3: Starting Trailhead | Z3: Ending Trailhead | AA3: Via Tooth | AB3: Day | AC3: Cross At | AD3: Direction | AE3: Baldy Mountain | AF3: Inspiration Point | AG3: Mt. Phillips | AH3: Mountaineering | AI3: Tooth of Time | AJ3: Trail Peak | AK3: =O3 -> 2 | AL3: 3 | AM3: 4 | AN3: 5 | AO3: 6 | AP3: 7 | AQ3: 8 | AR3: 9 | AS3: 10 | AT3: 11 | AU3: 2 :: 3 | AV3: 3 :: 4 | AW3: 4 :: 5 | AX3: 5 :: 6 | AY3: 6 :: 7 | AZ3: 7 :: 8 | BA3: 8 :: 9 | BB3: 9 :: 10 | BC3: 10 :: 11 | BD3: 2 | BE3: 3 | BF3: 4 | BG3: 5 | BH3: 6 | BI3: 7 | BJ3: 8 | BK3: 9 | BL3: 10 | BM3: 11 | BN3: 2 | BO3: 3 | BP3: 4 | BQ3: 5 | BR3: 6 | BS3: 7 | BT3: 8 | BU3: 9 | BV3: 10 | BW3: 11 | BX3: 2 | BY3: 3 | BZ3: 4 | CA3: 5 | CB3: 6 | CC3: 7 | CD3: 8 | CE3: 9 | CF3: 10 | CG3: 11 | CH3: 2 | CI3: 3 | CJ3: 4 | CK3: 5 | CL3: 6 | CM3: 7 | CN3: 8 | CO3: 9 | CP3: 10 | CQ3: 11 | CR3: 2 | CS3: 3 | CT3: 4 | CU3: 5 | CV3: 6 | CW3: 7 | CX3: 8 | CY3: 9 | CZ3: 10 | DA3: 11 | DB3: 2 | DC3: 3 | DD3: 4 | DE3: 5 | DF3: 6 | DG3: 7 | DH3: 8 | DI3: 9 | DJ3: 10 | DK3: 11 | DL3: Days to 1st Food PU | DM3: Max Food Days
A4: =itineraryNoPrefix & ROW()-3 -> 12-1 | C4: C | D4: 46 | E4: Toothache Springs | F4: Crater Lake | G4: Lower Bonito | H4: Buck Creek | I4: Apache Springs | J4: Apache Springs | K4: Fish Camp | L4: Abreu | M4: Urraca | N4: Stockade Ridge | O4: Camping HQ | R4: Phillips Junction | T4: Apache Springs | Y4: Zastrow | Z4: Hike In | AA4: =IF(Z4="Hike In","y","") -> y | AE4: =IF(ItineraryPrograms!AD3="y","y","") ->  | AF4: =IF(ItineraryPrograms!AE3="y","y","") -> y | AG4: =IF(ItineraryPrograms!AF3="y","y","") ->  | AI4: =checkTooth(AA4,LOWER(ItineraryPrograms!AH3)) -> y | AK4: =IF(E4<>"",INDEX(Elevations,MATCH(E4,camps,0)),"") -> 7870 | AL4: =IF(F4<>"",INDEX(Elevations,MATCH(F4,camps,0)),"") -> 8398 | AM4: =IF(G4<>"",INDEX(Elevations,MATCH(G4,camps,0)),"") -> 8962 | AN4: =IF(H4<>"",INDEX(Elevations,MATCH(H4,camps,0)),"") -> 9131 | AO4: =IF(I4<>"",INDEX(Elevations,MATCH(I4,camps,0)),"") -> 9409 | AP4: =IF(J4<>"",INDEX(Elevations,MATCH(J4,camps,0)),"") -> 9409 | AQ4: =IF(K4<>"",INDEX(Elevations,MATCH(K4,camps,0)),"") -> 8564 | AR4: =IF(L4<>"",INDEX(Elevations,MATCH(L4,camps,0)),"") -> 7217 | AS4: =IF(M4<>"",INDEX(Elevations,MATCH(M4,camps,0)),"") -> 7968 | AT4: =IF(N4<>"",INDEX(Elevations,MATCH(N4,camps,0)),"") -> 7519 | AU4: =IF(AL4<>"",ABS(AK4-AL4),"") -> 528 | AV4: =IF(AM4<>"",ABS(AL4-AM4),"") -> 564 | AW4: 169 | AX4: 278 | AY4: 0 | AZ4: 845 | BA4: 1347 | BB4: 751 | BC4: 449 | BD4: =IF(INDEX(campsByItinerary,numericItinerary($A4),BD$3-1)="","",VLOOKUP(INDEX(campsByItinerary,numericItinerary($A4),BD$3-1),campInfo,8)) ->  | BE4: =IF(INDEX(campsByItinerary,numericItinerary($A4),BE$3-1)="","",VLOOKUP(INDEX(campsByItinerary,numericItinerary($A4),BE$3-1),campInfo,8)) -> Y | BF4: =IF(INDEX(campsByItinerary,numericItinerary($A4),BF$3-1)="","",VLOOKUP(INDEX(campsByItinerary,numericItinerary($A4),BF$3-1),campInfo,8)) ->  | BG4: =IF(INDEX(campsByItinerary,numericItinerary($A4),BG$3-1)="","",VLOOKUP(INDEX(campsByItinerary,numericItinerary($A4),BG$3-1),campInfo,8)) ->  | BH4: =IF(INDEX(campsByItinerary,numericItinerary($A4),BH$3-1)="","",VLOOKUP(INDEX(campsByItinerary,numericItinerary($A4),BH$3-1),campInfo,8)) -> Y | BI4: =IF(INDEX(campsByItinerary,numericItinerary($A4),BI$3-1)="","",VLOOKUP(INDEX(campsByItinerary,numericItinerary($A4),BI$3-1),campInfo,8)) -> Y | BJ4: =IF(INDEX(campsByItinerary,numericItinerary($A4),BJ$3-1)="","",VLOOKUP(INDEX(campsByItinerary,numericItinerary($A4),BJ$3-1),campInfo,8)) -> N | BK4: =IF(INDEX(campsByItinerary,numericItinerary($A4),BK$3-1)="","",VLOOKUP(INDEX(campsByItinerary,numericItinerary($A4),BK$3-1),campInfo,8)) -> Y | BL4: =IF(INDEX(campsByItinerary,numericItinerary($A4),BL$3-1)="","",VLOOKUP(INDEX(campsByItinerary,numericItinerary($A4),BL$3-1),campInfo,8)) -> Y | BM4: =IF(INDEX(campsByItinerary,numericItinerary($A4),BM$3-1)="","",VLOOKUP(INDEX(campsByItinerary,numericItinerary($A4),BM$3-1),campInfo,8)) ->  | BN4: =IF(BD4="Y","","Y") -> Y | BO4: =IF(BE4="Y","","Y") ->  | BP4: Y | BQ4: Y | BT4: Y | BW4: Y | BX4: =IF(INDEX(campsByItinerary,numericItinerary($A4),BD$3-1)="","",VLOOKUP(INDEX(campsByItinerary,numericItinerary($A4),BD$3-1),campInfo,10)) ->  | BY4: =IF(INDEX(campsByItinerary,numericItinerary($A4),BE$3-1)="","",VLOOKUP(INDEX(campsByItinerary,numericItinerary($A4),BE$3-1),campInfo,10)) ->  | BZ4: =IF(INDEX(campsByItinerary,numericItinerary($A4),BF$3-1)="","",VLOOKUP(INDEX(campsByItinerary,numericItinerary($A4),BF$3-1),campInfo,10)) ->  | CA4: =IF(INDEX(campsByItinerary,numericItinerary($A4),BG$3-1)="","",VLOOKUP(INDEX(campsByItinerary,numericItinerary($A4),BG$3-1),campInfo,10)) ->  | CB4: =IF(INDEX(campsByItinerary,numericItinerary($A4),BH$3-1)="","",VLOOKUP(INDEX(campsByItinerary,numericItinerary($A4),BH$3-1),campInfo,10)) ->  | CC4: =IF(INDEX(campsByItinerary,numericItinerary($A4),BI$3-1)="","",VLOOKUP(INDEX(campsByItinerary,numericItinerary($A4),BI$3-1),campInfo,10)) ->  | CD4: =IF(INDEX(campsByItinerary,numericItinerary($A4),BJ$3-1)="","",VLOOKUP(INDEX(campsByItinerary,numericItinerary($A4),BJ$3-1),campInfo,10)) ->  | CE4: =IF(INDEX(campsByItinerary,numericItinerary($A4),BK$3-1)="","",VLOOKUP(INDEX(campsByItinerary,numericItinerary($A4),BK$3-1),campInfo,10)) ->  | CF4: =IF(INDEX(campsByItinerary,numericItinerary($A4),BL$3-1)="","",VLOOKUP(INDEX(campsByItinerary,numericItinerary($A4),BL$3-1),campInfo,10)) ->  | CG4: =IF(INDEX(campsByItinerary,numericItinerary($A4),BM$3-1)="","",VLOOKUP(INDEX(campsByItinerary,numericItinerary($A4),BM$3-1),campInfo,10)) -> Y | CI4: =IF(E4=F4,"Y","") ->  | CJ4: =IF(F4=G4,"Y","") ->  | CK4: =IF(G4=H4,"Y","") ->  | CL4: =IF(H4=I4,"Y","") ->  | CM4: =IF(I4=J4,"Y","") -> Y | CN4: =IF(J4=K4,"Y","") ->  | CO4: =IF(K4=L4,"Y","") ->  | CP4: =IF(L4=M4,"Y","") ->  | CQ4: =IF(M4=N4,"Y","") ->  | CR4: =INDEX(campsByItinerary,numericItinerary($A4),BD$3-1) -> Toothache Springs | CS4: =IF(INDEX(campsByItinerary,numericItinerary($A4),BE$3-1)="","",VLOOKUP(INDEX(campsByItinerary,numericItinerary($A4),BE$3-1),campInfo,2)) -> South | CT4: =IF(INDEX(campsByItinerary,numericItinerary($A4),BF$3-1)="","",VLOOKUP(INDEX(campsByItinerary,numericItinerary($A4),BF$3-1),campInfo,2)) -> South | CU4: =IF(INDEX(campsByItinerary,numericItinerary($A4),BG$3-1)="","",VLOOKUP(INDEX(campsByItinerary,numericItinerary($A4),BG$3-1),campInfo,2)) -> South | CV4: =IF(INDEX(campsByItinerary,numericItinerary($A4),BH$3-1)="","",VLOOKUP(INDEX(campsByItinerary,numericItinerary($A4),BH$3-1),campInfo,2)) -> South | CW4: =IF(INDEX(campsByItinerary,numericItinerary($A4),BI$3-1)="","",VLOOKUP(INDEX(campsByItinerary,numericItinerary($A4),BI$3-1),campInfo,2)) -> South | CX4: =IF(INDEX(campsByItinerary,numericItinerary($A4),BJ$3-1)="","",VLOOKUP(INDEX(campsByItinerary,numericItinerary($A4),BJ$3-1),campInfo,2)) -> South | CY4: =IF(INDEX(campsByItinerary,numericItinerary($A4),BK$3-1)="","",VLOOKUP(INDEX(campsByItinerary,numericItinerary($A4),BK$3-1),campInfo,2)) -> South | CZ4: =IF(INDEX(campsByItinerary,numericItinerary($A4),BL$3-1)="","",VLOOKUP(INDEX(campsByItinerary,numericItinerary($A4),BL$3-1),campInfo,2)) -> South | DA4: =IF(INDEX(campsByItinerary,numericItinerary($A4),BM$3-1)="","",VLOOKUP(INDEX(campsByItinerary,numericItinerary($A4),BM$3-1),campInfo,2)) -> South | DB4: =IF(INDEX(campsByItinerary,numericItinerary($A4),BD$3-1)="","",VLOOKUP(INDEX(campsByItinerary,numericItinerary($A4),BD$3-1),campInfo,12)) -> South | DC4: =IF(INDEX(campsByItinerary,numericItinerary($A4),BE$3-1)="","",VLOOKUP(INDEX(campsByItinerary,numericItinerary($A4),BE$3-1),campInfo,12)) -> South | DD4: =IF(INDEX(campsByItinerary,numericItinerary($A4),BF$3-1)="","",VLOOKUP(INDEX(campsByItinerary,numericItinerary($A4),BF$3-1),campInfo,12)) -> South | DE4: =IF(INDEX(campsByItinerary,numericItinerary($A4),BG$3-1)="","",VLOOKUP(INDEX(campsByItinerary,numericItinerary($A4),BG$3-1),campInfo,12)) -> South | DF4: =IF(INDEX(campsByItinerary,numericItinerary($A4),BH$3-1)="","",VLOOKUP(INDEX(campsByItinerary,numericItinerary($A4),BH$3-1),campInfo,12)) -> South | DG4: =IF(INDEX(campsByItinerary,numericItinerary($A4),BI$3-1)="","",VLOOKUP(INDEX(campsByItinerary,numericItinerary($A4),BI$3-1),campInfo,12)) -> South | DH4: =IF(INDEX(campsByItinerary,numericItinerary($A4),BJ$3-1)="","",VLOOKUP(INDEX(campsByItinerary,numericItinerary($A4),BJ$3-1),campInfo,12)) -> South | DI4: =IF(INDEX(campsByItinerary,numericItinerary($A4),BK$3-1)="","",VLOOKUP(INDEX(campsByItinerary,numericItinerary($A4),BK$3-1),campInfo,12)) -> South | DJ4: =IF(INDEX(campsByItinerary,numericItinerary($A4),BL$3-1)="","",VLOOKUP(INDEX(campsByItinerary,numericItinerary($A4),BL$3-1),campInfo,12)) -> South | DK4: =IF(INDEX(campsByItinerary,numericItinerary($A4),BM$3-1)="","",VLOOKUP(INDEX(campsByItinerary,numericItinerary($A4),BM$3-1),campInfo,12)) -> South | DL4: =getfoodPU("First",numericItinerary($A4)) -> 3 | DM4: =getfoodPU("Max",numericItinerary($A4)) -> 3
A5: 12-2 | C5: C | D5: 58 | E5: Trail Canyon | F5: Dean Cow | G5: New Dean | H5: Bluestem | I5: Pueblano | J5: Ewells Park | K5: Ewells Park | L5: Touch-Me-Not Creek | M5: Head of Dean | N5: Mistletoe | O5: Camping HQ | R5: Ponil | U5: Baldy Town | Y5: Nine Mile | Z5: Ute Park | AA5: =IF(Z5="Hike In","y","") ->  | AB5: 12 | AC5: Bear Canyon | AD5: S | AE5: =IF(ItineraryPrograms!AD4="y","y","") -> y | AF5: =IF(ItineraryPrograms!AE4="y","y","") ->  | AG5: =IF(ItineraryPrograms!AF4="y","y","") ->  | AI5: =checkTooth(AA5,LOWER(ItineraryPrograms!AH4)) ->  | AK5: 7070 | AL5: 7232 | AM5: 7724 | AN5: 7495 | AO5: 8069 | AP5: 9373 | AQ5: 9373 | AR5: 8855 | AS5: 8754 | AT5: 8295 | AU5: =IF(AL5<>"",ABS(AK5-AL5),"") -> 162 | AV5: =IF(AM5<>"",ABS(AL5-AM5),"") -> 492 | AW5: =IF(AN5<>"",ABS(AM5-AN5),"") -> 229 | AX5: =IF(AO5<>"",ABS(AN5-AO5),"") -> 574 | AY5: =IF(AP5<>"",ABS(AO5-AP5),"") -> 1304 | AZ5: =IF(AQ5<>"",ABS(AP5-AQ5),"") -> 0 | BA5: =IF(AR5<>"",ABS(AQ5-AR5),"") -> 518 | BB5: =IF(AS5<>"",ABS(AR5-AS5),"") -> 101 | BC5: =IF(AT5<>"",ABS(AS5-AT5),"") -> 459 | BD5: =IF(INDEX(campsByItinerary,numericItinerary($A5),BD$3-1)="","",VLOOKUP(INDEX(campsByItinerary,numericItinerary($A5),BD$3-1),campInfo,8)) ->  | BE5: =IF(INDEX(campsByItinerary,numericItinerary($A5),BE$3-1)="","",VLOOKUP(INDEX(campsByItinerary,numericItinerary($A5),BE$3-1),campInfo,8)) -> Y | BF5: =IF(INDEX(campsByItinerary,numericItinerary($A5),BF$3-1)="","",VLOOKUP(INDEX(campsByItinerary,numericItinerary($A5),BF$3-1),campInfo,8)) ->  | BG5: =IF(INDEX(campsByItinerary,numericItinerary($A5),BG$3-1)="","",VLOOKUP(INDEX(campsByItinerary,numericItinerary($A5),BG$3-1),campInfo,8)) ->  | BH5: =IF(INDEX(campsByItinerary,numericItinerary($A5),BH$3-1)="","",VLOOKUP(INDEX(campsByItinerary,numericItinerary($A5),BH$3-1),campInfo,8)) -> Y | BI5: =IF(INDEX(campsByItinerary,numericItinerary($A5),BI$3-1)="","",VLOOKUP(INDEX(campsByItinerary,numericItinerary($A5),BI$3-1),campInfo,8)) ->  | BJ5: =IF(INDEX(campsByItinerary,numericItinerary($A5),BJ$3-1)="","",VLOOKUP(INDEX(campsByItinerary,numericItinerary($A5),BJ$3-1),campInfo,8)) ->  | BK5: =IF(INDEX(campsByItinerary,numericItinerary($A5),BK$3-1)="","",VLOOKUP(INDEX(campsByItinerary,numericItinerary($A5),BK$3-1),campInfo,8)) ->  | BL5: =IF(INDEX(campsByItinerary,numericItinerary($A5),BL$3-1)="","",VLOOKUP(INDEX(campsByItinerary,numericItinerary($A5),BL$3-1),campInfo,8)) -> Y | BM5: =IF(INDEX(campsByItinerary,numericItinerary($A5),BM$3-1)="","",VLOOKUP(INDEX(campsByItinerary,numericItinerary($A5),BM$3-1),campInfo,8)) ->  | BN5: =IF(BD5="Y","","Y") -> Y | BO5: =IF(BE5="Y","","Y") ->  | BP5: =IF(BF5="Y","","Y") -> Y | BQ5: =IF(BG5="Y","","Y") -> Y | BR5: =IF(BH5="Y","","Y") ->  | BS5: =IF(BI5="Y","","Y") -> Y | BT5: =IF(BJ5="Y","","Y") -> Y | BU5: =IF(BK5="Y","","Y") -> Y | BV5: =IF(BL5="Y","","Y") ->  | BW5: =IF(BM5="Y","","Y") -> Y | BX5: =IF(INDEX(campsByItinerary,numericItinerary($A5),BD$3-1)="","",VLOOKUP(INDEX(campsByItinerary,numericItinerary($A5),BD$3-1),campInfo,10)) ->  | BY5: =IF(INDEX(campsByItinerary,numericItinerary($A5),BE$3-1)="","",VLOOKUP(INDEX(campsByItinerary,numericItinerary($A5),BE$3-1),campInfo,10)) ->  | BZ5: =IF(INDEX(campsByItinerary,numericItinerary($A5),BF$3-1)="","",VLOOKUP(INDEX(campsByItinerary,numericItinerary($A5),BF$3-1),campInfo,10)) ->  | CA5: =IF(INDEX(campsByItinerary,numericItinerary($A5),BG$3-1)="","",VLOOKUP(INDEX(campsByItinerary,numericItinerary($A5),BG$3-1),campInfo,10)) -> Y | CB5: =IF(INDEX(campsByItinerary,numericItinerary($A5),BH$3-1)="","",VLOOKUP(INDEX(campsByItinerary,numericItinerary($A5),BH$3-1),campInfo,10)) ->  | CC5: =IF(INDEX(campsByItinerary,numericItinerary($A5),BI$3-1)="","",VLOOKUP(INDEX(campsByItinerary,numericItinerary($A5),BI$3-1),campInfo,10)) ->  | CD5: =IF(INDEX(campsByItinerary,numericItinerary($A5),BJ$3-1)="","",VLOOKUP(INDEX(campsByItinerary,numericItinerary($A5),BJ$3-1),campInfo,10)) ->  | CE5: =IF(INDEX(campsByItinerary,numericItinerary($A5),BK$3-1)="","",VLOOKUP(INDEX(campsByItinerary,numericItinerary($A5),BK$3-1),campInfo,10)) ->  | CF5: =IF(INDEX(campsByItinerary,numericItinerary($A5),BL$3-1)="","",VLOOKUP(INDEX(campsByItinerary,numericItinerary($A5),BL$3-1),campInfo,10)) ->  | CG5: =IF(INDEX(campsByItinerary,numericItinerary($A5),BM$3-1)="","",VLOOKUP(INDEX(campsByItinerary,numericItinerary($A5),BM$3-1),campInfo,10)) -> Y | CN5: Y | CR5: =INDEX(campsByItinerary,numericItinerary($A5),BD$3-1) -> Trail Canyon | CS5: =IF(INDEX(campsByItinerary,numericItinerary($A5),BE$3-1)="","",VLOOKUP(INDEX(campsByItinerary,numericItinerary($A5),BE$3-1),campInfo,2)) -> North | CT5: =IF(INDEX(campsByItinerary,numericItinerary($A5),BF$3-1)="","",VLOOKUP(INDEX(campsByItinerary,numericItinerary($A5),BF$3-1),campInfo,2)) -> North | CU5: =IF(INDEX(campsByItinerary,numericItinerary($A5),BG$3-1)="","",VLOOKUP(INDEX(campsByItinerary,numericItinerary($A5),BG$3-1),campInfo,2)) -> North | CV5: =IF(INDEX(campsByItinerary,numericItinerary($A5),BH$3-1)="","",VLOOKUP(INDEX(campsByItinerary,numericItinerary($A5),BH$3-1),campInfo,2)) -> North | CW5: =IF(INDEX(campsByItinerary,numericItinerary($A5),BI$3-1)="","",VLOOKUP(INDEX(campsByItinerary,numericItinerary($A5),BI$3-1),campInfo,2)) -> North | CX5: =IF(INDEX(campsByItinerary,numericItinerary($A5),BJ$3-1)="","",VLOOKUP(INDEX(campsByItinerary,numericItinerary($A5),BJ$3-1),campInfo,2)) -> North | CY5: =IF(INDEX(campsByItinerary,numericItinerary($A5),BK$3-1)="","",VLOOKUP(INDEX(campsByItinerary,numericItinerary($A5),BK$3-1),campInfo,2)) -> North | CZ5: =IF(INDEX(campsByItinerary,numericItinerary($A5),BL$3-1)="","",VLOOKUP(INDEX(campsByItinerary,numericItinerary($A5),BL$3-1),campInfo,2)) -> North | DA5: =IF(INDEX(campsByItinerary,numericItinerary($A5),BM$3-1)="","",VLOOKUP(INDEX(campsByItinerary,numericItinerary($A5),BM$3-1),campInfo,2)) -> Central | DB5: =IF(INDEX(campsByItinerary,numericItinerary($A5),BD$3-1)="","",VLOOKUP(INDEX(campsByItinerary,numericItinerary($A5),BD$3-1),campInfo,12)) -> North | DC5: =IF(INDEX(campsByItinerary,numericItinerary($A5),BE$3-1)="","",VLOOKUP(INDEX(campsByItinerary,numericItinerary($A5),BE$3-1),campInfo,12)) -> North | DD5: =IF(INDEX(campsByItinerary,numericItinerary($A5),BF$3-1)="","",VLOOKUP(INDEX(campsByItinerary,numericItinerary($A5),BF$3-1),campInfo,12)) -> North | DE5: =IF(INDEX(campsByItinerary,numericItinerary($A5),BG$3-1)="","",VLOOKUP(INDEX(campsByItinerary,numericItinerary($A5),BG$3-1),campInfo,12)) -> North | DF5: =IF(INDEX(campsByItinerary,numericItinerary($A5),BH$3-1)="","",VLOOKUP(INDEX(campsByItinerary,numericItinerary($A5),BH$3-1),campInfo,12)) -> North | DG5: =IF(INDEX(campsByItinerary,numericItinerary($A5),BI$3-1)="","",VLOOKUP(INDEX(campsByItinerary,numericItinerary($A5),BI$3-1),campInfo,12)) -> North | DH5: =IF(INDEX(campsByItinerary,numericItinerary($A5),BJ$3-1)="","",VLOOKUP(INDEX(campsByItinerary,numericItinerary($A5),BJ$3-1),campInfo,12)) -> North | DI5: =IF(INDEX(campsByItinerary,numericItinerary($A5),BK$3-1)="","",VLOOKUP(INDEX(campsByItinerary,numericItinerary($A5),BK$3-1),campInfo,12)) -> North | DJ5: =IF(INDEX(campsByItinerary,numericItinerary($A5),BL$3-1)="","",VLOOKUP(INDEX(campsByItinerary,numericItinerary($A5),BL$3-1),campInfo,12)) -> North | DK5: =IF(INDEX(campsByItinerary,numericItinerary($A5),BM$3-1)="","",VLOOKUP(INDEX(campsByItinerary,numericItinerary($A5),BM$3-1),campInfo,12)) -> North & South | DL5: =getfoodPU("First",numericItinerary($A5)) -> 3 | DM5: =getfoodPU("Max",numericItinerary($A5)) -> 3
A6: 12-3 | C6: R | D6: 71 | E6: Trail Canyon | F6: Elkhorn | G6: Head of Dean | H6: Rich Cabins | I6: Middle Ponil | J6: Ring Place | K6: Whiteman Vega | L6: Dan Beard | M6: Cottonwood | N6: House Canyon | O6: Camping HQ | R6: Rich Cabins | T6: Ring Place | Y6: Nine Mile | Z6: Six Mile Gate | AE6: =IF(ItineraryPrograms!AD5="y","y","") ->  | AF6: =IF(ItineraryPrograms!AE5="y","y","") ->  | AG6: =IF(ItineraryPrograms!AF5="y","y","") ->  | AI6: =checkTooth(AA6,LOWER(ItineraryPrograms!AH5)) ->  | AK6: 7070 | AL6: 8496 | AM6: 8754 | AN6: 7728 | AO6: 9118 | AP6: 8124 | AQ6: 8061 | AR6: 7896 | AS6: 7373 | AT6: 7157 | AU6: 1426 | AV6: 258 | AW6: 1026 | AX6: 1390 | AY6: 994 | AZ6: 63 | BA6: 165 | BB6: 523 | BC6: 216 | BD6: =IF(INDEX(campsByItinerary,numericItinerary($A6),BD$3-1)="","",VLOOKUP(INDEX(campsByItinerary,numericItinerary($A6),BD$3-1),campInfo,8)) ->  | BE6: =IF(INDEX(campsByItinerary,numericItinerary($A6),BE$3-1)="","",VLOOKUP(INDEX(campsByItinerary,numericItinerary($A6),BE$3-1),campInfo,8)) ->  | BF6: =IF(INDEX(campsByItinerary,numericItinerary($A6),BF$3-1)="","",VLOOKUP(INDEX(campsByItinerary,numericItinerary($A6),BF$3-1),campInfo,8)) -> Y | BG6: =IF(INDEX(campsByItinerary,numericItinerary($A6),BG$3-1)="","",VLOOKUP(INDEX(campsByItinerary,numericItinerary($A6),BG$3-1),campInfo,8)) -> Y | BH6: =IF(INDEX(campsByItinerary,numericItinerary($A6),BH$3-1)="","",VLOOKUP(INDEX(campsByItinerary,numericItinerary($A6),BH$3-1),campInfo,8)) ->  | BI6: =IF(INDEX(campsByItinerary,numericItinerary($A6),BI$3-1)="","",VLOOKUP(INDEX(campsByItinerary,numericItinerary($A6),BI$3-1),campInfo,8)) -> Y | BJ6: =IF(INDEX(campsByItinerary,numericItinerary($A6),BJ$3-1)="","",VLOOKUP(INDEX(campsByItinerary,numericItinerary($A6),BJ$3-1),campInfo,8)) -> Y | BK6: =IF(INDEX(campsByItinerary,numericItinerary($A6),BK$3-1)="","",VLOOKUP(INDEX(campsByItinerary,numericItinerary($A6),BK$3-1),campInfo,8)) -> Y | BL6: =IF(INDEX(campsByItinerary,numericItinerary($A6),BL$3-1)="","",VLOOKUP(INDEX(campsByItinerary,numericItinerary($A6),BL$3-1),campInfo,8)) ->  | BM6: =IF(INDEX(campsByItinerary,numericItinerary($A6),BM$3-1)="","",VLOOKUP(INDEX(campsByItinerary,numericItinerary($A6),BM$3-1),campInfo,8)) ->  | BN6: Y | BO6: Y | BR6: Y | BV6: Y | BW6: Y | BX6: =IF(INDEX(campsByItinerary,numericItinerary($A6),BD$3-1)="","",VLOOKUP(INDEX(campsByItinerary,numericItinerary($A6),BD$3-1),campInfo,10)) ->  | BY6: =IF(INDEX(campsByItinerary,numericItinerary($A6),BE$3-1)="","",VLOOKUP(INDEX(campsByItinerary,numericItinerary($A6),BE$3-1),campInfo,10)) ->  | BZ6: =IF(INDEX(campsByItinerary,numericItinerary($A6),BF$3-1)="","",VLOOKUP(INDEX(campsByItinerary,numericItinerary($A6),BF$3-1),campInfo,10)) ->  | CA6: =IF(INDEX(campsByItinerary,numericItinerary($A6),BG$3-1)="","",VLOOKUP(INDEX(campsByItinerary,numericItinerary($A6),BG$3-1),campInfo,10)) ->  | CB6: =IF(INDEX(campsByItinerary,numericItinerary($A6),BH$3-1)="","",VLOOKUP(INDEX(campsByItinerary,numericItinerary($A6),BH$3-1),campInfo,10)) ->  | CC6: =IF(INDEX(campsByItinerary,numericItinerary($A6),BI$3-1)="","",VLOOKUP(INDEX(campsByItinerary,numericItinerary($A6),BI$3-1),campInfo,10)) ->  | CD6: =IF(INDEX(campsByItinerary,numericItinerary($A6),BJ$3-1)="","",VLOOKUP(INDEX(campsByItinerary,numericItinerary($A6),BJ$3-1),campInfo,10)) ->  | CE6: =IF(INDEX(campsByItinerary,numericItinerary($A6),BK$3-1)="","",VLOOKUP(INDEX(campsByItinerary,numericItinerary($A6),BK$3-1),campInfo,10)) ->  | CF6: =IF(INDEX(campsByItinerary,numericItinerary($A6),BL$3-1)="","",VLOOKUP(INDEX(campsByItinerary,numericItinerary($A6),BL$3-1),campInfo,10)) ->  | CG6: =IF(INDEX(campsByItinerary,numericItinerary($A6),BM$3-1)="","",VLOOKUP(INDEX(campsByItinerary,numericItinerary($A6),BM$3-1),campInfo,10)) ->  | CR6: =INDEX(campsByItinerary,numericItinerary($A6),BD$3-1) -> Trail Canyon | CS6: =IF(INDEX(campsByItinerary,numericItinerary($A6),BE$3-1)="","",VLOOKUP(INDEX(campsByItinerary,numericItinerary($A6),BE$3-1),campInfo,2)) -> North | CT6: =IF(INDEX(campsByItinerary,numericItinerary($A6),BF$3-1)="","",VLOOKUP(INDEX(campsByItinerary,numericItinerary($A6),BF$3-1),campInfo,2)) -> North | CU6: =IF(INDEX(campsByItinerary,numericItinerary($A6),BG$3-1)="","",VLOOKUP(INDEX(campsByItinerary,numericItinerary($A6),BG$3-1),campInfo,2)) -> Valle Vidal | CV6: =IF(INDEX(campsByItinerary,numericItinerary($A6),BH$3-1)="","",VLOOKUP(INDEX(campsByItinerary,numericItinerary($A6),BH$3-1),campInfo,2)) -> Valle Vidal | CW6: =IF(INDEX(campsByItinerary,numericItinerary($A6),BI$3-1)="","",VLOOKUP(INDEX(campsByItinerary,numericItinerary($A6),BI$3-1),campInfo,2)) -> Valle Vidal | CX6: =IF(INDEX(campsByItinerary,numericItinerary($A6),BJ$3-1)="","",VLOOKUP(INDEX(campsByItinerary,numericItinerary($A6),BJ$3-1),campInfo,2)) -> Valle Vidal | CY6: =IF(INDEX(campsByItinerary,numericItinerary($A6),BK$3-1)="","",VLOOKUP(INDEX(campsByItinerary,numericItinerary($A6),BK$3-1),campInfo,2)) -> North | CZ6: =IF(INDEX(campsByItinerary,numericItinerary($A6),BL$3-1)="","",VLOOKUP(INDEX(campsByItinerary,numericItinerary($A6),BL$3-1),campInfo,2)) -> North | DA6: =IF(INDEX(campsByItinerary,numericItinerary($A6),BM$3-1)="","",VLOOKUP(INDEX(campsByItinerary,numericItinerary($A6),BM$3-1),campInfo,2)) -> North | DB6: =IF(INDEX(campsByItinerary,numericItinerary($A6),BD$3-1)="","",VLOOKUP(INDEX(campsByItinerary,numericItinerary($A6),BD$3-1),campInfo,12)) -> North | DC6: =IF(INDEX(campsByItinerary,numericItinerary($A6),BE$3-1)="","",VLOOKUP(INDEX(campsByItinerary,numericItinerary($A6),BE$3-1),campInfo,12)) -> North | DD6: =IF(INDEX(campsByItinerary,numericItinerary($A6),BF$3-1)="","",VLOOKUP(INDEX(campsByItinerary,numericItinerary($A6),BF$3-1),campInfo,12)) -> North | DE6: =IF(INDEX(campsByItinerary,numericItinerary($A6),BG$3-1)="","",VLOOKUP(INDEX(campsByItinerary,numericItinerary($A6),BG$3-1),campInfo,12)) -> North | DF6: =IF(INDEX(campsByItinerary,numericItinerary($A6),BH$3-1)="","",VLOOKUP(INDEX(campsByItinerary,numericItinerary($A6),BH$3-1),campInfo,12)) -> North | DG6: =IF(INDEX(campsByItinerary,numericItinerary($A6),BI$3-1)="","",VLOOKUP(INDEX(campsByItinerary,numericItinerary($A6),BI$3-1),campInfo,12)) -> North | DH6: =IF(INDEX(campsByItinerary,numericItinerary($A6),BJ$3-1)="","",VLOOKUP(INDEX(campsByItinerary,numericItinerary($A6),BJ$3-1),campInfo,12)) -> North | DI6: =IF(INDEX(campsByItinerary,numericItinerary($A6),BK$3-1)="","",VLOOKUP(INDEX(campsByItinerary,numericItinerary($A6),BK$3-1),campInfo,12)) -> North | DJ6: =IF(INDEX(campsByItinerary,numericItinerary($A6),BL$3-1)="","",VLOOKUP(INDEX(campsByItinerary,numericItinerary($A6),BL$3-1),campInfo,12)) -> North | DK6: =IF(INDEX(campsByItinerary,numericItinerary($A6),BM$3-1)="","",VLOOKUP(INDEX(campsByItinerary,numericItinerary($A6),BM$3-1),campInfo,12)) -> North | DL6: =getfoodPU("First",numericItinerary($A6)) -> 3 | DM6: =getfoodPU("Max",numericItinerary($A6)) -> 3
A7: 12-4 | C7: C | D7: 58 | E7: Flume Canyon | F7: Pueblano Ruins | G7: Baldy Town | H7: Baldy Town | I7: Maxwell | J7: Head of Dean | K7: Ponil | L7: Metcalf Station | M7: Cottonwood | N7: House Canyon | O7: Camping HQ | Q7: Baldy Town | U7: Ponil | Y7: Ponil | Z7: Six Mile Gate | AE7: =IF(ItineraryPrograms!AD6="y","y","") -> y | AF7: =IF(ItineraryPrograms!AE6="y","y","") ->  | AG7: =IF(ItineraryPrograms!AF6="y","y","") ->  | AI7: =checkTooth(AA7,LOWER(ItineraryPrograms!AH6)) ->  | AK7: 7715 | AL7: 8359 | AM7: 9851 | AN7: 9851 | AO7: 8498 | AP7: 8754 | AQ7: 7150 | AR7: 7220 | AS7: 7373 | AT7: 7157 | AU7: 644 | AV7: 1492 | AW7: 0 | AX7: 1353 | AY7: 256 | AZ7: 1604 | BA7: 70 | BB7: 153 | BC7: 216 | BD7: =IF(INDEX(campsByItinerary,numericItinerary($A7),BD$3-1)="","",VLOOKUP(INDEX(campsByItinerary,numericItinerary($A7),BD$3-1),campInfo,8)) ->  | BE7: =IF(INDEX(campsByItinerary,numericItinerary($A7),BE$3-1)="","",VLOOKUP(INDEX(campsByItinerary,numericItinerary($A7),BE$3-1),campInfo,8)) ->  | BF7: =IF(INDEX(campsByItinerary,numericItinerary($A7),BF$3-1)="","",VLOOKUP(INDEX(campsByItinerary,numericItinerary($A7),BF$3-1),campInfo,8)) -> Y | BG7: =IF(INDEX(campsByItinerary,numericItinerary($A7),BG$3-1)="","",VLOOKUP(INDEX(campsByItinerary,numericItinerary($A7),BG$3-1),campInfo,8)) -> Y | BH7: =IF(INDEX(campsByItinerary,numericItinerary($A7),BH$3-1)="","",VLOOKUP(INDEX(campsByItinerary,numericItinerary($A7),BH$3-1),campInfo,8)) ->  | BI7: =IF(INDEX(campsByItinerary,numericItinerary($A7),BI$3-1)="","",VLOOKUP(INDEX(campsByItinerary,numericItinerary($A7),BI$3-1),campInfo,8)) -> Y | BJ7: =IF(INDEX(campsByItinerary,numericItinerary($A7),BJ$3-1)="","",VLOOKUP(INDEX(campsByItinerary,numericItinerary($A7),BJ$3-1),campInfo,8)) -> Y | BK7: =IF(INDEX(campsByItinerary,numericItinerary($A7),BK$3-1)="","",VLOOKUP(INDEX(campsByItinerary,numericItinerary($A7),BK$3-1),campInfo,8)) -> Y | BL7: =IF(INDEX(campsByItinerary,numericItinerary($A7),BL$3-1)="","",VLOOKUP(INDEX(campsByItinerary,numericItinerary($A7),BL$3-1),campInfo,8)) ->  | BM7: =IF(INDEX(campsByItinerary,numericItinerary($A7),BM$3-1)="","",VLOOKUP(INDEX(campsByItinerary,numericItinerary($A7),BM$3-1),campInfo,8)) ->  | BN7: Y | BO7: Y | BR7: Y | BV7: Y | BW7: Y | BX7: =IF(INDEX(campsByItinerary,numericItinerary($A7),BD$3-1)="","",VLOOKUP(INDEX(campsByItinerary,numericItinerary($A7),BD$3-1),campInfo,10)) ->  | BY7: =IF(INDEX(campsByItinerary,numericItinerary($A7),BE$3-1)="","",VLOOKUP(INDEX(campsByItinerary,numericItinerary($A7),BE$3-1),campInfo,10)) ->  | BZ7: =IF(INDEX(campsByItinerary,numericItinerary($A7),BF$3-1)="","",VLOOKUP(INDEX(campsByItinerary,numericItinerary($A7),BF$3-1),campInfo,10)) ->  | CA7: =IF(INDEX(campsByItinerary,numericItinerary($A7),BG$3-1)="","",VLOOKUP(INDEX(campsByItinerary,numericItinerary($A7),BG$3-1),campInfo,10)) ->  | CB7: =IF(INDEX(campsByItinerary,numericItinerary($A7),BH$3-1)="","",VLOOKUP(INDEX(campsByItinerary,numericItinerary($A7),BH$3-1),campInfo,10)) ->  | CC7: =IF(INDEX(campsByItinerary,numericItinerary($A7),BI$3-1)="","",VLOOKUP(INDEX(campsByItinerary,numericItinerary($A7),BI$3-1),campInfo,10)) ->  | CD7: =IF(INDEX(campsByItinerary,numericItinerary($A7),BJ$3-1)="","",VLOOKUP(INDEX(campsByItinerary,numericItinerary($A7),BJ$3-1),campInfo,10)) ->  | CE7: =IF(INDEX(campsByItinerary,numericItinerary($A7),BK$3-1)="","",VLOOKUP(INDEX(campsByItinerary,numericItinerary($A7),BK$3-1),campInfo,10)) ->  | CF7: =IF(INDEX(campsByItinerary,numericItinerary($A7),BL$3-1)="","",VLOOKUP(INDEX(campsByItinerary,numericItinerary($A7),BL$3-1),campInfo,10)) ->  | CG7: =IF(INDEX(campsByItinerary,numericItinerary($A7),BM$3-1)="","",VLOOKUP(INDEX(campsByItinerary,numericItinerary($A7),BM$3-1),campInfo,10)) ->  | CK7: Y | CR7: =INDEX(campsByItinerary,numericItinerary($A7),BD$3-1) -> Flume Canyon | CS7: =IF(INDEX(campsByItinerary,numericItinerary($A7),BE$3-1)="","",VLOOKUP(INDEX(campsByItinerary,numericItinerary($A7),BE$3-1),campInfo,2)) -> North | CT7: =IF(INDEX(campsByItinerary,numericItinerary($A7),BF$3-1)="","",VLOOKUP(INDEX(campsByItinerary,numericItinerary($A7),BF$3-1),campInfo,2)) -> North | CU7: =IF(INDEX(campsByItinerary,numericItinerary($A7),BG$3-1)="","",VLOOKUP(INDEX(campsByItinerary,numericItinerary($A7),BG$3-1),campInfo,2)) -> North | CV7: =IF(INDEX(campsByItinerary,numericItinerary($A7),BH$3-1)="","",VLOOKUP(INDEX(campsByItinerary,numericItinerary($A7),BH$3-1),campInfo,2)) -> North | CW7: =IF(INDEX(campsByItinerary,numericItinerary($A7),BI$3-1)="","",VLOOKUP(INDEX(campsByItinerary,numericItinerary($A7),BI$3-1),campInfo,2)) -> North | CX7: =IF(INDEX(campsByItinerary,numericItinerary($A7),BJ$3-1)="","",VLOOKUP(INDEX(campsByItinerary,numericItinerary($A7),BJ$3-1),campInfo,2)) -> North | CY7: =IF(INDEX(campsByItinerary,numericItinerary($A7),BK$3-1)="","",VLOOKUP(INDEX(campsByItinerary,numericItinerary($A7),BK$3-1),campInfo,2)) -> North | CZ7: =IF(INDEX(campsByItinerary,numericItinerary($A7),BL$3-1)="","",VLOOKUP(INDEX(campsByItinerary,numericItinerary($A7),BL$3-1),campInfo,2)) -> North | DA7: =IF(INDEX(campsByItinerary,numericItinerary($A7),BM$3-1)="","",VLOOKUP(INDEX(campsByItinerary,numericItinerary($A7),BM$3-1),campInfo,2)) -> North | DB7: =IF(INDEX(campsByItinerary,numericItinerary($A7),BD$3-1)="","",VLOOKUP(INDEX(campsByItinerary,numericItinerary($A7),BD$3-1),campInfo,12)) -> North | DC7: =IF(INDEX(campsByItinerary,numericItinerary($A7),BE$3-1)="","",VLOOKUP(INDEX(campsByItinerary,numericItinerary($A7),BE$3-1),campInfo,12)) -> North | DD7: =IF(INDEX(campsByItinerary,numericItinerary($A7),BF$3-1)="","",VLOOKUP(INDEX(campsByItinerary,numericItinerary($A7),BF$3-1),campInfo,12)) -> North | DE7: =IF(INDEX(campsByItinerary,numericItinerary($A7),BG$3-1)="","",VLOOKUP(INDEX(campsByItinerary,numericItinerary($A7),BG$3-1),campInfo,12)) -> North | DF7: =IF(INDEX(campsByItinerary,numericItinerary($A7),BH$3-1)="","",VLOOKUP(INDEX(campsByItinerary,numericItinerary($A7),BH$3-1),campInfo,12)) -> North | DG7: =IF(INDEX(campsByItinerary,numericItinerary($A7),BI$3-1)="","",VLOOKUP(INDEX(campsByItinerary,numericItinerary($A7),BI$3-1),campInfo,12)) -> North | DH7: =IF(INDEX(campsByItinerary,numericItinerary($A7),BJ$3-1)="","",VLOOKUP(INDEX(campsByItinerary,numericItinerary($A7),BJ$3-1),campInfo,12)) -> North | DI7: =IF(INDEX(campsByItinerary,numericItinerary($A7),BK$3-1)="","",VLOOKUP(INDEX(campsByItinerary,numericItinerary($A7),BK$3-1),campInfo,12)) -> North | DJ7: =IF(INDEX(campsByItinerary,numericItinerary($A7),BL$3-1)="","",VLOOKUP(INDEX(campsByItinerary,numericItinerary($A7),BL$3-1),campInfo,12)) -> North | DK7: =IF(INDEX(campsByItinerary,numericItinerary($A7),BM$3-1)="","",VLOOKUP(INDEX(campsByItinerary,numericItinerary($A7),BM$3-1),campInfo,12)) -> North | DL7: =getfoodPU("First",numericItinerary($A7)) -> 2 | DM7: =getfoodPU("Max",numericItinerary($A7)) -> 4
A8: 12-5 | C8: C | D8: 54 | E8: Abreu | F8: Carson Meadows | G8: Fish Camp | H8: Lost Cabins | I8: Crooked Creek | J8: Clear Creek | K8: Divide | L8: Phillips Junction | M8: Lookout Meadow | N8: Bear Caves | O8: Camping HQ | S8: Apache Springs | V8: Phillips Junction | Y8: Zastrow | Z8: Lovers Leap | AE8: =IF(ItineraryPrograms!AD7="y","y","") ->  | AF8: =IF(ItineraryPrograms!AE7="y","y","") ->  | AG8: =IF(ItineraryPrograms!AF7="y","y","") -> y | AH8: y | AI8: =checkTooth(AA8,LOWER(ItineraryPrograms!AH7)) ->  | AK8: 7217 | AL8: 7758 | AM8: 8564 | AN8: 9205 | AO8: 9360 | AP8: 10240 | AQ8: 10509 | AR8: 8921 | AS8: 9419 | AT8: 8423 | AU8: 541 | AV8: 806 | AW8: 641 | AX8: 155 | AY8: 880 | AZ8: 269 | BA8: 1588 | BB8: 498 | BC8: 996 | BD8: =IF(INDEX(campsByItinerary,numericItinerary($A8),BD$3-1)="","",VLOOKUP(INDEX(campsByItinerary,numericItinerary($A8),BD$3-1),campInfo,8)) -> Y | BE8: =IF(INDEX(campsByItinerary,numericItinerary($A8),BE$3-1)="","",VLOOKUP(INDEX(campsByItinerary,numericItinerary($A8),BE$3-1),campInfo,8)) -> N | BF8: =IF(INDEX(campsByItinerary,numericItinerary($A8),BF$3-1)="","",VLOOKUP(INDEX(campsByItinerary,numericItinerary($A8),BF$3-1),campInfo,8)) -> N | BG8: =IF(INDEX(campsByItinerary,numericItinerary($A8),BG$3-1)="","",VLOOKUP(INDEX(campsByItinerary,numericItinerary($A8),BG$3-1),campInfo,8)) ->  | BH8: =IF(INDEX(campsByItinerary,numericItinerary($A8),BH$3-1)="","",VLOOKUP(INDEX(campsByItinerary,numericItinerary($A8),BH$3-1),campInfo,8)) -> Y | BI8: =IF(INDEX(campsByItinerary,numericItinerary($A8),BI$3-1)="","",VLOOKUP(INDEX(campsByItinerary,numericItinerary($A8),BI$3-1),campInfo,8)) -> Y | BJ8: =IF(INDEX(campsByItinerary,numericItinerary($A8),BJ$3-1)="","",VLOOKUP(INDEX(campsByItinerary,numericItinerary($A8),BJ$3-1),campInfo,8)) ->  | BK8: =IF(INDEX(campsByItinerary,numericItinerary($A8),BK$3-1)="","",VLOOKUP(INDEX(campsByItinerary,numericItinerary($A8),BK$3-1),campInfo,8)) -> Y | BL8: =IF(INDEX(campsByItinerary,numericItinerary($A8),BL$3-1)="","",VLOOKUP(INDEX(campsByItinerary,numericItinerary($A8),BL$3-1),campInfo,8)) ->  | BM8: =IF(INDEX(campsByItinerary,numericItinerary($A8),BM$3-1)="","",VLOOKUP(INDEX(campsByItinerary,numericItinerary($A8),BM$3-1),campInfo,8)) ->  | BO8: Y | BP8: Y | BQ8: Y | BT8: Y | BV8: Y | BW8: Y | BX8: =IF(INDEX(campsByItinerary,numericItinerary($A8),BD$3-1)="","",VLOOKUP(INDEX(campsByItinerary,numericItinerary($A8),BD$3-1),campInfo,10)) ->  | BY8: =IF(INDEX(campsByItinerary,numericItinerary($A8),BE$3-1)="","",VLOOKUP(INDEX(campsByItinerary,numericItinerary($A8),BE$3-1),campInfo,10)) ->  | BZ8: =IF(INDEX(campsByItinerary,numericItinerary($A8),BF$3-1)="","",VLOOKUP(INDEX(campsByItinerary,numericItinerary($A8),BF$3-1),campInfo,10)) ->  | CA8: =IF(INDEX(campsByItinerary,numericItinerary($A8),BG$3-1)="","",VLOOKUP(INDEX(campsByItinerary,numericItinerary($A8),BG$3-1),campInfo,10)) ->  | CB8: =IF(INDEX(campsByItinerary,numericItinerary($A8),BH$3-1)="","",VLOOKUP(INDEX(campsByItinerary,numericItinerary($A8),BH$3-1),campInfo,10)) ->  | CC8: =IF(INDEX(campsByItinerary,numericItinerary($A8),BI$3-1)="","",VLOOKUP(INDEX(campsByItinerary,numericItinerary($A8),BI$3-1),campInfo,10)) ->  | CD8: =IF(INDEX(campsByItinerary,numericItinerary($A8),BJ$3-1)="","",VLOOKUP(INDEX(campsByItinerary,numericItinerary($A8),BJ$3-1),campInfo,10)) -> Y | CE8: =IF(INDEX(campsByItinerary,numericItinerary($A8),BK$3-1)="","",VLOOKUP(INDEX(campsByItinerary,numericItinerary($A8),BK$3-1),campInfo,10)) ->  | CF8: =IF(INDEX(campsByItinerary,numericItinerary($A8),BL$3-1)="","",VLOOKUP(INDEX(campsByItinerary,numericItinerary($A8),BL$3-1),campInfo,10)) ->  | CG8: =IF(INDEX(campsByItinerary,numericItinerary($A8),BM$3-1)="","",VLOOKUP(INDEX(campsByItinerary,numericItinerary($A8),BM$3-1),campInfo,10)) ->  | CR8: =INDEX(campsByItinerary,numericItinerary($A8),BD$3-1) -> Abreu | CS8: =IF(INDEX(campsByItinerary,numericItinerary($A8),BE$3-1)="","",VLOOKUP(INDEX(campsByItinerary,numericItinerary($A8),BE$3-1),campInfo,2)) -> South | CT8: =IF(INDEX(campsByItinerary,numericItinerary($A8),BF$3-1)="","",VLOOKUP(INDEX(campsByItinerary,numericItinerary($A8),BF$3-1),campInfo,2)) -> South | CU8: =IF(INDEX(campsByItinerary,numericItinerary($A8),BG$3-1)="","",VLOOKUP(INDEX(campsByItinerary,numericItinerary($A8),BG$3-1),campInfo,2)) -> South | CV8: =IF(INDEX(campsByItinerary,numericItinerary($A8),BH$3-1)="","",VLOOKUP(INDEX(campsByItinerary,numericItinerary($A8),BH$3-1),campInfo,2)) -> South | CW8: =IF(INDEX(campsByItinerary,numericItinerary($A8),BI$3-1)="","",VLOOKUP(INDEX(campsByItinerary,numericItinerary($A8),BI$3-1),campInfo,2)) -> Central | CX8: =IF(INDEX(campsByItinerary,numericItinerary($A8),BJ$3-1)="","",VLOOKUP(INDEX(campsByItinerary,numericItinerary($A8),BJ$3-1),campInfo,2)) -> South | CY8: =IF(INDEX(campsByItinerary,numericItinerary($A8),BK$3-1)="","",VLOOKUP(INDEX(campsByItinerary,numericItinerary($A8),BK$3-1),campInfo,2)) -> South | CZ8: =IF(INDEX(campsByItinerary,numericItinerary($A8),BL$3-1)="","",VLOOKUP(INDEX(campsByItinerary,numericItinerary($A8),BL$3-1),campInfo,2)) -> South | DA8: =IF(INDEX(campsByItinerary,numericItinerary($A8),BM$3-1)="","",VLOOKUP(INDEX(campsByItinerary,numericItinerary($A8),BM$3-1),campInfo,2)) -> South | DB8: =IF(INDEX(campsByItinerary,numericItinerary($A8),BD$3-1)="","",VLOOKUP(INDEX(campsByItinerary,numericItinerary($A8),BD$3-1),campInfo,12)) -> South | DC8: =IF(INDEX(campsByItinerary,numericItinerary($A8),BE$3-1)="","",VLOOKUP(INDEX(campsByItinerary,numericItinerary($A8),BE$3-1),campInfo,12)) -> South | DD8: =IF(INDEX(campsByItinerary,numericItinerary($A8),BF$3-1)="","",VLOOKUP(INDEX(campsByItinerary,numericItinerary($A8),BF$3-1),campInfo,12)) -> South | DE8: =IF(INDEX(campsByItinerary,numericItinerary($A8),BG$3-1)="","",VLOOKUP(INDEX(campsByItinerary,numericItinerary($A8),BG$3-1),campInfo,12)) -> South | DF8: =IF(INDEX(campsByItinerary,numericItinerary($A8),BH$3-1)="","",VLOOKUP(INDEX(campsByItinerary,numericItinerary($A8),BH$3-1),campInfo,12)) -> South | DG8: =IF(INDEX(campsByItinerary,numericItinerary($A8),BI$3-1)="","",VLOOKUP(INDEX(campsByItinerary,numericItinerary($A8),BI$3-1),campInfo,12)) -> South | DH8: =IF(INDEX(campsByItinerary,numericItinerary($A8),BJ$3-1)="","",VLOOKUP(INDEX(campsByItinerary,numericItinerary($A8),BJ$3-1),campInfo,12)) -> South | DI8: =IF(INDEX(campsByItinerary,numericItinerary($A8),BK$3-1)="","",VLOOKUP(INDEX(campsByItinerary,numericItinerary($A8),BK$3-1),campInfo,12)) -> South | DJ8: =IF(INDEX(campsByItinerary,numericItinerary($A8),BL$3-1)="","",VLOOKUP(INDEX(campsByItinerary,numericItinerary($A8),BL$3-1),campInfo,12)) -> South | DK8: =IF(INDEX(campsByItinerary,numericItinerary($A8),BM$3-1)="","",VLOOKUP(INDEX(campsByItinerary,numericItinerary($A8),BM$3-1),campInfo,12)) -> South | DL8: =getfoodPU("First",numericItinerary($A8)) -> 4 | DM8: =getfoodPU("Max",numericItinerary($A8)) -> 4
A9: 12-6 | B9: 50 Miler | C9: R | D9: 53 | E9: Herradura | F9: Miners Park | G9: Ponderosa Park | H9: Cimarroncito | I9: Cimarroncita | J9: Cimarroncita | K9: Upper Dean Cow | L9: Ewells Park | M9: Ewells Park | N9: Miranda | O9: Camping HQ | P9: Miners Park | S9: Ute Gulch | W9: Baldy Town | Y9: Lovers Leap | Z9: Maxwell | AB9: 7 | AC9: Bear Canyon | AD9: N | AE9: =IF(ItineraryPrograms!AD8="y","y","") -> y | AF9: =IF(ItineraryPrograms!AE8="y","y","") ->  | AG9: =IF(ItineraryPrograms!AF8="y","y","") ->  | AI9: =checkTooth(AA9,LOWER(ItineraryPrograms!AH8)) ->  | AK9: 7465 | AL9: 7977 | AM9: 8004 | AN9: 8137 | AO9: 7373 | AP9: 7373 | AQ9: 8254 | AR9: 9373 | AS9: 9373 | AT9: 8898 | AU9: 512 | AV9: 27 | AW9: 133 | AX9: 764 | AY9: 0 | AZ9: 881 | BA9: 1119 | BB9: 0 | BC9: 475 | BD9: =IF(INDEX(campsByItinerary,numericItinerary($A9),BD$3-1)="","",VLOOKUP(INDEX(campsByItinerary,numericItinerary($A9),BD$3-1),campInfo,8)) ->  | BE9: =IF(INDEX(campsByItinerary,numericItinerary($A9),BE$3-1)="","",VLOOKUP(INDEX(campsByItinerary,numericItinerary($A9),BE$3-1),campInfo,8)) -> Y | BF9: =IF(INDEX(campsByItinerary,numericItinerary($A9),BF$3-1)="","",VLOOKUP(INDEX(campsByItinerary,numericItinerary($A9),BF$3-1),campInfo,8)) ->  | BG9: =IF(INDEX(campsByItinerary,numericItinerary($A9),BG$3-1)="","",VLOOKUP(INDEX(campsByItinerary,numericItinerary($A9),BG$3-1),campInfo,8)) -> Y | BH9: =IF(INDEX(campsByItinerary,numericItinerary($A9),BH$3-1)="","",VLOOKUP(INDEX(campsByItinerary,numericItinerary($A9),BH$3-1),campInfo,8)) -> Y | BI9: =IF(INDEX(campsByItinerary,numericItinerary($A9),BI$3-1)="","",VLOOKUP(INDEX(campsByItinerary,numericItinerary($A9),BI$3-1),campInfo,8)) -> Y | BJ9: =IF(INDEX(campsByItinerary,numericItinerary($A9),BJ$3-1)="","",VLOOKUP(INDEX(campsByItinerary,numericItinerary($A9),BJ$3-1),campInfo,8)) ->  | BK9: =IF(INDEX(campsByItinerary,numericItinerary($A9),BK$3-1)="","",VLOOKUP(INDEX(campsByItinerary,numericItinerary($A9),BK$3-1),campInfo,8)) ->  | BL9: =IF(INDEX(campsByItinerary,numericItinerary($A9),BL$3-1)="","",VLOOKUP(INDEX(campsByItinerary,numericItinerary($A9),BL$3-1),campInfo,8)) ->  | BM9: =IF(INDEX(campsByItinerary,numericItinerary($A9),BM$3-1)="","",VLOOKUP(INDEX(campsByItinerary,numericItinerary($A9),BM$3-1),campInfo,8)) -> Y | BN9: Y | BP9: Y | BT9: Y | BU9: Y | BV9: Y | BX9: =IF(INDEX(campsByItinerary,numericItinerary($A9),BD$3-1)="","",VLOOKUP(INDEX(campsByItinerary,numericItinerary($A9),BD$3-1),campInfo,10)) -> Y | BY9: =IF(INDEX(campsByItinerary,numericItinerary($A9),BE$3-1)="","",VLOOKUP(INDEX(campsByItinerary,numericItinerary($A9),BE$3-1),campInfo,10)) ->  | BZ9: =IF(INDEX(campsByItinerary,numericItinerary($A9),BF$3-1)="","",VLOOKUP(INDEX(campsByItinerary,numericItinerary($A9),BF$3-1),campInfo,10)) -> Y | CA9: =IF(INDEX(campsByItinerary,numericItinerary($A9),BG$3-1)="","",VLOOKUP(INDEX(campsByItinerary,numericItinerary($A9),BG$3-1),campInfo,10)) ->  | CB9: =IF(INDEX(campsByItinerary,numericItinerary($A9),BH$3-1)="","",VLOOKUP(INDEX(campsByItinerary,numericItinerary($A9),BH$3-1),campInfo,10)) ->  | CC9: =IF(INDEX(campsByItinerary,numericItinerary($A9),BI$3-1)="","",VLOOKUP(INDEX(campsByItinerary,numericItinerary($A9),BI$3-1),campInfo,10)) ->  | CD9: =IF(INDEX(campsByItinerary,numericItinerary($A9),BJ$3-1)="","",VLOOKUP(INDEX(campsByItinerary,numericItinerary($A9),BJ$3-1),campInfo,10)) ->  | CE9: =IF(INDEX(campsByItinerary,numericItinerary($A9),BK$3-1)="","",VLOOKUP(INDEX(campsByItinerary,numericItinerary($A9),BK$3-1),campInfo,10)) ->  | CF9: =IF(INDEX(campsByItinerary,numericItinerary($A9),BL$3-1)="","",VLOOKUP(INDEX(campsByItinerary,numericItinerary($A9),BL$3-1),campInfo,10)) ->  | CG9: =IF(INDEX(campsByItinerary,numericItinerary($A9),BM$3-1)="","",VLOOKUP(INDEX(campsByItinerary,numericItinerary($A9),BM$3-1),campInfo,10)) ->  | CM9: Y | CP9: Y | CR9: =INDEX(campsByItinerary,numericItinerary($A9),BD$3-1) -> Herradura | CS9: =IF(INDEX(campsByItinerary,numericItinerary($A9),BE$3-1)="","",VLOOKUP(INDEX(campsByItinerary,numericItinerary($A9),BE$3-1),campInfo,2)) -> South | CT9: =IF(INDEX(campsByItinerary,numericItinerary($A9),BF$3-1)="","",VLOOKUP(INDEX(campsByItinerary,numericItinerary($A9),BF$3-1),campInfo,2)) -> Central | CU9: =IF(INDEX(campsByItinerary,numericItinerary($A9),BG$3-1)="","",VLOOKUP(INDEX(campsByItinerary,numericItinerary($A9),BG$3-1),campInfo,2)) -> Central | CV9: =IF(INDEX(campsByItinerary,numericItinerary($A9),BH$3-1)="","",VLOOKUP(INDEX(campsByItinerary,numericItinerary($A9),BH$3-1),campInfo,2)) -> Central | CW9: =IF(INDEX(campsByItinerary,numericItinerary($A9),BI$3-1)="","",VLOOKUP(INDEX(campsByItinerary,numericItinerary($A9),BI$3-1),campInfo,2)) -> Central | CX9: =IF(INDEX(campsByItinerary,numericItinerary($A9),BJ$3-1)="","",VLOOKUP(INDEX(campsByItinerary,numericItinerary($A9),BJ$3-1),campInfo,2)) -> North | CY9: =IF(INDEX(campsByItinerary,numericItinerary($A9),BK$3-1)="","",VLOOKUP(INDEX(campsByItinerary,numericItinerary($A9),BK$3-1),campInfo,2)) -> North | CZ9: =IF(INDEX(campsByItinerary,numericItinerary($A9),BL$3-1)="","",VLOOKUP(INDEX(campsByItinerary,numericItinerary($A9),BL$3-1),campInfo,2)) -> North | DA9: =IF(INDEX(campsByItinerary,numericItinerary($A9),BM$3-1)="","",VLOOKUP(INDEX(campsByItinerary,numericItinerary($A9),BM$3-1),campInfo,2)) -> North | DB9: =IF(INDEX(campsByItinerary,numericItinerary($A9),BD$3-1)="","",VLOOKUP(INDEX(campsByItinerary,numericItinerary($A9),BD$3-1),campInfo,12)) -> South | DC9: =IF(INDEX(campsByItinerary,numericItinerary($A9),BE$3-1)="","",VLOOKUP(INDEX(campsByItinerary,numericItinerary($A9),BE$3-1),campInfo,12)) -> South | DD9: =IF(INDEX(campsByItinerary,numericItinerary($A9),BF$3-1)="","",VLOOKUP(INDEX(campsByItinerary,numericItinerary($A9),BF$3-1),campInfo,12)) -> South | DE9: =IF(INDEX(campsByItinerary,numericItinerary($A9),BG$3-1)="","",VLOOKUP(INDEX(campsByItinerary,numericItinerary($A9),BG$3-1),campInfo,12)) -> South | DF9: =IF(INDEX(campsByItinerary,numericItinerary($A9),BH$3-1)="","",VLOOKUP(INDEX(campsByItinerary,numericItinerary($A9),BH$3-1),campInfo,12)) -> North & South | DG9: =IF(INDEX(campsByItinerary,numericItinerary($A9),BI$3-1)="","",VLOOKUP(INDEX(campsByItinerary,numericItinerary($A9),BI$3-1),campInfo,12)) -> North & South | DH9: =IF(INDEX(campsByItinerary,numericItinerary($A9),BJ$3-1)="","",VLOOKUP(INDEX(campsByItinerary,numericItinerary($A9),BJ$3-1),campInfo,12)) -> North | DI9: =IF(INDEX(campsByItinerary,numericItinerary($A9),BK$3-1)="","",VLOOKUP(INDEX(campsByItinerary,numericItinerary($A9),BK$3-1),campInfo,12)) -> North | DJ9: =IF(INDEX(campsByItinerary,numericItinerary($A9),BL$3-1)="","",VLOOKUP(INDEX(campsByItinerary,numericItinerary($A9),BL$3-1),campInfo,12)) -> North | DK9: =IF(INDEX(campsByItinerary,numericItinerary($A9),BM$3-1)="","",VLOOKUP(INDEX(campsByItinerary,numericItinerary($A9),BM$3-1),campInfo,12)) -> North | DL9: =getfoodPU("First",numericItinerary($A9)) -> 1 | DM9: =getfoodPU("Max",numericItinerary($A9)) -> 3
A10: 12-7 | C10: R | D10: 69 | E10: Sioux | F10: Rich Cabins | G10: Beatty Lakes | H10: Whiteman Vega | I10: Ring Place | J10: Iris Park | K10: Greenwood Canyon | L10: Copper Park | M10: Copper Park | N10: Miranda | O10: Camping HQ | P10: Rich Cabins | S10: Ring Place | W10: Baldy Town | Y10: Ponil | Z10: Maxwell | AE10: =IF(ItineraryPrograms!AD9="y","y","") -> y | AF10: =IF(ItineraryPrograms!AE9="y","y","") ->  | AG10: =IF(ItineraryPrograms!AF9="y","y","") ->  | AI10: =checkTooth(AA10,LOWER(ItineraryPrograms!AH9)) ->  | AK10: 7382 | AL10: 7728 | AM10: 8178.658 | AN10: 8061 | AO10: 8124 | AP10: 8571 | AQ10: 8300 | AR10: 10530 | AS10: 10530 | AT10: 8898 | AU10: 346 | AV10: 450.658 | AW10: 117.658 | AX10: 63 | AY10: 447 | AZ10: 271 | BA10: 2230 | BB10: 0 | BC10: 1632 | BD10: =IF(INDEX(campsByItinerary,numericItinerary($A10),BD$3-1)="","",VLOOKUP(INDEX(campsByItinerary,numericItinerary($A10),BD$3-1),campInfo,8)) ->  | BE10: =IF(INDEX(campsByItinerary,numericItinerary($A10),BE$3-1)="","",VLOOKUP(INDEX(campsByItinerary,numericItinerary($A10),BE$3-1),campInfo,8)) -> Y | BF10: =IF(INDEX(campsByItinerary,numericItinerary($A10),BF$3-1)="","",VLOOKUP(INDEX(campsByItinerary,numericItinerary($A10),BF$3-1),campInfo,8)) ->  | BG10: =IF(INDEX(campsByItinerary,numericItinerary($A10),BG$3-1)="","",VLOOKUP(INDEX(campsByItinerary,numericItinerary($A10),BG$3-1),campInfo,8)) -> Y | BH10: =IF(INDEX(campsByItinerary,numericItinerary($A10),BH$3-1)="","",VLOOKUP(INDEX(campsByItinerary,numericItinerary($A10),BH$3-1),campInfo,8)) -> Y | BI10: =IF(INDEX(campsByItinerary,numericItinerary($A10),BI$3-1)="","",VLOOKUP(INDEX(campsByItinerary,numericItinerary($A10),BI$3-1),campInfo,8)) ->  | BJ10: =IF(INDEX(campsByItinerary,numericItinerary($A10),BJ$3-1)="","",VLOOKUP(INDEX(campsByItinerary,numericItinerary($A10),BJ$3-1),campInfo,8)) ->  | BK10: =IF(INDEX(campsByItinerary,numericItinerary($A10),BK$3-1)="","",VLOOKUP(INDEX(campsByItinerary,numericItinerary($A10),BK$3-1),campInfo,8)) ->  | BL10: =IF(INDEX(campsByItinerary,numericItinerary($A10),BL$3-1)="","",VLOOKUP(INDEX(campsByItinerary,numericItinerary($A10),BL$3-1),campInfo,8)) ->  | BM10: =IF(INDEX(campsByItinerary,numericItinerary($A10),BM$3-1)="","",VLOOKUP(INDEX(campsByItinerary,numericItinerary($A10),BM$3-1),campInfo,8)) -> Y | BN10: Y | BP10: Y | BS10: Y | BT10: Y | BU10: Y | BV10: Y | BX10: =IF(INDEX(campsByItinerary,numericItinerary($A10),BD$3-1)="","",VLOOKUP(INDEX(campsByItinerary,numericItinerary($A10),BD$3-1),campInfo,10)) ->  | BY10: =IF(INDEX(campsByItinerary,numericItinerary($A10),BE$3-1)="","",VLOOKUP(INDEX(campsByItinerary,numericItinerary($A10),BE$3-1),campInfo,10)) ->  | BZ10: =IF(INDEX(campsByItinerary,numericItinerary($A10),BF$3-1)="","",VLOOKUP(INDEX(campsByItinerary,numericItinerary($A10),BF$3-1),campInfo,10)) -> Y | CA10: =IF(INDEX(campsByItinerary,numericItinerary($A10),BG$3-1)="","",VLOOKUP(INDEX(campsByItinerary,numericItinerary($A10),BG$3-1),campInfo,10)) ->  | CB10: =IF(INDEX(campsByItinerary,numericItinerary($A10),BH$3-1)="","",VLOOKUP(INDEX(campsByItinerary,numericItinerary($A10),BH$3-1),campInfo,10)) ->  | CC10: =IF(INDEX(campsByItinerary,numericItinerary($A10),BI$3-1)="","",VLOOKUP(INDEX(campsByItinerary,numericItinerary($A10),BI$3-1),campInfo,10)) ->  | CD10: =IF(INDEX(campsByItinerary,numericItinerary($A10),BJ$3-1)="","",VLOOKUP(INDEX(campsByItinerary,numericItinerary($A10),BJ$3-1),campInfo,10)) ->  | CE10: =IF(INDEX(campsByItinerary,numericItinerary($A10),BK$3-1)="","",VLOOKUP(INDEX(campsByItinerary,numericItinerary($A10),BK$3-1),campInfo,10)) ->  | CF10: =IF(INDEX(campsByItinerary,numericItinerary($A10),BL$3-1)="","",VLOOKUP(INDEX(campsByItinerary,numericItinerary($A10),BL$3-1),campInfo,10)) ->  | CG10: =IF(INDEX(campsByItinerary,numericItinerary($A10),BM$3-1)="","",VLOOKUP(INDEX(campsByItinerary,numericItinerary($A10),BM$3-1),campInfo,10)) ->  | CP10: Y | CR10: =INDEX(campsByItinerary,numericItinerary($A10),BD$3-1) -> Sioux | CS10: =IF(INDEX(campsByItinerary,numericItinerary($A10),BE$3-1)="","",VLOOKUP(INDEX(campsByItinerary,numericItinerary($A10),BE$3-1),campInfo,2)) -> Valle Vidal | CT10: =IF(INDEX(campsByItinerary,numericItinerary($A10),BF$3-1)="","",VLOOKUP(INDEX(campsByItinerary,numericItinerary($A10),BF$3-1),campInfo,2)) -> Valle Vidal | CU10: =IF(INDEX(campsByItinerary,numericItinerary($A10),BG$3-1)="","",VLOOKUP(INDEX(campsByItinerary,numericItinerary($A10),BG$3-1),campInfo,2)) -> Valle Vidal | CV10: =IF(INDEX(campsByItinerary,numericItinerary($A10),BH$3-1)="","",VLOOKUP(INDEX(campsByItinerary,numericItinerary($A10),BH$3-1),campInfo,2)) -> Valle Vidal | CW10: =IF(INDEX(campsByItinerary,numericItinerary($A10),BI$3-1)="","",VLOOKUP(INDEX(campsByItinerary,numericItinerary($A10),BI$3-1),campInfo,2)) -> Valle Vidal | CX10: =IF(INDEX(campsByItinerary,numericItinerary($A10),BJ$3-1)="","",VLOOKUP(INDEX(campsByItinerary,numericItinerary($A10),BJ$3-1),campInfo,2)) -> Valle Vidal | CY10: =IF(INDEX(campsByItinerary,numericItinerary($A10),BK$3-1)="","",VLOOKUP(INDEX(campsByItinerary,numericItinerary($A10),BK$3-1),campInfo,2)) -> North | CZ10: =IF(INDEX(campsByItinerary,numericItinerary($A10),BL$3-1)="","",VLOOKUP(INDEX(campsByItinerary,numericItinerary($A10),BL$3-1),campInfo,2)) -> North | DA10: =IF(INDEX(campsByItinerary,numericItinerary($A10),BM$3-1)="","",VLOOKUP(INDEX(campsByItinerary,numericItinerary($A10),BM$3-1),campInfo,2)) -> North | DB10: =IF(INDEX(campsByItinerary,numericItinerary($A10),BD$3-1)="","",VLOOKUP(INDEX(campsByItinerary,numericItinerary($A10),BD$3-1),campInfo,12)) -> North | DC10: =IF(INDEX(campsByItinerary,numericItinerary($A10),BE$3-1)="","",VLOOKUP(INDEX(campsByItinerary,numericItinerary($A10),BE$3-1),campInfo,12)) -> North | DD10: =IF(INDEX(campsByItinerary,numericItinerary($A10),BF$3-1)="","",VLOOKUP(INDEX(campsByItinerary,numericItinerary($A10),BF$3-1),campInfo,12)) -> North | DE10: =IF(INDEX(campsByItinerary,numericItinerary($A10),BG$3-1)="","",VLOOKUP(INDEX(campsByItinerary,numericItinerary($A10),BG$3-1),campInfo,12)) -> North | DF10: =IF(INDEX(campsByItinerary,numericItinerary($A10),BH$3-1)="","",VLOOKUP(INDEX(campsByItinerary,numericItinerary($A10),BH$3-1),campInfo,12)) -> North | DG10: =IF(INDEX(campsByItinerary,numericItinerary($A10),BI$3-1)="","",VLOOKUP(INDEX(campsByItinerary,numericItinerary($A10),BI$3-1),campInfo,12)) -> North | DH10: =IF(INDEX(campsByItinerary,numericItinerary($A10),BJ$3-1)="","",VLOOKUP(INDEX(campsByItinerary,numericItinerary($A10),BJ$3-1),campInfo,12)) -> North | DI10: =IF(INDEX(campsByItinerary,numericItinerary($A10),BK$3-1)="","",VLOOKUP(INDEX(campsByItinerary,numericItinerary($A10),BK$3-1),campInfo,12)) -> North | DJ10: =IF(INDEX(campsByItinerary,numericItinerary($A10),BL$3-1)="","",VLOOKUP(INDEX(campsByItinerary,numericItinerary($A10),BL$3-1),campInfo,12)) -> North | DK10: =IF(INDEX(campsByItinerary,numericItinerary($A10),BM$3-1)="","",VLOOKUP(INDEX(campsByItinerary,numericItinerary($A10),BM$3-1),campInfo,12)) -> North | DL10: =getfoodPU("First",numericItinerary($A10)) -> 1 | DM10: =getfoodPU("Max",numericItinerary($A10)) -> 3
A11: 12-8 | C11: R | D11: 55 | E11: House Canyon | F11: Indian Writings | G11: Horse Canyon | H11: Dean Skyline | I11: Pueblano | J11: Placer | K11: Placer | L11: Head of Dean | M11: New Dean | N11: Cimarron River | O11: Camping HQ | R11: Ponil | U11: Baldy Town | Y11: Six Mile Gate | Z11: Ute Park | AB11: 11 | AC11: Bear Canyon | AD11: S | AE11: =IF(ItineraryPrograms!AD10="y","y","") -> y | AF11: =IF(ItineraryPrograms!AE10="y","y","") ->  | AG11: =IF(ItineraryPrograms!AF10="y","y","") ->  | AH11: y | AI11: =checkTooth(AA11,LOWER(ItineraryPrograms!AH10)) ->  | AK11: 7157 | AL11: 6979 | AM11: 8128 | AN11: 7967 | AO11: 8069 | AP11: 9483.43 | AQ11: 9483.43 | AR11: 8754 | AS11: 7724 | AT11: 7282 | AU11: 178 | AV11: 1149 | AW11: 161 | AX11: 102 | AY11: 1414.43 | AZ11: 0 | BA11: 729.43 | BB11: 1030 | BC11: 442 | BD11: =IF(INDEX(campsByItinerary,numericItinerary($A11),BD$3-1)="","",VLOOKUP(INDEX(campsByItinerary,numericItinerary($A11),BD$3-1),campInfo,8)) ->  | BE11: =IF(INDEX(campsByItinerary,numericItinerary($A11),BE$3-1)="","",VLOOKUP(INDEX(campsByItinerary,numericItinerary($A11),BE$3-1),campInfo,8)) -> Y | BF11: =IF(INDEX(campsByItinerary,numericItinerary($A11),BF$3-1)="","",VLOOKUP(INDEX(campsByItinerary,numericItinerary($A11),BF$3-1),campInfo,8)) ->  | BG11: =IF(INDEX(campsByItinerary,numericItinerary($A11),BG$3-1)="","",VLOOKUP(INDEX(campsByItinerary,numericItinerary($A11),BG$3-1),campInfo,8)) ->  | BH11: =IF(INDEX(campsByItinerary,numericItinerary($A11),BH$3-1)="","",VLOOKUP(INDEX(campsByItinerary,numericItinerary($A11),BH$3-1),campInfo,8)) -> Y | BI11: =IF(INDEX(campsByItinerary,numericItinerary($A11),BI$3-1)="","",VLOOKUP(INDEX(campsByItinerary,numericItinerary($A11),BI$3-1),campInfo,8)) ->  | BJ11: =IF(INDEX(campsByItinerary,numericItinerary($A11),BJ$3-1)="","",VLOOKUP(INDEX(campsByItinerary,numericItinerary($A11),BJ$3-1),campInfo,8)) ->  | BK11: =IF(INDEX(campsByItinerary,numericItinerary($A11),BK$3-1)="","",VLOOKUP(INDEX(campsByItinerary,numericItinerary($A11),BK$3-1),campInfo,8)) -> Y | BL11: =IF(INDEX(campsByItinerary,numericItinerary($A11),BL$3-1)="","",VLOOKUP(INDEX(campsByItinerary,numericItinerary($A11),BL$3-1),campInfo,8)) ->  | BM11: =IF(INDEX(campsByItinerary,numericItinerary($A11),BM$3-1)="","",VLOOKUP(INDEX(campsByItinerary,numericItinerary($A11),BM$3-1),campInfo,8)) ->  | BN11: Y | BP11: Y | BQ11: Y | BS11: Y | BT11: Y | BV11: Y | BW11: Y | BX11: =IF(INDEX(campsByItinerary,numericItinerary($A11),BD$3-1)="","",VLOOKUP(INDEX(campsByItinerary,numericItinerary($A11),BD$3-1),campInfo,10)) ->  | BY11: =IF(INDEX(campsByItinerary,numericItinerary($A11),BE$3-1)="","",VLOOKUP(INDEX(campsByItinerary,numericItinerary($A11),BE$3-1),campInfo,10)) ->  | BZ11: =IF(INDEX(campsByItinerary,numericItinerary($A11),BF$3-1)="","",VLOOKUP(INDEX(campsByItinerary,numericItinerary($A11),BF$3-1),campInfo,10)) ->  | CA11: =IF(INDEX(campsByItinerary,numericItinerary($A11),BG$3-1)="","",VLOOKUP(INDEX(campsByItinerary,numericItinerary($A11),BG$3-1),campInfo,10)) -> Y | CB11: =IF(INDEX(campsByItinerary,numericItinerary($A11),BH$3-1)="","",VLOOKUP(INDEX(campsByItinerary,numericItinerary($A11),BH$3-1),campInfo,10)) ->  | CC11: =IF(INDEX(campsByItinerary,numericItinerary($A11),BI$3-1)="","",VLOOKUP(INDEX(campsByItinerary,numericItinerary($A11),BI$3-1),campInfo,10)) ->  | CD11: =IF(INDEX(campsByItinerary,numericItinerary($A11),BJ$3-1)="","",VLOOKUP(INDEX(campsByItinerary,numericItinerary($A11),BJ$3-1),campInfo,10)) ->  | CE11: =IF(INDEX(campsByItinerary,numericItinerary($A11),BK$3-1)="","",VLOOKUP(INDEX(campsByItinerary,numericItinerary($A11),BK$3-1),campInfo,10)) ->  | CF11: =IF(INDEX(campsByItinerary,numericItinerary($A11),BL$3-1)="","",VLOOKUP(INDEX(campsByItinerary,numericItinerary($A11),BL$3-1),campInfo,10)) ->  | CG11: =IF(INDEX(campsByItinerary,numericItinerary($A11),BM$3-1)="","",VLOOKUP(INDEX(campsByItinerary,numericItinerary($A11),BM$3-1),campInfo,10)) ->  | CN11: Y | CR11: =INDEX(campsByItinerary,numericItinerary($A11),BD$3-1) -> House Canyon | CS11: =IF(INDEX(campsByItinerary,numericItinerary($A11),BE$3-1)="","",VLOOKUP(INDEX(campsByItinerary,numericItinerary($A11),BE$3-1),campInfo,2)) -> North | CT11: =IF(INDEX(campsByItinerary,numericItinerary($A11),BF$3-1)="","",VLOOKUP(INDEX(campsByItinerary,numericItinerary($A11),BF$3-1),campInfo,2)) -> North | CU11: =IF(INDEX(campsByItinerary,numericItinerary($A11),BG$3-1)="","",VLOOKUP(INDEX(campsByItinerary,numericItinerary($A11),BG$3-1),campInfo,2)) -> North | CV11: =IF(INDEX(campsByItinerary,numericItinerary($A11),BH$3-1)="","",VLOOKUP(INDEX(campsByItinerary,numericItinerary($A11),BH$3-1),campInfo,2)) -> North | CW11: =IF(INDEX(campsByItinerary,numericItinerary($A11),BI$3-1)="","",VLOOKUP(INDEX(campsByItinerary,numericItinerary($A11),BI$3-1),campInfo,2)) -> North | CX11: =IF(INDEX(campsByItinerary,numericItinerary($A11),BJ$3-1)="","",VLOOKUP(INDEX(campsByItinerary,numericItinerary($A11),BJ$3-1),campInfo,2)) -> North | CY11: =IF(INDEX(campsByItinerary,numericItinerary($A11),BK$3-1)="","",VLOOKUP(INDEX(campsByItinerary,numericItinerary($A11),BK$3-1),campInfo,2)) -> North | CZ11: =IF(INDEX(campsByItinerary,numericItinerary($A11),BL$3-1)="","",VLOOKUP(INDEX(campsByItinerary,numericItinerary($A11),BL$3-1),campInfo,2)) -> North | DA11: =IF(INDEX(campsByItinerary,numericItinerary($A11),BM$3-1)="","",VLOOKUP(INDEX(campsByItinerary,numericItinerary($A11),BM$3-1),campInfo,2)) -> Central | DB11: =IF(INDEX(campsByItinerary,numericItinerary($A11),BD$3-1)="","",VLOOKUP(INDEX(campsByItinerary,numericItinerary($A11),BD$3-1),campInfo,12)) -> North | DC11: =IF(INDEX(campsByItinerary,numericItinerary($A11),BE$3-1)="","",VLOOKUP(INDEX(campsByItinerary,numericItinerary($A11),BE$3-1),campInfo,12)) -> North | DD11: =IF(INDEX(campsByItinerary,numericItinerary($A11),BF$3-1)="","",VLOOKUP(INDEX(campsByItinerary,numericItinerary($A11),BF$3-1),campInfo,12)) -> North | DE11: =IF(INDEX(campsByItinerary,numericItinerary($A11),BG$3-1)="","",VLOOKUP(INDEX(campsByItinerary,numericItinerary($A11),BG$3-1),campInfo,12)) -> North | DF11: =IF(INDEX(campsByItinerary,numericItinerary($A11),BH$3-1)="","",VLOOKUP(INDEX(campsByItinerary,numericItinerary($A11),BH$3-1),campInfo,12)) -> North | DG11: =IF(INDEX(campsByItinerary,numericItinerary($A11),BI$3-1)="","",VLOOKUP(INDEX(campsByItinerary,numericItinerary($A11),BI$3-1),campInfo,12)) -> North | DH11: =IF(INDEX(campsByItinerary,numericItinerary($A11),BJ$3-1)="","",VLOOKUP(INDEX(campsByItinerary,numericItinerary($A11),BJ$3-1),campInfo,12)) -> North | DI11: =IF(INDEX(campsByItinerary,numericItinerary($A11),BK$3-1)="","",VLOOKUP(INDEX(campsByItinerary,numericItinerary($A11),BK$3-1),campInfo,12)) -> North | DJ11: =IF(INDEX(campsByItinerary,numericItinerary($A11),BL$3-1)="","",VLOOKUP(INDEX(campsByItinerary,numericItinerary($A11),BL$3-1),campInfo,12)) -> North | DK11: =IF(INDEX(campsByItinerary,numericItinerary($A11),BM$3-1)="","",VLOOKUP(INDEX(campsByItinerary,numericItinerary($A11),BM$3-1),campInfo,12)) -> South | DL11: =getfoodPU("First",numericItinerary($A11)) -> 3 | DM11: =getfoodPU("Max",numericItinerary($A11)) -> 3
A12: 12-9 | C12: R | D12: 61 | E12: Dean Cow | F12: New Dean | G12: Ponil | H12: Flume Canyon | I12: Miranda | J12: Santa Claus | K12: Cimarroncita | L12: Cimarroncito | M12: Hunting Lodge | N12: Shaefers Pass | O12: Camping HQ | Q12: Ponil | V12: Ute Gulch | Y12: Nine Mile | Z12: Hike In | AA12: y | AB12: 8 | AC12: Bear Canyon | AD12: S | AE12: =IF(ItineraryPrograms!AD11="y","y","") ->  | AF12: =IF(ItineraryPrograms!AE11="y","y","") ->  | AG12: =IF(ItineraryPrograms!AF11="y","y","") ->  | AH12: y | AI12: =checkTooth(AA12,LOWER(ItineraryPrograms!AH11)) -> y | AK12: 7232 | AL12: 7724 | AM12: 7150 | AN12: 7715 | AO12: 8898 | AP12: 8438 | AQ12: 7373 | AR12: 8137 | AS12: 7776 | AT12: 8724 | AU12: 492 | AV12: 574 | AW12: 565 | AX12: 1183 | AY12: 460 | AZ12: 1065 | BA12: 764 | BB12: 361 | BC12: 948 | BD12: =IF(INDEX(campsByItinerary,numericItinerary($A12),BD$3-1)="","",VLOOKUP(INDEX(campsByItinerary,numericItinerary($A12),BD$3-1),campInfo,8)) -> Y | BE12: =IF(INDEX(campsByItinerary,numericItinerary($A12),BE$3-1)="","",VLOOKUP(INDEX(campsByItinerary,numericItinerary($A12),BE$3-1),campInfo,8)) ->  | BF12: =IF(INDEX(campsByItinerary,numericItinerary($A12),BF$3-1)="","",VLOOKUP(INDEX(campsByItinerary,numericItinerary($A12),BF$3-1),campInfo,8)) -> Y | BG12: =IF(INDEX(campsByItinerary,numericItinerary($A12),BG$3-1)="","",VLOOKUP(INDEX(campsByItinerary,numericItinerary($A12),BG$3-1),campInfo,8)) ->  | BH12: =IF(INDEX(campsByItinerary,numericItinerary($A12),BH$3-1)="","",VLOOKUP(INDEX(campsByItinerary,numericItinerary($A12),BH$3-1),campInfo,8)) -> Y | BI12: =IF(INDEX(campsByItinerary,numericItinerary($A12),BI$3-1)="","",VLOOKUP(INDEX(campsByItinerary,numericItinerary($A12),BI$3-1),campInfo,8)) -> Y | BJ12: =IF(INDEX(campsByItinerary,numericItinerary($A12),BJ$3-1)="","",VLOOKUP(INDEX(campsByItinerary,numericItinerary($A12),BJ$3-1),campInfo,8)) -> Y | BK12: =IF(INDEX(campsByItinerary,numericItinerary($A12),BK$3-1)="","",VLOOKUP(INDEX(campsByItinerary,numericItinerary($A12),BK$3-1),campInfo,8)) -> Y | BL12: =IF(INDEX(campsByItinerary,numericItinerary($A12),BL$3-1)="","",VLOOKUP(INDEX(campsByItinerary,numericItinerary($A12),BL$3-1),campInfo,8)) -> N | BM12: =IF(INDEX(campsByItinerary,numericItinerary($A12),BM$3-1)="","",VLOOKUP(INDEX(campsByItinerary,numericItinerary($A12),BM$3-1),campInfo,8)) ->  | BO12: Y | BQ12: Y | BV12: Y | BW12: Y | BX12: =IF(INDEX(campsByItinerary,numericItinerary($A12),BD$3-1)="","",VLOOKUP(INDEX(campsByItinerary,numericItinerary($A12),BD$3-1),campInfo,10)) ->  | BY12: =IF(INDEX(campsByItinerary,numericItinerary($A12),BE$3-1)="","",VLOOKUP(INDEX(campsByItinerary,numericItinerary($A12),BE$3-1),campInfo,10)) ->  | BZ12: =IF(INDEX(campsByItinerary,numericItinerary($A12),BF$3-1)="","",VLOOKUP(INDEX(campsByItinerary,numericItinerary($A12),BF$3-1),campInfo,10)) ->  | CA12: =IF(INDEX(campsByItinerary,numericItinerary($A12),BG$3-1)="","",VLOOKUP(INDEX(campsByItinerary,numericItinerary($A12),BG$3-1),campInfo,10)) ->  | CB12: =IF(INDEX(campsByItinerary,numericItinerary($A12),BH$3-1)="","",VLOOKUP(INDEX(campsByItinerary,numericItinerary($A12),BH$3-1),campInfo,10)) ->  | CC12: =IF(INDEX(campsByItinerary,numericItinerary($A12),BI$3-1)="","",VLOOKUP(INDEX(campsByItinerary,numericItinerary($A12),BI$3-1),campInfo,10)) ->  | CD12: =IF(INDEX(campsByItinerary,numericItinerary($A12),BJ$3-1)="","",VLOOKUP(INDEX(campsByItinerary,numericItinerary($A12),BJ$3-1),campInfo,10)) ->  | CE12: =IF(INDEX(campsByItinerary,numericItinerary($A12),BK$3-1)="","",VLOOKUP(INDEX(campsByItinerary,numericItinerary($A12),BK$3-1),campInfo,10)) ->  | CF12: =IF(INDEX(campsByItinerary,numericItinerary($A12),BL$3-1)="","",VLOOKUP(INDEX(campsByItinerary,numericItinerary($A12),BL$3-1),campInfo,10)) ->  | CG12: =IF(INDEX(campsByItinerary,numericItinerary($A12),BM$3-1)="","",VLOOKUP(INDEX(campsByItinerary,numericItinerary($A12),BM$3-1),campInfo,10)) -> Y | CR12: =INDEX(campsByItinerary,numericItinerary($A12),BD$3-1) -> Dean Cow | CS12: =IF(INDEX(campsByItinerary,numericItinerary($A12),BE$3-1)="","",VLOOKUP(INDEX(campsByItinerary,numericItinerary($A12),BE$3-1),campInfo,2)) -> North | CT12: =IF(INDEX(campsByItinerary,numericItinerary($A12),BF$3-1)="","",VLOOKUP(INDEX(campsByItinerary,numericItinerary($A12),BF$3-1),campInfo,2)) -> North | CU12: =IF(INDEX(campsByItinerary,numericItinerary($A12),BG$3-1)="","",VLOOKUP(INDEX(campsByItinerary,numericItinerary($A12),BG$3-1),campInfo,2)) -> North | CV12: =IF(INDEX(campsByItinerary,numericItinerary($A12),BH$3-1)="","",VLOOKUP(INDEX(campsByItinerary,numericItinerary($A12),BH$3-1),campInfo,2)) -> North | CW12: =IF(INDEX(campsByItinerary,numericItinerary($A12),BI$3-1)="","",VLOOKUP(INDEX(campsByItinerary,numericItinerary($A12),BI$3-1),campInfo,2)) -> North | CX12: =IF(INDEX(campsByItinerary,numericItinerary($A12),BJ$3-1)="","",VLOOKUP(INDEX(campsByItinerary,numericItinerary($A12),BJ$3-1),campInfo,2)) -> Central | CY12: =IF(INDEX(campsByItinerary,numericItinerary($A12),BK$3-1)="","",VLOOKUP(INDEX(campsByItinerary,numericItinerary($A12),BK$3-1),campInfo,2)) -> Central | CZ12: =IF(INDEX(campsByItinerary,numericItinerary($A12),BL$3-1)="","",VLOOKUP(INDEX(campsByItinerary,numericItinerary($A12),BL$3-1),campInfo,2)) -> Central | DA12: =IF(INDEX(campsByItinerary,numericItinerary($A12),BM$3-1)="","",VLOOKUP(INDEX(campsByItinerary,numericItinerary($A12),BM$3-1),campInfo,2)) -> Central | DB12: =IF(INDEX(campsByItinerary,numericItinerary($A12),BD$3-1)="","",VLOOKUP(INDEX(campsByItinerary,numericItinerary($A12),BD$3-1),campInfo,12)) -> North | DC12: =IF(INDEX(campsByItinerary,numericItinerary($A12),BE$3-1)="","",VLOOKUP(INDEX(campsByItinerary,numericItinerary($A12),BE$3-1),campInfo,12)) -> North | DD12: =IF(INDEX(campsByItinerary,numericItinerary($A12),BF$3-1)="","",VLOOKUP(INDEX(campsByItinerary,numericItinerary($A12),BF$3-1),campInfo,12)) -> North | DE12: =IF(INDEX(campsByItinerary,numericItinerary($A12),BG$3-1)="","",VLOOKUP(INDEX(campsByItinerary,numericItinerary($A12),BG$3-1),campInfo,12)) -> North | DF12: =IF(INDEX(campsByItinerary,numericItinerary($A12),BH$3-1)="","",VLOOKUP(INDEX(campsByItinerary,numericItinerary($A12),BH$3-1),campInfo,12)) -> North | DG12: =IF(INDEX(campsByItinerary,numericItinerary($A12),BI$3-1)="","",VLOOKUP(INDEX(campsByItinerary,numericItinerary($A12),BI$3-1),campInfo,12)) -> North | DH12: =IF(INDEX(campsByItinerary,numericItinerary($A12),BJ$3-1)="","",VLOOKUP(INDEX(campsByItinerary,numericItinerary($A12),BJ$3-1),campInfo,12)) -> North & South | DI12: =IF(INDEX(campsByItinerary,numericItinerary($A12),BK$3-1)="","",VLOOKUP(INDEX(campsByItinerary,numericItinerary($A12),BK$3-1),campInfo,12)) -> South | DJ12: =IF(INDEX(campsByItinerary,numericItinerary($A12),BL$3-1)="","",VLOOKUP(INDEX(campsByItinerary,numericItinerary($A12),BL$3-1),campInfo,12)) -> South | DK12: =IF(INDEX(campsByItinerary,numericItinerary($A12),BM$3-1)="","",VLOOKUP(INDEX(campsByItinerary,numericItinerary($A12),BM$3-1),campInfo,12)) -> South | DL12: =getfoodPU("First",numericItinerary($A12)) -> 2 | DM12: =getfoodPU("Max",numericItinerary($A12)) -> 5
A13: 12-10 | C13: R | D13: 53 | E13: Cimarron River | F13: Black Jacks | G13: Elkhorn | H13: Ponil | I13: Metcalf Station | J13: Dan Beard | K13: Pueblano Ruins | L13: Ewells Park | M13: Ewells Park | N13: Miranda | O13: Camping HQ | R13: Ponil | U13: Rich Cabins | Y13: Ute Park | Z13: Maxwell | AB13: 2 | AC13: Turkey Creek | AD13: N | AE13: =IF(ItineraryPrograms!AD12="y","y","") -> y | AF13: =IF(ItineraryPrograms!AE12="y","y","") ->  | AG13: =IF(ItineraryPrograms!AF12="y","y","") ->  | AH13: y | AI13: =checkTooth(AA13,LOWER(ItineraryPrograms!AH12)) ->  | AK13: 7282 | AL13: 8211 | AM13: 8496 | AN13: 7150 | AO13: 7220 | AP13: 7896 | AQ13: 8359 | AR13: 9373 | AS13: 9373 | AT13: 8898 | AU13: 929 | AV13: 285 | AW13: 1346 | AX13: 70 | AY13: 676 | AZ13: 463 | BA13: 1014 | BB13: 0 | BC13: 475 | BD13: =IF(INDEX(campsByItinerary,numericItinerary($A13),BD$3-1)="","",VLOOKUP(INDEX(campsByItinerary,numericItinerary($A13),BD$3-1),campInfo,8)) ->  | BE13: =IF(INDEX(campsByItinerary,numericItinerary($A13),BE$3-1)="","",VLOOKUP(INDEX(campsByItinerary,numericItinerary($A13),BE$3-1),campInfo,8)) ->  | BF13: =IF(INDEX(campsByItinerary,numericItinerary($A13),BF$3-1)="","",VLOOKUP(INDEX(campsByItinerary,numericItinerary($A13),BF$3-1),campInfo,8)) ->  | BG13: =IF(INDEX(campsByItinerary,numericItinerary($A13),BG$3-1)="","",VLOOKUP(INDEX(campsByItinerary,numericItinerary($A13),BG$3-1),campInfo,8)) -> Y | BH13: =IF(INDEX(campsByItinerary,numericItinerary($A13),BH$3-1)="","",VLOOKUP(INDEX(campsByItinerary,numericItinerary($A13),BH$3-1),campInfo,8)) -> Y | BI13: =IF(INDEX(campsByItinerary,numericItinerary($A13),BI$3-1)="","",VLOOKUP(INDEX(campsByItinerary,numericItinerary($A13),BI$3-1),campInfo,8)) -> Y | BJ13: =IF(INDEX(campsByItinerary,numericItinerary($A13),BJ$3-1)="","",VLOOKUP(INDEX(campsByItinerary,numericItinerary($A13),BJ$3-1),campInfo,8)) ->  | BK13: =IF(INDEX(campsByItinerary,numericItinerary($A13),BK$3-1)="","",VLOOKUP(INDEX(campsByItinerary,numericItinerary($A13),BK$3-1),campInfo,8)) ->  | BL13: =IF(INDEX(campsByItinerary,numericItinerary($A13),BL$3-1)="","",VLOOKUP(INDEX(campsByItinerary,numericItinerary($A13),BL$3-1),campInfo,8)) ->  | BM13: =IF(INDEX(campsByItinerary,numericItinerary($A13),BM$3-1)="","",VLOOKUP(INDEX(campsByItinerary,numericItinerary($A13),BM$3-1),campInfo,8)) -> Y | BN13: Y | BO13: Y | BP13: Y | BT13: Y | BU13: Y | BV13: Y | BX13: =IF(INDEX(campsByItinerary,numericItinerary($A13),BD$3-1)="","",VLOOKUP(INDEX(campsByItinerary,numericItinerary($A13),BD$3-1),campInfo,10)) ->  | BY13: =IF(INDEX(campsByItinerary,numericItinerary($A13),BE$3-1)="","",VLOOKUP(INDEX(campsByItinerary,numericItinerary($A13),BE$3-1),campInfo,10)) ->  | BZ13: =IF(INDEX(campsByItinerary,numericItinerary($A13),BF$3-1)="","",VLOOKUP(INDEX(campsByItinerary,numericItinerary($A13),BF$3-1),campInfo,10)) ->  | CA13: =IF(INDEX(campsByItinerary,numericItinerary($A13),BG$3-1)="","",VLOOKUP(INDEX(campsByItinerary,numericItinerary($A13),BG$3-1),campInfo,10)) ->  | CB13: =IF(INDEX(campsByItinerary,numericItinerary($A13),BH$3-1)="","",VLOOKUP(INDEX(campsByItinerary,numericItinerary($A13),BH$3-1),campInfo,10)) ->  | CC13: =IF(INDEX(campsByItinerary,numericItinerary($A13),BI$3-1)="","",VLOOKUP(INDEX(campsByItinerary,numericItinerary($A13),BI$3-1),campInfo,10)) ->  | CD13: =IF(INDEX(campsByItinerary,numericItinerary($A13),BJ$3-1)="","",VLOOKUP(INDEX(campsByItinerary,numericItinerary($A13),BJ$3-1),campInfo,10)) ->  | CE13: =IF(INDEX(campsByItinerary,numericItinerary($A13),BK$3-1)="","",VLOOKUP(INDEX(campsByItinerary,numericItinerary($A13),BK$3-1),campInfo,10)) ->  | CF13: =IF(INDEX(campsByItinerary,numericItinerary($A13),BL$3-1)="","",VLOOKUP(INDEX(campsByItinerary,numericItinerary($A13),BL$3-1),campInfo,10)) ->  | CG13: =IF(INDEX(campsByItinerary,numericItinerary($A13),BM$3-1)="","",VLOOKUP(INDEX(campsByItinerary,numericItinerary($A13),BM$3-1),campInfo,10)) ->  | CP13: Y | CR13: =INDEX(campsByItinerary,numericItinerary($A13),BD$3-1) -> Cimarron River | CS13: =IF(INDEX(campsByItinerary,numericItinerary($A13),BE$3-1)="","",VLOOKUP(INDEX(campsByItinerary,numericItinerary($A13),BE$3-1),campInfo,2)) -> North | CT13: =IF(INDEX(campsByItinerary,numericItinerary($A13),BF$3-1)="","",VLOOKUP(INDEX(campsByItinerary,numericItinerary($A13),BF$3-1),campInfo,2)) -> North | CU13: =IF(INDEX(campsByItinerary,numericItinerary($A13),BG$3-1)="","",VLOOKUP(INDEX(campsByItinerary,numericItinerary($A13),BG$3-1),campInfo,2)) -> North | CV13: =IF(INDEX(campsByItinerary,numericItinerary($A13),BH$3-1)="","",VLOOKUP(INDEX(campsByItinerary,numericItinerary($A13),BH$3-1),campInfo,2)) -> North | CW13: =IF(INDEX(campsByItinerary,numericItinerary($A13),BI$3-1)="","",VLOOKUP(INDEX(campsByItinerary,numericItinerary($A13),BI$3-1),campInfo,2)) -> North | CX13: =IF(INDEX(campsByItinerary,numericItinerary($A13),BJ$3-1)="","",VLOOKUP(INDEX(campsByItinerary,numericItinerary($A13),BJ$3-1),campInfo,2)) -> North | CY13: =IF(INDEX(campsByItinerary,numericItinerary($A13),BK$3-1)="","",VLOOKUP(INDEX(campsByItinerary,numericItinerary($A13),BK$3-1),campInfo,2)) -> North | CZ13: =IF(INDEX(campsByItinerary,numericItinerary($A13),BL$3-1)="","",VLOOKUP(INDEX(campsByItinerary,numericItinerary($A13),BL$3-1),campInfo,2)) -> North | DA13: =IF(INDEX(campsByItinerary,numericItinerary($A13),BM$3-1)="","",VLOOKUP(INDEX(campsByItinerary,numericItinerary($A13),BM$3-1),campInfo,2)) -> North | DB13: =IF(INDEX(campsByItinerary,numericItinerary($A13),BD$3-1)="","",VLOOKUP(INDEX(campsByItinerary,numericItinerary($A13),BD$3-1),campInfo,12)) -> South | DC13: =IF(INDEX(campsByItinerary,numericItinerary($A13),BE$3-1)="","",VLOOKUP(INDEX(campsByItinerary,numericItinerary($A13),BE$3-1),campInfo,12)) -> North | DD13: =IF(INDEX(campsByItinerary,numericItinerary($A13),BF$3-1)="","",VLOOKUP(INDEX(campsByItinerary,numericItinerary($A13),BF$3-1),campInfo,12)) -> North | DE13: =IF(INDEX(campsByItinerary,numericItinerary($A13),BG$3-1)="","",VLOOKUP(INDEX(campsByItinerary,numericItinerary($A13),BG$3-1),campInfo,12)) -> North | DF13: =IF(INDEX(campsByItinerary,numericItinerary($A13),BH$3-1)="","",VLOOKUP(INDEX(campsByItinerary,numericItinerary($A13),BH$3-1),campInfo,12)) -> North | DG13: =IF(INDEX(campsByItinerary,numericItinerary($A13),BI$3-1)="","",VLOOKUP(INDEX(campsByItinerary,numericItinerary($A13),BI$3-1),campInfo,12)) -> North | DH13: =IF(INDEX(campsByItinerary,numericItinerary($A13),BJ$3-1)="","",VLOOKUP(INDEX(campsByItinerary,numericItinerary($A13),BJ$3-1),campInfo,12)) -> North | DI13: =IF(INDEX(campsByItinerary,numericItinerary($A13),BK$3-1)="","",VLOOKUP(INDEX(campsByItinerary,numericItinerary($A13),BK$3-1),campInfo,12)) -> North | DJ13: =IF(INDEX(campsByItinerary,numericItinerary($A13),BL$3-1)="","",VLOOKUP(INDEX(campsByItinerary,numericItinerary($A13),BL$3-1),campInfo,12)) -> North | DK13: =IF(INDEX(campsByItinerary,numericItinerary($A13),BM$3-1)="","",VLOOKUP(INDEX(campsByItinerary,numericItinerary($A13),BM$3-1),campInfo,12)) -> North | DL13: =getfoodPU("First",numericItinerary($A13)) -> 3 | DM13: =getfoodPU("Max",numericItinerary($A13)) -> 3
A14: 12-11 | C14: R | D14: 64 | E14: Abreu | F14: Crater Lake | G14: Beaubien | H14: Beaubien | I14: Bear Creek | J14: Crooked Creek | K14: Divide | L14: Hunting Lodge | M14: Clarks Fork | N14: Tooth Ridge | O14: Camping HQ | S14: Phillips Junction | W14: Ute Gulch | Y14: Zastrow | Z14: Hike In | AA14: y | AE14: =IF(ItineraryPrograms!AD13="y","y","") ->  | AF14: =IF(ItineraryPrograms!AE13="y","y","") ->  | AG14: =IF(ItineraryPrograms!AF13="y","y","") ->  | AH14: y | AI14: =checkTooth(AA14,LOWER(ItineraryPrograms!AH13)) -> y | AK14: 7217 | AL14: 8398 | AM14: 9330 | AN14: 9330 | AO14: 9288 | AP14: 9360 | AQ14: 10509 | AR14: 7776 | AS14: 7515 | AT14: 8240 | AU14: 1181 | AV14: 932 | AW14: 0 | AX14: 42 | AY14: 72 | AZ14: 1149 | BA14: 2733 | BB14: 261 | BC14: 725 | BD14: =IF(INDEX(campsByItinerary,numericItinerary($A14),BD$3-1)="","",VLOOKUP(INDEX(campsByItinerary,numericItinerary($A14),BD$3-1),campInfo,8)) -> Y | BE14: =IF(INDEX(campsByItinerary,numericItinerary($A14),BE$3-1)="","",VLOOKUP(INDEX(campsByItinerary,numericItinerary($A14),BE$3-1),campInfo,8)) -> Y | BF14: =IF(INDEX(campsByItinerary,numericItinerary($A14),BF$3-1)="","",VLOOKUP(INDEX(campsByItinerary,numericItinerary($A14),BF$3-1),campInfo,8)) -> Y | BG14: =IF(INDEX(campsByItinerary,numericItinerary($A14),BG$3-1)="","",VLOOKUP(INDEX(campsByItinerary,numericItinerary($A14),BG$3-1),campInfo,8)) -> Y | BH14: =IF(INDEX(campsByItinerary,numericItinerary($A14),BH$3-1)="","",VLOOKUP(INDEX(campsByItinerary,numericItinerary($A14),BH$3-1),campInfo,8)) ->  | BI14: =IF(INDEX(campsByItinerary,numericItinerary($A14),BI$3-1)="","",VLOOKUP(INDEX(campsByItinerary,numericItinerary($A14),BI$3-1),campInfo,8)) -> Y | BJ14: =IF(INDEX(campsByItinerary,numericItinerary($A14),BJ$3-1)="","",VLOOKUP(INDEX(campsByItinerary,numericItinerary($A14),BJ$3-1),campInfo,8)) ->  | BK14: =IF(INDEX(campsByItinerary,numericItinerary($A14),BK$3-1)="","",VLOOKUP(INDEX(campsByItinerary,numericItinerary($A14),BK$3-1),campInfo,8)) -> N | BL14: =IF(INDEX(campsByItinerary,numericItinerary($A14),BL$3-1)="","",VLOOKUP(INDEX(campsByItinerary,numericItinerary($A14),BL$3-1),campInfo,8)) -> Y | BM14: =IF(INDEX(campsByItinerary,numericItinerary($A14),BM$3-1)="","",VLOOKUP(INDEX(campsByItinerary,numericItinerary($A14),BM$3-1),campInfo,8)) ->  | BR14: Y | BT14: Y | BU14: Y | BW14: Y | BX14: =IF(INDEX(campsByItinerary,numericItinerary($A14),BD$3-1)="","",VLOOKUP(INDEX(campsByItinerary,numericItinerary($A14),BD$3-1),campInfo,10)) ->  | BY14: =IF(INDEX(campsByItinerary,numericItinerary($A14),BE$3-1)="","",VLOOKUP(INDEX(campsByItinerary,numericItinerary($A14),BE$3-1),campInfo,10)) ->  | BZ14: =IF(INDEX(campsByItinerary,numericItinerary($A14),BF$3-1)="","",VLOOKUP(INDEX(campsByItinerary,numericItinerary($A14),BF$3-1),campInfo,10)) ->  | CA14: =IF(INDEX(campsByItinerary,numericItinerary($A14),BG$3-1)="","",VLOOKUP(INDEX(campsByItinerary,numericItinerary($A14),BG$3-1),campInfo,10)) ->  | CB14: =IF(INDEX(campsByItinerary,numericItinerary($A14),BH$3-1)="","",VLOOKUP(INDEX(campsByItinerary,numericItinerary($A14),BH$3-1),campInfo,10)) ->  | CC14: =IF(INDEX(campsByItinerary,numericItinerary($A14),BI$3-1)="","",VLOOKUP(INDEX(campsByItinerary,numericItinerary($A14),BI$3-1),campInfo,10)) ->  | CD14: =IF(INDEX(campsByItinerary,numericItinerary($A14),BJ$3-1)="","",VLOOKUP(INDEX(campsByItinerary,numericItinerary($A14),BJ$3-1),campInfo,10)) -> Y | CE14: =IF(INDEX(campsByItinerary,numericItinerary($A14),BK$3-1)="","",VLOOKUP(INDEX(campsByItinerary,numericItinerary($A14),BK$3-1),campInfo,10)) ->  | CF14: =IF(INDEX(campsByItinerary,numericItinerary($A14),BL$3-1)="","",VLOOKUP(INDEX(campsByItinerary,numericItinerary($A14),BL$3-1),campInfo,10)) ->  | CG14: =IF(INDEX(campsByItinerary,numericItinerary($A14),BM$3-1)="","",VLOOKUP(INDEX(campsByItinerary,numericItinerary($A14),BM$3-1),campInfo,10)) -> Y | CK14: Y | CR14: =INDEX(campsByItinerary,numericItinerary($A14),BD$3-1) -> Abreu | CS14: =IF(INDEX(campsByItinerary,numericItinerary($A14),BE$3-1)="","",VLOOKUP(INDEX(campsByItinerary,numericItinerary($A14),BE$3-1),campInfo,2)) -> South | CT14: =IF(INDEX(campsByItinerary,numericItinerary($A14),BF$3-1)="","",VLOOKUP(INDEX(campsByItinerary,numericItinerary($A14),BF$3-1),campInfo,2)) -> South | CU14: =IF(INDEX(campsByItinerary,numericItinerary($A14),BG$3-1)="","",VLOOKUP(INDEX(campsByItinerary,numericItinerary($A14),BG$3-1),campInfo,2)) -> South | CV14: =IF(INDEX(campsByItinerary,numericItinerary($A14),BH$3-1)="","",VLOOKUP(INDEX(campsByItinerary,numericItinerary($A14),BH$3-1),campInfo,2)) -> South | CW14: =IF(INDEX(campsByItinerary,numericItinerary($A14),BI$3-1)="","",VLOOKUP(INDEX(campsByItinerary,numericItinerary($A14),BI$3-1),campInfo,2)) -> South | CX14: =IF(INDEX(campsByItinerary,numericItinerary($A14),BJ$3-1)="","",VLOOKUP(INDEX(campsByItinerary,numericItinerary($A14),BJ$3-1),campInfo,2)) -> South | CY14: =IF(INDEX(campsByItinerary,numericItinerary($A14),BK$3-1)="","",VLOOKUP(INDEX(campsByItinerary,numericItinerary($A14),BK$3-1),campInfo,2)) -> Central | CZ14: =IF(INDEX(campsByItinerary,numericItinerary($A14),BL$3-1)="","",VLOOKUP(INDEX(campsByItinerary,numericItinerary($A14),BL$3-1),campInfo,2)) -> Central | DA14: =IF(INDEX(campsByItinerary,numericItinerary($A14),BM$3-1)="","",VLOOKUP(INDEX(campsByItinerary,numericItinerary($A14),BM$3-1),campInfo,2)) -> Central | DB14: =IF(INDEX(campsByItinerary,numericItinerary($A14),BD$3-1)="","",VLOOKUP(INDEX(campsByItinerary,numericItinerary($A14),BD$3-1),campInfo,12)) -> South | DC14: =IF(INDEX(campsByItinerary,numericItinerary($A14),BE$3-1)="","",VLOOKUP(INDEX(campsByItinerary,numericItinerary($A14),BE$3-1),campInfo,12)) -> South | DD14: =IF(INDEX(campsByItinerary,numericItinerary($A14),BF$3-1)="","",VLOOKUP(INDEX(campsByItinerary,numericItinerary($A14),BF$3-1),campInfo,12)) -> South | DE14: =IF(INDEX(campsByItinerary,numericItinerary($A14),BG$3-1)="","",VLOOKUP(INDEX(campsByItinerary,numericItinerary($A14),BG$3-1),campInfo,12)) -> South | DF14: =IF(INDEX(campsByItinerary,numericItinerary($A14),BH$3-1)="","",VLOOKUP(INDEX(campsByItinerary,numericItinerary($A14),BH$3-1),campInfo,12)) -> South | DG14: =IF(INDEX(campsByItinerary,numericItinerary($A14),BI$3-1)="","",VLOOKUP(INDEX(campsByItinerary,numericItinerary($A14),BI$3-1),campInfo,12)) -> South | DH14: =IF(INDEX(campsByItinerary,numericItinerary($A14),BJ$3-1)="","",VLOOKUP(INDEX(campsByItinerary,numericItinerary($A14),BJ$3-1),campInfo,12)) -> South | DI14: =IF(INDEX(campsByItinerary,numericItinerary($A14),BK$3-1)="","",VLOOKUP(INDEX(campsByItinerary,numericItinerary($A14),BK$3-1),campInfo,12)) -> South | DJ14: =IF(INDEX(campsByItinerary,numericItinerary($A14),BL$3-1)="","",VLOOKUP(INDEX(campsByItinerary,numericItinerary($A14),BL$3-1),campInfo,12)) -> South | DK14: =IF(INDEX(campsByItinerary,numericItinerary($A14),BM$3-1)="","",VLOOKUP(INDEX(campsByItinerary,numericItinerary($A14),BM$3-1),campInfo,12)) -> South | DL14: =getfoodPU("First",numericItinerary($A14)) -> 4 | DM14: =getfoodPU("Max",numericItinerary($A14)) -> 4
A15: 12-12 | C15: R | D15: 61 | E15: Rimrock Park | F15: Carson Meadows | G15: Fish Camp | H15: Crooked Creek | I15: Comanche Peak | J15: Beaubien | K15: Beaubien | L15: Bear Caves | M15: Miners Park | N15: Shaefers Pass | O15: Camping HQ | R15: Phillips Junction | U15: Phillips Junction | W15: Miners Park | Y15: Zastrow | Z15: Hike In | AA15: y | AE15: =IF(ItineraryPrograms!AD14="y","y","") ->  | AF15: =IF(ItineraryPrograms!AE14="y","y","") ->  | AG15: =IF(ItineraryPrograms!AF14="y","y","") -> y | AH15: y | AI15: =checkTooth(AA15,LOWER(ItineraryPrograms!AH14)) -> y | AJ15: y | AK15: 7359 | AL15: 7758 | AM15: 8564 | AN15: 9360 | AO15: 11070 | AP15: 9330 | AQ15: 9330 | AR15: 8423 | AS15: 7977 | AT15: 8724 | AU15: 399 | AV15: 806 | AW15: 796 | AX15: 1710 | AY15: 1740 | AZ15: 0 | BA15: 907 | BB15: 446 | BC15: 747 | BD15: =IF(INDEX(campsByItinerary,numericItinerary($A15),BD$3-1)="","",VLOOKUP(INDEX(campsByItinerary,numericItinerary($A15),BD$3-1),campInfo,8)) ->  | BE15: =IF(INDEX(campsByItinerary,numericItinerary($A15),BE$3-1)="","",VLOOKUP(INDEX(campsByItinerary,numericItinerary($A15),BE$3-1),campInfo,8)) -> N | BF15: =IF(INDEX(campsByItinerary,numericItinerary($A15),BF$3-1)="","",VLOOKUP(INDEX(campsByItinerary,numericItinerary($A15),BF$3-1),campInfo,8)) -> N | BG15: =IF(INDEX(campsByItinerary,numericItinerary($A15),BG$3-1)="","",VLOOKUP(INDEX(campsByItinerary,numericItinerary($A15),BG$3-1),campInfo,8)) -> Y | BH15: =IF(INDEX(campsByItinerary,numericItinerary($A15),BH$3-1)="","",VLOOKUP(INDEX(campsByItinerary,numericItinerary($A15),BH$3-1),campInfo,8)) ->  | BI15: =IF(INDEX(campsByItinerary,numericItinerary($A15),BI$3-1)="","",VLOOKUP(INDEX(campsByItinerary,numericItinerary($A15),BI$3-1),campInfo,8)) -> Y | BJ15: =IF(INDEX(campsByItinerary,numericItinerary($A15),BJ$3-1)="","",VLOOKUP(INDEX(campsByItinerary,numericItinerary($A15),BJ$3-1),campInfo,8)) -> Y | BK15: =IF(INDEX(campsByItinerary,numericItinerary($A15),BK$3-1)="","",VLOOKUP(INDEX(campsByItinerary,numericItinerary($A15),BK$3-1),campInfo,8)) ->  | BL15: =IF(INDEX(campsByItinerary,numericItinerary($A15),BL$3-1)="","",VLOOKUP(INDEX(campsByItinerary,numericItinerary($A15),BL$3-1),campInfo,8)) -> Y | BM15: =IF(INDEX(campsByItinerary,numericItinerary($A15),BM$3-1)="","",VLOOKUP(INDEX(campsByItinerary,numericItinerary($A15),BM$3-1),campInfo,8)) ->  | BN15: Y | BO15: Y | BP15: Y | BR15: Y | BU15: Y | BW15: Y | BX15: =IF(INDEX(campsByItinerary,numericItinerary($A15),BD$3-1)="","",VLOOKUP(INDEX(campsByItinerary,numericItinerary($A15),BD$3-1),campInfo,10)) -> Y | BY15: =IF(INDEX(campsByItinerary,numericItinerary($A15),BE$3-1)="","",VLOOKUP(INDEX(campsByItinerary,numericItinerary($A15),BE$3-1),campInfo,10)) ->  | BZ15: =IF(INDEX(campsByItinerary,numericItinerary($A15),BF$3-1)="","",VLOOKUP(INDEX(campsByItinerary,numericItinerary($A15),BF$3-1),campInfo,10)) ->  | CA15: =IF(INDEX(campsByItinerary,numericItinerary($A15),BG$3-1)="","",VLOOKUP(INDEX(campsByItinerary,numericItinerary($A15),BG$3-1),campInfo,10)) ->  | CB15: =IF(INDEX(campsByItinerary,numericItinerary($A15),BH$3-1)="","",VLOOKUP(INDEX(campsByItinerary,numericItinerary($A15),BH$3-1),campInfo,10)) -> Y | CC15: =IF(INDEX(campsByItinerary,numericItinerary($A15),BI$3-1)="","",VLOOKUP(INDEX(campsByItinerary,numericItinerary($A15),BI$3-1),campInfo,10)) ->  | CD15: =IF(INDEX(campsByItinerary,numericItinerary($A15),BJ$3-1)="","",VLOOKUP(INDEX(campsByItinerary,numericItinerary($A15),BJ$3-1),campInfo,10)) ->  | CE15: =IF(INDEX(campsByItinerary,numericItinerary($A15),BK$3-1)="","",VLOOKUP(INDEX(campsByItinerary,numericItinerary($A15),BK$3-1),campInfo,10)) ->  | CF15: =IF(INDEX(campsByItinerary,numericItinerary($A15),BL$3-1)="","",VLOOKUP(INDEX(campsByItinerary,numericItinerary($A15),BL$3-1),campInfo,10)) ->  | CG15: =IF(INDEX(campsByItinerary,numericItinerary($A15),BM$3-1)="","",VLOOKUP(INDEX(campsByItinerary,numericItinerary($A15),BM$3-1),campInfo,10)) -> Y | CN15: Y | CR15: =INDEX(campsByItinerary,numericItinerary($A15),BD$3-1) -> Rimrock Park | CS15: =IF(INDEX(campsByItinerary,numericItinerary($A15),BE$3-1)="","",VLOOKUP(INDEX(campsByItinerary,numericItinerary($A15),BE$3-1),campInfo,2)) -> South | CT15: =IF(INDEX(campsByItinerary,numericItinerary($A15),BF$3-1)="","",VLOOKUP(INDEX(campsByItinerary,numericItinerary($A15),BF$3-1),campInfo,2)) -> South | CU15: =IF(INDEX(campsByItinerary,numericItinerary($A15),BG$3-1)="","",VLOOKUP(INDEX(campsByItinerary,numericItinerary($A15),BG$3-1),campInfo,2)) -> South | CV15: =IF(INDEX(campsByItinerary,numericItinerary($A15),BH$3-1)="","",VLOOKUP(INDEX(campsByItinerary,numericItinerary($A15),BH$3-1),campInfo,2)) -> Central | CW15: =IF(INDEX(campsByItinerary,numericItinerary($A15),BI$3-1)="","",VLOOKUP(INDEX(campsByItinerary,numericItinerary($A15),BI$3-1),campInfo,2)) -> South | CX15: =IF(INDEX(campsByItinerary,numericItinerary($A15),BJ$3-1)="","",VLOOKUP(INDEX(campsByItinerary,numericItinerary($A15),BJ$3-1),campInfo,2)) -> South | CY15: =IF(INDEX(campsByItinerary,numericItinerary($A15),BK$3-1)="","",VLOOKUP(INDEX(campsByItinerary,numericItinerary($A15),BK$3-1),campInfo,2)) -> South | CZ15: =IF(INDEX(campsByItinerary,numericItinerary($A15),BL$3-1)="","",VLOOKUP(INDEX(campsByItinerary,numericItinerary($A15),BL$3-1),campInfo,2)) -> South | DA15: =IF(INDEX(campsByItinerary,numericItinerary($A15),BM$3-1)="","",VLOOKUP(INDEX(campsByItinerary,numericItinerary($A15),BM$3-1),campInfo,2)) -> Central | DB15: =IF(INDEX(campsByItinerary,numericItinerary($A15),BD$3-1)="","",VLOOKUP(INDEX(campsByItinerary,numericItinerary($A15),BD$3-1),campInfo,12)) -> South | DC15: =IF(INDEX(campsByItinerary,numericItinerary($A15),BE$3-1)="","",VLOOKUP(INDEX(campsByItinerary,numericItinerary($A15),BE$3-1),campInfo,12)) -> South | DD15: =IF(INDEX(campsByItinerary,numericItinerary($A15),BF$3-1)="","",VLOOKUP(INDEX(campsByItinerary,numericItinerary($A15),BF$3-1),campInfo,12)) -> South | DE15: =IF(INDEX(campsByItinerary,numericItinerary($A15),BG$3-1)="","",VLOOKUP(INDEX(campsByItinerary,numericItinerary($A15),BG$3-1),campInfo,12)) -> South | DF15: =IF(INDEX(campsByItinerary,numericItinerary($A15),BH$3-1)="","",VLOOKUP(INDEX(campsByItinerary,numericItinerary($A15),BH$3-1),campInfo,12)) -> South | DG15: =IF(INDEX(campsByItinerary,numericItinerary($A15),BI$3-1)="","",VLOOKUP(INDEX(campsByItinerary,numericItinerary($A15),BI$3-1),campInfo,12)) -> South | DH15: =IF(INDEX(campsByItinerary,numericItinerary($A15),BJ$3-1)="","",VLOOKUP(INDEX(campsByItinerary,numericItinerary($A15),BJ$3-1),campInfo,12)) -> South | DI15: =IF(INDEX(campsByItinerary,numericItinerary($A15),BK$3-1)="","",VLOOKUP(INDEX(campsByItinerary,numericItinerary($A15),BK$3-1),campInfo,12)) -> South | DJ15: =IF(INDEX(campsByItinerary,numericItinerary($A15),BL$3-1)="","",VLOOKUP(INDEX(campsByItinerary,numericItinerary($A15),BL$3-1),campInfo,12)) -> South | DK15: =IF(INDEX(campsByItinerary,numericItinerary($A15),BM$3-1)="","",VLOOKUP(INDEX(campsByItinerary,numericItinerary($A15),BM$3-1),campInfo,12)) -> South | DL15: =getfoodPU("First",numericItinerary($A15)) -> 3 | DM15: =getfoodPU("Max",numericItinerary($A15)) -> 3
A16: 12-13 | B16: COPE & Climbing | C16: R | D16: 59 | E16: Toothache Springs | F16: Magpie | G16: Miners Park | H16: Black Mountain | I16: Divide | J16: Lamberts Mine | K16: Cimarroncito | L16: Cimarroncito | M16: Clarks Fork | N16: Tooth Ridge | O16: Camping HQ | Q16: Miners Park | V16: Ute Gulch | Y16: Zastrow | Z16: Hike In | AA16: y | AE16: =IF(ItineraryPrograms!AD15="y","y","") ->  | AF16: =IF(ItineraryPrograms!AE15="y","y","") ->  | AG16: =IF(ItineraryPrograms!AF15="y","y","") -> y | AH16: y | AI16: =checkTooth(AA16,LOWER(ItineraryPrograms!AH15)) -> y | AK16: 7870 | AL16: 7385 | AM16: 7977 | AN16: 8991 | AO16: 10509 | AP16: 8957 | AQ16: 8137 | AR16: 8137 | AS16: 7515 | AT16: 8240 | AU16: 485 | AV16: 592 | AW16: 1014 | AX16: 1518 | AY16: 1552 | AZ16: 820 | BA16: 0 | BB16: 622 | BC16: 725 | BD16: =IF(INDEX(campsByItinerary,numericItinerary($A16),BD$3-1)="","",VLOOKUP(INDEX(campsByItinerary,numericItinerary($A16),BD$3-1),campInfo,8)) ->  | BE16: =IF(INDEX(campsByItinerary,numericItinerary($A16),BE$3-1)="","",VLOOKUP(INDEX(campsByItinerary,numericItinerary($A16),BE$3-1),campInfo,8)) ->  | BF16: =IF(INDEX(campsByItinerary,numericItinerary($A16),BF$3-1)="","",VLOOKUP(INDEX(campsByItinerary,numericItinerary($A16),BF$3-1),campInfo,8)) -> Y | BG16: =IF(INDEX(campsByItinerary,numericItinerary($A16),BG$3-1)="","",VLOOKUP(INDEX(campsByItinerary,numericItinerary($A16),BG$3-1),campInfo,8)) -> Y | BH16: =IF(INDEX(campsByItinerary,numericItinerary($A16),BH$3-1)="","",VLOOKUP(INDEX(campsByItinerary,numericItinerary($A16),BH$3-1),campInfo,8)) ->  | BI16: =IF(INDEX(campsByItinerary,numericItinerary($A16),BI$3-1)="","",VLOOKUP(INDEX(campsByItinerary,numericItinerary($A16),BI$3-1),campInfo,8)) ->  | BJ16: =IF(INDEX(campsByItinerary,numericItinerary($A16),BJ$3-1)="","",VLOOKUP(INDEX(campsByItinerary,numericItinerary($A16),BJ$3-1),campInfo,8)) -> Y | BK16: =IF(INDEX(campsByItinerary,numericItinerary($A16),BK$3-1)="","",VLOOKUP(INDEX(campsByItinerary,numericItinerary($A16),BK$3-1),campInfo,8)) -> Y | BL16: =IF(INDEX(campsByItinerary,numericItinerary($A16),BL$3-1)="","",VLOOKUP(INDEX(campsByItinerary,numericItinerary($A16),BL$3-1),campInfo,8)) -> Y | BM16: =IF(INDEX(campsByItinerary,numericItinerary($A16),BM$3-1)="","",VLOOKUP(INDEX(campsByItinerary,numericItinerary($A16),BM$3-1),campInfo,8)) ->  | BN16: Y | BO16: Y | BR16: Y | BS16: Y | BW16: Y | BX16: =IF(INDEX(campsByItinerary,numericItinerary($A16),BD$3-1)="","",VLOOKUP(INDEX(campsByItinerary,numericItinerary($A16),BD$3-1),campInfo,10)) ->  | BY16: =IF(INDEX(campsByItinerary,numericItinerary($A16),BE$3-1)="","",VLOOKUP(INDEX(campsByItinerary,numericItinerary($A16),BE$3-1),campInfo,10)) -> Y | BZ16: =IF(INDEX(campsByItinerary,numericItinerary($A16),BF$3-1)="","",VLOOKUP(INDEX(campsByItinerary,numericItinerary($A16),BF$3-1),campInfo,10)) ->  | CA16: =IF(INDEX(campsByItinerary,numericItinerary($A16),BG$3-1)="","",VLOOKUP(INDEX(campsByItinerary,numericItinerary($A16),BG$3-1),campInfo,10)) ->  | CB16: =IF(INDEX(campsByItinerary,numericItinerary($A16),BH$3-1)="","",VLOOKUP(INDEX(campsByItinerary,numericItinerary($A16),BH$3-1),campInfo,10)) -> Y | CC16: =IF(INDEX(campsByItinerary,numericItinerary($A16),BI$3-1)="","",VLOOKUP(INDEX(campsByItinerary,numericItinerary($A16),BI$3-1),campInfo,10)) ->  | CD16: =IF(INDEX(campsByItinerary,numericItinerary($A16),BJ$3-1)="","",VLOOKUP(INDEX(campsByItinerary,numericItinerary($A16),BJ$3-1),campInfo,10)) ->  | CE16: =IF(INDEX(campsByItinerary,numericItinerary($A16),BK$3-1)="","",VLOOKUP(INDEX(campsByItinerary,numericItinerary($A16),BK$3-1),campInfo,10)) ->  | CF16: =IF(INDEX(campsByItinerary,numericItinerary($A16),BL$3-1)="","",VLOOKUP(INDEX(campsByItinerary,numericItinerary($A16),BL$3-1),campInfo,10)) ->  | CG16: =IF(INDEX(campsByItinerary,numericItinerary($A16),BM$3-1)="","",VLOOKUP(INDEX(campsByItinerary,numericItinerary($A16),BM$3-1),campInfo,10)) -> Y | CO16: Y | CR16: =INDEX(campsByItinerary,numericItinerary($A16),BD$3-1) -> Toothache Springs | CS16: =IF(INDEX(campsByItinerary,numericItinerary($A16),BE$3-1)="","",VLOOKUP(INDEX(campsByItinerary,numericItinerary($A16),BE$3-1),campInfo,2)) -> South | CT16: =IF(INDEX(campsByItinerary,numericItinerary($A16),BF$3-1)="","",VLOOKUP(INDEX(campsByItinerary,numericItinerary($A16),BF$3-1),campInfo,2)) -> South | CU16: =IF(INDEX(campsByItinerary,numericItinerary($A16),BG$3-1)="","",VLOOKUP(INDEX(campsByItinerary,numericItinerary($A16),BG$3-1),campInfo,2)) -> South | CV16: =IF(INDEX(campsByItinerary,numericItinerary($A16),BH$3-1)="","",VLOOKUP(INDEX(campsByItinerary,numericItinerary($A16),BH$3-1),campInfo,2)) -> South | CW16: =IF(INDEX(campsByItinerary,numericItinerary($A16),BI$3-1)="","",VLOOKUP(INDEX(campsByItinerary,numericItinerary($A16),BI$3-1),campInfo,2)) -> Central | CX16: =IF(INDEX(campsByItinerary,numericItinerary($A16),BJ$3-1)="","",VLOOKUP(INDEX(campsByItinerary,numericItinerary($A16),BJ$3-1),campInfo,2)) -> Central | CY16: =IF(INDEX(campsByItinerary,numericItinerary($A16),BK$3-1)="","",VLOOKUP(INDEX(campsByItinerary,numericItinerary($A16),BK$3-1),campInfo,2)) -> Central | CZ16: =IF(INDEX(campsByItinerary,numericItinerary($A16),BL$3-1)="","",VLOOKUP(INDEX(campsByItinerary,numericItinerary($A16),BL$3-1),campInfo,2)) -> Central | DA16: =IF(INDEX(campsByItinerary,numericItinerary($A16),BM$3-1)="","",VLOOKUP(INDEX(campsByItinerary,numericItinerary($A16),BM$3-1),campInfo,2)) -> Central | DB16: =IF(INDEX(campsByItinerary,numericItinerary($A16),BD$3-1)="","",VLOOKUP(INDEX(campsByItinerary,numericItinerary($A16),BD$3-1),campInfo,12)) -> South | DC16: =IF(INDEX(campsByItinerary,numericItinerary($A16),BE$3-1)="","",VLOOKUP(INDEX(campsByItinerary,numericItinerary($A16),BE$3-1),campInfo,12)) -> South | DD16: =IF(INDEX(campsByItinerary,numericItinerary($A16),BF$3-1)="","",VLOOKUP(INDEX(campsByItinerary,numericItinerary($A16),BF$3-1),campInfo,12)) -> South | DE16: =IF(INDEX(campsByItinerary,numericItinerary($A16),BG$3-1)="","",VLOOKUP(INDEX(campsByItinerary,numericItinerary($A16),BG$3-1),campInfo,12)) -> South | DF16: =IF(INDEX(campsByItinerary,numericItinerary($A16),BH$3-1)="","",VLOOKUP(INDEX(campsByItinerary,numericItinerary($A16),BH$3-1),campInfo,12)) -> South | DG16: =IF(INDEX(campsByItinerary,numericItinerary($A16),BI$3-1)="","",VLOOKUP(INDEX(campsByItinerary,numericItinerary($A16),BI$3-1),campInfo,12)) -> South | DH16: =IF(INDEX(campsByItinerary,numericItinerary($A16),BJ$3-1)="","",VLOOKUP(INDEX(campsByItinerary,numericItinerary($A16),BJ$3-1),campInfo,12)) -> South | DI16: =IF(INDEX(campsByItinerary,numericItinerary($A16),BK$3-1)="","",VLOOKUP(INDEX(campsByItinerary,numericItinerary($A16),BK$3-1),campInfo,12)) -> South | DJ16: =IF(INDEX(campsByItinerary,numericItinerary($A16),BL$3-1)="","",VLOOKUP(INDEX(campsByItinerary,numericItinerary($A16),BL$3-1),campInfo,12)) -> South | DK16: =IF(INDEX(campsByItinerary,numericItinerary($A16),BM$3-1)="","",VLOOKUP(INDEX(campsByItinerary,numericItinerary($A16),BM$3-1),campInfo,12)) -> South | DL16: =getfoodPU("First",numericItinerary($A16)) -> 2 | DM16: =getfoodPU("Max",numericItinerary($A16)) -> 5
A17: 12-14 | C17: S | D17: 78 | E17: Sioux | F17: Dan Beard | G17: Ring Place | H17: Whiteman Vega | I17: Iris Park | J17: Rich Cabins | K17: Dean Skyline | L17: Dean Cow | M17: Harlan | N17: Hunting Lodge | O17: Camping HQ | Q17: Ring Place | T17: Rich Cabins | X17: Ute Gulch | Y17: Ponil | Z17: Webster | AB17: 10 | AC17: Turkey Creek | AD17: S | AE17: =IF(ItineraryPrograms!AD16="y","y","") ->  | AF17: =IF(ItineraryPrograms!AE16="y","y","") ->  | AG17: =IF(ItineraryPrograms!AF16="y","y","") ->  | AI17: =checkTooth(AA17,LOWER(ItineraryPrograms!AH16)) ->  | AK17: 7382 | AL17: 7896 | AM17: 8124 | AN17: 8061 | AO17: 8571 | AP17: 7728 | AQ17: 7967 | AR17: 7232 | AS17: 7550 | AT17: 7776 | AU17: 514 | AV17: 228 | AW17: 63 | AX17: 510 | AY17: 843 | AZ17: 239 | BA17: 735 | BB17: 318 | BC17: 226 | BD17: =IF(INDEX(campsByItinerary,numericItinerary($A17),BD$3-1)="","",VLOOKUP(INDEX(campsByItinerary,numericItinerary($A17),BD$3-1),campInfo,8)) ->  | BE17: =IF(INDEX(campsByItinerary,numericItinerary($A17),BE$3-1)="","",VLOOKUP(INDEX(campsByItinerary,numericItinerary($A17),BE$3-1),campInfo,8)) -> Y | BF17: =IF(INDEX(campsByItinerary,numericItinerary($A17),BF$3-1)="","",VLOOKUP(INDEX(campsByItinerary,numericItinerary($A17),BF$3-1),campInfo,8)) -> Y | BG17: =IF(INDEX(campsByItinerary,numericItinerary($A17),BG$3-1)="","",VLOOKUP(INDEX(campsByItinerary,numericItinerary($A17),BG$3-1),campInfo,8)) -> Y | BH17: =IF(INDEX(campsByItinerary,numericItinerary($A17),BH$3-1)="","",VLOOKUP(INDEX(campsByItinerary,numericItinerary($A17),BH$3-1),campInfo,8)) ->  | BI17: =IF(INDEX(campsByItinerary,numericItinerary($A17),BI$3-1)="","",VLOOKUP(INDEX(campsByItinerary,numericItinerary($A17),BI$3-1),campInfo,8)) -> Y | BJ17: =IF(INDEX(campsByItinerary,numericItinerary($A17),BJ$3-1)="","",VLOOKUP(INDEX(campsByItinerary,numericItinerary($A17),BJ$3-1),campInfo,8)) ->  | BK17: =IF(INDEX(campsByItinerary,numericItinerary($A17),BK$3-1)="","",VLOOKUP(INDEX(campsByItinerary,numericItinerary($A17),BK$3-1),campInfo,8)) -> Y | BL17: =IF(INDEX(campsByItinerary,numericItinerary($A17),BL$3-1)="","",VLOOKUP(INDEX(campsByItinerary,numericItinerary($A17),BL$3-1),campInfo,8)) -> Y | BM17: =IF(INDEX(campsByItinerary,numericItinerary($A17),BM$3-1)="","",VLOOKUP(INDEX(campsByItinerary,numericItinerary($A17),BM$3-1),campInfo,8)) -> N | BN17: Y | BR17: Y | BT17: Y | BW17: Y | BX17: =IF(INDEX(campsByItinerary,numericItinerary($A17),BD$3-1)="","",VLOOKUP(INDEX(campsByItinerary,numericItinerary($A17),BD$3-1),campInfo,10)) ->  | BY17: =IF(INDEX(campsByItinerary,numericItinerary($A17),BE$3-1)="","",VLOOKUP(INDEX(campsByItinerary,numericItinerary($A17),BE$3-1),campInfo,10)) ->  | BZ17: =IF(INDEX(campsByItinerary,numericItinerary($A17),BF$3-1)="","",VLOOKUP(INDEX(campsByItinerary,numericItinerary($A17),BF$3-1),campInfo,10)) ->  | CA17: =IF(INDEX(campsByItinerary,numericItinerary($A17),BG$3-1)="","",VLOOKUP(INDEX(campsByItinerary,numericItinerary($A17),BG$3-1),campInfo,10)) ->  | CB17: =IF(INDEX(campsByItinerary,numericItinerary($A17),BH$3-1)="","",VLOOKUP(INDEX(campsByItinerary,numericItinerary($A17),BH$3-1),campInfo,10)) ->  | CC17: =IF(INDEX(campsByItinerary,numericItinerary($A17),BI$3-1)="","",VLOOKUP(INDEX(campsByItinerary,numericItinerary($A17),BI$3-1),campInfo,10)) ->  | CD17: =IF(INDEX(campsByItinerary,numericItinerary($A17),BJ$3-1)="","",VLOOKUP(INDEX(campsByItinerary,numericItinerary($A17),BJ$3-1),campInfo,10)) -> Y | CE17: =IF(INDEX(campsByItinerary,numericItinerary($A17),BK$3-1)="","",VLOOKUP(INDEX(campsByItinerary,numericItinerary($A17),BK$3-1),campInfo,10)) ->  | CF17: =IF(INDEX(campsByItinerary,numericItinerary($A17),BL$3-1)="","",VLOOKUP(INDEX(campsByItinerary,numericItinerary($A17),BL$3-1),campInfo,10)) ->  | CG17: =IF(INDEX(campsByItinerary,numericItinerary($A17),BM$3-1)="","",VLOOKUP(INDEX(campsByItinerary,numericItinerary($A17),BM$3-1),campInfo,10)) ->  | CR17: =INDEX(campsByItinerary,numericItinerary($A17),BD$3-1) -> Sioux | CS17: =IF(INDEX(campsByItinerary,numericItinerary($A17),BE$3-1)="","",VLOOKUP(INDEX(campsByItinerary,numericItinerary($A17),BE$3-1),campInfo,2)) -> North | CT17: =IF(INDEX(campsByItinerary,numericItinerary($A17),BF$3-1)="","",VLOOKUP(INDEX(campsByItinerary,numericItinerary($A17),BF$3-1),campInfo,2)) -> Valle Vidal | CU17: =IF(INDEX(campsByItinerary,numericItinerary($A17),BG$3-1)="","",VLOOKUP(INDEX(campsByItinerary,numericItinerary($A17),BG$3-1),campInfo,2)) -> Valle Vidal | CV17: =IF(INDEX(campsByItinerary,numericItinerary($A17),BH$3-1)="","",VLOOKUP(INDEX(campsByItinerary,numericItinerary($A17),BH$3-1),campInfo,2)) -> Valle Vidal | CW17: =IF(INDEX(campsByItinerary,numericItinerary($A17),BI$3-1)="","",VLOOKUP(INDEX(campsByItinerary,numericItinerary($A17),BI$3-1),campInfo,2)) -> Valle Vidal | CX17: =IF(INDEX(campsByItinerary,numericItinerary($A17),BJ$3-1)="","",VLOOKUP(INDEX(campsByItinerary,numericItinerary($A17),BJ$3-1),campInfo,2)) -> North | CY17: =IF(INDEX(campsByItinerary,numericItinerary($A17),BK$3-1)="","",VLOOKUP(INDEX(campsByItinerary,numericItinerary($A17),BK$3-1),campInfo,2)) -> North | CZ17: =IF(INDEX(campsByItinerary,numericItinerary($A17),BL$3-1)="","",VLOOKUP(INDEX(campsByItinerary,numericItinerary($A17),BL$3-1),campInfo,2)) -> Central | DA17: =IF(INDEX(campsByItinerary,numericItinerary($A17),BM$3-1)="","",VLOOKUP(INDEX(campsByItinerary,numericItinerary($A17),BM$3-1),campInfo,2)) -> Central | DB17: =IF(INDEX(campsByItinerary,numericItinerary($A17),BD$3-1)="","",VLOOKUP(INDEX(campsByItinerary,numericItinerary($A17),BD$3-1),campInfo,12)) -> North | DC17: =IF(INDEX(campsByItinerary,numericItinerary($A17),BE$3-1)="","",VLOOKUP(INDEX(campsByItinerary,numericItinerary($A17),BE$3-1),campInfo,12)) -> North | DD17: =IF(INDEX(campsByItinerary,numericItinerary($A17),BF$3-1)="","",VLOOKUP(INDEX(campsByItinerary,numericItinerary($A17),BF$3-1),campInfo,12)) -> North | DE17: =IF(INDEX(campsByItinerary,numericItinerary($A17),BG$3-1)="","",VLOOKUP(INDEX(campsByItinerary,numericItinerary($A17),BG$3-1),campInfo,12)) -> North | DF17: =IF(INDEX(campsByItinerary,numericItinerary($A17),BH$3-1)="","",VLOOKUP(INDEX(campsByItinerary,numericItinerary($A17),BH$3-1),campInfo,12)) -> North | DG17: =IF(INDEX(campsByItinerary,numericItinerary($A17),BI$3-1)="","",VLOOKUP(INDEX(campsByItinerary,numericItinerary($A17),BI$3-1),campInfo,12)) -> North | DH17: =IF(INDEX(campsByItinerary,numericItinerary($A17),BJ$3-1)="","",VLOOKUP(INDEX(campsByItinerary,numericItinerary($A17),BJ$3-1),campInfo,12)) -> North | DI17: =IF(INDEX(campsByItinerary,numericItinerary($A17),BK$3-1)="","",VLOOKUP(INDEX(campsByItinerary,numericItinerary($A17),BK$3-1),campInfo,12)) -> North | DJ17: =IF(INDEX(campsByItinerary,numericItinerary($A17),BL$3-1)="","",VLOOKUP(INDEX(campsByItinerary,numericItinerary($A17),BL$3-1),campInfo,12)) -> South | DK17: =IF(INDEX(campsByItinerary,numericItinerary($A17),BM$3-1)="","",VLOOKUP(INDEX(campsByItinerary,numericItinerary($A17),BM$3-1),campInfo,12)) -> South | DL17: =getfoodPU("First",numericItinerary($A17)) -> 2 | DM17: =getfoodPU("Max",numericItinerary($A17)) -> 4
A18: 12-15 | C18: S | D18: 63 | E18: Lovers Leap | F18: Miners Park | G18: Beaubien | H18: Beaubien | I18: Comanche Creek | J18: Comanche Peak | K18: Sawmill | L18: Cyphers Mine | M18: Cimarroncito | N18: Shaefers Pass | O18: Camping HQ | P18: Miners Park | S18: Phillips Junction | W18: Ute Gulch | Y18: Lovers Leap | Z18: Hike In | AA18: y | AE18: =IF(ItineraryPrograms!AD17="y","y","") ->  | AF18: =IF(ItineraryPrograms!AE17="y","y","") ->  | AG18: =IF(ItineraryPrograms!AF17="y","y","") -> y | AH18: y | AI18: =checkTooth(AA18,LOWER(ItineraryPrograms!AH17)) -> y | AJ18: y | AK18: 7469 | AL18: 7977 | AM18: 9330 | AN18: 9330 | AO18: 9600 | AP18: 11070 | AQ18: 9193 | AR18: 9302 | AS18: 8137 | AT18: 8724 | AU18: 508 | AV18: 1353 | AW18: 0 | AX18: 270 | AY18: 1470 | AZ18: 1877 | BA18: 109 | BB18: 1165 | BC18: 587 | BD18: =IF(INDEX(campsByItinerary,numericItinerary($A18),BD$3-1)="","",VLOOKUP(INDEX(campsByItinerary,numericItinerary($A18),BD$3-1),campInfo,8)) ->  | BE18: =IF(INDEX(campsByItinerary,numericItinerary($A18),BE$3-1)="","",VLOOKUP(INDEX(campsByItinerary,numericItinerary($A18),BE$3-1),campInfo,8)) -> Y | BF18: =IF(INDEX(campsByItinerary,numericItinerary($A18),BF$3-1)="","",VLOOKUP(INDEX(campsByItinerary,numericItinerary($A18),BF$3-1),campInfo,8)) -> Y | BG18: =IF(INDEX(campsByItinerary,numericItinerary($A18),BG$3-1)="","",VLOOKUP(INDEX(campsByItinerary,numericItinerary($A18),BG$3-1),campInfo,8)) -> Y | BH18: =IF(INDEX(campsByItinerary,numericItinerary($A18),BH$3-1)="","",VLOOKUP(INDEX(campsByItinerary,numericItinerary($A18),BH$3-1),campInfo,8)) ->  | BI18: =IF(INDEX(campsByItinerary,numericItinerary($A18),BI$3-1)="","",VLOOKUP(INDEX(campsByItinerary,numericItinerary($A18),BI$3-1),campInfo,8)) ->  | BJ18: =IF(INDEX(campsByItinerary,numericItinerary($A18),BJ$3-1)="","",VLOOKUP(INDEX(campsByItinerary,numericItinerary($A18),BJ$3-1),campInfo,8)) -> Y | BK18: =IF(INDEX(campsByItinerary,numericItinerary($A18),BK$3-1)="","",VLOOKUP(INDEX(campsByItinerary,numericItinerary($A18),BK$3-1),campInfo,8)) -> Y | BL18: =IF(INDEX(campsByItinerary,numericItinerary($A18),BL$3-1)="","",VLOOKUP(INDEX(campsByItinerary,numericItinerary($A18),BL$3-1),campInfo,8)) -> Y | BM18: =IF(INDEX(campsByItinerary,numericItinerary($A18),BM$3-1)="","",VLOOKUP(INDEX(campsByItinerary,numericItinerary($A18),BM$3-1),campInfo,8)) ->  | BN18: Y | BR18: Y | BS18: Y | BW18: Y | BX18: =IF(INDEX(campsByItinerary,numericItinerary($A18),BD$3-1)="","",VLOOKUP(INDEX(campsByItinerary,numericItinerary($A18),BD$3-1),campInfo,10)) ->  | BY18: =IF(INDEX(campsByItinerary,numericItinerary($A18),BE$3-1)="","",VLOOKUP(INDEX(campsByItinerary,numericItinerary($A18),BE$3-1),campInfo,10)) ->  | BZ18: =IF(INDEX(campsByItinerary,numericItinerary($A18),BF$3-1)="","",VLOOKUP(INDEX(campsByItinerary,numericItinerary($A18),BF$3-1),campInfo,10)) ->  | CA18: =IF(INDEX(campsByItinerary,numericItinerary($A18),BG$3-1)="","",VLOOKUP(INDEX(campsByItinerary,numericItinerary($A18),BG$3-1),campInfo,10)) ->  | CB18: =IF(INDEX(campsByItinerary,numericItinerary($A18),BH$3-1)="","",VLOOKUP(INDEX(campsByItinerary,numericItinerary($A18),BH$3-1),campInfo,10)) ->  | CC18: =IF(INDEX(campsByItinerary,numericItinerary($A18),BI$3-1)="","",VLOOKUP(INDEX(campsByItinerary,numericItinerary($A18),BI$3-1),campInfo,10)) -> Y | CD18: =IF(INDEX(campsByItinerary,numericItinerary($A18),BJ$3-1)="","",VLOOKUP(INDEX(campsByItinerary,numericItinerary($A18),BJ$3-1),campInfo,10)) ->  | CE18: =IF(INDEX(campsByItinerary,numericItinerary($A18),BK$3-1)="","",VLOOKUP(INDEX(campsByItinerary,numericItinerary($A18),BK$3-1),campInfo,10)) ->  | CF18: =IF(INDEX(campsByItinerary,numericItinerary($A18),BL$3-1)="","",VLOOKUP(INDEX(campsByItinerary,numericItinerary($A18),BL$3-1),campInfo,10)) ->  | CG18: =IF(INDEX(campsByItinerary,numericItinerary($A18),BM$3-1)="","",VLOOKUP(INDEX(campsByItinerary,numericItinerary($A18),BM$3-1),campInfo,10)) -> Y | CK18: Y | CR18: =INDEX(campsByItinerary,numericItinerary($A18),BD$3-1) -> Lovers Leap | CS18: =IF(INDEX(campsByItinerary,numericItinerary($A18),BE$3-1)="","",VLOOKUP(INDEX(campsByItinerary,numericItinerary($A18),BE$3-1),campInfo,2)) -> South | CT18: =IF(INDEX(campsByItinerary,numericItinerary($A18),BF$3-1)="","",VLOOKUP(INDEX(campsByItinerary,numericItinerary($A18),BF$3-1),campInfo,2)) -> South | CU18: =IF(INDEX(campsByItinerary,numericItinerary($A18),BG$3-1)="","",VLOOKUP(INDEX(campsByItinerary,numericItinerary($A18),BG$3-1),campInfo,2)) -> South | CV18: =IF(INDEX(campsByItinerary,numericItinerary($A18),BH$3-1)="","",VLOOKUP(INDEX(campsByItinerary,numericItinerary($A18),BH$3-1),campInfo,2)) -> South | CW18: =IF(INDEX(campsByItinerary,numericItinerary($A18),BI$3-1)="","",VLOOKUP(INDEX(campsByItinerary,numericItinerary($A18),BI$3-1),campInfo,2)) -> Central | CX18: =IF(INDEX(campsByItinerary,numericItinerary($A18),BJ$3-1)="","",VLOOKUP(INDEX(campsByItinerary,numericItinerary($A18),BJ$3-1),campInfo,2)) -> Central | CY18: =IF(INDEX(campsByItinerary,numericItinerary($A18),BK$3-1)="","",VLOOKUP(INDEX(campsByItinerary,numericItinerary($A18),BK$3-1),campInfo,2)) -> Central | CZ18: =IF(INDEX(campsByItinerary,numericItinerary($A18),BL$3-1)="","",VLOOKUP(INDEX(campsByItinerary,numericItinerary($A18),BL$3-1),campInfo,2)) -> Central | DA18: =IF(INDEX(campsByItinerary,numericItinerary($A18),BM$3-1)="","",VLOOKUP(INDEX(campsByItinerary,numericItinerary($A18),BM$3-1),campInfo,2)) -> Central | DB18: =IF(INDEX(campsByItinerary,numericItinerary($A18),BD$3-1)="","",VLOOKUP(INDEX(campsByItinerary,numericItinerary($A18),BD$3-1),campInfo,12)) -> South | DC18: =IF(INDEX(campsByItinerary,numericItinerary($A18),BE$3-1)="","",VLOOKUP(INDEX(campsByItinerary,numericItinerary($A18),BE$3-1),campInfo,12)) -> South | DD18: =IF(INDEX(campsByItinerary,numericItinerary($A18),BF$3-1)="","",VLOOKUP(INDEX(campsByItinerary,numericItinerary($A18),BF$3-1),campInfo,12)) -> South | DE18: =IF(INDEX(campsByItinerary,numericItinerary($A18),BG$3-1)="","",VLOOKUP(INDEX(campsByItinerary,numericItinerary($A18),BG$3-1),campInfo,12)) -> South | DF18: =IF(INDEX(campsByItinerary,numericItinerary($A18),BH$3-1)="","",VLOOKUP(INDEX(campsByItinerary,numericItinerary($A18),BH$3-1),campInfo,12)) -> South | DG18: =IF(INDEX(campsByItinerary,numericItinerary($A18),BI$3-1)="","",VLOOKUP(INDEX(campsByItinerary,numericItinerary($A18),BI$3-1),campInfo,12)) -> South | DH18: =IF(INDEX(campsByItinerary,numericItinerary($A18),BJ$3-1)="","",VLOOKUP(INDEX(campsByItinerary,numericItinerary($A18),BJ$3-1),campInfo,12)) -> South | DI18: =IF(INDEX(campsByItinerary,numericItinerary($A18),BK$3-1)="","",VLOOKUP(INDEX(campsByItinerary,numericItinerary($A18),BK$3-1),campInfo,12)) -> South | DJ18: =IF(INDEX(campsByItinerary,numericItinerary($A18),BL$3-1)="","",VLOOKUP(INDEX(campsByItinerary,numericItinerary($A18),BL$3-1),campInfo,12)) -> South | DK18: =IF(INDEX(campsByItinerary,numericItinerary($A18),BM$3-1)="","",VLOOKUP(INDEX(campsByItinerary,numericItinerary($A18),BM$3-1),campInfo,12)) -> South | DL18: =getfoodPU("First",numericItinerary($A18)) -> 1 | DM18: =getfoodPU("Max",numericItinerary($A18)) -> 3
A19: 12-16 | C19: S | D19: 65 | E19: Carson Meadows | F19: Lower Bonito | G19: Fish Camp | H19: Apache Springs | I19: Comanche Creek | J19: Red Hills | K19: Beaubien | L19: Beaubien | M19: Miners Park | N19: Tooth Ridge | O19: Camping HQ | R19: Apache Springs | V19: Phillips Junction | Y19: Zastrow | Z19: Hike In | AA19: y | AE19: =IF(ItineraryPrograms!AD18="y","y","") ->  | AF19: =IF(ItineraryPrograms!AE18="y","y","") ->  | AG19: =IF(ItineraryPrograms!AF18="y","y","") -> y | AH19: y | AI19: =checkTooth(AA19,LOWER(ItineraryPrograms!AH18)) -> y | AK19: 7758 | AL19: 8962 | AM19: 8564 | AN19: 9409 | AO19: 9600 | AP19: 10280 | AQ19: 9330 | AR19: 9330 | AS19: 7977 | AT19: 8240 | AU19: 1204 | AV19: 398 | AW19: 845 | AX19: 191 | AY19: 680 | AZ19: 950 | BA19: 0 | BB19: 1353 | BC19: 263 | BD19: =IF(INDEX(campsByItinerary,numericItinerary($A19),BD$3-1)="","",VLOOKUP(INDEX(campsByItinerary,numericItinerary($A19),BD$3-1),campInfo,8)) -> N | BE19: =IF(INDEX(campsByItinerary,numericItinerary($A19),BE$3-1)="","",VLOOKUP(INDEX(campsByItinerary,numericItinerary($A19),BE$3-1),campInfo,8)) ->  | BF19: =IF(INDEX(campsByItinerary,numericItinerary($A19),BF$3-1)="","",VLOOKUP(INDEX(campsByItinerary,numericItinerary($A19),BF$3-1),campInfo,8)) -> N | BG19: =IF(INDEX(campsByItinerary,numericItinerary($A19),BG$3-1)="","",VLOOKUP(INDEX(campsByItinerary,numericItinerary($A19),BG$3-1),campInfo,8)) -> Y | BH19: =IF(INDEX(campsByItinerary,numericItinerary($A19),BH$3-1)="","",VLOOKUP(INDEX(campsByItinerary,numericItinerary($A19),BH$3-1),campInfo,8)) ->  | BI19: =IF(INDEX(campsByItinerary,numericItinerary($A19),BI$3-1)="","",VLOOKUP(INDEX(campsByItinerary,numericItinerary($A19),BI$3-1),campInfo,8)) ->  | BJ19: =IF(INDEX(campsByItinerary,numericItinerary($A19),BJ$3-1)="","",VLOOKUP(INDEX(campsByItinerary,numericItinerary($A19),BJ$3-1),campInfo,8)) -> Y | BK19: =IF(INDEX(campsByItinerary,numericItinerary($A19),BK$3-1)="","",VLOOKUP(INDEX(campsByItinerary,numericItinerary($A19),BK$3-1),campInfo,8)) -> Y | BL19: =IF(INDEX(campsByItinerary,numericItinerary($A19),BL$3-1)="","",VLOOKUP(INDEX(campsByItinerary,numericItinerary($A19),BL$3-1),campInfo,8)) -> Y | BM19: =IF(INDEX(campsByItinerary,numericItinerary($A19),BM$3-1)="","",VLOOKUP(INDEX(campsByItinerary,numericItinerary($A19),BM$3-1),campInfo,8)) ->  | BN19: Y | BO19: Y | BP19: Y | BR19: Y | BS19: Y | BW19: Y | BX19: =IF(INDEX(campsByItinerary,numericItinerary($A19),BD$3-1)="","",VLOOKUP(INDEX(campsByItinerary,numericItinerary($A19),BD$3-1),campInfo,10)) ->  | BY19: =IF(INDEX(campsByItinerary,numericItinerary($A19),BE$3-1)="","",VLOOKUP(INDEX(campsByItinerary,numericItinerary($A19),BE$3-1),campInfo,10)) ->  | BZ19: =IF(INDEX(campsByItinerary,numericItinerary($A19),BF$3-1)="","",VLOOKUP(INDEX(campsByItinerary,numericItinerary($A19),BF$3-1),campInfo,10)) ->  | CA19: =IF(INDEX(campsByItinerary,numericItinerary($A19),BG$3-1)="","",VLOOKUP(INDEX(campsByItinerary,numericItinerary($A19),BG$3-1),campInfo,10)) ->  | CB19: =IF(INDEX(campsByItinerary,numericItinerary($A19),BH$3-1)="","",VLOOKUP(INDEX(campsByItinerary,numericItinerary($A19),BH$3-1),campInfo,10)) ->  | CC19: =IF(INDEX(campsByItinerary,numericItinerary($A19),BI$3-1)="","",VLOOKUP(INDEX(campsByItinerary,numericItinerary($A19),BI$3-1),campInfo,10)) ->  | CD19: =IF(INDEX(campsByItinerary,numericItinerary($A19),BJ$3-1)="","",VLOOKUP(INDEX(campsByItinerary,numericItinerary($A19),BJ$3-1),campInfo,10)) ->  | CE19: =IF(INDEX(campsByItinerary,numericItinerary($A19),BK$3-1)="","",VLOOKUP(INDEX(campsByItinerary,numericItinerary($A19),BK$3-1),campInfo,10)) ->  | CF19: =IF(INDEX(campsByItinerary,numericItinerary($A19),BL$3-1)="","",VLOOKUP(INDEX(campsByItinerary,numericItinerary($A19),BL$3-1),campInfo,10)) ->  | CG19: =IF(INDEX(campsByItinerary,numericItinerary($A19),BM$3-1)="","",VLOOKUP(INDEX(campsByItinerary,numericItinerary($A19),BM$3-1),campInfo,10)) -> Y | CO19: Y | CR19: =INDEX(campsByItinerary,numericItinerary($A19),BD$3-1) -> Carson Meadows | CS19: =IF(INDEX(campsByItinerary,numericItinerary($A19),BE$3-1)="","",VLOOKUP(INDEX(campsByItinerary,numericItinerary($A19),BE$3-1),campInfo,2)) -> South | CT19: =IF(INDEX(campsByItinerary,numericItinerary($A19),BF$3-1)="","",VLOOKUP(INDEX(campsByItinerary,numericItinerary($A19),BF$3-1),campInfo,2)) -> South | CU19: =IF(INDEX(campsByItinerary,numericItinerary($A19),BG$3-1)="","",VLOOKUP(INDEX(campsByItinerary,numericItinerary($A19),BG$3-1),campInfo,2)) -> South | CV19: =IF(INDEX(campsByItinerary,numericItinerary($A19),BH$3-1)="","",VLOOKUP(INDEX(campsByItinerary,numericItinerary($A19),BH$3-1),campInfo,2)) -> South | CW19: =IF(INDEX(campsByItinerary,numericItinerary($A19),BI$3-1)="","",VLOOKUP(INDEX(campsByItinerary,numericItinerary($A19),BI$3-1),campInfo,2)) -> South | CX19: =IF(INDEX(campsByItinerary,numericItinerary($A19),BJ$3-1)="","",VLOOKUP(INDEX(campsByItinerary,numericItinerary($A19),BJ$3-1),campInfo,2)) -> South | CY19: =IF(INDEX(campsByItinerary,numericItinerary($A19),BK$3-1)="","",VLOOKUP(INDEX(campsByItinerary,numericItinerary($A19),BK$3-1),campInfo,2)) -> South | CZ19: =IF(INDEX(campsByItinerary,numericItinerary($A19),BL$3-1)="","",VLOOKUP(INDEX(campsByItinerary,numericItinerary($A19),BL$3-1),campInfo,2)) -> South | DA19: =IF(INDEX(campsByItinerary,numericItinerary($A19),BM$3-1)="","",VLOOKUP(INDEX(campsByItinerary,numericItinerary($A19),BM$3-1),campInfo,2)) -> Central | DB19: =IF(INDEX(campsByItinerary,numericItinerary($A19),BD$3-1)="","",VLOOKUP(INDEX(campsByItinerary,numericItinerary($A19),BD$3-1),campInfo,12)) -> South | DC19: =IF(INDEX(campsByItinerary,numericItinerary($A19),BE$3-1)="","",VLOOKUP(INDEX(campsByItinerary,numericItinerary($A19),BE$3-1),campInfo,12)) -> South | DD19: =IF(INDEX(campsByItinerary,numericItinerary($A19),BF$3-1)="","",VLOOKUP(INDEX(campsByItinerary,numericItinerary($A19),BF$3-1),campInfo,12)) -> South | DE19: =IF(INDEX(campsByItinerary,numericItinerary($A19),BG$3-1)="","",VLOOKUP(INDEX(campsByItinerary,numericItinerary($A19),BG$3-1),campInfo,12)) -> South | DF19: =IF(INDEX(campsByItinerary,numericItinerary($A19),BH$3-1)="","",VLOOKUP(INDEX(campsByItinerary,numericItinerary($A19),BH$3-1),campInfo,12)) -> South | DG19: =IF(INDEX(campsByItinerary,numericItinerary($A19),BI$3-1)="","",VLOOKUP(INDEX(campsByItinerary,numericItinerary($A19),BI$3-1),campInfo,12)) -> South | DH19: =IF(INDEX(campsByItinerary,numericItinerary($A19),BJ$3-1)="","",VLOOKUP(INDEX(campsByItinerary,numericItinerary($A19),BJ$3-1),campInfo,12)) -> South | DI19: =IF(INDEX(campsByItinerary,numericItinerary($A19),BK$3-1)="","",VLOOKUP(INDEX(campsByItinerary,numericItinerary($A19),BK$3-1),campInfo,12)) -> South | DJ19: =IF(INDEX(campsByItinerary,numericItinerary($A19),BL$3-1)="","",VLOOKUP(INDEX(campsByItinerary,numericItinerary($A19),BL$3-1),campInfo,12)) -> South | DK19: =IF(INDEX(campsByItinerary,numericItinerary($A19),BM$3-1)="","",VLOOKUP(INDEX(campsByItinerary,numericItinerary($A19),BM$3-1),campInfo,12)) -> South | DL19: =getfoodPU("First",numericItinerary($A19)) -> 3 | DM19: =getfoodPU("Max",numericItinerary($A19)) -> 3
